Workbook

Sheet (0) Intro
B2: SCALING DYNAMICS OF ENERGY TECHNOLOGIES (SD-ET) DATABASE
B4: This workbook contains the time series data and logistic fit parameters for a sample of energy technologies compiled as part of an ongoing research project at IIASA on the scaling dynamics of energy-technologies (SD-ET).
C5: For full details of the project, please see: http://www.iiasa.ac.at/web/home/research/modelsData/Scaling-Dynamics-of-Energy-Technologies1.en.html
C6: For further information, please contact: grubler@iiasa.ac.at or wilsonch@iiasa.ac.at
B8: These data are being made freely available to support further research.
B10: If using the time series data, please reference the data source publications (see worksheet (1)) and the relevant IIASA synthesis publication as follows:
C11: Wilson, C. (2012). "Up-scaling, formative phases, and learning in the historical diffusion of energy technologies." Energy Policy 50: 81-94.
C12: Bento, N. (2013). New Evidences in Technology Scaling Dynamics and the Role of the Formative Phase. Laxenburg, Austria, International Institute for Applied Systems Analysis (IIASA).
B14: If using the logistic fit parameters, please reference the relevant IIASA synthesis publication as follows:
C15: Wilson, C., A. Grubler, N. Bauer, V. Krey and K. Riahi (2012). "Future capacity growth of energy technologies: are scenarios consistent with historical evidence?" Climatic Change 118(2): 381-395.
C16: Bento, N. (2013). New Evidences in Technology Scaling Dynamics and the Role of the Formative Phase. Laxenburg, Austria, International Institute for Applied Systems Analysis (IIASA).

Sheet (1) Data Summary
A1: units | B1: industry | C1: technology time series | D1: compiled by | E1: publications | F1: main data sources (see publications for details)
A2: fluid catalytic cracking (FCC) | B2: refineries | C2: FCC-REFINERIES (1940-2007) | D2: CW | E2: Wilson 2009; Wilson 2012; Wilson et al. 2012 | F2: Enos 2002; OGJ (various); BP 2008; US Annual Energy Review 2008
A3: turbine units | B3: power plants | C3: COAL POWER (1908-2000) | D3: CW | E3: Wilson 2009; Wilson 2012; Wilson et al. 2012 | F3: Platts 2005
A4: turbine units | B4: power plants | C4: NUCLEAR (1956-2000) | D4: CW | E4: Wilson 2009; Wilson 2012; Wilson et al. 2012 | F4: Platts 2005
A5: turbine units | B5: power plants | C5: HYDRO (1900-2005) | D5: CW | F5: Platts 2005
A6: turbine units | B6: power plants | C6: NATURAL GAS - 1ST PHASE (1903-2000) | D6: CW | E6: Wilson 2009; Wilson 2012; Wilson et al. 2012 | F6: Platts 2005
A7: turbine units | B7: power plants | C7: WIND POWER (1977-2007) | D7: CW | E7: Wilson 2009; Wilson 2012; Wilson et al. 2012 | F7: Danish Energy Agency 2007; GWEC 2008; EWEA 2008; AWEA (various); BTM Consult 2001
A8: engines | B8: jet aircraft | C8: JET AIRCRAFT (1958-2007) | D8: CW | E8: Wilson 2009; Wilson 2012; Wilson et al. 2012 | F8: Jane's (various); Boeing & Airbus (websites)
A9: engines | B9: cars | C9: PASSENGER CARS (1900-2007) | D9: CW | E9: Wilson 2009; Wilson 2012; Wilson et al. 2012 | F9: AAMA Databooks 1980, 1995, 1997, 2007; NHTSA & EPA (various); ECEA & ACMT (various)
A10: compact fluourescent light bulbs (CFLs) | B10: light bulbs | C10: CFLs (1990-2004) | D10: CW | E10: Wilson 2009; Wilson 2012; Wilson et al. 2012 | F10: IEA 2006
A11: bicycles | B11: bicycles | C11: BICYCLES (1861-2007) | D11: NB | E11: Bento 2013 | F11: UN Industrial Commodity Statistics Database 1980-2007; UN Statistics Yearbook 1982; UN The Growth of World Industry 1971, 1972; ACMA (Italy); Estfehani (China); Perry (USA); Ueda (Japan); Herlihy 2004 (USA); Wan-wen Chu 1997 (Taiwan); ibike.org (Taiwan); COLIPED-COLIBI (Europe)
A12: e-bikes | B12: e-bikes | C12: E-BIKES (1997-2010) | D12: NB | E12: Bento 2013 | F12: Weinert 2007; Jamerson & Benjamin (various)
A13: ships | B13: ships | C13: STEAM SHIPS (1810-1940) | D13: NB | E13: Bento 2013 | F13: US Census 1900; Woytinsky 1926; Mitchell 1980, 1993
A14: locomotives | B14: locomotives | C14: STEAM LOCOMOTIVES (1820-1940) | D14: NB | E14: Bento 2013 | F14: US Census 1900; Woytinsky 1926; Daugherty 1933 (See more details about references for the steam engines cluster in data file "Steam machines(in use)_v9" , sheet "REF")
A15: stationary engines | B15: stationary engines | C15: STATIONARY STEAM ENGINES (1710-1930) | D15: NB | E15: Bento 2013 | F15: US Census 1900; Woytinsky 1926; Kanefsky & Robey 1979, 1980; Atack et al. 1980; Hunter 1985
A16: engines | B16: motorcycles | C16: MOTORCYCLES (1899-2008) | D16: NB | E16: Bento 2013 | F16: UN Industrial Commodity Statistics Database 2012; UN Yearbook of Industrial Statistics (various); JAMA database 2012; ACEM 2010; Wezel 2002; Koerner 1995
A17: mobile phones | B17: mobile phones | C17: CELLPHONES (1978-2010) | D17: NB | E17: Bento 2013 | F17: ITU World Telecommunication / ICT Indicators Database (2013); Gartner (various)
A18: washing machines | B18: washing machines | C18: WASHING MACHINES (1920-2008) | D18: NB | E18: Bento 2013 | F18: UN Industrial Commodity Statistics 2012; UN Yearbook of Industrial Stats (various); Weiss et al 2010; Stiftung Warentest (various)
A19: refrigerators | B19: refrigerators | C19: REFRIGERATORS (1918-2009) | D19: DAP | F19: UN Industrial Commodity Statistics (various); Weiss et al 2010; Meier 1994; Rosenfeld 1999
A20: laundry dryers | B20: laundry dryers | C20: LAUNDRY DRYERS (1920-2006) | D20: DAP | F20: UN 2008 Industry Commodity Production Data 1950-2009; Weiss et al. 2010
D24: CW = | E24: Charlie Wilson
D25: NB = | E25: Nuno Bento
D26: DAP = | E26: Diego Aranda Perez
D28: Wilson 2009 = | E28: Wilson, C. (2009). Meta-analysis of unit and industry level scaling dynamics in energy technologies and climate change mitigation scenarios. Laxenburg, Austria, International Institute for Applied Systems Analysis (IIASA).
D29: Wilson 2012 = | E29: Wilson, C. (2012). "Up-scaling, formative phases, and learning in the historical diffusion of energy technologies." Energy Policy 50: 81-94.
D30: Wilson et al. 2012 = | E30: Wilson, C., A. Grubler, N. Bauer, V. Krey and K. Riahi (2012). "Future capacity growth of energy technologies: are scenarios consistent with historical evidence?" Climatic Change 118(2): 381-395.
D31: Bento 2013 = | E31: Bento, N. (2013). New Evidences in Technology Scaling Dynamics and the Role of the Formative Phase. Laxenburg, Austria, International Institute for Applied Systems Analysis (IIASA).

Sheet (2) Time Series Data
B1: Global & Regional Time Series Data (Cumulative Capacity, Cumulative No. of Units, Average Unit Capacity, Maximum Unit Capacity)
B3: Technology | C3: Tech Code | D3: Region | E3: Region Code | F3: Metric | G3: Unit | H3: Metric Code | I3: Start | J3: End | K3: Use? | L3: Label | M3: Time Series Start Year
B5: FCC-REFINERIES (1940-2007) | M5: 1940 | N5: 1941 | O5: 1942 | P5: 1943 | Q5: 1944 | R5: 1945 | S5: 1946 | T5: 1947 | U5: 1948 | V5: 1949 | W5: 1950 | X5: 1951 | Y5: 1952 | Z5: 1953 | AA5: 1954 | AB5: 1955 | AC5: 1956 | AD5: 1957 | AE5: 1958 | AF5: 1959 | AG5: 1960 | AH5: 1961 | AI5: 1962 | AJ5: 1963 | AK5: 1964 | AL5: 1965 | AM5: 1966 | AN5: 1967 | AO5: 1968 | AP5: 1969 | AQ5: 1970 | AR5: 1971 | AS5: 1972 | AT5: 1973 | AU5: 1974 | AV5: 1975 | AW5: 1976 | AX5: 1977 | AY5: 1978 | AZ5: 1979 | BA5: 1980 | BB5: 1981 | BC5: 1982 | BD5: 1983 | BE5: 1984 | BF5: 1985 | BG5: 1986 | BH5: 1987 | BI5: 1988 | BJ5: 1989 | BK5: 1990 | BL5: 1991 | BM5: 1992 | BN5: 1993 | BO5: 1994 | BP5: 1995 | BQ5: 1996 | BR5: 1997 | BS5: 1998 | BT5: 1999 | BU5: 2000 | BV5: 2001 | BW5: 2002 | BX5: 2003 | BY5: 2004 | BZ5: 2005 | CA5: 2006 | CB5: 2007
A7: =L7 -> ref_cumcap_core | B7: FCC-Refineries | C7: ref | D7: OECD+FSU | E7: core | F7: Net Total Capacity | G7: MW | H7: cumcap | I7: 1940 | J7: 2007 | K7: use | L7: =C7&"_"&H7&"_"&E7 -> ref_cumcap_core | M7: 359316.5921 | N7: 386017.7504 | O7: 413402.3597 | P7: 441571.5877 | Q7: 470641.3308 | R7: 500744.3583 | S7: 532032.7693 | T7: 564680.807 | U7: 598888.0831 | V7: 634883.2714 | W7: 672928.3392 | X7: 713323.395 | Y7: 756412.2421 | Z7: 802588.7402 | AA7: 852304.0941 | AB7: 906075.2032 | AC7: 964494.2264 | AD7: 1028239.54 | AE7: 1098088.293 | AF7: 1174930.785 | AG7: 1259786.943 | AH7: 1353825.197 | AI7: 1458384.1 | AJ7: 1574997.099 | AK7: 1705420.911 | AL7: 1851668.033 | AM7: 2016043.984 | AN7: 2115631.51 | AO7: 2255893.087 | AP7: 2420883.934 | AQ7: 2605675.006 | AR7: 2791286.463 | AS7: 2928173.679 | AT7: 3130029.714 | AU7: 3313597.251 | AV7: 3443482.895 | AW7: 3633679.228 | AX7: 3729321.502 | AY7: 3762916.659 | AZ7: 3842180.135 | BA7: 3826338.873 | BB7: 3750580.65 | BC7: 3599869.208 | BD7: 3481696.137 | BE7: 3406014.167 | BF7: 3351617.663 | BG7: 3321110.658 | BH7: 3364625.618 | BI7: 3336168.241 | BJ7: 3333149.349 | BK7: 3337914.978 | BL7: 3339073.255 | BM7: 3188279.826 | BN7: 3161369.26 | BO7: 3190948.679 | BP7: 3133940.985 | BQ7: 3127783.025 | BR7: 3147733.211 | BS7: 3172922.893 | BT7: 3166812.165 | BU7: 3171466.09 | BV7: 3186886.694 | BW7: 3195797.268 | BX7: 3211166.523 | BY7: 3232597.625 | BZ7: 3239970.122 | CA7: 3247115.416 | CB7: 3257907.302
A8: =L8 -> ref_cumcap_rimFSU | B8: FCC-Refineries | C8: ref | D8: not used | E8: rimFSU | F8: Net Total Capacity | G8: MW | H8: cumcap | K8: not used | L8: =C8&"_"&H8&"_"&E8 -> ref_cumcap_rimFSU
A9: =L9 -> ref_cumcap_rim | B9: FCC-Refineries | C9: ref | D9: LAm+MidEast+AsiaExChina | E9: rim | F9: Net Total Capacity | G9: MW | H9: cumcap | I9: 1940 | J9: 2007 | K9: use | L9: =C9&"_"&H9&"_"&E9 -> ref_cumcap_rim | M9: 93451.1562 | N9: 99992.16473 | O9: 107014.7985 | P9: 114556.8808 | Q9: 122659.428 | R9: 131366.9389 | S9: 140727.7121 | T9: 150794.1934 | U9: 161623.3575 | V9: 173277.127 | W9: 185822.8313 | X9: 199333.712 | Y9: 213889.477 | Z9: 229576.9095 | AA9: 246490.5381 | AB9: 264733.3725 | AC9: 284417.7139 | AD9: 305666.045 | AE9: 328612.0109 | AF9: 353401.4982 | AG9: 380193.8227 | AH9: 409163.0381 | AI9: 440499.3779 | AJ9: 474410.8431 | AK9: 511124.9533 | AL9: 550890.6762 | AM9: 593980.5559 | AN9: 697882.2292 | AO9: 769489.0625 | AP9: 835548.2292 | AQ9: 942608.2083 | AR9: 1027074.327 | AS9: 1175019.458 | AT9: 1282922.708 | AU9: 1355456.042 | AV9: 1386976.875 | AW9: 1407376.875 | AX9: 1448106.042 | AY9: 1483381.042 | AZ9: 1483168.542 | BA9: 1511572.708 | BB9: 1495847.708 | BC9: 1500947.708 | BD9: 1460572.708 | BE9: 1479981.042 | BF9: 1488481.042 | BG9: 1491456.042 | BH9: 1483462.5 | BI9: 1497700 | BJ9: 1528795.833 | BK9: 1542750 | BL9: 1521925 | BM9: 1608270.833 | BN9: 1656650 | BO9: 1700920.833 | BP9: 1766725 | BQ9: 1806816.667 | BR9: 1903986.738 | BS9: 1941898.501 | BT9: 2030549.692 | BU9: 2045408.959 | BV9: 2062942.13 | BW9: 2097081.738 | BX9: 2095892.341 | BY9: 2121911.033 | BZ9: 2121443.499 | CA9: 2162809.056 | CB9: 2204944.094
A10: =L10 -> ref_cumcap_peri | B10: FCC-Refineries | C10: ref | D10: China+Afr | E10: peri | F10: Net Total Capacity | G10: MW | H10: cumcap | I10: 1940 | J10: 2007 | K10: use | L10: =C10&"_"&H10&"_"&E10 -> ref_cumcap_peri | M10: 1056.801329 | N10: 1209.138301 | O10: 1384.229922 | P10: 1585.666535 | Q10: 1817.649472 | R10: 2085.104798 | S10: 2393.820251 | T10: 2750.610433 | U10: 3163.516551 | V10: 3642.04844 | W10: 4197.478432 | X10: 4843.198911 | Y10: 5595.15817 | Z10: 6472.392747 | AA10: 7497.678717 | AB10: 8698.329897 | AC10: 10107.17765 | AD10: 11763.77547 | AE10: 13715.88196 | AF10: 16021.28911 | AG10: 18750.07902 | AH10: 21987.41282 | AI10: 25836.98099 | AJ10: 30425.27653 | AK10: 35906.89191 | AL10: 42471.09127 | AM10: 50349.97113 | AN10: 66370.83333 | AO10: 72250 | AP10: 73879.16667 | AQ10: 88612.5 | AR10: 106887.5 | AS10: 122966.6667 | AT10: 141666.6667 | AU10: 162775 | AV10: 174037.5 | AW10: 190895.8333 | AX10: 211791.6667 | AY10: 225958.3333 | AZ10: 234316.6667 | BA10: 276745.8333 | BB10: 292825 | BC10: 312304.1667 | BD10: 312162.5 | BE10: 308620.8333 | BF10: 331570.8333 | BG10: 336245.8333 | BH10: 343966.6667 | BI10: 356291.6667 | BJ10: 368616.6667 | BK10: 403466.6667 | BL10: 402758.3333 | BM10: 413879.1667 | BN10: 441291.6667 | BO10: 452625 | BP10: 489245.8333 | BQ10: 510070.8333 | BR10: 528770.8333 | BS10: 526362.5 | BT10: 591033.3333 | BU10: 586429.1667 | BV10: 621633.3333 | BW10: 615825 | BX10: 612779.1667 | BY10: 665266.6667 | BZ10: 694730.4224 | CA10: 729779.3379 | CB10: 764344.0639
A11: =L11 -> ref_cumcap_glob | B11: FCC-Refineries | C11: ref | D11: Global | E11: glob | F11: Net Total Capacity | G11: MW | H11: cumcap | I11: 1940 | J11: 2007 | K11: use | L11: =C11&"_"&H11&"_"&E11 -> ref_cumcap_glob | M11: 451615.9779 | N11: 482735.3203 | O11: 515998.9922 | P11: 551554.7521 | Q11: 589560.5403 | R11: 630185.1798 | S11: 673609.1269 | T11: 720025.2727 | U11: 769639.7993 | V11: 822673.0966 | W11: 879360.7406 | X11: 939954.5399 | Y11: 1004723.655 | Z11: 1073955.792 | AA11: 1147958.484 | AB11: 1227060.453 | AC11: 1311613.073 | AD11: 1401991.931 | AE11: 1498598.493 | AF11: 1601861.889 | AG11: 1712240.819 | AH11: 1830225.592 | AI11: 1956340.299 | AJ11: 2091145.147 | AK11: 2235238.946 | AL11: 2389261.765 | AM11: 2553897.78 | AN11: 2879884.572 | AO11: 3097632.149 | AP11: 3330311.33 | AQ11: 3636895.714 | AR11: 3925248.29 | AS11: 4226159.804 | AT11: 4554619.089 | AU11: 4831828.293 | AV11: 5004497.27 | AW11: 5231951.936 | AX11: 5389219.211 | AY11: 5472256.034 | AZ11: 5559665.343 | BA11: 5614657.415 | BB11: 5539253.358 | BC11: 5413121.083 | BD11: 5254431.346 | BE11: 5194616.042 | BF11: 5171669.538 | BG11: 5148812.533 | BH11: 5192054.785 | BI11: 5190159.908 | BJ11: 5230561.849 | BK11: 5284131.645 | BL11: 5263756.588 | BM11: 5210429.826 | BN11: 5259310.927 | BO11: 5344494.513 | BP11: 5389911.819 | BQ11: 5444670.525 | BR11: 5580490.783 | BS11: 5641183.894 | BT11: 5788395.191 | BU11: 5803304.215 | BV11: 5871462.157 | BW11: 5908704.006 | BX11: 5919838.03 | BY11: 6019775.325 | BZ11: 6056144.043 | CA11: 6139703.81 | CB11: 6227195.46
A13: =L13 -> ref_cumuni_core | B13: FCC-Refineries | C13: ref | D13: OECD+FSU | E13: core | F13: Net Total No. of Units | G13: # | H13: cumuni | K13: no data | L13: =C13&"_"&H13&"_"&E13 -> ref_cumuni_core
A14: ref_cumuni_rimFSU | B14: FCC-Refineries | C14: ref | D14: not used | E14: rimFSU | F14: Net Total No. of Units | G14: # | H14: cumuni | K14: not used | L14: =C14&"_"&H14&"_"&E14 -> ref_cumuni_rimFSU
A15: ref_cumuni_rim | B15: FCC-Refineries | C15: ref | D15: LAm+MidEast+AsiaExChina | E15: rim | F15: Net Total No. of Units | G15: # | H15: cumuni | K15: no data | L15: =C15&"_"&H15&"_"&E15 -> ref_cumuni_rim
A16: ref_cumuni_peri | B16: FCC-Refineries | C16: ref | D16: China+Afr | E16: peri | F16: Net Total No. of Units | G16: # | H16: cumuni | K16: no data | L16: =C16&"_"&H16&"_"&E16 -> ref_cumuni_peri
A17: ref_cumuni_glob | B17: FCC-Refineries | C17: ref | D17: Global | E17: glob | F17: Net Total No. of Units | G17: # | H17: cumuni | K17: no data | L17: =C17&"_"&H17&"_"&E17 -> ref_cumuni_glob
A19: ref_avgcap_core | B19: FCC-Refineries | C19: ref | D19: US | E19: core | F19: Average Capacity of Unit Additions | G19: MW | H19: avgcap | I19: 1942 | J19: 2000 | K19: use | L19: =C19&"_"&H19&"_"&E19 -> ref_avgcap_core | O19: 1062.5 | U19: 1770.833333 | AB19: 2833.333333 | AG19: 4250 | AM19: 7083.333333 | AX19: 9916.666667 | BH19: 9916.666667 | BO19: 9916.666667 | BU19: 7621.666667
A20: ref_avgcap_rimFSU | B20: FCC-Refineries | C20: ref | D20: not used | E20: rimFSU | F20: Average Capacity of Unit Additions | G20: MW | H20: avgcap | K20: not used | L20: =C20&"_"&H20&"_"&E20 -> ref_avgcap_rimFSU
A21: ref_avgcap_rim | B21: FCC-Refineries | C21: ref | D21: no data | E21: rim | F21: Average Capacity of Unit Additions | G21: MW | H21: avgcap | K21: no data | L21: ref_avgcap_rim
A22: ref_avgcap_peri | B22: FCC-Refineries | C22: ref | D22: no data | E22: peri | F22: Average Capacity of Unit Additions | G22: MW | H22: avgcap | K22: no data | L22: ref_avgcap_peri
A23: ref_avgcap_glob | B23: FCC-Refineries | C23: ref | D23: no data | E23: glob | F23: Average Capacity of Unit Additions | G23: MW | H23: avgcap | K23: no data | L23: ref_avgcap_glob
A25: ref_maxcap_core | B25: FCC-Refineries | C25: ref | D25: US | E25: core | F25: Maximum Capacity of Unit Additions | G25: MW | H25: maxcap | K25: no data | L25: =C25&"_"&H25&"_"&E25 -> ref_maxcap_core
A26: ref_maxcap_rimFSU | B26: FCC-Refineries | C26: ref | D26: not used | E26: rimFSU | F26: Maximum Capacity of Unit Additions | G26: MW | H26: maxcap | K26: not used | L26: =C26&"_"&H26&"_"&E26 -> ref_maxcap_rimFSU
A27: ref_maxcap_rim | B27: FCC-Refineries | C27: ref | D27: no data | E27: rim | F27: Maximum Capacity of Unit Additions | G27: MW | H27: maxcap | K27: no data | L27: ref_maxcap_rim
A28: ref_maxcap_peri | B28: FCC-Refineries | C28: ref | D28: no data | E28: peri | F28: Maximum Capacity of Unit Additions | G28: MW | H28: maxcap | K28: no data | L28: ref_maxcap_peri
A29: ref_maxcap_glob | B29: FCC-Refineries | C29: ref | D29: no data | E29: glob | F29: Maximum Capacity of Unit Additions | G29: MW | H29: maxcap | K29: no data | L29: ref_maxcap_glob
B31: COAL POWER (1908-2000) | M31: 1908 | N31: 1909 | O31: 1910 | P31: 1911 | Q31: 1912 | R31: 1913 | S31: 1914 | T31: 1915 | U31: 1916 | V31: 1917 | W31: 1918 | X31: 1919 | Y31: 1920 | Z31: 1921 | AA31: 1922 | AB31: 1923 | AC31: 1924 | AD31: 1925 | AE31: 1926 | AF31: 1927 | AG31: 1928 | AH31: 1929 | AI31: 1930 | AJ31: 1931 | AK31: 1932 | AL31: 1933 | AM31: 1934 | AN31: 1935 | AO31: 1936 | AP31: 1937 | AQ31: 1938 | AR31: 1939 | AS31: 1940 | AT31: 1941 | AU31: 1942 | AV31: 1943 | AW31: 1944 | AX31: 1945 | AY31: 1946 | AZ31: 1947 | BA31: 1948 | BB31: 1949 | BC31: 1950 | BD31: 1951 | BE31: 1952 | BF31: 1953 | BG31: 1954 | BH31: 1955 | BI31: 1956 | BJ31: 1957 | BK31: 1958 | BL31: 1959 | BM31: 1960 | BN31: 1961 | BO31: 1962 | BP31: 1963 | BQ31: 1964 | BR31: 1965 | BS31: 1966 | BT31: 1967 | BU31: 1968 | BV31: 1969 | BW31: 1970 | BX31: 1971 | BY31: 1972 | BZ31: 1973 | CA31: 1974 | CB31: 1975 | CC31: 1976 | CD31: 1977 | CE31: 1978 | CF31: 1979 | CG31: 1980 | CH31: 1981 | CI31: 1982 | CJ31: 1983 | CK31: 1984 | CL31: 1985 | CM31: 1986 | CN31: 1987 | CO31: 1988 | CP31: 1989 | CQ31: 1990 | CR31: 1991 | CS31: 1992 | CT31: 1993 | CU31: 1994 | CV31: 1995 | CW31: 1996 | CX31: 1997 | CY31: 1998 | CZ31: 1999 | DA31: 2000
A33: =L33 -> clp_cumcap_core | B33: Coal Power | C33: clp | D33: OECD | E33: core | F33: Cumulative Total Capacity | G33: MW | H33: cumcap | I33: 1908 | J33: 2000 | K33: use | L33: =C33&"_"&H33&"_"&E33 -> clp_cumcap_core | M33: 12 | N33: 12 | O33: 42.1 | P33: 57.1 | Q33: 101.1 | R33: 202.6 | S33: 234.1 | T33: 278.9 | U33: 317.9 | V33: 459.9 | W33: 778.9 | X33: 1029.2 | Y33: 1199.7 | Z33: 1506.6 | AA33: 1737.4 | AB33: 1884.8 | AC33: 2442.4 | AD33: 3001.3 | AE33: 3627.4 | AF33: 4358.5 | AG33: 4866.4 | AH33: 5870.3 | AI33: 6694.58 | AJ33: 6954.58 | AK33: 7099.08 | AL33: 7156.08 | AM33: 7177.58 | AN33: 7535.38 | AO33: 7649.18 | AP33: 7744.68 | AQ33: 8679.78 | AR33: 8916.78 | AS33: 9354.98 | AT33: 10263.38 | AU33: 11392.28 | AV33: 12195.38 | AW33: 12648.38 | AX33: 13119.48 | AY33: 13350.28 | AZ33: 14004.58 | BA33: 15188.83 | BB33: 18163.43 | BC33: 21109.13 | BD33: 24834.08 | BE33: 30191.28 | BF33: 38027.18 | BG33: 47216.99 | BH33: 58182.69 | BI33: 64385.12 | BJ33: 72927.92 | BK33: 84301.32 | BL33: 98465.12 | BM33: 110357.53 | BN33: 119877.13 | BO33: 131466.71 | BP33: 142739.01 | BQ33: 153449.76 | BR33: 167351.72 | BS33: 178949.712 | BT33: 198177.162 | BU33: 216891.532 | BV33: 240044.942 | BW33: 266624.142 | BX33: 290387.392 | BY33: 312236.692 | BZ33: 337137.292 | CA33: 355044.292 | CB33: 372342.892 | CC33: 387259.092 | CD33: 403148.062 | CE33: 419986.002 | CF33: 436585.366 | CG33: 457154.808 | CH33: 475558.932 | CI33: 492586.982 | CJ33: 506419.442 | CK33: 526005.652 | CL33: 544238.143 | CM33: 557831.783 | CN33: 566889.683 | CO33: 570035.563 | CP33: 578161.363 | CQ33: 582312.563 | CR33: 588864.013 | CS33: 592801.783 | CT33: 598636.033 | CU33: 604319.953 | CV33: 610197.053 | CW33: 614116.953 | CX33: 618736.353 | CY33: 623030.653 | CZ33: 626055.731 | DA33: 631193.631
A34: =L34 -> clp_cumcap_rimFSU | B34: Coal Power | C34: clp | D34: FSU | E34: rimFSU | F34: Cumulative Total Capacity | G34: MW | H34: cumcap | I34: 1908 | J34: 2000 | K34: use | L34: =C34&"_"&H34&"_"&E34 -> clp_cumcap_rimFSU | M34: 0 | N34: 0 | O34: 0 | P34: 0 | Q34: 0 | R34: 0 | S34: 0 | T34: 0 | U34: 0 | V34: 5.8 | W34: 5.8 | X34: 5.8 | Y34: 5.8 | Z34: 5.8 | AA34: 15.8 | AB34: 15.8 | AC34: 15.8 | AD34: 15.8 | AE34: 15.8 | AF34: 17.8 | AG34: 48.5 | AH34: 55.3 | AI34: 78.2 | AJ34: 80.7 | AK34: 82.1 | AL34: 149.3 | AM34: 152 | AN34: 155.9 | AO34: 229 | AP34: 304.5 | AQ34: 365.2 | AR34: 386.7 | AS34: 411.4 | AT34: 457.1 | AU34: 543.4 | AV34: 559.9 | AW34: 603.9 | AX34: 652.1 | AY34: 653.6 | AZ34: 683.6 | BA34: 702.8 | BB34: 787.3 | BC34: 927.6 | BD34: 1265.1 | BE34: 1495.8 | BF34: 2268.4 | BG34: 2958.62 | BH34: 3622.12 | BI34: 4142.92 | BJ34: 5338.62 | BK34: 6691.92 | BL34: 7378.32 | BM34: 9466.22 | BN34: 13071.22 | BO34: 15708.72 | BP34: 19476.72 | BQ34: 22081.92 | BR34: 26158.42 | BS34: 29285.22 | BT34: 33951.72 | BU34: 36288.82 | BV34: 42052.82 | BW34: 48393.82 | BX34: 51846.32 | BY34: 55418.12 | BZ34: 60209.72 | CA34: 63404.62 | CB34: 66719.62 | CC34: 69926.02 | CD34: 74014.02 | CE34: 79156.32 | CF34: 82916.32 | CG34: 89049.62 | CH34: 90865.62 | CI34: 94180.62 | CJ34: 98437.62 | CK34: 101352.27 | CL34: 104688.27 | CM34: 107039.27 | CN34: 111895.37 | CO34: 114640.37 | CP34: 114744.17 | CQ34: 116251.17 | CR34: 117280.07 | CS34: 118222.67 | CT34: 119339.47 | CU34: 120896.97 | CV34: 121329.77 | CW34: 122032.67 | CX34: 122517.67 | CY34: 122596.57 | CZ34: 123422.07 | DA34: 123422.07
A35: =L35 -> clp_cumcap_rim | B35: Coal Power | C35: clp | D35: Asia+SA | E35: rim | F35: Cumulative Total Capacity | G35: MW | H35: cumcap | I35: 1908 | J35: 2000 | K35: use | L35: =C35&"_"&H35&"_"&E35 -> clp_cumcap_rim | M35: 0 | N35: 0 | O35: 0 | P35: 0 | Q35: 0 | R35: 0 | S35: 0 | T35: 0 | U35: 0 | V35: 0 | W35: 0 | X35: 0 | Y35: 0 | Z35: 0 | AA35: 0 | AB35: 0 | AC35: 0 | AD35: 0 | AE35: 0 | AF35: 0 | AG35: 0 | AH35: 0 | AI35: 3 | AJ35: 35.5 | AK35: 35.5 | AL35: 48 | AM35: 75.5 | AN35: 75.5 | AO35: 90.5 | AP35: 110.5 | AQ35: 110.5 | AR35: 143.5 | AS35: 173.5 | AT35: 188.5 | AU35: 261 | AV35: 291 | AW35: 294.5 | AX35: 294.5 | AY35: 314.5 | AZ35: 344.5 | BA35: 374.5 | BB35: 434.5 | BC35: 472 | BD35: 539.5 | BE35: 629.5 | BF35: 689.5 | BG35: 966.5 | BH35: 1488 | BI35: 1835.2 | BJ35: 2102.4 | BK35: 2897.4 | BL35: 4143.4 | BM35: 5838.4 | BN35: 6460.4 | BO35: 7193.9 | BP35: 8032.6 | BQ35: 9332.1 | BR35: 10748.1 | BS35: 12231.6 | BT35: 14791.1 | BU35: 17066.1 | BV35: 18888.6 | BW35: 20314.6 | BX35: 22392.85 | BY35: 24580.35 | BZ35: 26949.35 | CA35: 29464.85 | CB35: 32380.85 | CC35: 36271.85 | CD35: 39611.35 | CE35: 43655.35 | CF35: 48590.35 | CG35: 52273.35 | CH35: 55309.15 | CI35: 61513.85 | CJ35: 69633.85 | CK35: 79585.85 | CL35: 89823.45 | CM35: 99387.15 | CN35: 110748.11 | CO35: 123096.61 | CP35: 135958.61 | CQ35: 148294.64 | CR35: 161017.34 | CS35: 175999.84 | CT35: 189041.34 | CU35: 201090.94 | CV35: 214102.04 | CW35: 234151.54 | CX35: 252080.89 | CY35: 270107.59 | CZ35: 291050.99 | DA35: 313034.99
A36: =L36 -> clp_cumcap_peri | B36: Coal Power | C36: clp | D36: LAm+AfExSA | E36: peri | F36: Cumulative Total Capacity | G36: MW | H36: cumcap | I36: 1908 | J36: 2000 | K36: use | L36: =C36&"_"&H36&"_"&E36 -> clp_cumcap_peri | M36: 0 | N36: 0 | O36: 0 | P36: 0 | Q36: 0 | R36: 0 | S36: 0 | T36: 0 | U36: 0 | V36: 10 | W36: 10 | X36: 10 | Y36: 10 | Z36: 10 | AA36: 10 | AB36: 10 | AC36: 10 | AD36: 10 | AE36: 10 | AF36: 10 | AG36: 10 | AH36: 10 | AI36: 10 | AJ36: 10 | AK36: 10 | AL36: 10 | AM36: 13.9 | AN36: 13.9 | AO36: 13.9 | AP36: 13.9 | AQ36: 20.2 | AR36: 67.55 | AS36: 67.55 | AT36: 67.55 | AU36: 67.55 | AV36: 67.55 | AW36: 67.55 | AX36: 67.55 | AY36: 67.55 | AZ36: 67.55 | BA36: 90.05 | BB36: 117.4 | BC36: 117.4 | BD36: 117.4 | BE36: 149.9 | BF36: 380.4 | BG36: 473 | BH36: 543 | BI36: 667 | BJ36: 749 | BK36: 791 | BL36: 824 | BM36: 824 | BN36: 874 | BO36: 904 | BP36: 968.25 | BQ36: 1088.25 | BR36: 1169.25 | BS36: 1169.25 | BT36: 1169.25 | BU36: 1229.25 | BV36: 1229.25 | BW36: 1360.25 | BX36: 1360.25 | BY36: 1750.25 | BZ36: 1970.25 | CA36: 2246.25 | CB36: 2320.25 | CC36: 2736.25 | CD36: 3263.05 | CE36: 3413.05 | CF36: 3450.85 | CG36: 3480.45 | CH36: 4111.25 | CI36: 5601.15 | CJ36: 6721.85 | CK36: 8242.25 | CL36: 9138.95 | CM36: 10743.95 | CN36: 12594.95 | CO36: 12879.95 | CP36: 13378.95 | CQ36: 14208.95 | CR36: 15084.55 | CS36: 15527.05 | CT36: 15737.05 | CU36: 17022.05 | CV36: 18563.35 | CW36: 19654.35 | CX36: 20504.35 | CY36: 20679.35 | CZ36: 21178.35 | DA36: 22991.35
A37: =L37 -> clp_cumcap_glob | B37: Coal Power | C37: clp | D37: Global | E37: glob | F37: Cumulative Total Capacity | G37: MW | H37: cumcap | I37: 1908 | J37: 2000 | K37: use | L37: =C37&"_"&H37&"_"&E37 -> clp_cumcap_glob | M37: 12 | N37: 12 | O37: 42.1 | P37: 57.1 | Q37: 101.1 | R37: 202.6 | S37: 234.1 | T37: 278.9 | U37: 317.9 | V37: 475.7 | W37: 794.7 | X37: 1045 | Y37: 1215.5 | Z37: 1522.4 | AA37: 1763.2 | AB37: 1910.6 | AC37: 2468.2 | AD37: 3027.1 | AE37: 3653.2 | AF37: 4386.3 | AG37: 4924.9 | AH37: 5935.6 | AI37: 6785.78 | AJ37: 7080.78 | AK37: 7226.68 | AL37: 7363.38 | AM37: 7418.98 | AN37: 7780.68 | AO37: 7982.58 | AP37: 8173.58 | AQ37: 9175.68 | AR37: 9514.53 | AS37: 10007.43 | AT37: 10976.53 | AU37: 12264.23 | AV37: 13113.83 | AW37: 13614.33 | AX37: 14133.63 | AY37: 14385.93 | AZ37: 15100.23 | BA37: 16356.18 | BB37: 19502.63 | BC37: 22626.13 | BD37: 26756.08 | BE37: 32466.48 | BF37: 41365.48 | BG37: 51615.11 | BH37: 63835.81 | BI37: 71030.24 | BJ37: 81117.94 | BK37: 94681.64 | BL37: 110810.84 | BM37: 126486.15 | BN37: 140282.75 | BO37: 155273.33 | BP37: 171216.58 | BQ37: 185952.03 | BR37: 205427.49 | BS37: 221635.782 | BT37: 248089.232 | BU37: 271475.702 | BV37: 302215.612 | BW37: 336692.812 | BX37: 365986.812 | BY37: 393985.412 | BZ37: 426266.612 | CA37: 450160.012 | CB37: 473763.612 | CC37: 496193.212 | CD37: 520036.482 | CE37: 546210.722 | CF37: 571542.886 | CG37: 601958.228 | CH37: 625844.952 | CI37: 653882.602 | CJ37: 681212.762 | CK37: 715186.022 | CL37: 747888.813 | CM37: 775002.153 | CN37: 802128.113 | CO37: 820652.493 | CP37: 842243.093 | CQ37: 861067.323 | CR37: 882245.973 | CS37: 902551.343 | CT37: 922753.893 | CU37: 943329.913 | CV37: 964192.213 | CW37: 989955.513 | CX37: 1013839.263 | CY37: 1036414.163 | CZ37: 1061707.141 | DA37: 1090642.041
A39: =L39 -> clp_cumuni_core | B39: Coal Power | C39: clp | D39: OECD | E39: core | F39: Cumulative Total No. of Units | G39: # | H39: cumuni | I39: 1908 | J39: 2000 | K39: use | L39: =C39&"_"&H39&"_"&E39 -> clp_cumuni_core | M39: 1 | N39: 1 | O39: 7 | P39: 8 | Q39: 11 | R39: 18 | S39: 22 | T39: 25 | U39: 33 | V39: 44 | W39: 56 | X39: 68 | Y39: 76 | Z39: 90 | AA39: 100 | AB39: 112 | AC39: 142 | AD39: 167 | AE39: 186 | AF39: 216 | AG39: 243 | AH39: 270 | AI39: 291 | AJ39: 305 | AK39: 312 | AL39: 318 | AM39: 322 | AN39: 336 | AO39: 346 | AP39: 355 | AQ39: 388 | AR39: 401 | AS39: 425 | AT39: 454 | AU39: 486 | AV39: 506 | AW39: 515 | AX39: 534 | AY39: 554 | AZ39: 583 | BA39: 633 | BB39: 711 | BC39: 785 | BD39: 856 | BE39: 945 | BF39: 1059 | BG39: 1174 | BH39: 1290 | BI39: 1371 | BJ39: 1482 | BK39: 1599 | BL39: 1715 | BM39: 1816 | BN39: 1894 | BO39: 1985 | BP39: 2059 | BQ39: 2145 | BR39: 2225 | BS39: 2298 | BT39: 2392 | BU39: 2478 | BV39: 2562 | BW39: 2645 | BX39: 2715 | BY39: 2776 | BZ39: 2833 | CA39: 2873 | CB39: 2920 | CC39: 2957 | CD39: 2994 | CE39: 3037 | CF39: 3079 | CG39: 3126 | CH39: 3182 | CI39: 3239 | CJ39: 3294 | CK39: 3352 | CL39: 3410 | CM39: 3458 | CN39: 3504 | CO39: 3537 | CP39: 3583 | CQ39: 3609 | CR39: 3637 | CS39: 3664 | CT39: 3688 | CU39: 3708 | CV39: 3731 | CW39: 3748 | CX39: 3763 | CY39: 3770 | CZ39: 3781 | DA39: 3792
A40: clp_cumuni_rimFSU | B40: Coal Power | C40: clp | D40: FSU | E40: rimFSU | F40: Cumulative Total No. of Units | G40: # | H40: cumuni | I40: 1908 | J40: 2000 | K40: use | L40: =C40&"_"&H40&"_"&E40 -> clp_cumuni_rimFSU | M40: 0 | N40: 0 | O40: 0 | P40: 0 | Q40: 0 | R40: 0 | S40: 0 | T40: 0 | U40: 0 | V40: 1 | W40: 1 | X40: 1 | Y40: 1 | Z40: 1 | AA40: 2 | AB40: 2 | AC40: 2 | AD40: 2 | AE40: 2 | AF40: 4 | AG40: 10 | AH40: 11 | AI40: 15 | AJ40: 16 | AK40: 17 | AL40: 24 | AM40: 26 | AN40: 29 | AO40: 34 | AP40: 43 | AQ40: 52 | AR40: 55 | AS40: 58 | AT40: 62 | AU40: 73 | AV40: 77 | AW40: 80 | AX40: 83 | AY40: 84 | AZ40: 86 | BA40: 88 | BB40: 92 | BC40: 98 | BD40: 110 | BE40: 129 | BF40: 148 | BG40: 169 | BH40: 200 | BI40: 227 | BJ40: 264 | BK40: 297 | BL40: 322 | BM40: 354 | BN40: 396 | BO40: 438 | BP40: 484 | BQ40: 529 | BR40: 564 | BS40: 603 | BT40: 641 | BU40: 661 | BV40: 702 | BW40: 735 | BX40: 762 | BY40: 787 | BZ40: 815 | CA40: 842 | CB40: 865 | CC40: 890 | CD40: 914 | CE40: 949 | CF40: 974 | CG40: 1006 | CH40: 1017 | CI40: 1039 | CJ40: 1057 | CK40: 1078 | CL40: 1094 | CM40: 1107 | CN40: 1126 | CO40: 1143 | CP40: 1151 | CQ40: 1158 | CR40: 1167 | CS40: 1179 | CT40: 1189 | CU40: 1199 | CV40: 1207 | CW40: 1215 | CX40: 1221 | CY40: 1224 | CZ40: 1233 | DA40: 1233
A41: clp_cumuni_rim | B41: Coal Power | C41: clp | D41: Asia+SA | E41: rim | F41: Cumulative Total No. of Units | G41: # | H41: cumuni | I41: 1908 | J41: 2000 | K41: use | L41: =C41&"_"&H41&"_"&E41 -> clp_cumuni_rim | M41: 0 | N41: 0 | O41: 0 | P41: 0 | Q41: 0 | R41: 0 | S41: 0 | T41: 0 | U41: 0 | V41: 0 | W41: 0 | X41: 0 | Y41: 0 | Z41: 0 | AA41: 0 | AB41: 0 | AC41: 0 | AD41: 0 | AE41: 0 | AF41: 0 | AG41: 0 | AH41: 0 | AI41: 2 | AJ41: 4 | AK41: 4 | AL41: 5 | AM41: 8 | AN41: 8 | AO41: 9 | AP41: 10 | AQ41: 10 | AR41: 12 | AS41: 13 | AT41: 14 | AU41: 17 | AV41: 18 | AW41: 19 | AX41: 19 | AY41: 20 | AZ41: 22 | BA41: 24 | BB41: 26 | BC41: 28 | BD41: 29 | BE41: 31 | BF41: 33 | BG41: 39 | BH41: 50 | BI41: 65 | BJ41: 70 | BK41: 92 | BL41: 123 | BM41: 160 | BN41: 165 | BO41: 176 | BP41: 193 | BQ41: 210 | BR41: 230 | BS41: 256 | BT41: 284 | BU41: 312 | BV41: 332 | BW41: 345 | BX41: 360 | BY41: 383 | BZ41: 407 | CA41: 439 | CB41: 463 | CC41: 493 | CD41: 527 | CE41: 554 | CF41: 574 | CG41: 587 | CH41: 606 | CI41: 637 | CJ41: 676 | CK41: 726 | CL41: 776 | CM41: 818 | CN41: 866 | CO41: 918 | CP41: 974 | CQ41: 1029 | CR41: 1086 | CS41: 1152 | CT41: 1213 | CU41: 1266 | CV41: 1327 | CW41: 1406 | CX41: 1481 | CY41: 1565 | CZ41: 1641 | DA41: 1707
A42: clp_cumuni_peri | B42: Coal Power | C42: clp | D42: LAm+AfExSA | E42: peri | F42: Cumulative Total No. of Units | G42: # | H42: cumuni | I42: 1908 | J42: 2000 | K42: use | L42: =C42&"_"&H42&"_"&E42 -> clp_cumuni_peri | M42: 0 | N42: 0 | O42: 0 | P42: 0 | Q42: 0 | R42: 0 | S42: 0 | T42: 0 | U42: 0 | V42: 1 | W42: 1 | X42: 1 | Y42: 1 | Z42: 1 | AA42: 1 | AB42: 1 | AC42: 1 | AD42: 1 | AE42: 1 | AF42: 1 | AG42: 1 | AH42: 1 | AI42: 1 | AJ42: 1 | AK42: 1 | AL42: 1 | AM42: 2 | AN42: 2 | AO42: 2 | AP42: 2 | AQ42: 3 | AR42: 5 | AS42: 5 | AT42: 5 | AU42: 5 | AV42: 5 | AW42: 5 | AX42: 5 | AY42: 5 | AZ42: 5 | BA42: 7 | BB42: 8 | BC42: 8 | BD42: 8 | BE42: 11 | BF42: 19 | BG42: 26 | BH42: 29 | BI42: 34 | BJ42: 37 | BK42: 39 | BL42: 40 | BM42: 40 | BN42: 43 | BO42: 44 | BP42: 49 | BQ42: 50 | BR42: 53 | BS42: 53 | BT42: 53 | BU42: 54 | BV42: 54 | BW42: 56 | BX42: 56 | BY42: 66 | BZ42: 71 | CA42: 74 | CB42: 75 | CC42: 77 | CD42: 81 | CE42: 82 | CF42: 84 | CG42: 86 | CH42: 92 | CI42: 99 | CJ42: 106 | CK42: 113 | CL42: 120 | CM42: 131 | CN42: 141 | CO42: 143 | CP42: 149 | CQ42: 152 | CR42: 156 | CS42: 162 | CT42: 163 | CU42: 168 | CV42: 173 | CW42: 176 | CX42: 180 | CY42: 181 | CZ42: 186 | DA42: 194
A43: clp_cumuni_glob | B43: Coal Power | C43: clp | D43: Global | E43: glob | F43: Cumulative Total No. of Units | G43: # | H43: cumuni | I43: 1908 | J43: 2000 | K43: use | L43: =C43&"_"&H43&"_"&E43 -> clp_cumuni_glob | M43: 1 | N43: 1 | O43: 7 | P43: 8 | Q43: 11 | R43: 18 | S43: 22 | T43: 25 | U43: 33 | V43: 46 | W43: 58 | X43: 70 | Y43: 78 | Z43: 92 | AA43: 103 | AB43: 115 | AC43: 145 | AD43: 170 | AE43: 189 | AF43: 221 | AG43: 254 | AH43: 282 | AI43: 309 | AJ43: 326 | AK43: 334 | AL43: 348 | AM43: 358 | AN43: 375 | AO43: 391 | AP43: 410 | AQ43: 453 | AR43: 473 | AS43: 501 | AT43: 535 | AU43: 582 | AV43: 607 | AW43: 620 | AX43: 642 | AY43: 664 | AZ43: 697 | BA43: 753 | BB43: 838 | BC43: 920 | BD43: 1005 | BE43: 1118 | BF43: 1261 | BG43: 1416 | BH43: 1586 | BI43: 1719 | BJ43: 1879 | BK43: 2056 | BL43: 2234 | BM43: 2412 | BN43: 2547 | BO43: 2697 | BP43: 2844 | BQ43: 2999 | BR43: 3139 | BS43: 3279 | BT43: 3448 | BU43: 3589 | BV43: 3744 | BW43: 3880 | BX43: 3998 | BY43: 4119 | BZ43: 4236 | CA43: 4340 | CB43: 4437 | CC43: 4534 | CD43: 4636 | CE43: 4743 | CF43: 4836 | CG43: 4933 | CH43: 5027 | CI43: 5149 | CJ43: 5270 | CK43: 5406 | CL43: 5540 | CM43: 5657 | CN43: 5785 | CO43: 5892 | CP43: 6011 | CQ43: 6106 | CR43: 6206 | CS43: 6318 | CT43: 6415 | CU43: 6503 | CV43: 6600 | CW43: 6708 | CX43: 6810 | CY43: 6906 | CZ43: 7008 | DA43: 7094
A45: clp_avgcap_core | B45: Coal Power | C45: clp | D45: OECD | E45: core | F45: Average Capacity of Unit Additions | G45: MW | H45: avgcap | I45: 1908 | J45: 2000 | K45: use | L45: =C45&"_"&H45&"_"&E45 -> clp_avgcap_core | M45: 12 | N45: 0 | O45: 5.016666667 | P45: 15 | Q45: 14.66666667 | R45: 14.5 | S45: 7.875 | T45: 14.93333333 | U45: 4.875 | V45: 12.90909091 | W45: 26.58333333 | X45: 20.85833333 | Y45: 21.3125 | Z45: 21.92142857 | AA45: 23.08 | AB45: 12.28333333 | AC45: 18.58666667 | AD45: 22.356 | AE45: 32.95263158 | AF45: 24.37 | AG45: 18.81111111 | AH45: 37.18148148 | AI45: 39.25142857 | AJ45: 18.57142857 | AK45: 20.64285714 | AL45: 9.5 | AM45: 5.375 | AN45: 25.55714286 | AO45: 11.38 | AP45: 10.61111111 | AQ45: 28.33636364 | AR45: 18.23076923 | AS45: 18.25833333 | AT45: 31.32413793 | AU45: 35.278125 | AV45: 40.155 | AW45: 50.33333333 | AX45: 24.79473684 | AY45: 11.54 | AZ45: 22.56206897 | BA45: 23.685 | BB45: 38.13589744 | BC45: 39.80675676 | BD45: 52.46408451 | BE45: 60.19325843 | BF45: 68.73596491 | BG45: 79.9113913 | BH45: 94.53189655 | BI45: 76.57320988 | BJ45: 76.96216216 | BK45: 97.20854701 | BL45: 122.1017241 | BM45: 117.7466337 | BN45: 122.0461538 | BO45: 127.358022 | BP45: 152.3283784 | BQ45: 124.5436047 | BR45: 173.7745 | BS45: 158.8766027 | BT45: 204.5473404 | BU45: 217.6089535 | BV45: 275.6358333 | BW45: 320.2313253 | BX45: 339.475 | BY45: 358.1852459 | BZ45: 436.8526316 | CA45: 447.675 | CB45: 368.0553191 | CC45: 403.1405405 | CD45: 429.4316216 | CE45: 391.58 | CF45: 395.2229524 | CG45: 437.6477021 | CH45: 328.6450714 | CI45: 298.7377193 | CJ45: 251.4992727 | CK45: 337.6932759 | CL45: 314.3532931 | CM45: 283.2008333 | CN45: 196.9108696 | CO45: 95.32969697 | CP45: 176.6478261 | CQ45: 159.6615385 | CR45: 233.9803571 | CS45: 145.8433333 | CT45: 243.09375 | CU45: 284.196 | CV45: 255.526087 | CW45: 230.5823529 | CX45: 307.96 | CY45: 613.4714286 | CZ45: 275.0070909 | DA45: 467.0818182
A46: clp_avgcap_rimFSU | B46: Coal Power | C46: clp | D46: FSU | E46: rimFSU | F46: Average Capacity of Unit Additions | G46: MW | H46: avgcap | I46: 1908 | J46: 2000 | K46: use | L46: =C46&"_"&H46&"_"&E46 -> clp_avgcap_rimFSU | M46: 0 | N46: 0 | O46: 0 | P46: 0 | Q46: 0 | R46: 0 | S46: 0 | T46: 0 | U46: 0 | V46: 5.8 | W46: 0 | X46: 0 | Y46: 0 | Z46: 0 | AA46: 10 | AB46: 0 | AC46: 0 | AD46: 0 | AE46: 0 | AF46: 1 | AG46: 5.116666667 | AH46: 6.8 | AI46: 5.725 | AJ46: 2.5 | AK46: 1.4 | AL46: 9.6 | AM46: 1.35 | AN46: 1.3 | AO46: 14.62 | AP46: 8.388888889 | AQ46: 6.744444444 | AR46: 7.166666667 | AS46: 8.233333333 | AT46: 11.425 | AU46: 7.845454545 | AV46: 4.125 | AW46: 14.66666667 | AX46: 16.06666667 | AY46: 1.5 | AZ46: 15 | BA46: 9.6 | BB46: 21.125 | BC46: 23.38333333 | BD46: 28.125 | BE46: 12.14210526 | BF46: 40.66315789 | BG46: 32.86761905 | BH46: 21.40322581 | BI46: 19.28888889 | BJ46: 32.31621622 | BK46: 41.00909091 | BL46: 27.456 | BM46: 65.246875 | BN46: 85.83333333 | BO46: 62.79761905 | BP46: 81.91304348 | BQ46: 57.89333333 | BR46: 116.4714286 | BS46: 80.17435897 | BT46: 122.8026316 | BU46: 116.855 | BV46: 140.5853659 | BW46: 192.1515152 | BX46: 127.8703704 | BY46: 142.872 | BZ46: 171.1285714 | CA46: 118.3296296 | CB46: 144.1304348 | CC46: 128.256 | CD46: 170.3333333 | CE46: 146.9228571 | CF46: 150.4 | CG46: 191.665625 | CH46: 165.0909091 | CI46: 150.6818182 | CJ46: 236.5 | CK46: 138.7928571 | CL46: 208.5 | CM46: 180.8461538 | CN46: 255.5842105 | CO46: 161.4705882 | CP46: 12.975 | CQ46: 215.2857143 | CR46: 114.3222222 | CS46: 78.55 | CT46: 111.68 | CU46: 155.75 | CV46: 54.1 | CW46: 87.8625 | CX46: 80.83333333 | CY46: 26.3 | CZ46: 91.72222222 | DA46: 0
A47: clp_avgcap_rim | B47: Coal Power | C47: clp | D47: Asia+SA | E47: rim | F47: Average Capacity of Unit Additions | G47: MW | H47: avgcap | I47: 1908 | J47: 2000 | K47: use | L47: clp_avgcap_rim | M47: 0 | N47: 0 | O47: 0 | P47: 0 | Q47: 0 | R47: 0 | S47: 0 | T47: 0 | U47: 0 | V47: 0 | W47: 0 | X47: 0 | Y47: 0 | Z47: 0 | AA47: 0 | AB47: 0 | AC47: 0 | AD47: 0 | AE47: 0 | AF47: 0 | AG47: 0 | AH47: 0 | AI47: 1.5 | AJ47: 16.25 | AK47: 0 | AL47: 12.5 | AM47: 9.166666667 | AN47: 0 | AO47: 15 | AP47: 20 | AQ47: 0 | AR47: 16.5 | AS47: 30 | AT47: 15 | AU47: 18.125 | AV47: 30 | AW47: 3.5 | AX47: 0 | AY47: 20 | AZ47: 15 | BA47: 15 | BB47: 30 | BC47: 18.75 | BD47: 33.75 | BE47: 45 | BF47: 30 | BG47: 23.08333333 | BH47: 26.075 | BI47: 17.36 | BJ47: 29.68888889 | BK47: 31.8 | BL47: 34.61111111 | BM47: 37.66666667 | BN47: 51.83333333 | BO47: 45.84375 | BP47: 38.12272727 | BQ47: 56.5 | BR47: 64.36363636 | BS47: 52.98214286 | BT47: 69.17567568 | BU47: 66.91176471 | BV47: 60.75 | BW47: 79.22222222 | BX47: 98.96428571 | BY47: 87.5 | BZ47: 87.74074074 | CA47: 73.98529412 | CB47: 112.1538462 | CC47: 117.9090909 | CD47: 90.25675676 | CE47: 144.4285714 | CF47: 205.625 | CG47: 230.1875 | CH47: 144.5619048 | CI47: 172.3527778 | CJ47: 198.0487805 | CK47: 199.04 | CL47: 193.1622642 | CM47: 212.5266667 | CN47: 214.3577358 | CO47: 224.5181818 | CP47: 218 | CQ47: 209.0852542 | CR47: 215.6389831 | CS47: 223.619403 | CT47: 210.3467742 | CU47: 227.3509434 | CV47: 213.2967213 | CW47: 250.61875 | CX47: 232.8487013 | CY47: 212.0788235 | CZ47: 271.9922078 | DA47: 328.119403
A48: clp_avgcap_peri | B48: Coal Power | C48: clp | D48: LAm+AfExSA | E48: peri | F48: Average Capacity of Unit Additions | G48: MW | H48: avgcap | I48: 1908 | J48: 2000 | K48: use | L48: clp_avgcap_peri | M48: 0 | N48: 0 | O48: 0 | P48: 0 | Q48: 0 | R48: 0 | S48: 0 | T48: 0 | U48: 0 | V48: 10 | W48: 0 | X48: 0 | Y48: 0 | Z48: 0 | AA48: 0 | AB48: 0 | AC48: 0 | AD48: 0 | AE48: 0 | AF48: 0 | AG48: 0 | AH48: 0 | AI48: 0 | AJ48: 0 | AK48: 0 | AL48: 0 | AM48: 3.9 | AN48: 0 | AO48: 0 | AP48: 0 | AQ48: 6.3 | AR48: 23.675 | AS48: 0 | AT48: 0 | AU48: 0 | AV48: 0 | AW48: 0 | AX48: 0 | AY48: 0 | AZ48: 0 | BA48: 11.25 | BB48: 27.35 | BC48: 0 | BD48: 0 | BE48: 10.83333333 | BF48: 28.8125 | BG48: 13.22857143 | BH48: 23.33333333 | BI48: 24.8 | BJ48: 27.33333333 | BK48: 21 | BL48: 33 | BM48: 0 | BN48: 16.66666667 | BO48: 30 | BP48: 12.85 | BQ48: 120 | BR48: 27 | BS48: 0 | BT48: 0 | BU48: 60 | BV48: 0 | BW48: 65.5 | BX48: 0 | BY48: 39 | BZ48: 44 | CA48: 92 | CB48: 74 | CC48: 208 | CD48: 131.7 | CE48: 150 | CF48: 18.9 | CG48: 14.8 | CH48: 105.1333333 | CI48: 212.8428571 | CJ48: 160.1 | CK48: 217.2 | CL48: 128.1 | CM48: 145.9090909 | CN48: 185.1 | CO48: 142.5 | CP48: 83.16666667 | CQ48: 276.6666667 | CR48: 218.9 | CS48: 73.75 | CT48: 210 | CU48: 257 | CV48: 308.26 | CW48: 363.6666667 | CX48: 212.5 | CY48: 175 | CZ48: 99.8 | DA48: 226.625
A49: clp_avgcap_glob | B49: Coal Power | C49: clp | D49: Global | E49: glob | F49: Average Capacity of Unit Additions | G49: MW | H49: avgcap | I49: 1908 | J49: 2000 | K49: use | L49: clp_avgcap_glob | M49: 12 | N49: 0 | O49: 5.016666667 | P49: 15 | Q49: 14.66666667 | R49: 14.5 | S49: 7.875 | T49: 14.93333333 | U49: 4.875 | V49: 12.13846154 | W49: 26.58333333 | X49: 20.85833333 | Y49: 21.3125 | Z49: 21.92142857 | AA49: 21.89090909 | AB49: 12.28333333 | AC49: 18.58666667 | AD49: 22.356 | AE49: 32.95263158 | AF49: 22.909375 | AG49: 16.32121212 | AH49: 36.09642857 | AI49: 31.48814815 | AJ49: 17.35294118 | AK49: 18.2375 | AL49: 9.764285714 | AM49: 5.56 | AN49: 21.27647059 | AO49: 12.61875 | AP49: 10.05263158 | AQ49: 23.30465116 | AR49: 16.9425 | AS49: 17.60357143 | AT49: 28.50294118 | AU49: 27.39787234 | AV49: 33.984 | AW49: 38.5 | AX49: 23.60454545 | AY49: 11.46818182 | AZ49: 21.64545455 | BA49: 22.42767857 | BB49: 37.01705882 | BC49: 38.09146341 | BD49: 48.58764706 | BE49: 50.53451327 | BF49: 62.23076923 | BG49: 66.12664516 | BH49: 71.88647059 | BI49: 54.09345865 | BJ49: 63.048125 | BK49: 76.63107345 | BL49: 90.61348315 | BM49: 88.06353933 | BN49: 102.197037 | BO49: 99.9372 | BP49: 108.457483 | BQ49: 95.06741935 | BR49: 139.1104286 | BS49: 115.7735143 | BT49: 156.5292899 | BU49: 165.8614894 | BV49: 198.322 | BW49: 253.5088235 | BX49: 248.2542373 | BY49: 231.3933884 | BZ49: 275.9076923 | CA49: 229.7442308 | CB49: 243.3360825 | CC49: 231.2329897 | CD49: 233.757549 | CE49: 244.6190654 | CF49: 272.3888602 | CG49: 313.5602268 | CH49: 254.1140851 | CI49: 229.8168033 | CJ49: 225.8690909 | CK49: 249.8033824 | CL49: 244.0506791 | CM49: 231.7379487 | CN49: 211.9215625 | CO49: 173.1250467 | CP49: 181.4336134 | CQ49: 198.1497895 | CR49: 211.7865 | CS49: 181.2979464 | CT49: 208.2737113 | CU49: 233.8184091 | CV49: 215.0752577 | CW49: 238.5490741 | CX49: 234.1544118 | CY49: 235.1552083 | CZ49: 247.9703725 | DA49: 336.4523256
A51: clp_maxcap_core | B51: Coal Power | C51: clp | D51: OECD | E51: core | F51: Maximum Capacity of Unit Additions | G51: MW | H51: maxcap | I51: 1908 | J51: 2000 | K51: use | L51: =C51&"_"&H51&"_"&E51 -> clp_maxcap_core | M51: 12 | N51: 0 | O51: 10 | P51: 15 | Q51: 20 | R51: 20 | S51: 15 | T51: 30 | U51: 10 | V51: 35 | W51: 45 | X51: 30 | Y51: 36 | Z51: 42.8 | AA51: 60 | AB51: 30 | AC51: 40 | AD51: 70 | AE51: 60 | AF51: 82.5 | AG51: 109 | AH51: 208 | AI51: 300 | AJ51: 115 | AK51: 90 | AL51: 21 | AM51: 15 | AN51: 165 | AO51: 36 | AP51: 27 | AQ51: 208 | AR51: 60 | AS51: 105 | AT51: 100 | AU51: 92 | AV51: 80 | AW51: 100 | AX51: 111.1 | AY51: 81.3 | AZ51: 121 | BA51: 115.2 | BB51: 137 | BC51: 152.5 | BD51: 152.5 | BE51: 225 | BF51: 219.7 | BG51: 219.7 | BH51: 225 | BI51: 350 | BJ51: 300 | BK51: 358.1 | BL51: 374.1 | BM51: 495.6 | BN51: 575 | BO51: 389 | BP51: 704 | BQ51: 579.7 | BR51: 660 | BS51: 660 | BT51: 950 | BU51: 936 | BV51: 818.1 | BW51: 1150.2 | BX51: 936 | BY51: 892.8 | BZ51: 1300 | CA51: 1300 | CB51: 1300 | CC51: 952 | CD51: 913.8 | CE51: 952 | CF51: 793.3 | CG51: 1300 | CH51: 850 | CI51: 891 | CJ51: 850 | CK51: 1300 | CL51: 813.4 | CM51: 820 | CN51: 911 | CO51: 679 | CP51: 1300 | CQ51: 1000 | CR51: 1425.6 | CS51: 700 | CT51: 700 | CU51: 1000 | CV51: 1000 | CW51: 660 | CX51: 1000 | CY51: 1000 | CZ51: 933 | DA51: 1050
A52: clp_maxcap_rimFSU | B52: Coal Power | C52: clp | D52: FSU | E52: rimFSU | F52: Maximum Capacity of Unit Additions | G52: MW | H52: maxcap | I52: 1908 | J52: 2000 | K52: use | L52: =C52&"_"&H52&"_"&E52 -> clp_maxcap_rimFSU | M52: 0 | N52: 0 | O52: 0 | P52: 0 | Q52: 0 | R52: 0 | S52: 0 | T52: 0 | U52: 0 | V52: 5.8 | W52: 0 | X52: 0 | Y52: 0 | Z52: 0 | AA52: 10 | AB52: 0 | AC52: 0 | AD52: 0 | AE52: 0 | AF52: 1 | AG52: 12.5 | AH52: 6.8 | AI52: 12.8 | AJ52: 2.5 | AK52: 1.4 | AL52: 20 | AM52: 1.7 | AN52: 1.5 | AO52: 32 | AP52: 22 | AQ52: 23.5 | AR52: 18 | AS52: 20 | AT52: 19.6 | AU52: 32 | AV52: 6 | AW52: 15 | AX52: 25 | AY52: 1.5 | AZ52: 15 | BA52: 15 | BB52: 50 | BC52: 50 | BD52: 100 | BE52: 35 | BF52: 130 | BG52: 120 | BH52: 50 | BI52: 50 | BJ52: 130 | BK52: 150 | BL52: 120 | BM52: 215 | BN52: 215 | BO52: 300 | BP52: 300 | BQ52: 300 | BR52: 300 | BS52: 215 | BT52: 315 | BU52: 500 | BV52: 300 | BW52: 320 | BX52: 300 | BY52: 300 | BZ52: 300 | CA52: 300 | CB52: 300 | CC52: 500 | CD52: 335 | CE52: 500 | CF52: 500 | CG52: 500 | CH52: 500 | CI52: 500 | CJ52: 620 | CK52: 500 | CL52: 620 | CM52: 800 | CN52: 800 | CO52: 360 | CP52: 50 | CQ52: 800 | CR52: 348.5 | CS52: 800 | CT52: 500 | CU52: 800 | CV52: 215 | CW52: 370 | CX52: 380 | CY52: 50 | CZ52: 210 | DA52: 0
A53: clp_maxcap_rim | B53: Coal Power | C53: clp | D53: Asia+SA | E53: rim | F53: Maximum Capacity of Unit Additions | G53: MW | H53: maxcap | I53: 1908 | J53: 2000 | K53: use | L53: clp_maxcap_rim | M53: 0 | N53: 0 | O53: 0 | P53: 0 | Q53: 0 | R53: 0 | S53: 0 | T53: 0 | U53: 0 | V53: 0 | W53: 0 | X53: 0 | Y53: 0 | Z53: 0 | AA53: 0 | AB53: 0 | AC53: 0 | AD53: 0 | AE53: 0 | AF53: 0 | AG53: 0 | AH53: 0 | AI53: 1.5 | AJ53: 20 | AK53: 0 | AL53: 12.5 | AM53: 20 | AN53: 0 | AO53: 15 | AP53: 20 | AQ53: 0 | AR53: 30 | AS53: 30 | AT53: 15 | AU53: 37.5 | AV53: 30 | AW53: 3.5 | AX53: 0 | AY53: 20 | AZ53: 15 | BA53: 15 | BB53: 30 | BC53: 30 | BD53: 37.5 | BE53: 45 | BF53: 45 | BG53: 60 | BH53: 60 | BI53: 60 | BJ53: 60 | BK53: 200 | BL53: 100 | BM53: 75 | BN53: 140 | BO53: 100 | BP53: 100 | BQ53: 130 | BR53: 250 | BS53: 250 | BT53: 200 | BU53: 329 | BV53: 200 | BW53: 200 | BX53: 350 | BY53: 380 | BZ53: 350 | CA53: 350 | CB53: 350 | CC53: 500 | CD53: 500 | CE53: 500 | CF53: 600 | CG53: 600 | CH53: 600 | CI53: 600 | CJ53: 600 | CK53: 563 | CL53: 627 | CM53: 677.5 | CN53: 677.5 | CO53: 729 | CP53: 729 | CQ53: 729 | CR53: 729 | CS53: 729 | CT53: 729 | CU53: 600 | CV53: 660 | CW53: 660 | CX53: 657 | CY53: 657 | CZ53: 713 | DA53: 800
A54: clp_maxcap_peri | B54: Coal Power | C54: clp | D54: LAm+AfExSA | E54: peri | F54: Maximum Capacity of Unit Additions | G54: MW | H54: maxcap | I54: 1908 | J54: 2000 | K54: use | L54: clp_maxcap_peri | M54: 0 | N54: 0 | O54: 0 | P54: 0 | Q54: 0 | R54: 0 | S54: 0 | T54: 0 | U54: 0 | V54: 10 | W54: 0 | X54: 0 | Y54: 0 | Z54: 0 | AA54: 0 | AB54: 0 | AC54: 0 | AD54: 0 | AE54: 0 | AF54: 0 | AG54: 0 | AH54: 0 | AI54: 0 | AJ54: 0 | AK54: 0 | AL54: 0 | AM54: 3.9 | AN54: 0 | AO54: 0 | AP54: 0 | AQ54: 6.3 | AR54: 27.35 | AS54: 0 | AT54: 0 | AU54: 0 | AV54: 0 | AW54: 0 | AX54: 0 | AY54: 0 | AZ54: 0 | BA54: 15 | BB54: 27.35 | BC54: 0 | BD54: 0 | BE54: 15 | BF54: 75 | BG54: 20 | BH54: 30 | BI54: 32 | BJ54: 30 | BK54: 22 | BL54: 33 | BM54: 0 | BN54: 30 | BO54: 30 | BP54: 33 | BQ54: 120 | BR54: 65 | BS54: 0 | BT54: 0 | BU54: 60 | BV54: 0 | BW54: 125 | BX54: 0 | BY54: 66 | BZ54: 150 | CA54: 150 | CB54: 74 | CC54: 350 | CD54: 218 | CE54: 150 | CF54: 30 | CG54: 18.8 | CH54: 375 | CI54: 375 | CJ54: 375 | CK54: 375 | CL54: 300 | CM54: 340 | CN54: 340 | CO54: 160 | CP54: 150 | CQ54: 550 | CR54: 550 | CS54: 210 | CT54: 210 | CU54: 350 | CV54: 575 | CW54: 575 | CX54: 350 | CY54: 175 | CZ54: 165 | DA54: 575
A55: clp_maxcap_glob | B55: Coal Power | C55: clp | D55: Global | E55: glob | F55: Maximum Capacity of Unit Additions | G55: MW | H55: maxcap | I55: 1908 | J55: 2000 | K55: use | L55: clp_maxcap_glob | M55: 12 | N55: 0 | O55: 10 | P55: 15 | Q55: 20 | R55: 20 | S55: 15 | T55: 30 | U55: 10 | V55: 35 | W55: 45 | X55: 30 | Y55: 36 | Z55: 42.8 | AA55: 60 | AB55: 30 | AC55: 40 | AD55: 70 | AE55: 60 | AF55: 82.5 | AG55: 109 | AH55: 208 | AI55: 300 | AJ55: 115 | AK55: 90 | AL55: 21 | AM55: 20 | AN55: 165 | AO55: 36 | AP55: 27 | AQ55: 208 | AR55: 60 | AS55: 105 | AT55: 100 | AU55: 92 | AV55: 80 | AW55: 100 | AX55: 111.1 | AY55: 81.3 | AZ55: 121 | BA55: 115.2 | BB55: 137 | BC55: 152.5 | BD55: 152.5 | BE55: 225 | BF55: 219.7 | BG55: 219.7 | BH55: 225 | BI55: 350 | BJ55: 300 | BK55: 358.1 | BL55: 374.1 | BM55: 495.6 | BN55: 575 | BO55: 389 | BP55: 704 | BQ55: 579.7 | BR55: 660 | BS55: 660 | BT55: 950 | BU55: 936 | BV55: 818.1 | BW55: 1150.2 | BX55: 936 | BY55: 892.8 | BZ55: 1300 | CA55: 1300 | CB55: 1300 | CC55: 952 | CD55: 913.8 | CE55: 952 | CF55: 793.3 | CG55: 1300 | CH55: 850 | CI55: 891 | CJ55: 850 | CK55: 1300 | CL55: 813.4 | CM55: 820 | CN55: 911 | CO55: 729 | CP55: 1300 | CQ55: 1000 | CR55: 1425.6 | CS55: 800 | CT55: 729 | CU55: 1000 | CV55: 1000 | CW55: 660 | CX55: 1000 | CY55: 1000 | CZ55: 933 | DA55: 1050
B57: NUCLEAR POWER (1956-2000) | M57: 1956 | N57: 1957 | O57: 1958 | P57: 1959 | Q57: 1960 | R57: 1961 | S57: 1962 | T57: 1963 | U57: 1964 | V57: 1965 | W57: 1966 | X57: 1967 | Y57: 1968 | Z57: 1969 | AA57: 1970 | AB57: 1971 | AC57: 1972 | AD57: 1973 | AE57: 1974 | AF57: 1975 | AG57: 1976 | AH57: 1977 | AI57: 1978 | AJ57: 1979 | AK57: 1980 | AL57: 1981 | AM57: 1982 | AN57: 1983 | AO57: 1984 | AP57: 1985 | AQ57: 1986 | AR57: 1987 | AS57: 1988 | AT57: 1989 | AU57: 1990 | AV57: 1991 | AW57: 1992 | AX57: 1993 | AY57: 1994 | AZ57: 1995 | BA57: 1996 | BB57: 1997 | BC57: 1998 | BD57: 1999 | BE57: 2000
A59: =L59 -> ncp_cumcap_core | B59: Nuclear Power | C59: ncp | D59: OECD | E59: core | F59: Cumulative Total Capacity | G59: MW | H59: cumcap | I59: 1956 | J59: 2000 | K59: use | L59: =C59&"_"&H59&"_"&E59 -> ncp_cumcap_core | M59: 100 | N59: 205 | O59: 255 | P59: 455 | Q59: 754 | R59: 939 | S59: 1953 | T59: 2290 | U59: 3071 | V59: 4680 | W59: 5557 | X59: 6669 | Y59: 8267.3 | Z59: 10940.8 | AA59: 13507 | AB59: 21076.58 | AC59: 29031.58 | AD59: 36100.38 | AE59: 52303.28 | AF59: 66876.48 | AG59: 77475.79 | AH59: 89797.49 | AI59: 101260 | AJ59: 113087.7 | AK59: 123939.3 | AL59: 139573.1 | AM59: 148566 | AN59: 160160.6 | AO59: 183346.9 | AP59: 214212.6 | AQ59: 233303.4 | AR59: 252794.4 | AS59: 268935 | AT59: 275353.3 | AU59: 284613.3 | AV59: 289863.3 | AW59: 291193.3 | AX59: 299437.3 | AY59: 301717.3 | AZ59: 304607.3 | BA59: 307513.2 | BB59: 310049.2 | BC59: 313081.2 | BD59: 313081.2 | BE59: 316113.2
A60: =L60 -> ncp_cumcap_rimFSU | B60: Nuclear Power | C60: ncp | D60: FSU | E60: rimFSU | F60: Cumulative Total Capacity | G60: MW | H60: cumcap | I60: 1956 | J60: 2000 | K60: use | L60: =C60&"_"&H60&"_"&E60 -> ncp_cumcap_rimFSU | M60: 0 | N60: 0 | O60: 0 | P60: 200 | Q60: 300 | R60: 400 | S60: 500 | T60: 600 | U60: 967 | V60: 967 | W60: 1017 | X60: 1017 | Y60: 1017 | Z60: 1163 | AA60: 1499 | AB60: 1499 | AC60: 1884 | AD60: 3078 | AE60: 4854 | AF60: 5294 | AG60: 6219 | AH60: 7627 | AI60: 10402 | AJ60: 11842 | AK60: 13175 | AL60: 18005 | AM60: 19770 | AN60: 22155 | AO60: 25526 | AP60: 31281 | AQ60: 34571 | AR60: 39921 | AS60: 44311 | AT60: 48186 | AU60: 48186 | AV60: 48186 | AW60: 48186 | AX60: 50186 | AY60: 50186 | AZ60: 50186 | BA60: 51866 | BB60: 51866 | BC60: 51866 | BD60: 52306 | BE60: 52746
A61: =L61 -> ncp_cumcap_rim | B61: Nuclear Power | C61: ncp | D61: Asia | E61: rim | F61: Cumulative Total Capacity | G61: MW | H61: cumcap | I61: 1956 | J61: 2000 | K61: use | L61: =C61&"_"&H61&"_"&E61 -> ncp_cumcap_rim | M61: 0 | N61: 0 | O61: 0 | P61: 0 | Q61: 0 | R61: 0 | S61: 0 | T61: 0 | U61: 0 | V61: 0 | W61: 0 | X61: 0 | Y61: 0 | Z61: 320 | AA61: 320 | AB61: 320 | AC61: 458.6 | AD61: 678.6 | AE61: 678.6 | AF61: 678.6 | AG61: 678.6 | AH61: 678.6 | AI61: 1901.6 | AJ61: 2537.6 | AK61: 2757.6 | AL61: 3743.6 | AM61: 3743.6 | AN61: 6058.28 | AO61: 7245.28 | AP61: 9147.28 | AQ61: 11282.28 | AR61: 12232.28 | AS61: 13182.28 | AT61: 14132.28 | AU61: 14132.28 | AV61: 14367.28 | AW61: 14602.28 | AX61: 14822.28 | AY61: 17091.68 | AZ61: 18311.68 | BA61: 19311.68 | BB61: 20011.68 | BC61: 21773.68 | BD61: 23770.68 | BE61: 24510.68
A62: =L62 -> ncp_cumcap_peri | B62: Nuclear Power | C62: ncp | D62: LAm+Af | E62: peri | F62: Cumulative Total Capacity | G62: MW | H62: cumcap | I62: 1956 | J62: 2000 | K62: use | L62: =C62&"_"&H62&"_"&E62 -> ncp_cumcap_peri | M62: 0 | N62: 0 | O62: 0 | P62: 0 | Q62: 0 | R62: 0 | S62: 0 | T62: 0 | U62: 0 | V62: 0 | W62: 0 | X62: 0 | Y62: 0 | Z62: 0 | AA62: 0 | AB62: 0 | AC62: 0 | AD62: 0 | AE62: 370 | AF62: 370 | AG62: 370 | AH62: 370 | AI62: 370 | AJ62: 370 | AK62: 370 | AL62: 370 | AM62: 370 | AN62: 370 | AO62: 2592 | AP62: 3557 | AQ62: 3557 | AR62: 3557 | AS62: 3557 | AT62: 3557 | AU62: 4231.48 | AV62: 4231.48 | AW62: 4231.48 | AX62: 4231.48 | AY62: 4231.48 | AZ62: 4905.96 | BA62: 4905.96 | BB62: 4905.96 | BC62: 4905.96 | BD62: 4905.96 | BE62: 6230.96
A63: =L63 -> ncp_cumcap_glob | B63: Nuclear Power | C63: ncp | D63: Global | E63: glob | F63: Cumulative Total Capacity | G63: MW | H63: cumcap | I63: 1956 | J63: 2000 | K63: use | L63: =C63&"_"&H63&"_"&E63 -> ncp_cumcap_glob | M63: 100 | N63: 205 | O63: 255 | P63: 655 | Q63: 1054 | R63: 1339 | S63: 2453 | T63: 2890 | U63: 4038 | V63: 5647 | W63: 6574 | X63: 7686 | Y63: 9284.3 | Z63: 12423.8 | AA63: 15326 | AB63: 22895.58 | AC63: 31374.18 | AD63: 39856.98 | AE63: 58205.88 | AF63: 73219.08 | AG63: 84743.39 | AH63: 98473.09 | AI63: 113933.6 | AJ63: 127837.3 | AK63: 140241.9 | AL63: 161691.7 | AM63: 172449.6 | AN63: 188743.88 | AO63: 218710.18 | AP63: 258197.88 | AQ63: 282713.68 | AR63: 308504.68 | AS63: 329985.28 | AT63: 341228.58 | AU63: 351163.06 | AV63: 356648.06 | AW63: 358213.06 | AX63: 368677.06 | AY63: 373226.46 | AZ63: 378010.94 | BA63: 383596.84 | BB63: 386832.84 | BC63: 391626.84 | BD63: 394063.84 | BE63: 399600.84
A65: =L65 -> ncp_cumuni_core | B65: Nuclear Power | C65: ncp | D65: OECD | E65: core | F65: Cumulative Total No. of Units | G65: # | H65: cumuni | I65: 1956 | J65: 2000 | K65: use | L65: =C65&"_"&H65&"_"&E65 -> ncp_cumuni_core | M65: 2 | N65: 4 | O65: 5 | P65: 9 | Q65: 12 | R65: 13 | S65: 20 | T65: 25 | U65: 32 | V65: 40 | W65: 45 | X65: 51 | Y65: 56 | Z65: 64 | AA65: 69 | AB65: 83 | AC65: 96 | AD65: 106 | AE65: 125 | AF65: 144 | AG65: 157 | AH65: 172 | AI65: 185 | AJ65: 199 | AK65: 211 | AL65: 228 | AM65: 237 | AN65: 250 | AO65: 274 | AP65: 302 | AQ65: 319 | AR65: 337 | AS65: 351 | AT65: 358 | AU65: 366 | AV65: 371 | AW65: 372 | AX65: 380 | AY65: 382 | AZ65: 385 | BA65: 388 | BB65: 390 | BC65: 392 | BD65: 392 | BE65: 394
A66: ncp_cumuni_rimFSU | B66: Nuclear Power | C66: ncp | D66: FSU | E66: rimFSU | F66: Cumulative Total No. of Units | G66: # | H66: cumuni | I66: 1956 | J66: 2000 | K66: use | L66: =C66&"_"&H66&"_"&E66 -> ncp_cumuni_rimFSU | M66: 0 | N66: 0 | O66: 0 | P66: 2 | Q66: 3 | R66: 4 | S66: 5 | T66: 6 | U66: 8 | V66: 8 | W66: 9 | X66: 9 | Y66: 9 | Z66: 10 | AA66: 11 | AB66: 11 | AC66: 12 | AD66: 19 | AE66: 22 | AF66: 23 | AG66: 24 | AH66: 26 | AI66: 29 | AJ66: 31 | AK66: 33 | AL66: 41 | AM66: 44 | AN66: 47 | AO66: 51 | AP66: 58 | AQ66: 63 | AR66: 69 | AS66: 74 | AT66: 78 | AU66: 78 | AV66: 78 | AW66: 78 | AX66: 80 | AY66: 80 | AZ66: 80 | BA66: 82 | BB66: 82 | BC66: 82 | BD66: 83 | BE66: 84
A67: ncp_cumuni_rim | B67: Nuclear Power | C67: ncp | D67: Asia | E67: rim | F67: Cumulative Total No. of Units | G67: # | H67: cumuni | I67: 1956 | J67: 2000 | K67: use | L67: =C67&"_"&H67&"_"&E67 -> ncp_cumuni_rim | M67: 0 | N67: 0 | O67: 0 | P67: 0 | Q67: 0 | R67: 0 | S67: 0 | T67: 0 | U67: 0 | V67: 0 | W67: 0 | X67: 0 | Y67: 0 | Z67: 2 | AA67: 2 | AB67: 2 | AC67: 3 | AD67: 4 | AE67: 4 | AF67: 4 | AG67: 4 | AH67: 4 | AI67: 6 | AJ67: 7 | AK67: 8 | AL67: 9 | AM67: 9 | AN67: 12 | AO67: 14 | AP67: 16 | AQ67: 19 | AR67: 20 | AS67: 21 | AT67: 22 | AU67: 22 | AV67: 23 | AW67: 24 | AX67: 25 | AY67: 28 | AZ67: 30 | BA67: 31 | BB67: 32 | BC67: 34 | BD67: 37 | BE67: 40
A68: ncp_cumuni_peri | B68: Nuclear Power | C68: ncp | D68: LAm+Af | E68: peri | F68: Cumulative Total No. of Units | G68: # | H68: cumuni | I68: 1956 | J68: 2000 | K68: use | L68: =C68&"_"&H68&"_"&E68 -> ncp_cumuni_peri | M68: 0 | N68: 0 | O68: 0 | P68: 0 | Q68: 0 | R68: 0 | S68: 0 | T68: 0 | U68: 0 | V68: 0 | W68: 0 | X68: 0 | Y68: 0 | Z68: 0 | AA68: 0 | AB68: 0 | AC68: 0 | AD68: 0 | AE68: 1 | AF68: 1 | AG68: 1 | AH68: 1 | AI68: 1 | AJ68: 1 | AK68: 1 | AL68: 1 | AM68: 1 | AN68: 1 | AO68: 4 | AP68: 5 | AQ68: 5 | AR68: 5 | AS68: 5 | AT68: 5 | AU68: 6 | AV68: 6 | AW68: 6 | AX68: 6 | AY68: 6 | AZ68: 7 | BA68: 7 | BB68: 7 | BC68: 7 | BD68: 7 | BE68: 8
A69: ncp_cumuni_glob | B69: Nuclear Power | C69: ncp | D69: Global | E69: glob | F69: Cumulative Total No. of Units | G69: # | H69: cumuni | I69: 1956 | J69: 2000 | K69: use | L69: =C69&"_"&H69&"_"&E69 -> ncp_cumuni_glob | M69: 2 | N69: 4 | O69: 5 | P69: 11 | Q69: 15 | R69: 17 | S69: 25 | T69: 31 | U69: 40 | V69: 48 | W69: 54 | X69: 60 | Y69: 65 | Z69: 76 | AA69: 82 | AB69: 96 | AC69: 111 | AD69: 129 | AE69: 152 | AF69: 172 | AG69: 186 | AH69: 203 | AI69: 221 | AJ69: 238 | AK69: 253 | AL69: 279 | AM69: 291 | AN69: 310 | AO69: 343 | AP69: 381 | AQ69: 406 | AR69: 431 | AS69: 451 | AT69: 463 | AU69: 472 | AV69: 478 | AW69: 480 | AX69: 491 | AY69: 496 | AZ69: 502 | BA69: 508 | BB69: 511 | BC69: 515 | BD69: 519 | BE69: 526
A71: ncp_avgcap_core | B71: Nuclear Power | C71: ncp | D71: OECD | E71: core | F71: Average Capacity of Unit Additions | G71: MW | H71: avgcap | I71: 1956 | J71: 2000 | K71: use | L71: =C71&"_"&H71&"_"&E71 -> ncp_avgcap_core | M71: 50 | N71: 52.5 | O71: 50 | P71: 50 | Q71: 99.66666667 | R71: 185 | S71: 144.8571429 | T71: 67.4 | U71: 111.5714286 | V71: 201.125 | W71: 175.4 | X71: 185.3333333 | Y71: 319.66 | Z71: 334.1875 | AA71: 513.24 | AB71: 540.6842857 | AC71: 611.9230769 | AD71: 706.88 | AE71: 852.7842105 | AF71: 767.0105263 | AG71: 815.3315385 | AH71: 821.4466667 | AI71: 881.7315385 | AJ71: 844.8357143 | AK71: 904.3 | AL71: 919.6352941 | AM71: 999.2111111 | AN71: 891.8923077 | AO71: 966.0958333 | AP71: 1102.346429 | AQ71: 1122.988235 | AR71: 1082.833333 | AS71: 1152.9 | AT71: 916.9 | AU71: 1157.5 | AV71: 1050 | AW71: 1330 | AX71: 1030.5 | AY71: 1140 | AZ71: 963.3333333 | BA71: 968.6333333 | BB71: 1268 | BC71: 1516 | BD71: 0 | BE71: 1516
A72: ncp_avgcap_rimFSU | B72: Nuclear Power | C72: ncp | D72: FSU | E72: rimFSU | F72: Average Capacity of Unit Additions | G72: MW | H72: avgcap | I72: 1956 | J72: 2000 | K72: use | L72: =C72&"_"&H72&"_"&E72 -> ncp_avgcap_rimFSU | M72: 0 | N72: 0 | O72: 0 | P72: 100 | Q72: 100 | R72: 100 | S72: 100 | T72: 100 | U72: 183.5 | V72: 0 | W72: 50 | X72: 0 | Y72: 0 | Z72: 146 | AA72: 336 | AB72: 0 | AC72: 385 | AD72: 170.5714286 | AE72: 592 | AF72: 440 | AG72: 925 | AH72: 704 | AI72: 925 | AJ72: 720 | AK72: 666.5 | AL72: 603.75 | AM72: 588.3333333 | AN72: 795 | AO72: 842.75 | AP72: 822.1428571 | AQ72: 658 | AR72: 891.6666667 | AS72: 878 | AT72: 968.75 | AU72: 0 | AV72: 0 | AW72: 0 | AX72: 1000 | AY72: 0 | AZ72: 0 | BA72: 840 | BB72: 0 | BC72: 0 | BD72: 440 | BE72: 440
A73: ncp_avgcap_rim | B73: Nuclear Power | C73: ncp | D73: Asia | E73: rim | F73: Average Capacity of Unit Additions | G73: MW | H73: avgcap | I73: 1956 | J73: 2000 | K73: use | L73: ncp_avgcap_rim | M73: 0 | N73: 0 | O73: 0 | P73: 0 | Q73: 0 | R73: 0 | S73: 0 | T73: 0 | U73: 0 | V73: 0 | W73: 0 | X73: 0 | Y73: 0 | Z73: 160 | AA73: 0 | AB73: 0 | AC73: 138.6 | AD73: 220 | AE73: 0 | AF73: 0 | AG73: 0 | AH73: 0 | AI73: 611.5 | AJ73: 636 | AK73: 220 | AL73: 986 | AM73: 0 | AN73: 771.56 | AO73: 593.5 | AP73: 951 | AQ73: 711.6666667 | AR73: 950 | AS73: 950 | AT73: 950 | AU73: 0 | AV73: 235 | AW73: 235 | AX73: 220 | AY73: 756.4666667 | AZ73: 610 | BA73: 1000 | BB73: 700 | BC73: 881 | BD73: 665.6666667 | BE73: 246.6666667
A74: ncp_avgcap_peri | B74: Nuclear Power | C74: ncp | D74: LAm+Af | E74: peri | F74: Average Capacity of Unit Additions | G74: MW | H74: avgcap | I74: 1956 | J74: 2000 | K74: use | L74: ncp_avgcap_peri | M74: 0 | N74: 0 | O74: 0 | P74: 0 | Q74: 0 | R74: 0 | S74: 0 | T74: 0 | U74: 0 | V74: 0 | W74: 0 | X74: 0 | Y74: 0 | Z74: 0 | AA74: 0 | AB74: 0 | AC74: 0 | AD74: 0 | AE74: 370 | AF74: 0 | AG74: 0 | AH74: 0 | AI74: 0 | AJ74: 0 | AK74: 0 | AL74: 0 | AM74: 0 | AN74: 0 | AO74: 740.6666667 | AP74: 965 | AQ74: 0 | AR74: 0 | AS74: 0 | AT74: 0 | AU74: 674.48 | AV74: 0 | AW74: 0 | AX74: 0 | AY74: 0 | AZ74: 674.48 | BA74: 0 | BB74: 0 | BC74: 0 | BD74: 0 | BE74: 1325
A75: ncp_avgcap_glob | B75: Nuclear Power | C75: ncp | D75: Global | E75: glob | F75: Average Capacity of Unit Additions | G75: MW | H75: avgcap | I75: 1956 | J75: 2000 | K75: use | L75: ncp_avgcap_glob | M75: 50 | N75: 52.5 | O75: 50 | P75: 66.66666667 | Q75: 99.75 | R75: 142.5 | S75: 139.25 | T75: 72.83333333 | U75: 127.5555556 | V75: 201.125 | W75: 154.5 | X75: 185.3333333 | Y75: 319.66 | Z75: 285.4090909 | AA75: 483.7 | AB75: 540.6842857 | AC75: 565.24 | AD75: 471.2666667 | AE75: 797.7782609 | AF75: 750.66 | AG75: 823.165 | AH75: 807.6294118 | AI75: 858.9172222 | AJ75: 817.8647059 | AK75: 826.9733333 | AL75: 824.9923077 | AM75: 896.4916667 | AN75: 857.5936842 | AO75: 908.069697 | AP75: 1039.15 | AQ75: 980.632 | AR75: 1031.64 | AS75: 1074.03 | AT75: 936.9416667 | AU75: 1103.831111 | AV75: 914.1666667 | AW75: 782.5 | AX75: 951.2727273 | AY75: 909.88 | AZ75: 797.4133333 | BA75: 930.9833333 | BB75: 1078.666667 | BC75: 1198.5 | BD75: 609.25 | BE75: 791
A77: ncp_maxcap_core | B77: Nuclear Power | C77: ncp | D77: OECD | E77: core | F77: Maximum Capacity of Unit Additions | G77: MW | H77: maxcap | I77: 1956 | J77: 2000 | K77: use | L77: =C77&"_"&H77&"_"&E77 -> ncp_maxcap_core | M77: 50 | N77: 100 | O77: 50 | P77: 50 | Q77: 209 | R77: 185 | S77: 285 | T77: 153 | U77: 186 | V77: 235 | W77: 290 | X77: 400 | Y77: 600.3 | Z77: 641.8 | AA77: 828.3 | AB77: 828.3 | AC77: 920 | AD77: 1098 | AE77: 1309.7 | AF77: 1152 | AG77: 1300 | AH77: 1170 | AI77: 1133.3 | AJ77: 1247 | AK77: 1005 | AL77: 1220.6 | AM77: 1345 | AN77: 1152 | AO77: 1344 | AP77: 1430 | AQ77: 1403.2 | AR77: 1361.2 | AS77: 1475 | AT77: 1365 | AU77: 1330 | AV77: 1310 | AW77: 1330 | AX77: 1310 | AY77: 1180 | AZ77: 1175 | BA77: 1356 | BB77: 1356 | BC77: 1516 | BD77: 0 | BE77: 1516
A78: ncp_maxcap_rimFSU | B78: Nuclear Power | C78: ncp | D78: FSU | E78: rimFSU | F78: Maximum Capacity of Unit Additions | G78: MW | H78: maxcap | I78: 1956 | J78: 2000 | K78: use | L78: =C78&"_"&H78&"_"&E78 -> ncp_maxcap_rimFSU | M78: 0 | N78: 0 | O78: 0 | P78: 100 | Q78: 100 | R78: 100 | S78: 100 | T78: 100 | U78: 265 | V78: 0 | W78: 50 | X78: 0 | Y78: 0 | Z78: 146 | AA78: 336 | AB78: 0 | AC78: 385 | AD78: 411 | AE78: 925 | AF78: 440 | AG78: 925 | AH78: 1000 | AI78: 925 | AJ78: 1000 | AK78: 925 | AL78: 950 | AM78: 925 | AN78: 1000 | AO78: 1500 | AP78: 1000 | AQ78: 1000 | AR78: 1500 | AS78: 1000 | AT78: 1000 | AU78: 0 | AV78: 0 | AW78: 0 | AX78: 1000 | AY78: 0 | AZ78: 0 | BA78: 1000 | BB78: 0 | BC78: 0 | BD78: 440 | BE78: 440
A79: ncp_maxcap_rim | B79: Nuclear Power | C79: ncp | D79: Asia | E79: rim | F79: Maximum Capacity of Unit Additions | G79: MW | H79: maxcap | I79: 1956 | J79: 2000 | K79: use | L79: ncp_maxcap_rim | M79: 0 | N79: 0 | O79: 0 | P79: 0 | Q79: 0 | R79: 0 | S79: 0 | T79: 0 | U79: 0 | V79: 0 | W79: 0 | X79: 0 | Y79: 0 | Z79: 160 | AA79: 0 | AB79: 0 | AC79: 138.6 | AD79: 220 | AE79: 0 | AF79: 0 | AG79: 0 | AH79: 0 | AI79: 636 | AJ79: 636 | AK79: 220 | AL79: 986 | AM79: 0 | AN79: 986 | AO79: 952 | AP79: 952 | AQ79: 950 | AR79: 950 | AS79: 950 | AT79: 950 | AU79: 0 | AV79: 235 | AW79: 235 | AX79: 220 | AY79: 984.7 | AZ79: 1000 | BA79: 1000 | BB79: 700 | BC79: 1049 | BD79: 1049 | BE79: 300
A80: ncp_maxcap_peri | B80: Nuclear Power | C80: ncp | D80: LAm+Af | E80: peri | F80: Maximum Capacity of Unit Additions | G80: MW | H80: maxcap | I80: 1956 | J80: 2000 | K80: use | L80: ncp_maxcap_peri | M80: 0 | N80: 0 | O80: 0 | P80: 0 | Q80: 0 | R80: 0 | S80: 0 | T80: 0 | U80: 0 | V80: 0 | W80: 0 | X80: 0 | Y80: 0 | Z80: 0 | AA80: 0 | AB80: 0 | AC80: 0 | AD80: 0 | AE80: 370 | AF80: 0 | AG80: 0 | AH80: 0 | AI80: 0 | AJ80: 0 | AK80: 0 | AL80: 0 | AM80: 0 | AN80: 0 | AO80: 965 | AP80: 965 | AQ80: 0 | AR80: 0 | AS80: 0 | AT80: 0 | AU80: 674.48 | AV80: 0 | AW80: 0 | AX80: 0 | AY80: 0 | AZ80: 674.48 | BA80: 0 | BB80: 0 | BC80: 0 | BD80: 0 | BE80: 1325
A81: ncp_maxcap_glob | B81: Nuclear Power | C81: ncp | D81: Global | E81: glob | F81: Maximum Capacity of Unit Additions | G81: MW | H81: maxcap | I81: 1956 | J81: 2000 | K81: use | L81: ncp_maxcap_glob | M81: 50 | N81: 100 | O81: 50 | P81: 100 | Q81: 209 | R81: 185 | S81: 285 | T81: 153 | U81: 265 | V81: 235 | W81: 290 | X81: 400 | Y81: 600.3 | Z81: 641.8 | AA81: 828.3 | AB81: 828.3 | AC81: 920 | AD81: 1098 | AE81: 1309.7 | AF81: 1152 | AG81: 1300 | AH81: 1170 | AI81: 1133.3 | AJ81: 1247 | AK81: 1005 | AL81: 1220.6 | AM81: 1345 | AN81: 1152 | AO81: 1500 | AP81: 1430 | AQ81: 1403.2 | AR81: 1500 | AS81: 1475 | AT81: 1365 | AU81: 1330 | AV81: 1310 | AW81: 1330 | AX81: 1310 | AY81: 1180 | AZ81: 1175 | BA81: 1356 | BB81: 1356 | BC81: 1516 | BD81: 1049 | BE81: 1516
B83: HYDRO POWER (1882-2005) | M83: 1882 | N83: =M83+1 -> 1883 | O83: =N83+1 -> 1884 | P83: 1885 | Q83: 1886 | R83: 1887 | S83: 1888 | T83: 1889 | U83: 1890 | V83: 1891 | W83: 1892 | X83: 1893 | Y83: 1894 | Z83: 1895 | AA83: 1896 | AB83: 1897 | AC83: 1898 | AD83: 1899 | AE83: 1900 | AF83: 1901 | AG83: 1902 | AH83: 1903 | AI83: 1904 | AJ83: 1905 | AK83: 1906 | AL83: 1907 | AM83: 1908 | AN83: 1909 | AO83: 1910 | AP83: 1911 | AQ83: 1912 | AR83: 1913 | AS83: 1914 | AT83: 1915 | AU83: 1916 | AV83: 1917 | AW83: 1918 | AX83: 1919 | AY83: 1920 | AZ83: 1921 | BA83: 1922 | BB83: 1923 | BC83: 1924 | BD83: 1925 | BE83: 1926 | BF83: 1927 | BG83: 1928 | BH83: 1929 | BI83: 1930 | BJ83: 1931 | BK83: 1932 | BL83: 1933 | BM83: 1934 | BN83: 1935 | BO83: 1936 | BP83: 1937 | BQ83: 1938 | BR83: 1939 | BS83: 1940 | BT83: 1941 | BU83: 1942 | BV83: 1943 | BW83: 1944 | BX83: 1945 | BY83: 1946 | BZ83: 1947 | CA83: =BZ83+1 -> 1948 | CB83: 1949 | CC83: 1950 | CD83: 1951 | CE83: 1952 | CF83: 1953 | CG83: 1954 | CH83: 1955 | CI83: 1956 | CJ83: 1957 | CK83: 1958 | CL83: 1959 | CM83: 1960 | CN83: 1961 | CO83: 1962 | CP83: 1963 | CQ83: 1964 | CR83: 1965 | CS83: 1966 | CT83: 1967 | CU83: 1968 | CV83: 1969 | CW83: 1970 | CX83: 1971 | CY83: 1972 | CZ83: 1973 | DA83: 1974 | DB83: 1975 | DC83: 1976 | DD83: 1977 | DE83: 1978 | DF83: 1979 | DG83: 1980 | DH83: 1981 | DI83: 1982 | DJ83: 1983 | DK83: 1984 | DL83: 1985 | DM83: 1986 | DN83: 1987 | DO83: 1988 | DP83: 1989 | DQ83: 1990 | DR83: 1991 | DS83: 1992 | DT83: 1993 | DU83: 1994 | DV83: 1995 | DW83: 1996 | DX83: 1997 | DY83: 1998 | DZ83: 1999 | EA83: 2000 | EB83: 2001 | EC83: 2002 | ED83: 2003 | EE83: 2004 | EF83: 2005
A85: =L85 -> hyp_cumcap_core | B85: Hydro Power | C85: hyp | D85: OECD | E85: core | F85: Cumulative Total Capacity | G85: MW | H85: cumcap | I85: 1882 | J85: 2005 | K85: use | L85: =C85&"_"&H85&"_"&E85 -> hyp_cumcap_core | M85: 0.32 | N85: 0.32 | O85: 0.32 | P85: 0.32 | Q85: 0.69 | R85: 0.69 | S85: 0.69 | T85: 0.8 | U85: 0.8 | V85: 5.3 | W85: 5.56 | X85: 6.36 | Y85: 6.36 | Z85: 10.64 | AA85: 23.15 | AB85: 27.64 | AC85: 57.67 | AD85: 58.47 | AE85: 67.44 | AF85: 74.82 | AG85: 87.935 | AH85: 138.525 | AI85: 213.615 | AJ85: 313.775 | AK85: 413.135 | AL85: 559.5 | AM85: 708.846 | AN85: 832.616 | AO85: 1049.132 | AP85: 1418.59798 | AQ85: 1686.57298 | AR85: 2181.24698 | AS85: 2486.81298 | AT85: 2850.63798 | AU85: 3214.05798 | AV85: 3542.31298 | AW85: 3768.68398 | AX85: 4074.87698 | AY85: 4622.71198 | AZ85: 5413.94298 | BA85: 5965.83998 | BB85: 6704.33998 | BC85: 7725.20498 | BD85: 9358.38098 | BE85: 10133.04698 | BF85: 11251.05698 | BG85: 12895.87698 | BH85: 14089.31096 | BI85: 15775.38596 | BJ85: 17612.32895 | BK85: 18722.64395 | BL85: 19262.84895 | BM85: 19799.37895 | BN85: 20551.50795 | BO85: 21884.87195 | BP85: 22791.95195 | BQ85: 24155.37095 | BR85: 25843.98395 | BS85: 26902.26895 | BT85: 28467.01395 | BU85: 30768.00795 | BV85: 33221.16795 | BW85: 34826.80795 | BX85: 35471.96795 | BY85: 35887.41795 | BZ85: 36852.10195 | CA85: 38098.71795 | CB85: 40983.55895 | CC85: 44515.24595 | CD85: 48604.65295 | CE85: 52659.35494 | CF85: 57365.61394 | CG85: 62377.64894 | CH85: 68149.64093 | CI85: 74401.70093 | CJ85: 79918.31793 | CK85: 89033.19493 | CL85: 98742.46791 | CM85: 104987.0549 | CN85: 112731.2869 | CO85: 120764.5989 | CP85: 130105.4749 | CQ85: 138294.0659 | CR85: 147129.3988 | CS85: 154661.8968 | CT85: 163875.1138 | CU85: 171776.0788 | CV85: 181191.7488 | CW85: 189466.1988 | CX85: 197538.1428 | CY85: 204832.7168 | CZ85: 220289.0188 | DA85: 229852.3398 | DB85: 238126.4568 | DC85: 248903.1528 | DD85: 255039.0468 | DE85: 264612.6578 | DF85: 272317.4058 | DG85: 282701.9408 | DH85: 291116.7788 | DI85: 300355.8558 | DJ85: 308566.0608 | DK85: 319915.5478 | DL85: 325625.0818 | DM85: 330870.3448 | DN85: 336055.3527 | DO85: 339669.7557 | DP85: 343352.2077 | DQ85: 346667.1947 | DR85: 351882.3156 | DS85: 356464.4326 | DT85: 358809.8026 | DU85: 363332.5786 | DV85: 367653.9636 | DW85: 369298.8726 | DX85: 370090.8786 | DY85: 372676.5715 | DZ85: 374914.7585 | EA85: 376099.1285 | EB85: 377669.5235 | EC85: 379039.2935 | ED85: 380008.6935 | EE85: 382643.8935 | EF85: 385070.5535
A86: =L86 -> hyp_cumcap_rimFSU | B86: Hydro Power | C86: hyp | D86: FSU | E86: rimFSU | F86: Cumulative Total Capacity | G86: MW | H86: cumcap | I86: 1882 | J86: 2005 | K86: use | L86: =C86&"_"&H86&"_"&E86 -> hyp_cumcap_rimFSU | M86: 0 | N86: 0 | O86: 0 | P86: 0 | Q86: 0 | R86: 0 | S86: 0 | T86: 0 | U86: 0 | V86: 0 | W86: 0 | X86: 0 | Y86: 0 | Z86: 0 | AA86: 1.89 | AB86: 1.89 | AC86: 2.89 | AD86: 2.89 | AE86: 2.89 | AF86: 2.89 | AG86: 2.89 | AH86: 8.69 | AI86: 8.69 | AJ86: 10.231 | AK86: 14.671 | AL86: 14.671 | AM86: 18.871 | AN86: 18.871 | AO86: 21.391 | AP86: 21.391 | AQ86: 35.577 | AR86: 35.577 | AS86: 37.892 | AT86: 38.024 | AU86: 38.024 | AV86: 42.104 | AW86: 62.904 | AX86: 62.904 | AY86: 63.534 | AZ86: 65.654 | BA86: 69.454 | BB86: 72.77 | BC86: 73.48 | BD86: 79.2 | BE86: 146.36 | BF86: 177.05 | BG86: 187.237 | BH86: 194.537 | BI86: 237.697 | BJ86: 289.575 | BK86: 505.881 | BL86: 594.591 | BM86: 726.636 | BN86: 847.436 | BO86: 1172.416 | BP86: 1404.206 | BQ86: 1479.366 | BR86: 1736.598 | BS86: 1874.627 | BT86: 1993.317 | BU86: 1993.317 | BV86: 2051.323 | BW86: 2182.323 | BX86: 2294.723 | BY86: 2311.58299 | BZ86: 2508.62098 | CA86: 2542.04598 | CB86: 2801.48098 | CC86: 3196.44398 | CD86: 3502.15198 | CE86: 4275.10398 | CF86: 4683.45798 | CG86: 5349.72098 | CH86: 9351.87798 | CI86: 10762.86398 | CJ86: 11604.25998 | CK86: 14909.54198 | CL86: 15891.26798 | CM86: 17012.63298 | CN86: 18864.37098 | CO86: 20166.35798 | CP86: 21176.67998 | CQ86: 22157.87998 | CR86: 22817.67598 | CS86: 27998.99598 | CT86: 30226.18498 | CU86: 33927.31998 | CV86: 36382.57698 | CW86: 39147.41698 | CX86: 42149.81698 | CY86: 44533.06198 | CZ86: 45075.58998 | DA86: 46033.42998 | DB86: 47598.18498 | DC86: 49904.38498 | DD86: 54609.83198 | DE86: 59709.13498 | DF86: 63404.04498 | DG86: 66888.64498 | DH86: 69161.35698 | DI86: 72066.81498 | DJ86: 73300.01698 | DK86: 76266.53498 | DL86: 78141.05798 | DM86: 79245.19397 | DN86: 80759.63895 | DO86: 81337.35395 | DP86: 83066.76492 | DQ86: 84575.13592 | DR86: 84652.58592 | DS86: 85514.5909 | DT86: 86308.1819 | DU86: 86660.1749 | DV86: 87921.3949 | DW86: 88710.7109 | DX86: 88891.9109 | DY86: 89436.0749 | DZ86: 90178.5249 | EA86: 90800.8249 | EB86: 91975.2249 | EC86: 92623.2249 | ED86: 93531.2249 | EE86: 93599.7249 | EF86: 93734.7249
A87: =L87 -> hyp_cumcap_rim | B87: Hydro Power | C87: hyp | D87: Asia | E87: rim | F87: Cumulative Total Capacity | G87: MW | H87: cumcap | I87: 1882 | J87: 2005 | K87: use | L87: =C87&"_"&H87&"_"&E87 -> hyp_cumcap_rim | M87: 0 | N87: 0 | O87: 0 | P87: 0 | Q87: 0 | R87: 0 | S87: 0 | T87: 0 | U87: 0 | V87: 0 | W87: 0 | X87: 0 | Y87: 0 | Z87: 0 | AA87: 0 | AB87: 0.6 | AC87: 0.6 | AD87: 0.6 | AE87: 0.6 | AF87: 0.6 | AG87: 0.6 | AH87: 0.6 | AI87: 0.6 | AJ87: 0.6 | AK87: 0.6 | AL87: 0.6 | AM87: 0.6 | AN87: 2.55 | AO87: 3.5 | AP87: 4.4 | AQ87: 4.4 | AR87: 4.4 | AS87: 4.4 | AT87: 43.2 | AU87: 43.2 | AV87: 43.2 | AW87: 47.8 | AX87: 50.8 | AY87: 50.8 | AZ87: 50.8 | BA87: 73.29 | BB87: 82.79 | BC87: 107.99 | BD87: 112.09 | BE87: 112.09 | BF87: 301.09 | BG87: 313.09 | BH87: 314.065 | BI87: 534.74 | BJ87: 534.74 | BK87: 542.35 | BL87: 621.05 | BM87: 756.25 | BN87: 769.47 | BO87: 907 | BP87: 988.7 | BQ87: 1035.775 | BR87: 1209.525 | BS87: 1482.725 | BT87: 3099.725 | BU87: 3154.985 | BV87: 4851.765 | BW87: 4958.065 | BX87: 5101.265 | BY87: 5111.265 | BZ87: 5131.265 | CA87: 5163.765 | CB87: 5213.265 | CC87: 5273.536 | CD87: 5292.736 | CE87: 5578.056 | CF87: 5774.236 | CG87: 5906.764 | CH87: 6226.424 | CI87: 6524.175 | CJ87: 6872.435 | CK87: 7547.055 | CL87: 8091.095 | CM87: 9843.555 | CN87: 10720.205 | CO87: 11539.045 | CP87: 12891.785 | CQ87: 13578.285 | CR87: 14464.833 | CS87: 15969.863 | CT87: 17648.93 | CU87: 19295.65 | CV87: 20263.082 | CW87: 21694.601 | CX87: 23578.56499 | CY87: 24679.26399 | CZ87: 26529.80899 | DA87: 28396.03299 | DB87: 29696.23399 | DC87: 31273.01599 | DD87: 33381.54599 | DE87: 35590.73699 | DF87: 37364.42099 | DG87: 38666.90497 | DH87: 40188.65897 | DI87: 42781.91897 | DJ87: 45383.99897 | DK87: 48440.35797 | DL87: 53075.92297 | DM87: 56430.08997 | DN87: 60041.90197 | DO87: 64037.19597 | DP87: 66373.16697 | DQ87: 67396.85597 | DR87: 68756.34997 | DS87: 72984.02397 | DT87: 77285.69897 | DU87: 83207.33797 | DV87: 87409.75597 | DW87: 90339.13597 | DX87: 95181.21597 | DY87: 100589.526 | DZ87: 108784.726 | EA87: 116373.541 | EB87: 123769.241 | EC87: 130559.241 | ED87: 141082.291 | EE87: 151235.891 | EF87: 162676.891
A88: =L88 -> hyp_cumcap_peri | B88: Hydro Power | C88: hyp | D88: LAm+Af | E88: peri | F88: Cumulative Total Capacity | G88: MW | H88: cumcap | I88: 1882 | J88: 2005 | K88: use | L88: =C88&"_"&H88&"_"&E88 -> hyp_cumcap_peri | M88: 0 | N88: 0 | O88: 0 | P88: 0 | Q88: 0 | R88: 0 | S88: 0 | T88: 0 | U88: 0 | V88: 0 | W88: 0 | X88: 0 | Y88: 0 | Z88: 0 | AA88: 0 | AB88: 0 | AC88: 1.2 | AD88: 1.2 | AE88: 1.2 | AF88: 1.2 | AG88: 1.7 | AH88: 18.36 | AI88: 19.16 | AJ88: 35.88 | AK88: 108.6 | AL88: 108.6 | AM88: 113.6 | AN88: 115.67 | AO88: 127.37 | AP88: 174.44 | AQ88: 184.34 | AR88: 315.968 | AS88: 352.968 | AT88: 380.808 | AU88: 382.188 | AV88: 391.438 | AW88: 392.188 | AX88: 408.808 | AY88: 421.276 | AZ88: 421.776 | BA88: 489.246 | BB88: 527.336 | BC88: 528.936 | BD88: 547.136 | BE88: 656.886 | BF88: 702.416 | BG88: 762.493 | BH88: 811.105 | BI88: 862.345 | BJ88: 928.855 | BK88: 932.855 | BL88: 934.093 | BM88: 986.693 | BN88: 988.853 | BO88: 1206.376 | BP88: 1351.696 | BQ88: 1606.036 | BR88: 1638.376 | BS88: 1665.825 | BT88: 1802.942 | BU88: 1811.134 | BV88: 1915.034 | BW88: 2079.461 | BX88: 2146.434 | BY88: 2184.314 | BZ88: 2523.494 | CA88: 2799.103 | CB88: 3107.711 | CC88: 3370.824 | CD88: 3676.818 | CE88: 3845.228 | CF88: 4483.866 | CG88: 4806.458 | CH88: 5538.941 | CI88: 6684.298 | CJ88: 7521.135 | CK88: 7949.109 | CL88: 8889.852 | CM88: 10357.30099 | CN88: 11034.58397 | CO88: 12122.19496 | CP88: 13100.50295 | CQ88: 14161.96795 | CR88: 15791.40794 | CS88: 17242.27794 | CT88: 18674.72692 | CU88: 20315.70092 | CV88: 23775.21192 | CW88: 26415.78792 | CX88: 29363.74992 | CY88: 33174.48392 | CZ88: 36874.50292 | DA88: 41928.46992 | DB88: 44617.62191 | DC88: 49740.0249 | DD88: 54824.85588 | DE88: 60558.78387 | DF88: 64947.13387 | DG88: 71056.29487 | DH88: 76188.36987 | DI88: 82965.58787 | DJ88: 86389.45387 | DK88: 93128.71687 | DL88: 98600.73085 | DM88: 106769.9538 | DN88: 115553.8078 | DO88: 121721.5428 | DP88: 125943.7418 | DQ88: 128505.3378 | DR88: 130829.8778 | DS88: 134229.5398 | DT88: 137494.3938 | DU88: 142828.6518 | DV88: 146210.9298 | DW88: 150602.1368 | DX88: 155155.7468 | DY88: 158266.1318 | DZ88: 161447.9168 | EA88: 165929.9168 | EB88: 169661.3168 | EC88: 174306.0268 | ED88: 182015.6268 | EE88: 193930.4268 | EF88: 204037.4268
A89: =L89 -> hyp_cumcap_glob | B89: Hydro Power | C89: hyp | D89: Global | E89: glob | F89: Cumulative Total Capacity | G89: MW | H89: cumcap | I89: 1882 | J89: 2005 | K89: use | L89: =C89&"_"&H89&"_"&E89 -> hyp_cumcap_glob | M89: 0.32 | N89: 0.32 | O89: 0.32 | P89: 0.32 | Q89: 0.69 | R89: 0.69 | S89: 0.69 | T89: 0.8 | U89: 0.8 | V89: 5.3 | W89: 5.56 | X89: 6.36 | Y89: 6.36 | Z89: 10.64 | AA89: 25.04 | AB89: 30.13 | AC89: 62.36 | AD89: 63.16 | AE89: 72.13 | AF89: 79.51 | AG89: 93.125 | AH89: 166.175 | AI89: 242.065 | AJ89: 360.486 | AK89: 537.006 | AL89: 683.371 | AM89: 841.917 | AN89: 969.707 | AO89: 1201.393 | AP89: 1618.82898 | AQ89: 1910.88998 | AR89: 2537.19198 | AS89: 2882.07298 | AT89: 3312.66998 | AU89: 3677.46998 | AV89: 4019.05498 | AW89: 4271.57598 | AX89: 4597.38898 | AY89: 5158.32198 | AZ89: 5952.17298 | BA89: 6597.82998 | BB89: 7387.23598 | BC89: 8435.61098 | BD89: 10096.80698 | BE89: 11048.38298 | BF89: 12431.61298 | BG89: 14158.69698 | BH89: 15409.01796 | BI89: 17410.16796 | BJ89: 19365.49895 | BK89: 20703.72995 | BL89: 21412.58295 | BM89: 22268.95795 | BN89: 23157.26695 | BO89: 25170.66395 | BP89: 26536.55395 | BQ89: 28276.54795 | BR89: 30428.48295 | BS89: 31925.44595 | BT89: 35362.99795 | BU89: 37727.44395 | BV89: 42039.28995 | BW89: 44046.65695 | BX89: 45014.38995 | BY89: 45494.57994 | BZ89: 47015.48193 | CA89: 48603.63193 | CB89: 52106.01593 | CC89: 56356.04993 | CD89: 61076.35893 | CE89: 66357.74292 | CF89: 72307.17392 | CG89: 78440.59192 | CH89: 89266.88391 | CI89: 98373.03791 | CJ89: 105916.1479 | CK89: 119438.9009 | CL89: 131614.6829 | CM89: 142200.5439 | CN89: 153350.4468 | CO89: 164592.1968 | CP89: 177274.4428 | CQ89: 188192.1988 | CR89: 200203.3158 | CS89: 215873.0338 | CT89: 230424.9558 | CU89: 245314.7498 | CV89: 261612.6198 | CW89: 276724.0048 | CX89: 292630.2747 | CY89: 307219.5267 | CZ89: 328768.9207 | DA89: 346210.2727 | DB89: 360038.4977 | DC89: 379820.5787 | DD89: 397855.2807 | DE89: 420471.3137 | DF89: 438033.0057 | DG89: 459313.7856 | DH89: 476655.1646 | DI89: 498170.1776 | DJ89: 513639.5306 | DK89: 537751.1576 | DL89: 555442.7936 | DM89: 573315.5826 | DN89: 592410.7015 | DO89: 606765.8485 | DP89: 618735.8814 | DQ89: 627144.5244 | DR89: 636121.1294 | DS89: 649192.5873 | DT89: 659898.0773 | DU89: 676028.7433 | DV89: 689196.0443 | DW89: 698950.8563 | DX89: 709319.7523 | DY89: 720968.3043 | DZ89: 735325.9263 | EA89: 749203.4113 | EB89: 763075.3063 | EC89: 776527.7863 | ED89: 796637.8363 | EE89: 821409.9363 | EF89: 845519.5963
A91: =L91 -> hyp_cumuni_core | B91: Hydro Power | C91: hyp | D91: OECD | E91: core | F91: Cumulative Total No. of Units | G91: # | H91: cumuni | I91: 1882 | J91: 2005 | K91: use | L91: =C91&"_"&H91&"_"&E91 -> hyp_cumuni_core | M91: 2 | N91: 2 | O91: 2 | P91: 2 | Q91: 4 | R91: 4 | S91: 4 | T91: 6 | U91: 6 | V91: 15 | W91: 17 | X91: 18 | Y91: 18 | Z91: 21 | AA91: 32 | AB91: 39 | AC91: 68 | AD91: 69 | AE91: 98 | AF91: 112 | AG91: 139 | AH91: 180 | AI91: 223 | AJ91: 276 | AK91: 329 | AL91: 384 | AM91: 459 | AN91: 527 | AO91: 631 | AP91: 737 | AQ91: 823 | AR91: 945 | AS91: 1027 | AT91: 1098 | AU91: 1194 | AV91: 1274 | AW91: 1346 | AX91: 1416 | AY91: 1562 | AZ91: 1693 | BA91: 1818 | BB91: 1960 | BC91: 2134 | BD91: 2399 | BE91: 2517 | BF91: 2688 | BG91: 2860 | BH91: 3021 | BI91: 3170 | BJ91: 3310 | BK91: 3395 | BL91: 3437 | BM91: 3485 | BN91: 3558 | BO91: 3650 | BP91: 3729 | BQ91: 3826 | BR91: 3936 | BS91: 4054 | BT91: 4180 | BU91: 4309 | BV91: 4467 | BW91: 4573 | BX91: 4623 | BY91: 4658 | BZ91: 4737 | CA91: 4845 | CB91: 5035 | CC91: 5234 | CD91: 5437 | CE91: 5676 | CF91: 5927 | CG91: 6163 | CH91: 6459 | CI91: 6711 | CJ91: 7002 | CK91: 7358 | CL91: 7639 | CM91: 7859 | CN91: 8106 | CO91: 8383 | CP91: 8714 | CQ91: 8958 | CR91: 9201 | CS91: 9437 | CT91: 9660 | CU91: 9840 | CV91: 10030 | CW91: 10184 | CX91: 10343 | CY91: 10451 | CZ91: 10632 | DA91: 10749 | DB91: 10892 | DC91: 11031 | DD91: 11141 | DE91: 11295 | DF91: 11436 | DG91: 11616 | DH91: 11824 | DI91: 12129 | DJ91: 12481 | DK91: 12872 | DL91: 13226 | DM91: 13632 | DN91: 13921 | DO91: 14195 | DP91: 14451 | DQ91: 14749 | DR91: 14942 | DS91: 15141 | DT91: 15322 | DU91: 15536 | DV91: 15707 | DW91: 15827 | DX91: 15901 | DY91: 15980 | DZ91: 16066 | EA91: 16120 | EB91: 16149 | EC91: 16172 | ED91: 16183 | EE91: 16196 | EF91: 16216
A92: hyp_cumuni_rimFSU | B92: Hydro Power | C92: hyp | D92: FSU | E92: rimFSU | F92: Cumulative Total No. of Units | G92: # | H92: cumuni | I92: 1882 | J92: 2005 | K92: use | L92: =C92&"_"&H92&"_"&E92 -> hyp_cumuni_rimFSU | M92: 0 | N92: 0 | O92: 0 | P92: 0 | Q92: 0 | R92: 0 | S92: 0 | T92: 0 | U92: 0 | V92: 0 | W92: 0 | X92: 0 | Y92: 0 | Z92: 0 | AA92: 3 | AB92: 3 | AC92: 7 | AD92: 7 | AE92: 7 | AF92: 7 | AG92: 7 | AH92: 9 | AI92: 9 | AJ92: 13 | AK92: 15 | AL92: 15 | AM92: 18 | AN92: 18 | AO92: 24 | AP92: 24 | AQ92: 28 | AR92: 28 | AS92: 32 | AT92: 33 | AU92: 33 | AV92: 39 | AW92: 44 | AX92: 44 | AY92: 48 | AZ92: 53 | BA92: 57 | BB92: 64 | BC92: 65 | BD92: 69 | BE92: 84 | BF92: 89 | BG92: 97 | BH92: 99 | BI92: 112 | BJ92: 119 | BK92: 130 | BL92: 134 | BM92: 140 | BN92: 149 | BO92: 178 | BP92: 196 | BQ92: 203 | BR92: 224 | BS92: 235 | BT92: 242 | BU92: 242 | BV92: 251 | BW92: 254 | BX92: 257 | BY92: 273 | BZ92: 297 | CA92: 315 | CB92: 344 | CC92: 384 | CD92: 412 | CE92: 458 | CF92: 496 | CG92: 553 | CH92: 636 | CI92: 700 | CJ92: 744 | CK92: 802 | CL92: 843 | CM92: 880 | CN92: 925 | CO92: 968 | CP92: 1012 | CQ92: 1041 | CR92: 1070 | CS92: 1116 | CT92: 1162 | CU92: 1198 | CV92: 1217 | CW92: 1253 | CX92: 1291 | CY92: 1324 | CZ92: 1341 | DA92: 1368 | DB92: 1401 | DC92: 1436 | DD92: 1468 | DE92: 1513 | DF92: 1538 | DG92: 1573 | DH92: 1603 | DI92: 1643 | DJ92: 1679 | DK92: 1741 | DL92: 1791 | DM92: 1898 | DN92: 2010 | DO92: 2109 | DP92: 2196 | DQ92: 2251 | DR92: 2266 | DS92: 2304 | DT92: 2347 | DU92: 2367 | DV92: 2400 | DW92: 2409 | DX92: 2430 | DY92: 2454 | DZ92: 2475 | EA92: 2489 | EB92: 2497 | EC92: 2499 | ED92: 2504 | EE92: 2505 | EF92: 2507
A93: hyp_cumuni_rim | B93: Hydro Power | C93: hyp | D93: Asia | E93: rim | F93: Cumulative Total No. of Units | G93: # | H93: cumuni | I93: 1882 | J93: 2005 | K93: use | L93: =C93&"_"&H93&"_"&E93 -> hyp_cumuni_rim | M93: 0 | N93: 0 | O93: 0 | P93: 0 | Q93: 0 | R93: 0 | S93: 0 | T93: 0 | U93: 0 | V93: 0 | W93: 0 | X93: 0 | Y93: 0 | Z93: 0 | AA93: 0 | AB93: 3 | AC93: 3 | AD93: 3 | AE93: 3 | AF93: 3 | AG93: 3 | AH93: 3 | AI93: 3 | AJ93: 3 | AK93: 3 | AL93: 3 | AM93: 3 | AN93: 4 | AO93: 5 | AP93: 6 | AQ93: 6 | AR93: 6 | AS93: 6 | AT93: 10 | AU93: 10 | AV93: 10 | AW93: 15 | AX93: 16 | AY93: 16 | AZ93: 16 | BA93: 20 | BB93: 27 | BC93: 32 | BD93: 34 | BE93: 34 | BF93: 45 | BG93: 47 | BH93: 51 | BI93: 62 | BJ93: 62 | BK93: 64 | BL93: 69 | BM93: 78 | BN93: 80 | BO93: 87 | BP93: 94 | BQ93: 104 | BR93: 110 | BS93: 131 | BT93: 145 | BU93: 150 | BV93: 177 | BW93: 188 | BX93: 198 | BY93: 199 | BZ93: 201 | CA93: 204 | CB93: 210 | CC93: 224 | CD93: 229 | CE93: 252 | CF93: 275 | CG93: 298 | CH93: 325 | CI93: 357 | CJ93: 398 | CK93: 424 | CL93: 459 | CM93: 511 | CN93: 533 | CO93: 562 | CP93: 598 | CQ93: 624 | CR93: 657 | CS93: 688 | CT93: 728 | CU93: 781 | CV93: 810 | CW93: 846 | CX93: 895 | CY93: 924 | CZ93: 979 | DA93: 1023 | DB93: 1061 | DC93: 1101 | DD93: 1133 | DE93: 1171 | DF93: 1229 | DG93: 1271 | DH93: 1304 | DI93: 1356 | DJ93: 1436 | DK93: 1546 | DL93: 1639 | DM93: 1725 | DN93: 1797 | DO93: 1902 | DP93: 1992 | DQ93: 2054 | DR93: 2126 | DS93: 2223 | DT93: 2279 | DU93: 2346 | DV93: 2419 | DW93: 2465 | DX93: 2554 | DY93: 2621 | DZ93: 2730 | EA93: 2828 | EB93: 2909 | EC93: 2967 | ED93: 3029 | EE93: 3080 | EF93: 3123
A94: hyp_cumuni_peri | B94: Hydro Power | C94: hyp | D94: LAm+Af | E94: peri | F94: Cumulative Total No. of Units | G94: # | H94: cumuni | I94: 1882 | J94: 2005 | K94: use | L94: =C94&"_"&H94&"_"&E94 -> hyp_cumuni_peri | M94: 0 | N94: 0 | O94: 0 | P94: 0 | Q94: 0 | R94: 0 | S94: 0 | T94: 0 | U94: 0 | V94: 0 | W94: 0 | X94: 0 | Y94: 0 | Z94: 0 | AA94: 0 | AB94: 0 | AC94: 2 | AD94: 2 | AE94: 2 | AF94: 2 | AG94: 3 | AH94: 6 | AI94: 7 | AJ94: 10 | AK94: 20 | AL94: 20 | AM94: 26 | AN94: 29 | AO94: 33 | AP94: 39 | AQ94: 45 | AR94: 60 | AS94: 66 | AT94: 79 | AU94: 82 | AV94: 85 | AW94: 87 | AX94: 92 | AY94: 99 | AZ94: 100 | BA94: 111 | BB94: 120 | BC94: 122 | BD94: 126 | BE94: 131 | BF94: 141 | BG94: 160 | BH94: 174 | BI94: 189 | BJ94: 199 | BK94: 201 | BL94: 205 | BM94: 218 | BN94: 221 | BO94: 234 | BP94: 242 | BQ94: 255 | BR94: 267 | BS94: 280 | BT94: 302 | BU94: 306 | BV94: 329 | BW94: 355 | BX94: 371 | BY94: 383 | BZ94: 406 | CA94: 441 | CB94: 481 | CC94: 520 | CD94: 564 | CE94: 594 | CF94: 645 | CG94: 696 | CH94: 752 | CI94: 811 | CJ94: 887 | CK94: 940 | CL94: 996 | CM94: 1061 | CN94: 1101 | CO94: 1148 | CP94: 1196 | CQ94: 1262 | CR94: 1312 | CS94: 1366 | CT94: 1434 | CU94: 1494 | CV94: 1548 | CW94: 1598 | CX94: 1654 | CY94: 1722 | CZ94: 1786 | DA94: 1847 | DB94: 1890 | DC94: 1941 | DD94: 2001 | DE94: 2057 | DF94: 2105 | DG94: 2155 | DH94: 2207 | DI94: 2279 | DJ94: 2319 | DK94: 2385 | DL94: 2436 | DM94: 2517 | DN94: 2596 | DO94: 2672 | DP94: 2736 | DQ94: 2795 | DR94: 2849 | DS94: 2896 | DT94: 2942 | DU94: 3004 | DV94: 3058 | DW94: 3114 | DX94: 3168 | DY94: 3211 | DZ94: 3283 | EA94: 3359 | EB94: 3411 | EC94: 3469 | ED94: 3544 | EE94: 3615 | EF94: 3664
A95: hyp_cumuni_glob | B95: Hydro Power | C95: hyp | D95: Global | E95: glob | F95: Cumulative Total No. of Units | G95: # | H95: cumuni | I95: 1882 | J95: 2005 | K95: use | L95: =C95&"_"&H95&"_"&E95 -> hyp_cumuni_glob | M95: 2 | N95: 2 | O95: 2 | P95: 2 | Q95: 4 | R95: 4 | S95: 4 | T95: 6 | U95: 6 | V95: 15 | W95: 17 | X95: 18 | Y95: 18 | Z95: 21 | AA95: 35 | AB95: 45 | AC95: 80 | AD95: 81 | AE95: 110 | AF95: 124 | AG95: 152 | AH95: 198 | AI95: 242 | AJ95: 302 | AK95: 367 | AL95: 422 | AM95: 506 | AN95: 578 | AO95: 693 | AP95: 806 | AQ95: 902 | AR95: 1039 | AS95: 1131 | AT95: 1220 | AU95: 1319 | AV95: 1408 | AW95: 1492 | AX95: 1568 | AY95: 1725 | AZ95: 1862 | BA95: 2006 | BB95: 2171 | BC95: 2353 | BD95: 2628 | BE95: 2766 | BF95: 2963 | BG95: 3164 | BH95: 3345 | BI95: 3533 | BJ95: 3690 | BK95: 3790 | BL95: 3845 | BM95: 3921 | BN95: 4008 | BO95: 4149 | BP95: 4261 | BQ95: 4388 | BR95: 4537 | BS95: 4700 | BT95: 4869 | BU95: 5007 | BV95: 5224 | BW95: 5370 | BX95: 5449 | BY95: 5513 | BZ95: 5641 | CA95: 5805 | CB95: 6070 | CC95: 6362 | CD95: 6642 | CE95: 6980 | CF95: 7343 | CG95: 7710 | CH95: 8172 | CI95: 8579 | CJ95: 9031 | CK95: 9524 | CL95: 9937 | CM95: 10311 | CN95: 10665 | CO95: 11061 | CP95: 11520 | CQ95: 11885 | CR95: 12240 | CS95: 12607 | CT95: 12984 | CU95: 13313 | CV95: 13605 | CW95: 13881 | CX95: 14183 | CY95: 14421 | CZ95: 14738 | DA95: 14987 | DB95: 15244 | DC95: 15509 | DD95: 15743 | DE95: 16036 | DF95: 16308 | DG95: 16615 | DH95: 16938 | DI95: 17407 | DJ95: 17915 | DK95: 18544 | DL95: 19092 | DM95: 19772 | DN95: 20324 | DO95: 20878 | DP95: 21375 | DQ95: 21849 | DR95: 22183 | DS95: 22564 | DT95: 22890 | DU95: 23253 | DV95: 23584 | DW95: 23815 | DX95: 24053 | DY95: 24266 | DZ95: 24554 | EA95: 24796 | EB95: 24966 | EC95: 25107 | ED95: 25260 | EE95: 25396 | EF95: 25510
A97: hyp_avgcap_core | B97: Hydro Power | C97: hyp | D97: OECD | E97: core | F97: Average Capacity of Unit Additions | G97: MW | H97: avgcap | I97: 1882 | J97: 2005 | K97: use | L97: =C97&"_"&H97&"_"&E97 -> hyp_avgcap_core | M97: 0.16 | N97: 0 | O97: 0 | P97: 0 | Q97: 0.185 | R97: 0 | S97: 0 | T97: 0.055 | U97: 0 | V97: 0.5 | W97: 0.13 | X97: 0.8 | Y97: 0 | Z97: 1.426666667 | AA97: 1.137272727 | AB97: 0.6414285714 | AC97: 1.035517241 | AD97: 0.8 | AE97: 0.3093103448 | AF97: 0.5271428571 | AG97: 0.4857407407 | AH97: 1.233902439 | AI97: 1.74627907 | AJ97: 1.889811321 | AK97: 1.874716981 | AL97: 2.661181818 | AM97: 1.99128 | AN97: 1.820147059 | AO97: 2.081884615 | AP97: 3.485528113 | AQ97: 3.115988372 | AR97: 4.054704918 | AS97: 3.726414634 | AT97: 5.124295775 | AU97: 3.785625 | AV97: 4.1031875 | AW97: 3.144041667 | AX97: 4.374185714 | AY97: 3.752294521 | AZ97: 6.039931298 | BA97: 4.415176 | BB97: 5.200704225 | BC97: 5.86704023 | BD97: 6.162928302 | BE97: 6.564966102 | BF97: 6.538070175 | BG97: 9.562906977 | BH97: 7.412633416 | BI97: 11.3159396 | BJ97: 13.12102136 | BK97: 13.06252941 | BL97: 12.86202381 | BM97: 11.17770833 | BN97: 10.30313699 | BO97: 14.49308696 | BP97: 11.48202532 | BQ97: 14.05586598 | BR97: 15.35102727 | BS97: 8.968516949 | BT97: 12.41861111 | BU97: 17.83716279 | BV97: 15.52632911 | BW97: 15.14754717 | BX97: 12.9032 | BY97: 11.87 | BZ97: 12.21118987 | CA97: 11.54274074 | CB97: 15.18337368 | CC97: 17.74717085 | CD97: 20.14486207 | CE97: 16.96528029 | CF97: 18.75003586 | CG97: 21.23743644 | CH97: 19.49997294 | CI97: 24.8097619 | CJ97: 18.95744674 | CK97: 25.60358708 | CL97: 34.55257288 | CM97: 28.38448627 | CN97: 31.35316587 | CO97: 29.00112635 | CP97: 28.22016918 | CQ97: 33.55979918 | CR97: 36.35939502 | CS97: 31.91736441 | CT97: 41.31487444 | CU97: 43.89425 | CV97: 49.55615789 | CW97: 53.73019481 | CX97: 50.7669434 | CY97: 67.54235185 | CZ97: 85.3939337 | DA97: 81.73778632 | DB97: 57.86095804 | DC97: 77.53018705 | DD97: 55.78085445 | DE97: 62.16630519 | DF97: 54.64360284 | DG97: 57.691861 | DH97: 40.45595192 | DI97: 30.29205567 | DJ97: 23.32444602 | DK97: 29.02682092 | DL97: 16.12862712 | DM97: 12.91936695 | DN97: 17.94120405 | DO97: 13.19125179 | DP97: 14.38457805 | DQ97: 11.12411738 | DR97: 27.02135207 | DS97: 23.02571357 | DT97: 12.95784519 | DU97: 21.13446724 | DV97: 25.27125731 | DW97: 13.70757483 | DX97: 10.70278378 | DY97: 32.73029076 | DZ97: 26.02543023 | EA97: 21.93277778 | EB97: 54.15155172 | EC97: 59.55521739 | ED97: 88.12727273 | EE97: 202.7076923 | EF97: 121.333
A98: hyp_avgcap_rimFSU | B98: Hydro Power | C98: hyp | D98: FSU | E98: rimFSU | F98: Average Capacity of Unit Additions | G98: MW | H98: avgcap | I98: 1882 | J98: 2005 | K98: use | L98: =C98&"_"&H98&"_"&E98 -> hyp_avgcap_rimFSU | M98: 0 | N98: 0 | O98: 0 | P98: 0 | Q98: 0 | R98: 0 | S98: 0 | T98: 0 | U98: 0 | V98: 0 | W98: 0 | X98: 0 | Y98: 0 | Z98: 0 | AA98: 0.63 | AB98: 0 | AC98: 0.25 | AD98: 0 | AE98: 0 | AF98: 0 | AG98: 0 | AH98: 2.9 | AI98: 0 | AJ98: 0.38525 | AK98: 2.22 | AL98: 0 | AM98: 1.4 | AN98: 0 | AO98: 0.42 | AP98: 0 | AQ98: 3.5465 | AR98: 0 | AS98: 0.57875 | AT98: 0.132 | AU98: 0 | AV98: 0.68 | AW98: 4.16 | AX98: 0 | AY98: 0.1575 | AZ98: 0.424 | BA98: 0.95 | BB98: 0.4737142857 | BC98: 0.71 | BD98: 1.43 | BE98: 4.477333333 | BF98: 6.138 | BG98: 1.273375 | BH98: 3.65 | BI98: 3.32 | BJ98: 7.411142857 | BK98: 19.66418182 | BL98: 22.1775 | BM98: 22.0075 | BN98: 13.42222222 | BO98: 11.2062069 | BP98: 12.87722222 | BQ98: 10.73714286 | BR98: 12.24914286 | BS98: 12.54809091 | BT98: 16.95571429 | BU98: 0 | BV98: 6.445111111 | BW98: 43.66666667 | BX98: 37.46666667 | BY98: 1.053749375 | BZ98: 8.20991625 | CA98: 1.856944444 | CB98: 8.946034483 | CC98: 9.874075 | CD98: 10.91814286 | CE98: 16.80330435 | CF98: 10.74615789 | CG98: 11.68882456 | CH98: 48.21875904 | CI98: 22.04665625 | CJ98: 19.12263636 | CK98: 56.98762069 | CL98: 23.94453659 | CM98: 30.30716216 | CN98: 41.14973333 | CO98: 30.27876744 | CP98: 22.96186364 | CQ98: 33.83448276 | CR98: 22.75158621 | CS98: 112.6373913 | CT98: 48.41715217 | CU98: 102.8093056 | CV98: 129.2240526 | CW98: 76.80111111 | CX98: 79.01052632 | CY98: 72.21954545 | CZ98: 31.91341176 | DA98: 35.47555556 | DB98: 47.41681818 | DC98: 65.89142857 | DD98: 147.0452188 | DE98: 113.3178444 | DF98: 147.7964 | DG98: 99.56 | DH98: 75.75706667 | DI98: 72.63645 | DJ98: 34.25561111 | DK98: 47.84706452 | DL98: 37.49046 | DM98: 10.31902794 | DN98: 13.52183018 | DO98: 5.835505051 | DP98: 19.87828701 | DQ98: 27.42492727 | DR98: 5.163333333 | DS98: 22.68434158 | DT98: 18.45560465 | DU98: 17.59965 | DV98: 38.21878788 | DW98: 87.70177778 | DX98: 8.628571429 | DY98: 22.6735 | DZ98: 35.3547619 | EA98: 44.45 | EB98: 146.8 | EC98: 324 | ED98: 181.6 | EE98: 68.5 | EF98: 67.5
A99: hyp_avgcap_rim | B99: Hydro Power | C99: hyp | D99: Asia | E99: rim | F99: Average Capacity of Unit Additions | G99: MW | H99: avgcap | I99: 1882 | J99: 2005 | K99: use | L99: hyp_avgcap_rim | M99: 0 | N99: 0 | O99: 0 | P99: 0 | Q99: 0 | R99: 0 | S99: 0 | T99: 0 | U99: 0 | V99: 0 | W99: 0 | X99: 0 | Y99: 0 | Z99: 0 | AA99: 0 | AB99: 0.2 | AC99: 0 | AD99: 0 | AE99: 0 | AF99: 0 | AG99: 0 | AH99: 0 | AI99: 0 | AJ99: 0 | AK99: 0 | AL99: 0 | AM99: 0 | AN99: 1.95 | AO99: 0.95 | AP99: 0.9 | AQ99: 0 | AR99: 0 | AS99: 0 | AT99: 9.7 | AU99: 0 | AV99: 0 | AW99: 0.92 | AX99: 3 | AY99: 0 | AZ99: 0 | BA99: 5.6225 | BB99: 1.357142857 | BC99: 5.04 | BD99: 2.05 | BE99: 0 | BF99: 17.18181818 | BG99: 6 | BH99: 0.24375 | BI99: 20.06136364 | BJ99: 0 | BK99: 3.805 | BL99: 15.74 | BM99: 15.02222222 | BN99: 6.61 | BO99: 19.64714286 | BP99: 11.67142857 | BQ99: 4.7075 | BR99: 28.95833333 | BS99: 13.00952381 | BT99: 115.5 | BU99: 11.052 | BV99: 62.8437037 | BW99: 9.663636364 | BX99: 14.32 | BY99: 10 | BZ99: 10 | CA99: 10.83333333 | CB99: 8.25 | CC99: 4.305071429 | CD99: 3.84 | CE99: 12.40521739 | CF99: 8.529565217 | CG99: 5.762086957 | CH99: 11.83925926 | CI99: 9.30471875 | CJ99: 8.494146341 | CK99: 25.94692308 | CL99: 15.544 | CM99: 33.70115385 | CN99: 39.84772727 | CO99: 28.23586207 | CP99: 37.57611111 | CQ99: 26.40384615 | CR99: 26.86509091 | CS99: 48.54935484 | CT99: 41.976675 | CU99: 31.07018868 | CV99: 33.35972414 | CW99: 39.76441667 | CX99: 38.44824469 | CY99: 37.95513793 | CZ99: 33.64627273 | DA99: 42.41418182 | DB99: 34.21581579 | DC99: 39.41955 | DD99: 65.8915625 | DE99: 58.13660526 | DF99: 30.58075862 | DG99: 31.01152333 | DH99: 46.11375758 | DI99: 49.87038462 | DJ99: 32.526 | DK99: 27.78508182 | DL99: 49.84478495 | DM99: 39.00194186 | DN99: 50.16405556 | DO99: 38.05041905 | DP99: 25.95523333 | DQ99: 16.5111129 | DR99: 18.88186111 | DS99: 43.58426804 | DT99: 76.815625 | DU99: 88.38267164 | DV99: 57.56736986 | DW99: 63.68217391 | DX99: 54.40539326 | DY99: 80.72104478 | DZ99: 75.1853211 | EA99: 77.43688776 | EB99: 91.30493827 | EC99: 117.0689655 | ED99: 169.7266129 | EE99: 199.0901961 | EF99: 266.0697674
A100: hyp_avgcap_peri | B100: Hydro Power | C100: hyp | D100: LAm+Af | E100: peri | F100: Average Capacity of Unit Additions | G100: MW | H100: avgcap | I100: 1882 | J100: 2005 | K100: use | L100: hyp_avgcap_peri | M100: 0 | N100: 0 | O100: 0 | P100: 0 | Q100: 0 | R100: 0 | S100: 0 | T100: 0 | U100: 0 | V100: 0 | W100: 0 | X100: 0 | Y100: 0 | Z100: 0 | AA100: 0 | AB100: 0 | AC100: 0.6 | AD100: 0 | AE100: 0 | AF100: 0 | AG100: 0.5 | AH100: 5.553333333 | AI100: 0.8 | AJ100: 5.573333333 | AK100: 7.272 | AL100: 0 | AM100: 0.8333333333 | AN100: 0.69 | AO100: 2.925 | AP100: 7.845 | AQ100: 1.65 | AR100: 8.7752 | AS100: 6.166666667 | AT100: 2.141538462 | AU100: 0.46 | AV100: 3.083333333 | AW100: 0.375 | AX100: 3.324 | AY100: 1.781142857 | AZ100: 0.5 | BA100: 6.133636364 | BB100: 4.232222222 | BC100: 0.8 | BD100: 4.55 | BE100: 21.95 | BF100: 4.553 | BG100: 3.161947368 | BH100: 3.472285714 | BI100: 3.416 | BJ100: 6.651 | BK100: 2 | BL100: 0.3095 | BM100: 4.046153846 | BN100: 0.72 | BO100: 16.73253846 | BP100: 18.165 | BQ100: 19.56461538 | BR100: 2.695 | BS100: 2.111461538 | BT100: 6.232590909 | BU100: 2.048 | BV100: 4.517391304 | BW100: 6.324115385 | BX100: 4.1858125 | BY100: 3.156666667 | BZ100: 14.74695652 | CA100: 7.874542857 | CB100: 7.7152 | CC100: 6.746487179 | CD100: 6.954409091 | CE100: 5.613666667 | CF100: 12.52231373 | CG100: 6.325333333 | CH100: 13.08005357 | CI100: 19.41283051 | CJ100: 11.01101316 | CK100: 8.074981132 | CL100: 16.79898214 | CM100: 22.57613831 | CN100: 16.9320745 | CO100: 23.14065936 | CP100: 20.38141646 | CQ100: 16.08280303 | CR100: 32.5887998 | CS100: 26.86796296 | CT100: 21.06542618 | CU100: 27.34956667 | CV100: 64.06501852 | CW100: 52.81152 | CX100: 52.64217857 | CY100: 56.04020588 | CZ100: 57.81279688 | DA100: 82.85191803 | DB100: 62.53841837 | DC100: 100.4392743 | DD100: 84.747183 | DE100: 102.3915712 | DF100: 91.42395833 | DG100: 122.18322 | DH100: 98.69375 | DI100: 94.12802778 | DJ100: 85.59665 | DK100: 102.1100455 | DL100: 107.2943918 | DM100: 100.8546049 | DN100: 111.1880252 | DO100: 81.15440789 | DP100: 65.97185937 | DQ100: 43.41688136 | DR100: 43.04703704 | DS100: 72.33323404 | DT100: 70.97508696 | DU100: 86.03641935 | DV100: 62.63477778 | DW100: 78.41441071 | DX100: 84.32611111 | DY100: 72.33453488 | DZ100: 44.19145833 | EA100: 58.97368421 | EB100: 71.75769231 | EC100: 80.0812069 | ED100: 102.7946667 | EE100: 167.8140845 | EF100: 206.2653061
A101: hyp_avgcap_glob | B101: Hydro Power | C101: hyp | D101: Global | E101: glob | F101: Average Capacity of Unit Additions | G101: MW | H101: avgcap | I101: 1882 | J101: 2005 | K101: use | L101: hyp_avgcap_glob | M101: 0.16 | N101: 0 | O101: 0 | P101: 0 | Q101: 0.185 | R101: 0 | S101: 0 | T101: 0.055 | U101: 0 | V101: 0.5 | W101: 0.13 | X101: 0.8 | Y101: 0 | Z101: 1.426666667 | AA101: 1.028571429 | AB101: 0.509 | AC101: 0.9208571429 | AD101: 0.8 | AE101: 0.3093103448 | AF101: 0.5271428571 | AG101: 0.48625 | AH101: 1.588043478 | AI101: 1.724772727 | AJ101: 1.973683333 | AK101: 2.715692308 | AL101: 2.661181818 | AM101: 1.887452381 | AN101: 1.774861111 | AO101: 2.01466087 | AP101: 3.694123717 | AQ101: 3.042302083 | AR101: 4.571547445 | AS101: 3.748706522 | AT101: 4.838168539 | AU101: 3.684848485 | AV101: 3.838033708 | AW101: 3.006202381 | AX101: 4.287013158 | AY101: 3.572821656 | AZ101: 5.794532847 | BA101: 4.483729167 | BB101: 4.784278788 | BC101: 5.760302198 | BD101: 6.040712727 | BE101: 6.895478261 | BF101: 7.021472081 | BG101: 8.592457711 | BH101: 6.907850718 | BI101: 10.64441489 | BJ101: 12.45433752 | BK101: 13.38231 | BL101: 12.88823636 | BM101: 11.26809211 | BN101: 10.21044828 | BO101: 14.27941135 | BP101: 12.19544643 | BQ101: 13.70074016 | BR101: 14.44251678 | BS101: 9.183822086 | BT101: 20.34054438 | BU101: 17.13366667 | BV101: 19.87025806 | BW101: 13.74908904 | BX101: 12.24978481 | BY101: 7.502968594 | BZ101: 11.8820468 | CA101: 9.683841463 | CB101: 13.2165434 | CC101: 14.55491096 | CD101: 16.85824643 | CE101: 15.62539642 | CF101: 16.38961708 | CG101: 16.71231063 | CH101: 23.43353245 | CI101: 22.37384275 | CJ101: 16.68829646 | CK101: 27.42951927 | CL101: 29.4813123 | CM101: 28.3044411 | CN101: 31.49690099 | CO101: 28.38825755 | CP101: 27.63016556 | CQ101: 29.91166027 | CR101: 33.83413234 | CS101: 42.69677929 | CT101: 38.59926255 | CU101: 45.25773252 | CV101: 55.81462329 | CW101: 54.75139493 | CX101: 52.66976818 | CY101: 61.29937815 | CZ101: 67.97916088 | DA101: 70.04559036 | DB101: 53.80632292 | DC101: 74.64936223 | DD101: 77.07137594 | DE101: 77.1878259 | DF101: 64.56504412 | DG101: 69.3185015 | DH101: 53.68847988 | DI101: 45.8742281 | DJ101: 30.45148228 | DK101: 38.33327024 | DL101: 32.28400726 | DM101: 26.28351319 | DN101: 34.59260678 | DO101: 25.91181767 | DP101: 24.08457334 | DQ101: 17.73975312 | DR101: 26.87606272 | DS101: 34.30828866 | DT101: 32.83892632 | DU101: 44.43709639 | DV101: 39.78036556 | DW101: 42.22862329 | DX101: 43.56678992 | DY101: 54.68803742 | DZ101: 49.85285417 | EA101: 57.34497934 | EB101: 81.59938235 | EC101: 95.40765957 | ED101: 131.4382353 | EE101: 182.1477941 | EF101: 211.4882456
A103: hyp_maxcap_core | B103: Hydro Power | C103: hyp | D103: OECD | E103: core | F103: Maximum Capacity of Unit Additions | G103: MW | H103: maxcap | I103: 1882 | J103: 2005 | K103: use | L103: =C103&"_"&H103&"_"&E103 -> hyp_maxcap_core | M103: 0.2 | N103: 0 | O103: 0 | P103: 0 | Q103: 0.3 | R103: 0 | S103: 0 | T103: 0.08 | U103: 0 | V103: 0.6 | W103: 0.13 | X103: 0.8 | Y103: 0 | Z103: 3 | AA103: 5.8 | AB103: 1.2 | AC103: 1.8 | AD103: 0.8 | AE103: 0.8 | AF103: 1 | AG103: 1 | AH103: 2.5 | AI103: 7.5 | AJ103: 19.6 | AK103: 8.77 | AL103: 13 | AM103: 8.77 | AN103: 8.77 | AO103: 10.4 | AP103: 14 | AQ103: 15 | AR103: 20 | AS103: 15 | AT103: 63 | AU103: 15.725 | AV103: 24 | AW103: 20 | AX103: 20 | AY103: 30 | AZ103: 63.5 | BA103: 34.7 | BB103: 34 | BC103: 63.5 | BD103: 31 | BE103: 31 | BF103: 54.5 | BG103: 55 | BH103: 45 | BI103: 55 | BJ103: 45 | BK103: 45 | BL103: 48.5 | BM103: 45 | BN103: 42 | BO103: 130 | BP103: 130 | BQ103: 130 | BR103: 130 | BS103: 70.7 | BT103: 130 | BU103: 130 | BV103: 87 | BW103: 95 | BX103: 59.3 | BY103: 48 | BZ103: 95 | CA103: 125 | CB103: 125 | CC103: 98 | CD103: 96.9 | CE103: 130 | CF103: 107 | CG103: 97.8 | CH103: 88.3 | CI103: 123 | CJ103: 114 | CK103: 127 | CL103: 148.5 | CM103: 148.5 | CN103: 200 | CO103: 200 | CP103: 225 | CQ103: 165 | CR103: 165 | CS103: 180 | CT103: 161.5 | CU103: 227 | CV103: 233.8 | CW103: 260 | CX103: 500 | CY103: 500 | CZ103: 503.5 | DA103: 500 | DB103: 600 | DC103: 600 | DD103: 434 | DE103: 805 | DF103: 805 | DG103: 805 | DH103: 367 | DI103: 335 | DJ103: 335 | DK103: 460.75 | DL103: 350.1 | DM103: 335 | DN103: 300 | DO103: 390 | DP103: 270 | DQ103: 250 | DR103: 390 | DS103: 350 | DT103: 320 | DU103: 335 | DV103: 360 | DW103: 300 | DX103: 100 | DY103: 423 | DZ103: 423 | EA103: 400 | EB103: 400 | EC103: 265 | ED103: 400 | EE103: 730 | EF103: 450
A104: hyp_maxcap_rimFSU | B104: Hydro Power | C104: hyp | D104: FSU | E104: rimFSU | F104: Maximum Capacity of Unit Additions | G104: MW | H104: maxcap | I104: 1882 | J104: 2005 | K104: use | L104: =C104&"_"&H104&"_"&E104 -> hyp_maxcap_rimFSU | M104: 0 | N104: 0 | O104: 0 | P104: 0 | Q104: 0 | R104: 0 | S104: 0 | T104: 0 | U104: 0 | V104: 0 | W104: 0 | X104: 0 | Y104: 0 | Z104: 0 | AA104: 0.63 | AB104: 0 | AC104: 0.25 | AD104: 0 | AE104: 0 | AF104: 0 | AG104: 0 | AH104: 2.9 | AI104: 0 | AJ104: 0.871 | AK104: 4.4 | AL104: 0 | AM104: 1.4 | AN104: 0 | AO104: 0.5 | AP104: 0 | AQ104: 12.8 | AR104: 0 | AS104: 1 | AT104: 0.132 | AU104: 0 | AV104: 0.92 | AW104: 4.16 | AX104: 0 | AY104: 0.256 | AZ104: 0.85 | BA104: 2.93 | BB104: 0.928 | BC104: 0.71 | BD104: 4.16 | BE104: 8 | BF104: 15 | BG104: 1.7 | BH104: 5 | BI104: 8.1 | BJ104: 48 | BK104: 72 | BL104: 72 | BM104: 72 | BN104: 72 | BO104: 72 | BP104: 72 | BQ104: 72 | BR104: 72 | BS104: 55 | BT104: 26.1 | BU104: 0 | BV104: 16 | BW104: 108 | BX104: 108 | BY104: 7.5 | BZ104: 55 | CA104: 16.62 | CB104: 37.5 | CC104: 55 | CD104: 40 | CE104: 84 | CF104: 56 | CG104: 50.2 | CH104: 126 | CI104: 82.5 | CJ104: 57.2 | CK104: 126 | CL104: 78 | CM104: 77 | CN104: 132 | CO104: 108 | CP104: 67.5 | CQ104: 102 | CR104: 108 | CS104: 250 | CT104: 500 | CU104: 500 | CV104: 500 | CW104: 500 | CX104: 500 | CY104: 335 | CZ104: 335 | DA104: 104.5 | DB104: 300 | DC104: 335 | DD104: 335 | DE104: 650 | DF104: 650 | DG104: 650 | DH104: 650 | DI104: 307 | DJ104: 190 | DK104: 650 | DL104: 650 | DM104: 150 | DN104: 167.5 | DO104: 120 | DP104: 200 | DQ104: 150 | DR104: 21.6 | DS104: 200 | DT104: 210 | DU104: 200 | DV104: 210 | DW104: 325 | DX104: 23 | DY104: 200 | DZ104: 210 | EA104: 107 | EB104: 600 | EC104: 324 | ED104: 324 | EE104: 68.5 | EF104: 75
A105: hyp_maxcap_rim | B105: Hydro Power | C105: hyp | D105: Asia | E105: rim | F105: Maximum Capacity of Unit Additions | G105: MW | H105: maxcap | I105: 1882 | J105: 2005 | K105: use | L105: hyp_maxcap_rim | M105: 0 | N105: 0 | O105: 0 | P105: 0 | Q105: 0 | R105: 0 | S105: 0 | T105: 0 | U105: 0 | V105: 0 | W105: 0 | X105: 0 | Y105: 0 | Z105: 0 | AA105: 0 | AB105: 0.2 | AC105: 0 | AD105: 0 | AE105: 0 | AF105: 0 | AG105: 0 | AH105: 0 | AI105: 0 | AJ105: 0 | AK105: 0 | AL105: 0 | AM105: 0 | AN105: 1.95 | AO105: 0.95 | AP105: 0.9 | AQ105: 0 | AR105: 0 | AS105: 0 | AT105: 9.7 | AU105: 0 | AV105: 0 | AW105: 3.1 | AX105: 3 | AY105: 0 | AZ105: 0 | BA105: 12 | BB105: 3 | BC105: 6.4 | BD105: 3 | BE105: 0 | BF105: 22 | BG105: 6 | BH105: 0.375 | BI105: 36 | BJ105: 0 | BK105: 6.65 | BL105: 22.7 | BM105: 22 | BN105: 6.61 | BO105: 67 | BP105: 43.5 | BQ105: 10 | BR105: 42 | BS105: 30 | BT105: 630 | BU105: 22 | BV105: 554 | BW105: 27 | BX105: 21 | BY105: 10 | BZ105: 12 | CA105: 17 | CB105: 12 | CC105: 12 | CD105: 7.5 | CE105: 40 | CF105: 26.1 | CG105: 14 | CH105: 40 | CI105: 25 | CJ105: 35 | CK105: 321.5 | CL105: 48.6 | CM105: 108 | CN105: 108 | CO105: 75 | CP105: 75 | CQ105: 105.9 | CR105: 100 | CS105: 132 | CT105: 157 | CU105: 157 | CV105: 225 | CW105: 225 | CX105: 154 | CY105: 154 | CZ105: 154 | DA105: 300 | DB105: 125 | DC105: 130 | DD105: 175 | DE105: 200 | DF105: 210 | DG105: 150 | DH105: 135 | DI105: 175 | DJ105: 300 | DK105: 300 | DL105: 300 | DM105: 390 | DN105: 306 | DO105: 306 | DP105: 306 | DQ105: 204.1 | DR105: 240 | DS105: 432 | DT105: 432 | DU105: 310 | DV105: 330 | DW105: 240 | DX105: 408.2 | DY105: 550 | DZ105: 550 | EA105: 306 | EB105: 390 | EC105: 600 | ED105: 600 | EE105: 730 | EF105: 1500
A106: hyp_maxcap_peri | B106: Hydro Power | C106: hyp | D106: LAm+Af | E106: peri | F106: Maximum Capacity of Unit Additions | G106: MW | H106: maxcap | I106: 1882 | J106: 2005 | K106: use | L106: hyp_maxcap_peri | M106: 0 | N106: 0 | O106: 0 | P106: 0 | Q106: 0 | R106: 0 | S106: 0 | T106: 0 | U106: 0 | V106: 0 | W106: 0 | X106: 0 | Y106: 0 | Z106: 0 | AA106: 0 | AB106: 0 | AC106: 0.6 | AD106: 0 | AE106: 0 | AF106: 0 | AG106: 0.5 | AH106: 8.25 | AI106: 0.8 | AJ106: 8.25 | AK106: 8.25 | AL106: 0 | AM106: 1.28 | AN106: 0.8 | AO106: 4.05 | AP106: 16 | AQ106: 2.8 | AR106: 15.2 | AS106: 16 | AT106: 6.25 | AU106: 0.8 | AV106: 6 | AW106: 0.375 | AX106: 7.5 | AY106: 2.96 | AZ106: 0.5 | BA106: 24.3 | BB106: 9 | BC106: 0.8 | BD106: 9 | BE106: 43 | BF106: 33 | BG106: 13.6 | BH106: 10.8 | BI106: 12.2 | BJ106: 25.9 | BK106: 2 | BL106: 0.56 | BM106: 11.2 | BN106: 1.2 | BO106: 57 | BP106: 57 | BQ106: 57 | BR106: 12 | BS106: 4.5 | BT106: 31.5 | BU106: 5 | BV106: 16.2 | BW106: 27.9 | BX106: 32 | BY106: 8.3 | BZ106: 76.5 | CA106: 76 | CB106: 62 | CC106: 55 | CD106: 42 | CE106: 33 | CF106: 70 | CG106: 60 | CH106: 67.21 | CI106: 75 | CJ106: 45 | CK106: 32 | CL106: 111 | CM106: 125 | CN106: 111 | CO106: 111 | CP106: 152 | CQ106: 152 | CR106: 160 | CS106: 160 | CT106: 175 | CU106: 175 | CV106: 180 | CW106: 180 | CX106: 200 | CY106: 200 | CZ106: 200 | DA106: 225 | DB106: 180 | DC106: 400 | DD106: 415 | DE106: 415 | DF106: 415 | DG106: 418.5 | DH106: 410 | DI106: 333 | DJ106: 730 | DK106: 740 | DL106: 740 | DM106: 740 | DN106: 740 | DO106: 740 | DP106: 740 | DQ106: 740 | DR106: 740 | DS106: 350 | DT106: 350 | DU106: 502 | DV106: 502 | DW106: 502 | DX106: 502 | DY106: 430 | DZ106: 315 | EA106: 294.4 | EB106: 294.4 | EC106: 257 | ED106: 380 | EE106: 700 | EF106: 800
A107: hyp_maxcap_glob | B107: Hydro Power | C107: hyp | D107: Global | E107: glob | F107: Maximum Capacity of Unit Additions | G107: MW | H107: maxcap | I107: 1882 | J107: 2005 | K107: use | L107: hyp_maxcap_glob | M107: 0.2 | N107: 0 | O107: 0 | P107: 0 | Q107: 0.3 | R107: 0 | S107: 0 | T107: 0.08 | U107: 0 | V107: 0.6 | W107: 0.13 | X107: 0.8 | Y107: 0 | Z107: 3 | AA107: 5.8 | AB107: 1.2 | AC107: 1.8 | AD107: 0.8 | AE107: 0.8 | AF107: 1 | AG107: 1 | AH107: 8.25 | AI107: 7.5 | AJ107: 19.6 | AK107: 8.77 | AL107: 13 | AM107: 8.77 | AN107: 8.77 | AO107: 10.4 | AP107: 16 | AQ107: 15 | AR107: 20 | AS107: 16 | AT107: 63 | AU107: 15.725 | AV107: 24 | AW107: 20 | AX107: 20 | AY107: 30 | AZ107: 63.5 | BA107: 34.7 | BB107: 34 | BC107: 63.5 | BD107: 31 | BE107: 43 | BF107: 54.5 | BG107: 55 | BH107: 45 | BI107: 55 | BJ107: 48 | BK107: 72 | BL107: 72 | BM107: 72 | BN107: 72 | BO107: 130 | BP107: 130 | BQ107: 130 | BR107: 130 | BS107: 70.7 | BT107: 630 | BU107: 130 | BV107: 554 | BW107: 108 | BX107: 108 | BY107: 48 | BZ107: 95 | CA107: 125 | CB107: 125 | CC107: 98 | CD107: 96.9 | CE107: 130 | CF107: 107 | CG107: 97.8 | CH107: 126 | CI107: 123 | CJ107: 114 | CK107: 321.5 | CL107: 148.5 | CM107: 148.5 | CN107: 200 | CO107: 200 | CP107: 225 | CQ107: 165 | CR107: 165 | CS107: 250 | CT107: 500 | CU107: 500 | CV107: 500 | CW107: 500 | CX107: 500 | CY107: 500 | CZ107: 503.5 | DA107: 500 | DB107: 600 | DC107: 600 | DD107: 434 | DE107: 805 | DF107: 805 | DG107: 805 | DH107: 650 | DI107: 335 | DJ107: 730 | DK107: 740 | DL107: 740 | DM107: 740 | DN107: 740 | DO107: 740 | DP107: 740 | DQ107: 740 | DR107: 740 | DS107: 432 | DT107: 432 | DU107: 502 | DV107: 502 | DW107: 502 | DX107: 502 | DY107: 550 | DZ107: 550 | EA107: 400 | EB107: 600 | EC107: 600 | ED107: 600 | EE107: 730 | EF107: 1500
B109: NATURAL GAS POWER (1903-2000) | M109: 1903 | N109: 1904 | O109: 1905 | P109: 1906 | Q109: 1907 | R109: 1908 | S109: 1909 | T109: 1910 | U109: 1911 | V109: 1912 | W109: 1913 | X109: 1914 | Y109: 1915 | Z109: 1916 | AA109: 1917 | AB109: 1918 | AC109: 1919 | AD109: 1920 | AE109: 1921 | AF109: 1922 | AG109: 1923 | AH109: 1924 | AI109: 1925 | AJ109: 1926 | AK109: 1927 | AL109: 1928 | AM109: 1929 | AN109: 1930 | AO109: 1931 | AP109: 1932 | AQ109: 1933 | AR109: 1934 | AS109: 1935 | AT109: 1936 | AU109: 1937 | AV109: 1938 | AW109: 1939 | AX109: 1940 | AY109: 1941 | AZ109: 1942 | BA109: 1943 | BB109: 1944 | BC109: 1945 | BD109: 1946 | BE109: 1947 | BF109: 1948 | BG109: 1949 | BH109: 1950 | BI109: 1951 | BJ109: 1952 | BK109: 1953 | BL109: 1954 | BM109: 1955 | BN109: 1956 | BO109: 1957 | BP109: 1958 | BQ109: 1959 | BR109: 1960 | BS109: 1961 | BT109: 1962 | BU109: 1963 | BV109: 1964 | BW109: 1965 | BX109: 1966 | BY109: 1967 | BZ109: 1968 | CA109: 1969 | CB109: 1970 | CC109: 1971 | CD109: 1972 | CE109: 1973 | CF109: 1974 | CG109: 1975 | CH109: 1976 | CI109: 1977 | CJ109: 1978 | CK109: 1979 | CL109: 1980 | CM109: 1981 | CN109: 1982 | CO109: 1983 | CP109: 1984 | CQ109: 1985 | CR109: 1986 | CS109: 1987 | CT109: 1988 | CU109: 1989 | CV109: 1990 | CW109: 1991 | CX109: 1992 | CY109: 1993 | CZ109: 1994 | DA109: 1995 | DB109: 1996 | DC109: 1997 | DD109: 1998 | DE109: 1999 | DF109: 2000
A111: =L111 -> ngp_cumcap_core | B111: NatGas Power | C111: ngp | D111: OECD | E111: core | F111: Cumulative Total Capacity | G111: MW | H111: cumcap | I111: 1903 | J111: 2000 | K111: use | L111: =C111&"_"&H111&"_"&E111 -> ngp_cumcap_core | M111: 10 | N111: 10 | O111: 10 | P111: 16 | Q111: 16 | R111: 19.1 | S111: 19.1 | T111: 19.1 | U111: 28.7 | V111: 37.5 | W111: 37.5 | X111: 42.5 | Y111: 42.5 | Z111: 42.5 | AA111: 62.5 | AB111: 111.5 | AC111: 171.5 | AD111: 248.5 | AE111: 276 | AF111: 331 | AG111: 372.3 | AH111: 551.8 | AI111: 633.3 | AJ111: 785.3 | AK111: 979.3 | AL111: 1273.3 | AM111: 1548.675 | AN111: 1851.075 | AO111: 1948.075 | AP111: 1992.075 | AQ111: 1996.075 | AR111: 2002.075 | AS111: 2008.075 | AT111: 2033.375 | AU111: 2177.775 | AV111: 2555.325 | AW111: 2687.31999 | AX111: 2873.91999 | AY111: 3230.31999 | AZ111: 3479.57799 | BA111: 3956.37799 | BB111: 3973.35799 | BC111: 4176.36799 | BD111: 4266.21998 | BE111: 4695.51497 | BF111: 6508.77997 | BG111: 8824.52997 | BH111: 10786.10997 | BI111: 12887.40197 | BJ111: 14690.98397 | BK111: 17444.86397 | BL111: 21416.15997 | BM111: 23894.40797 | BN111: 27290.41397 | BO111: 29889.57997 | BP111: 34603.36197 | BQ111: 39361.17797 | BR111: 42771.77697 | BS111: 46528.39697 | BT111: 49805.11797 | BU111: 53538.31897 | BV111: 57899.92497 | BW111: 63210.02497 | BX111: 69460.54097 | BY111: 78191.31097 | BZ111: 85695.21897 | CA111: 91399.23097 | CB111: 100530.532 | CC111: 111423.937 | CD111: 122848.232 | CE111: 135006.56 | CF111: 148240.036 | CG111: 157949.056 | CH111: 167040.066 | CI111: 174383.973 | CJ111: 178095.715 | CK111: 182347.322 | CL111: 184743.322 | CM111: 188916.853 | CN111: 191059.87 | CO111: 192897.832 | CP111: 195484.957 | CQ111: 198193.338 | CR111: 199738.134 | CS111: 202808.6619 | CT111: 206409.5199 | CU111: 211345.0089 | CV111: 216451.5059 | CW111: 222312.3028 | CX111: 228935.6616 | CY111: 239041.1525 | CZ111: 249939.2279 | DA111: 261435.8459 | DB111: 274357.7989 | DC111: 282483.2649 | DD111: 291731.8369 | DE111: 304731.0919 | DF111: 334910.9019
A112: =L112 -> ngp_cumcap_rimFSU | B112: NatGas Power | C112: ngp | D112: FSU | E112: rimFSU | F112: Cumulative Total Capacity | G112: MW | H112: cumcap | I112: 1903 | J112: 2000 | K112: use | L112: =C112&"_"&H112&"_"&E112 -> ngp_cumcap_rimFSU | M112: 0 | N112: 0 | O112: 0 | P112: 0 | Q112: 0 | R112: 0 | S112: 0 | T112: 0 | U112: 0 | V112: 0 | W112: 0 | X112: 0 | Y112: 0 | Z112: 0 | AA112: 0 | AB112: 0 | AC112: 0 | AD112: 0 | AE112: 0 | AF112: 0 | AG112: 0 | AH112: 0 | AI112: 0 | AJ112: 0 | AK112: 0 | AL112: 0 | AM112: 0 | AN112: 150 | AO112: 191 | AP112: 191 | AQ112: 191 | AR112: 191 | AS112: 191 | AT112: 591 | AU112: 591 | AV112: 591 | AW112: 591 | AX112: 1057 | AY112: 1338.6 | AZ112: 1338.6 | BA112: 1338.6 | BB112: 1338.6 | BC112: 1338.6 | BD112: 1338.6 | BE112: 1338.6 | BF112: 1355.4 | BG112: 1505.4 | BH112: 1517.4 | BI112: 2588.4 | BJ112: 2588.4 | BK112: 3662.4 | BL112: 3875.4 | BM112: 4028 | BN112: 4503 | BO112: 5062 | BP112: 5360 | BQ112: 5452 | BR112: 6719.5 | BS112: 7392.5 | BT112: 7790.5 | BU112: 7951.1 | BV112: 8847.1 | BW112: 9525.1 | BX112: 11021.8 | BY112: 12981.8 | BZ112: 13681.8 | CA112: 18833.8 | CB112: 21402.8 | CC112: 22613.25 | CD112: 27898.75 | CE112: 29660.75 | CF112: 30941.25 | CG112: 34631.25 | CH112: 37773.25 | CI112: 40032.85 | CJ112: 41132.85 | CK112: 44732.85 | CL112: 46732.85 | CM112: 47032.85 | CN112: 47868.85 | CO112: 51977.81 | CP112: 53615.11 | CQ112: 55415.11 | CR112: 57745.11 | CS112: 59610.11 | CT112: 60980.11 | CU112: 61755.11 | CV112: 61836.1 | CW112: 63102.336 | CX112: 63477.743 | CY112: 65094.12098 | CZ112: 65286.12098 | DA112: 65669.62098 | DB112: 66339.32098 | DC112: 66955.46098 | DD112: 67850.26598 | DE112: 68723.24598 | DF112: 70320.45598
A113: =L113 -> ngp_cumcap_rim | B113: NatGas Power | C113: ngp | D113: Asia | E113: rim | F113: Cumulative Total Capacity | G113: MW | H113: cumcap | I113: 1903 | J113: 2000 | K113: use | L113: =C113&"_"&H113&"_"&E113 -> ngp_cumcap_rim | M113: 0 | N113: 0 | O113: 0 | P113: 0 | Q113: 0 | R113: 0 | S113: 0 | T113: 0 | U113: 0 | V113: 0 | W113: 0 | X113: 0 | Y113: 0 | Z113: 0 | AA113: 0 | AB113: 0 | AC113: 0 | AD113: 0 | AE113: 0 | AF113: 0 | AG113: 0 | AH113: 0 | AI113: 0 | AJ113: 0 | AK113: 0 | AL113: 0 | AM113: 0 | AN113: 0 | AO113: 0 | AP113: 0 | AQ113: 0 | AR113: 0 | AS113: 0 | AT113: 0 | AU113: 0 | AV113: 0 | AW113: 0 | AX113: 0 | AY113: 0 | AZ113: 0 | BA113: 0 | BB113: 0 | BC113: 0 | BD113: 0 | BE113: 0 | BF113: 0 | BG113: 0.81 | BH113: 0.81 | BI113: 0.81 | BJ113: 0.81 | BK113: 0.81 | BL113: 0.81 | BM113: 0.81 | BN113: 60.81 | BO113: 120.81 | BP113: 125.81 | BQ113: 155.81 | BR113: 155.81 | BS113: 173.09 | BT113: 173.09 | BU113: 173.476 | BV113: 254.976 | BW113: 279.976 | BX113: 306.476 | BY113: 412.866 | BZ113: 511.616 | CA113: 705.916 | CB113: 954.166 | CC113: 954.166 | CD113: 1171.166 | CE113: 1228.666 | CF113: 2068.466 | CG113: 2650.466 | CH113: 2801.466 | CI113: 3350.366 | CJ113: 4052.366 | CK113: 4864.066 | CL113: 4927.976 | CM113: 5571.911 | CN113: 6188.811 | CO113: 7570.401 | CP113: 8740.401 | CQ113: 9482.086 | CR113: 10676.732 | CS113: 11098.632 | CT113: 11881.714 | CU113: 13372.014 | CV113: 15555.354 | CW113: 16863.404 | CX113: 20722.694 | CY113: 24533.136 | CZ113: 28616.086 | DA113: 31506.426 | DB113: 36330.876 | DC113: 41403.816 | DD113: 43440.666 | DE113: 45733.386 | DF113: 50728.761
A114: =L114 -> ngp_cumcap_peri | B114: NatGas Power | C114: ngp | D114: LAm+Af | E114: peri | F114: Cumulative Total Capacity | G114: MW | H114: cumcap | I114: 1903 | J114: 2000 | K114: use | L114: =C114&"_"&H114&"_"&E114 -> ngp_cumcap_peri | M114: 0 | N114: 0 | O114: 0 | P114: 0 | Q114: 0 | R114: 0 | S114: 0 | T114: 0 | U114: 0 | V114: 0 | W114: 0 | X114: 0 | Y114: 0 | Z114: 0 | AA114: 0 | AB114: 0 | AC114: 0 | AD114: 0 | AE114: 0 | AF114: 0 | AG114: 0 | AH114: 0 | AI114: 0 | AJ114: 0 | AK114: 0 | AL114: 0 | AM114: 0 | AN114: 0 | AO114: 0 | AP114: 0 | AQ114: 0 | AR114: 0 | AS114: 5 | AT114: 5 | AU114: 5 | AV114: 5 | AW114: 5 | AX114: 5 | AY114: 5 | AZ114: 5 | BA114: 5 | BB114: 5 | BC114: 5 | BD114: 5 | BE114: 5 | BF114: 11.5 | BG114: 11.5 | BH114: 36.5 | BI114: 62.5 | BJ114: 77.5 | BK114: 106.5 | BL114: 143.5 | BM114: 408.5 | BN114: 487.5 | BO114: 531.5 | BP114: 649.85 | BQ114: 712.2 | BR114: 960 | BS114: 1274.6 | BT114: 1391.80296 | BU114: 1732.90296 | BV114: 1940.80296 | BW114: 2299.70296 | BX114: 2738.58196 | BY114: 2931.53596 | BZ114: 3190.85596 | CA114: 3466.35596 | CB114: 4069.95596 | CC114: 5398.55596 | CD114: 6671.41596 | CE114: 7951.81596 | CF114: 9635.21596 | CG114: 11177.61596 | CH114: 12822.78596 | CI114: 15162.14596 | CJ114: 18425.95496 | CK114: 22366.39496 | CL114: 26715.82496 | CM114: 30192.18496 | CN114: 33742.80496 | CO114: 38820.61496 | CP114: 42048.06496 | CQ114: 44345.22496 | CR114: 46416.89496 | CS114: 48838.09496 | CT114: 51537.62496 | CU114: 55043.37496 | CV114: 56180.02496 | CW114: 57166.12496 | CX114: 59978.47496 | CY114: 64627.08496 | CZ114: 70793.08496 | DA114: 78219.56496 | DB114: 82061.98496 | DC114: 87317.11496 | DD114: 92660.11496 | DE114: 101892.489 | DF114: 109172.389
A115: =L115 -> ngp_cumcap_glob | B115: NatGas Power | C115: ngp | D115: Global | E115: glob | F115: Cumulative Total Capacity | G115: MW | H115: cumcap | I115: 1903 | J115: 2000 | K115: use | L115: =C115&"_"&H115&"_"&E115 -> ngp_cumcap_glob | M115: 10 | N115: 10 | O115: 10 | P115: 16 | Q115: 16 | R115: 19.1 | S115: 19.1 | T115: 19.1 | U115: 28.7 | V115: 37.5 | W115: 37.5 | X115: 42.5 | Y115: 42.5 | Z115: 42.5 | AA115: 62.5 | AB115: 111.5 | AC115: 171.5 | AD115: 248.5 | AE115: 276 | AF115: 331 | AG115: 372.3 | AH115: 551.8 | AI115: 633.3 | AJ115: 785.3 | AK115: 979.3 | AL115: 1273.3 | AM115: 1548.675 | AN115: 2001.075 | AO115: 2139.075 | AP115: 2183.075 | AQ115: 2187.075 | AR115: 2193.075 | AS115: 2204.075 | AT115: 2629.375 | AU115: 2773.775 | AV115: 3151.325 | AW115: 3283.31999 | AX115: 3935.91999 | AY115: 4573.91999 | AZ115: 4823.17799 | BA115: 5299.97799 | BB115: 5316.95799 | BC115: 5519.96799 | BD115: 5609.81998 | BE115: 6039.11497 | BF115: 7875.67997 | BG115: 10342.23997 | BH115: 12340.81997 | BI115: 15539.11197 | BJ115: 17357.69397 | BK115: 21214.57397 | BL115: 25435.86997 | BM115: 28331.71797 | BN115: 32341.72397 | BO115: 35603.88997 | BP115: 40739.02197 | BQ115: 45681.18797 | BR115: 50607.08697 | BS115: 55368.58697 | BT115: 59160.51093 | BU115: 63395.79793 | BV115: 68942.80393 | BW115: 75314.80393 | BX115: 83527.39893 | BY115: 94517.51293 | BZ115: 103079.4909 | CA115: 114405.3029 | CB115: 126957.4539 | CC115: 140389.9089 | CD115: 158589.5639 | CE115: 173847.7919 | CF115: 190884.9679 | CG115: 206408.3879 | CH115: 220437.5679 | CI115: 232929.3349 | CJ115: 241706.8859 | CK115: 254310.6329 | CL115: 263119.9729 | CM115: 271713.7989 | CN115: 278860.3359 | CO115: 291266.6579 | CP115: 299888.5329 | CQ115: 307435.7589 | CR115: 314576.8709 | CS115: 322355.4989 | CT115: 330808.9689 | CU115: 341515.5079 | CV115: 350022.9849 | CW115: 359444.1678 | CX115: 373114.5736 | CY115: 393295.4945 | CZ115: 414634.5199 | DA115: 436831.4579 | DB115: 459089.9809 | DC115: 478159.6569 | DD115: 495682.8839 | DE115: 521080.2129 | DF115: 565132.5079
A117: =L117 -> ngp_cumuni_core | B117: NatGas Power | C117: ngp | D117: OECD | E117: core | F117: Cumulative Total No. of Units | G117: # | H117: cumuni | I117: 1903 | J117: 2000 | K117: use | L117: =C117&"_"&H117&"_"&E117 -> ngp_cumuni_core | M117: 1 | N117: 1 | O117: 1 | P117: 3 | Q117: 3 | R117: 4 | S117: 4 | T117: 4 | U117: 6 | V117: 7 | W117: 7 | X117: 8 | Y117: 8 | Z117: 8 | AA117: 10 | AB117: 14 | AC117: 18 | AD117: 24 | AE117: 27 | AF117: 32 | AG117: 40 | AH117: 50 | AI117: 56 | AJ117: 74 | AK117: 87 | AL117: 104 | AM117: 121 | AN117: 138 | AO117: 142 | AP117: 146 | AQ117: 147 | AR117: 149 | AS117: 151 | AT117: 158 | AU117: 168 | AV117: 186 | AW117: 207 | AX117: 218 | AY117: 229 | AZ117: 246 | BA117: 259 | BB117: 263 | BC117: 278 | BD117: 292 | BE117: 330 | BF117: 397 | BG117: 473 | BH117: 534 | BI117: 604 | BJ117: 677 | BK117: 748 | BL117: 822 | BM117: 887 | BN117: 954 | BO117: 1021 | BP117: 1113 | BQ117: 1174 | BR117: 1227 | BS117: 1285 | BT117: 1346 | BU117: 1420 | BV117: 1490 | BW117: 1565 | BX117: 1656 | BY117: 1768 | BZ117: 1900 | CA117: 2042 | CB117: 2196 | CC117: 2349 | CD117: 2503 | CE117: 2623 | CF117: 2744 | CG117: 2841 | CH117: 2923 | CI117: 2997 | CJ117: 3058 | CK117: 3111 | CL117: 3169 | CM117: 3281 | CN117: 3419 | CO117: 3560 | CP117: 3755 | CQ117: 3970 | CR117: 4220 | CS117: 4731 | CT117: 5222 | CU117: 5710 | CV117: 6311 | CW117: 6859 | CX117: 7457 | CY117: 7969 | CZ117: 8622 | DA117: 9178 | DB117: 9616 | DC117: 9892 | DD117: 10190 | DE117: 10578 | DF117: 10977
A118: ngp_cumuni_rimFSU | B118: NatGas Power | C118: ngp | D118: FSU | E118: rimFSU | F118: Cumulative Total No. of Units | G118: # | H118: cumuni | I118: 1903 | J118: 2000 | K118: use | L118: =C118&"_"&H118&"_"&E118 -> ngp_cumuni_rimFSU | M118: 0 | N118: 0 | O118: 0 | P118: 0 | Q118: 0 | R118: 0 | S118: 0 | T118: 0 | U118: 0 | V118: 0 | W118: 0 | X118: 0 | Y118: 0 | Z118: 0 | AA118: 0 | AB118: 0 | AC118: 0 | AD118: 0 | AE118: 0 | AF118: 0 | AG118: 0 | AH118: 0 | AI118: 0 | AJ118: 0 | AK118: 0 | AL118: 0 | AM118: 0 | AN118: 3 | AO118: 4 | AP118: 4 | AQ118: 4 | AR118: 4 | AS118: 4 | AT118: 12 | AU118: 12 | AV118: 12 | AW118: 12 | AX118: 13 | AY118: 17 | AZ118: 17 | BA118: 17 | BB118: 17 | BC118: 17 | BD118: 17 | BE118: 17 | BF118: 19 | BG118: 22 | BH118: 23 | BI118: 27 | BJ118: 27 | BK118: 36 | BL118: 39 | BM118: 45 | BN118: 48 | BO118: 51 | BP118: 56 | BQ118: 58 | BR118: 66 | BS118: 76 | BT118: 83 | BU118: 87 | BV118: 99 | BW118: 110 | BX118: 124 | BY118: 132 | BZ118: 136 | CA118: 160 | CB118: 181 | CC118: 185 | CD118: 206 | CE118: 217 | CF118: 228 | CG118: 255 | CH118: 273 | CI118: 290 | CJ118: 298 | CK118: 313 | CL118: 322 | CM118: 323 | CN118: 328 | CO118: 347 | CP118: 354 | CQ118: 362 | CR118: 368 | CS118: 376 | CT118: 381 | CU118: 386 | CV118: 393 | CW118: 402 | CX118: 409 | CY118: 417 | CZ118: 419 | DA118: 428 | DB118: 438 | DC118: 453 | DD118: 475 | DE118: 488 | DF118: 504
A119: ngp_cumuni_rim | B119: NatGas Power | C119: ngp | D119: Asia | E119: rim | F119: Cumulative Total No. of Units | G119: # | H119: cumuni | I119: 1903 | J119: 2000 | K119: use | L119: =C119&"_"&H119&"_"&E119 -> ngp_cumuni_rim | M119: 0 | N119: 0 | O119: 0 | P119: 0 | Q119: 0 | R119: 0 | S119: 0 | T119: 0 | U119: 0 | V119: 0 | W119: 0 | X119: 0 | Y119: 0 | Z119: 0 | AA119: 0 | AB119: 0 | AC119: 0 | AD119: 0 | AE119: 0 | AF119: 0 | AG119: 0 | AH119: 0 | AI119: 0 | AJ119: 0 | AK119: 0 | AL119: 0 | AM119: 0 | AN119: 0 | AO119: 0 | AP119: 0 | AQ119: 0 | AR119: 0 | AS119: 0 | AT119: 0 | AU119: 0 | AV119: 0 | AW119: 0 | AX119: 0 | AY119: 0 | AZ119: 0 | BA119: 0 | BB119: 0 | BC119: 0 | BD119: 0 | BE119: 0 | BF119: 0 | BG119: 3 | BH119: 3 | BI119: 3 | BJ119: 3 | BK119: 3 | BL119: 3 | BM119: 3 | BN119: 4 | BO119: 5 | BP119: 6 | BQ119: 9 | BR119: 9 | BS119: 21 | BT119: 21 | BU119: 22 | BV119: 26 | BW119: 28 | BX119: 30 | BY119: 39 | BZ119: 47 | CA119: 60 | CB119: 68 | CC119: 68 | CD119: 71 | CE119: 74 | CF119: 87 | CG119: 102 | CH119: 109 | CI119: 123 | CJ119: 140 | CK119: 157 | CL119: 164 | CM119: 185 | CN119: 202 | CO119: 219 | CP119: 241 | CQ119: 262 | CR119: 284 | CS119: 296 | CT119: 321 | CU119: 354 | CV119: 381 | CW119: 405 | CX119: 446 | CY119: 494 | CZ119: 546 | DA119: 602 | DB119: 670 | DC119: 745 | DD119: 777 | DE119: 830 | DF119: 864
A120: ngp_cumuni_peri | B120: NatGas Power | C120: ngp | D120: LAm+Af | E120: peri | F120: Cumulative Total No. of Units | G120: # | H120: cumuni | I120: 1903 | J120: 2000 | K120: use | L120: =C120&"_"&H120&"_"&E120 -> ngp_cumuni_peri | M120: 0 | N120: 0 | O120: 0 | P120: 0 | Q120: 0 | R120: 0 | S120: 0 | T120: 0 | U120: 0 | V120: 0 | W120: 0 | X120: 0 | Y120: 0 | Z120: 0 | AA120: 0 | AB120: 0 | AC120: 0 | AD120: 0 | AE120: 0 | AF120: 0 | AG120: 0 | AH120: 0 | AI120: 0 | AJ120: 0 | AK120: 0 | AL120: 0 | AM120: 0 | AN120: 0 | AO120: 0 | AP120: 0 | AQ120: 0 | AR120: 0 | AS120: 1 | AT120: 1 | AU120: 1 | AV120: 1 | AW120: 1 | AX120: 1 | AY120: 1 | AZ120: 1 | BA120: 1 | BB120: 1 | BC120: 1 | BD120: 1 | BE120: 1 | BF120: 2 | BG120: 2 | BH120: 3 | BI120: 4 | BJ120: 5 | BK120: 6 | BL120: 10 | BM120: 18 | BN120: 21 | BO120: 24 | BP120: 34 | BQ120: 43 | BR120: 62 | BS120: 75 | BT120: 93 | BU120: 108 | BV120: 122 | BW120: 138 | BX120: 166 | BY120: 181 | BZ120: 195 | CA120: 206 | CB120: 220 | CC120: 260 | CD120: 306 | CE120: 348 | CF120: 386 | CG120: 429 | CH120: 480 | CI120: 533 | CJ120: 629 | CK120: 689 | CL120: 769 | CM120: 817 | CN120: 886 | CO120: 970 | CP120: 1022 | CQ120: 1060 | CR120: 1093 | CS120: 1127 | CT120: 1170 | CU120: 1208 | CV120: 1229 | CW120: 1245 | CX120: 1277 | CY120: 1328 | CZ120: 1415 | DA120: 1526 | DB120: 1581 | DC120: 1656 | DD120: 1715 | DE120: 1786 | DF120: 1845
A121: ngp_cumuni_glob | B121: NatGas Power | C121: ngp | D121: Global | E121: glob | F121: Cumulative Total No. of Units | G121: # | H121: cumuni | I121: 1903 | J121: 2000 | K121: use | L121: =C121&"_"&H121&"_"&E121 -> ngp_cumuni_glob | M121: 1 | N121: 1 | O121: 1 | P121: 3 | Q121: 3 | R121: 4 | S121: 4 | T121: 4 | U121: 6 | V121: 7 | W121: 7 | X121: 8 | Y121: 8 | Z121: 8 | AA121: 10 | AB121: 14 | AC121: 18 | AD121: 24 | AE121: 27 | AF121: 32 | AG121: 40 | AH121: 50 | AI121: 56 | AJ121: 74 | AK121: 87 | AL121: 104 | AM121: 121 | AN121: 141 | AO121: 146 | AP121: 150 | AQ121: 151 | AR121: 153 | AS121: 156 | AT121: 171 | AU121: 181 | AV121: 199 | AW121: 220 | AX121: 232 | AY121: 247 | AZ121: 264 | BA121: 277 | BB121: 281 | BC121: 296 | BD121: 310 | BE121: 348 | BF121: 418 | BG121: 500 | BH121: 563 | BI121: 638 | BJ121: 712 | BK121: 793 | BL121: 874 | BM121: 953 | BN121: 1027 | BO121: 1101 | BP121: 1209 | BQ121: 1284 | BR121: 1364 | BS121: 1457 | BT121: 1543 | BU121: 1637 | BV121: 1737 | BW121: 1841 | BX121: 1976 | BY121: 2120 | BZ121: 2278 | CA121: 2468 | CB121: 2665 | CC121: 2862 | CD121: 3086 | CE121: 3262 | CF121: 3445 | CG121: 3627 | CH121: 3785 | CI121: 3943 | CJ121: 4125 | CK121: 4270 | CL121: 4424 | CM121: 4606 | CN121: 4835 | CO121: 5096 | CP121: 5372 | CQ121: 5654 | CR121: 5965 | CS121: 6530 | CT121: 7094 | CU121: 7658 | CV121: 8314 | CW121: 8911 | CX121: 9589 | CY121: 10208 | CZ121: 11002 | DA121: 11734 | DB121: 12305 | DC121: 12746 | DD121: 13157 | DE121: 13682 | DF121: 14190
A123: ngp_avgcap_core | B123: NatGas Power | C123: ngp | D123: OECD | E123: core | F123: Average Capacity of Unit Additions | G123: MW | H123: avgcap | I123: 1903 | J123: 2000 | K123: use | L123: =C123&"_"&H123&"_"&E123 -> ngp_avgcap_core | M123: 10 | N123: 0 | O123: 0 | P123: 3 | Q123: 0 | R123: 3.1 | S123: 0 | T123: 0 | U123: 4.8 | V123: 8.8 | W123: 0 | X123: 5 | Y123: 0 | Z123: 0 | AA123: 10 | AB123: 12.25 | AC123: 15 | AD123: 12.83333333 | AE123: 9.166666667 | AF123: 11 | AG123: 5.1625 | AH123: 17.95 | AI123: 13.58333333 | AJ123: 8.444444444 | AK123: 14.92307692 | AL123: 17.29411765 | AM123: 16.19852941 | AN123: 17.78823529 | AO123: 24.25 | AP123: 11 | AQ123: 4 | AR123: 3 | AS123: 3 | AT123: 3.614285714 | AU123: 14.44 | AV123: 20.975 | AW123: 6.285475714 | AX123: 16.96363636 | AY123: 32.4 | AZ123: 14.66223529 | BA123: 36.67692308 | BB123: 4.245 | BC123: 13.534 | BD123: 6.417999286 | BE123: 11.29723658 | BF123: 27.06365672 | BG123: 30.47039474 | BH123: 32.15704918 | BI123: 30.01845714 | BJ123: 24.70660274 | BK123: 38.78704225 | BL123: 53.66616216 | BM123: 38.12689231 | BN123: 50.68665672 | BO123: 38.79352239 | BP123: 51.23676087 | BQ123: 77.99698361 | BR123: 64.35092453 | BS123: 64.76931034 | BT123: 53.7167377 | BU123: 50.44866216 | BV123: 62.30865714 | BW123: 70.80133333 | BX123: 68.68698901 | BY123: 77.95330357 | BZ123: 56.84778788 | CA123: 40.16909859 | CB123: 59.29416234 | CC123: 71.19872549 | CD123: 74.1837337 | CE123: 101.3194 | CF123: 109.3675702 | CG123: 100.0929897 | CH123: 110.8659756 | CI123: 99.24198649 | CJ123: 60.84822951 | CK123: 80.219 | CL123: 41.31034483 | CM123: 37.26366964 | CN123: 15.5291087 | CO123: 13.03519149 | CP123: 13.26730769 | CQ123: 12.59712093 | CR123: 6.17918396 | CS123: 6.008861037 | CT123: 7.333723014 | CU123: 10.11370695 | CV123: 8.496667221 | CW123: 10.6948848 | CX123: 11.07585084 | CY123: 19.73728699 | CZ123: 16.68924253 | DA123: 20.6773705 | DB123: 29.5021758 | DC123: 29.4400942 | DD123: 31.03547651 | DE123: 33.50323454 | DF123: 75.63862155
A124: ngp_avgcap_rimFSU | B124: NatGas Power | C124: ngp | D124: FSU | E124: rimFSU | F124: Average Capacity of Unit Additions | G124: MW | H124: avgcap | I124: 1903 | J124: 2000 | K124: use | L124: =C124&"_"&H124&"_"&E124 -> ngp_avgcap_rimFSU | M124: 0 | N124: 0 | O124: 0 | P124: 0 | Q124: 0 | R124: 0 | S124: 0 | T124: 0 | U124: 0 | V124: 0 | W124: 0 | X124: 0 | Y124: 0 | Z124: 0 | AA124: 0 | AB124: 0 | AC124: 0 | AD124: 0 | AE124: 0 | AF124: 0 | AG124: 0 | AH124: 0 | AI124: 0 | AJ124: 0 | AK124: 0 | AL124: 0 | AM124: 0 | AN124: 50 | AO124: 41 | AP124: 0 | AQ124: 0 | AR124: 0 | AS124: 0 | AT124: 50 | AU124: 0 | AV124: 0 | AW124: 0 | AX124: 466 | AY124: 70.4 | AZ124: 0 | BA124: 0 | BB124: 0 | BC124: 0 | BD124: 0 | BE124: 0 | BF124: 8.4 | BG124: 50 | BH124: 12 | BI124: 267.75 | BJ124: 0 | BK124: 119.3333333 | BL124: 71 | BM124: 25.43333333 | BN124: 158.3333333 | BO124: 186.3333333 | BP124: 59.6 | BQ124: 46 | BR124: 158.4375 | BS124: 67.3 | BT124: 56.85714286 | BU124: 40.15 | BV124: 74.66666667 | BW124: 61.63636364 | BX124: 106.9071429 | BY124: 245 | BZ124: 175 | CA124: 214.6666667 | CB124: 122.3333333 | CC124: 302.6125 | CD124: 251.6904762 | CE124: 160.1818182 | CF124: 116.4090909 | CG124: 136.6666667 | CH124: 174.5555556 | CI124: 132.9176471 | CJ124: 137.5 | CK124: 240 | CL124: 222.2222222 | CM124: 300 | CN124: 167.2 | CO124: 216.2610526 | CP124: 233.9 | CQ124: 225 | CR124: 388.3333333 | CS124: 233.125 | CT124: 274 | CU124: 155 | CV124: 11.57 | CW124: 140.6928889 | CX124: 53.62957143 | CY124: 202.0472475 | CZ124: 96 | DA124: 42.61111111 | DB124: 66.97 | DC124: 41.076 | DD124: 40.67295455 | DE124: 67.15230769 | DF124: 99.825625
A125: ngp_avgcap_rim | B125: NatGas Power | C125: ngp | D125: Asia | E125: rim | F125: Average Capacity of Unit Additions | G125: MW | H125: avgcap | I125: 1903 | J125: 2000 | K125: use | L125: ngp_avgcap_rim | M125: 0 | N125: 0 | O125: 0 | P125: 0 | Q125: 0 | R125: 0 | S125: 0 | T125: 0 | U125: 0 | V125: 0 | W125: 0 | X125: 0 | Y125: 0 | Z125: 0 | AA125: 0 | AB125: 0 | AC125: 0 | AD125: 0 | AE125: 0 | AF125: 0 | AG125: 0 | AH125: 0 | AI125: 0 | AJ125: 0 | AK125: 0 | AL125: 0 | AM125: 0 | AN125: 0 | AO125: 0 | AP125: 0 | AQ125: 0 | AR125: 0 | AS125: 0 | AT125: 0 | AU125: 0 | AV125: 0 | AW125: 0 | AX125: 0 | AY125: 0 | AZ125: 0 | BA125: 0 | BB125: 0 | BC125: 0 | BD125: 0 | BE125: 0 | BF125: 0 | BG125: 0.27 | BH125: 0 | BI125: 0 | BJ125: 0 | BK125: 0 | BL125: 0 | BM125: 0 | BN125: 60 | BO125: 60 | BP125: 5 | BQ125: 10 | BR125: 0 | BS125: 1.44 | BT125: 0 | BU125: 0.386 | BV125: 20.375 | BW125: 12.5 | BX125: 13.25 | BY125: 11.82111111 | BZ125: 12.34375 | CA125: 14.94615385 | CB125: 31.03125 | CC125: 0 | CD125: 72.33333333 | CE125: 19.16666667 | CF125: 64.6 | CG125: 38.8 | CH125: 21.57142857 | CI125: 39.20714286 | CJ125: 41.29411765 | CK125: 47.74705882 | CL125: 9.13 | CM125: 30.66357143 | CN125: 36.28823529 | CO125: 81.27 | CP125: 53.18181818 | CQ125: 35.31833333 | CR125: 54.30209091 | CS125: 35.15833333 | CT125: 31.32328 | CU125: 45.16060606 | CV125: 80.86444444 | CW125: 54.50208333 | CX125: 94.12902439 | CY125: 79.38420833 | CZ125: 78.51826923 | DA125: 51.61321429 | DB125: 70.94779412 | DC125: 67.6392 | DD125: 63.6515625 | DE125: 43.25886792 | DF125: 146.9227941
A126: ngp_avgcap_peri | B126: NatGas Power | C126: ngp | D126: LAm+Af | E126: peri | F126: Average Capacity of Unit Additions | G126: MW | H126: avgcap | I126: 1903 | J126: 2000 | K126: use | L126: ngp_avgcap_peri | M126: 0 | N126: 0 | O126: 0 | P126: 0 | Q126: 0 | R126: 0 | S126: 0 | T126: 0 | U126: 0 | V126: 0 | W126: 0 | X126: 0 | Y126: 0 | Z126: 0 | AA126: 0 | AB126: 0 | AC126: 0 | AD126: 0 | AE126: 0 | AF126: 0 | AG126: 0 | AH126: 0 | AI126: 0 | AJ126: 0 | AK126: 0 | AL126: 0 | AM126: 0 | AN126: 0 | AO126: 0 | AP126: 0 | AQ126: 0 | AR126: 0 | AS126: 5 | AT126: 0 | AU126: 0 | AV126: 0 | AW126: 0 | AX126: 0 | AY126: 0 | AZ126: 0 | BA126: 0 | BB126: 0 | BC126: 0 | BD126: 0 | BE126: 0 | BF126: 6.5 | BG126: 0 | BH126: 25 | BI126: 26 | BJ126: 15 | BK126: 29 | BL126: 9.25 | BM126: 33.125 | BN126: 26.33333333 | BO126: 14.66666667 | BP126: 11.835 | BQ126: 6.927777778 | BR126: 13.04210526 | BS126: 24.2 | BT126: 6.511275556 | BU126: 22.74 | BV126: 14.85 | BW126: 22.43125 | BX126: 15.67425 | BY126: 12.8636 | BZ126: 18.52285714 | CA126: 25.04545455 | CB126: 43.11428571 | CC126: 33.215 | CD126: 27.67086957 | CE126: 30.48571429 | CF126: 44.3 | CG126: 35.86976744 | CH126: 32.25823529 | CI126: 44.13886792 | CJ126: 33.99801042 | CK126: 65.674 | CL126: 54.367875 | CM126: 72.42416667 | CN126: 51.45826087 | CO126: 60.45011905 | CP126: 62.06634615 | CQ126: 60.45157895 | CR126: 62.77787879 | CS126: 71.21176471 | CT126: 62.77976744 | CU126: 92.25657895 | CV126: 54.12619048 | CW126: 61.63125 | CX126: 87.8859375 | CY126: 91.14921569 | CZ126: 70.87356322 | DA126: 66.90522523 | DB126: 69.86218182 | DC126: 70.0684 | DD126: 90.55932203 | DE126: 130.0334366 | DF126: 123.3881356
A127: ngp_avgcap_glob | B127: NatGas Power | C127: ngp | D127: Global | E127: glob | F127: Average Capacity of Unit Additions | G127: MW | H127: avgcap | I127: 1903 | J127: 2000 | K127: use | L127: ngp_avgcap_glob | M127: 10 | N127: 0 | O127: 0 | P127: 3 | Q127: 0 | R127: 3.1 | S127: 0 | T127: 0 | U127: 4.8 | V127: 8.8 | W127: 0 | X127: 5 | Y127: 0 | Z127: 0 | AA127: 10 | AB127: 12.25 | AC127: 15 | AD127: 12.83333333 | AE127: 9.166666667 | AF127: 11 | AG127: 5.1625 | AH127: 17.95 | AI127: 13.58333333 | AJ127: 8.444444444 | AK127: 14.92307692 | AL127: 17.29411765 | AM127: 16.19852941 | AN127: 22.62 | AO127: 27.6 | AP127: 11 | AQ127: 4 | AR127: 3 | AS127: 3.666666667 | AT127: 28.35333333 | AU127: 14.44 | AV127: 20.975 | AW127: 6.285475714 | AX127: 54.38333333 | AY127: 42.53333333 | AZ127: 14.66223529 | BA127: 36.67692308 | BB127: 4.245 | BC127: 13.534 | BD127: 6.417999286 | BE127: 11.29723658 | BF127: 26.23664286 | BG127: 30.08 | BH127: 31.72349206 | BI127: 42.64389333 | BJ127: 24.57543243 | BK127: 47.61580247 | BL127: 52.11476543 | BM127: 36.6563038 | BN127: 54.18927027 | BO127: 44.08332432 | BP127: 47.54751852 | BQ127: 65.89554667 | BR127: 61.5737375 | BS127: 51.19892473 | BT127: 44.09213907 | BU127: 45.05624468 | BV127: 55.47006 | BW127: 61.26923077 | BX127: 60.83403704 | BY127: 76.32023611 | BZ127: 54.18973418 | CA127: 59.60953684 | CB127: 63.71650254 | CC127: 68.18505076 | CD127: 81.24845978 | CE127: 86.69447727 | CF127: 93.0993224 | CG127: 85.29351648 | CH127: 88.79227848 | CI127: 79.06181646 | CJ127: 48.2283022 | CK127: 86.9223931 | CL127: 57.20350649 | CM127: 47.21882418 | CN127: 31.20758515 | CO127: 47.53380077 | CP127: 31.23867754 | CQ127: 26.76321277 | CR127: 22.96177489 | CS127: 13.76748317 | CT127: 14.98842199 | CU127: 18.98322516 | CV127: 12.96871494 | CW127: 15.78087583 | CX127: 20.16284041 | CY127: 32.60245706 | CZ127: 26.87534681 | DA127: 30.32368579 | DB127: 38.98165149 | DC127: 43.24189569 | DD127: 42.63558881 | DE127: 48.37586476 | DF127: 86.71711614
A129: ngp_maxcap_core | B129: NatGas Power | C129: ngp | D129: OECD | E129: core | F129: Maximum Capacity of Unit Additions | G129: MW | H129: maxcap | I129: 1903 | J129: 2000 | K129: use | L129: =C129&"_"&H129&"_"&E129 -> ngp_maxcap_core | M129: 10 | N129: 0 | O129: 0 | P129: 3 | Q129: 0 | R129: 3.1 | S129: 0 | T129: 0 | U129: 4.8 | V129: 8.8 | W129: 0 | X129: 5 | Y129: 0 | Z129: 0 | AA129: 15 | AB129: 25 | AC129: 30 | AD129: 23 | AE129: 21 | AF129: 20 | AG129: 13 | AH129: 32.5 | AI129: 25 | AJ129: 25 | AK129: 30 | AL129: 77 | AM129: 36 | AN129: 60 | AO129: 35 | AP129: 25 | AQ129: 4 | AR129: 3 | AS129: 3.5 | AT129: 7.5 | AU129: 50 | AV129: 75 | AW129: 30 | AX129: 75 | AY129: 81.3 | AZ129: 73 | BA129: 98 | BB129: 15 | BC129: 63 | BD129: 25 | BE129: 65 | BF129: 110.8 | BG129: 420 | BH129: 103.5 | BI129: 126.5 | BJ129: 112.5 | BK129: 200 | BL129: 200 | BM129: 187.9 | BN129: 282.6 | BO129: 163.2 | BP129: 247.8 | BQ129: 376.2 | BR129: 326.4 | BS129: 359 | BT129: 359 | BU129: 404.8 | BV129: 454.8 | BW129: 526.7 | BX129: 544.6 | BY129: 702 | BZ129: 702 | CA129: 582.3 | CB129: 765 | CC129: 895.1 | CD129: 799.2 | CE129: 895.1 | CF129: 781.5 | CG129: 850.5 | CH129: 639 | CI129: 850.5 | CJ129: 506 | CK129: 815.4 | CL129: 863.3 | CM129: 863.3 | CN129: 320 | CO129: 320 | CP129: 320 | CQ129: 320 | CR129: 82 | CS129: 100 | CT129: 135 | CU129: 1000 | CV129: 236.5 | CW129: 320 | CX129: 320 | CY129: 1000 | CZ129: 170 | DA129: 228 | DB129: 350 | DC129: 414 | DD129: 363 | DE129: 402 | DF129: 400
A130: ngp_maxcap_rimFSU | B130: NatGas Power | C130: ngp | D130: FSU | E130: rimFSU | F130: Maximum Capacity of Unit Additions | G130: MW | H130: maxcap | I130: 1903 | J130: 2000 | K130: use | L130: =C130&"_"&H130&"_"&E130 -> ngp_maxcap_rimFSU | M130: 0 | N130: 0 | O130: 0 | P130: 0 | Q130: 0 | R130: 0 | S130: 0 | T130: 0 | U130: 0 | V130: 0 | W130: 0 | X130: 0 | Y130: 0 | Z130: 0 | AA130: 0 | AB130: 0 | AC130: 0 | AD130: 0 | AE130: 0 | AF130: 0 | AG130: 0 | AH130: 0 | AI130: 0 | AJ130: 0 | AK130: 0 | AL130: 0 | AM130: 0 | AN130: 50 | AO130: 41 | AP130: 0 | AQ130: 0 | AR130: 0 | AS130: 0 | AT130: 50 | AU130: 0 | AV130: 0 | AW130: 0 | AX130: 466 | AY130: 184 | AZ130: 0 | BA130: 0 | BB130: 0 | BC130: 0 | BD130: 0 | BE130: 0 | BF130: 13.8 | BG130: 50 | BH130: 12 | BI130: 450 | BJ130: 0 | BK130: 260 | BL130: 163 | BM130: 50 | BN130: 400 | BO130: 511 | BP130: 130 | BQ130: 80 | BR130: 710 | BS130: 160 | BT130: 150 | BU130: 50 | BV130: 300 | BW130: 200 | BX130: 530 | BY130: 800 | BZ130: 200 | CA130: 1172 | CB130: 300 | CC130: 800 | CD130: 390 | CE130: 300 | CF130: 280 | CG130: 210 | CH130: 300 | CI130: 355 | CJ130: 300 | CK130: 330 | CL130: 1200 | CM130: 300 | CN130: 300 | CO130: 800 | CP130: 800 | CQ130: 800 | CR130: 800 | CS130: 800 | CT130: 800 | CU130: 215 | CV130: 26.5 | CW130: 300 | CX130: 215 | CY130: 800 | CZ130: 180 | DA130: 150 | DB130: 330 | DC130: 156 | DD130: 123 | DE130: 180 | DF130: 195
A131: ngp_maxcap_rim | B131: NatGas Power | C131: ngp | D131: Asia | E131: rim | F131: Maximum Capacity of Unit Additions | G131: MW | H131: maxcap | I131: 1903 | J131: 2000 | K131: use | L131: ngp_maxcap_rim | M131: 0 | N131: 0 | O131: 0 | P131: 0 | Q131: 0 | R131: 0 | S131: 0 | T131: 0 | U131: 0 | V131: 0 | W131: 0 | X131: 0 | Y131: 0 | Z131: 0 | AA131: 0 | AB131: 0 | AC131: 0 | AD131: 0 | AE131: 0 | AF131: 0 | AG131: 0 | AH131: 0 | AI131: 0 | AJ131: 0 | AK131: 0 | AL131: 0 | AM131: 0 | AN131: 0 | AO131: 0 | AP131: 0 | AQ131: 0 | AR131: 0 | AS131: 0 | AT131: 0 | AU131: 0 | AV131: 0 | AW131: 0 | AX131: 0 | AY131: 0 | AZ131: 0 | BA131: 0 | BB131: 0 | BC131: 0 | BD131: 0 | BE131: 0 | BF131: 0 | BG131: 0.27 | BH131: 0 | BI131: 0 | BJ131: 0 | BK131: 0 | BL131: 0 | BM131: 0 | BN131: 60 | BO131: 60 | BP131: 5 | BQ131: 10 | BR131: 0 | BS131: 1.44 | BT131: 0 | BU131: 0.386 | BV131: 23 | BW131: 12.5 | BX131: 13.25 | BY131: 15.16 | BZ131: 15 | CA131: 27 | CB131: 64 | CC131: 0 | CD131: 105 | CE131: 20 | CF131: 310 | CG131: 310 | CH131: 55 | CI131: 310 | CJ131: 250 | CK131: 250 | CL131: 18.3 | CM131: 75 | CN131: 60 | CO131: 550 | CP131: 550 | CQ131: 108 | CR131: 210 | CS131: 150 | CT131: 150 | CU131: 210 | CV131: 500 | CW131: 103 | CX131: 600 | CY131: 210 | CZ131: 210 | DA131: 128 | DB131: 341 | DC131: 341 | DD131: 341 | DE131: 230 | DF131: 735
A132: ngp_maxcap_peri | B132: NatGas Power | C132: ngp | D132: LAm+Af | E132: peri | F132: Maximum Capacity of Unit Additions | G132: MW | H132: maxcap | I132: 1903 | J132: 2000 | K132: use | L132: ngp_maxcap_peri | M132: 0 | N132: 0 | O132: 0 | P132: 0 | Q132: 0 | R132: 0 | S132: 0 | T132: 0 | U132: 0 | V132: 0 | W132: 0 | X132: 0 | Y132: 0 | Z132: 0 | AA132: 0 | AB132: 0 | AC132: 0 | AD132: 0 | AE132: 0 | AF132: 0 | AG132: 0 | AH132: 0 | AI132: 0 | AJ132: 0 | AK132: 0 | AL132: 0 | AM132: 0 | AN132: 0 | AO132: 0 | AP132: 0 | AQ132: 0 | AR132: 0 | AS132: 5 | AT132: 0 | AU132: 0 | AV132: 0 | AW132: 0 | AX132: 0 | AY132: 0 | AZ132: 0 | BA132: 0 | BB132: 0 | BC132: 0 | BD132: 0 | BE132: 0 | BF132: 6.5 | BG132: 0 | BH132: 25 | BI132: 26 | BJ132: 15 | BK132: 29 | BL132: 15 | BM132: 75 | BN132: 37 | BO132: 20 | BP132: 24 | BQ132: 10 | BR132: 56 | BS132: 60 | BT132: 68 | BU132: 150 | BV132: 50 | BW132: 70 | BX132: 70 | BY132: 33 | BZ132: 70 | CA132: 80 | CB132: 158 | CC132: 214 | CD132: 156 | CE132: 156 | CF132: 300 | CG132: 131 | CH132: 65 | CI132: 210 | CJ132: 125 | CK132: 400 | CL132: 440 | CM132: 440 | CN132: 400 | CO132: 315 | CP132: 300 | CQ132: 310 | CR132: 220 | CS132: 220 | CT132: 165 | CU132: 600 | CV132: 168 | CW132: 330 | CX132: 600 | CY132: 600 | CZ132: 250 | DA132: 330 | DB132: 315 | DC132: 220 | DD132: 627 | DE132: 627 | DF132: 400
A133: ngp_maxcap_glob | B133: NatGas Power | C133: ngp | D133: Global | E133: glob | F133: Maximum Capacity of Unit Additions | G133: MW | H133: maxcap | I133: 1903 | J133: 2000 | K133: use | L133: ngp_maxcap_glob | M133: 10 | N133: 0 | O133: 0 | P133: 3 | Q133: 0 | R133: 3.1 | S133: 0 | T133: 0 | U133: 4.8 | V133: 8.8 | W133: 0 | X133: 5 | Y133: 0 | Z133: 0 | AA133: 15 | AB133: 25 | AC133: 30 | AD133: 23 | AE133: 21 | AF133: 20 | AG133: 13 | AH133: 32.5 | AI133: 25 | AJ133: 25 | AK133: 30 | AL133: 77 | AM133: 36 | AN133: 60 | AO133: 41 | AP133: 25 | AQ133: 4 | AR133: 3 | AS133: 5 | AT133: 50 | AU133: 50 | AV133: 75 | AW133: 30 | AX133: 466 | AY133: 184 | AZ133: 73 | BA133: 98 | BB133: 15 | BC133: 63 | BD133: 25 | BE133: 65 | BF133: 110.8 | BG133: 420 | BH133: 103.5 | BI133: 450 | BJ133: 112.5 | BK133: 260 | BL133: 200 | BM133: 187.9 | BN133: 400 | BO133: 511 | BP133: 247.8 | BQ133: 376.2 | BR133: 710 | BS133: 359 | BT133: 359 | BU133: 404.8 | BV133: 454.8 | BW133: 526.7 | BX133: 544.6 | BY133: 800 | BZ133: 702 | CA133: 1172 | CB133: 765 | CC133: 895.1 | CD133: 799.2 | CE133: 895.1 | CF133: 781.5 | CG133: 850.5 | CH133: 639 | CI133: 850.5 | CJ133: 506 | CK133: 815.4 | CL133: 1200 | CM133: 863.3 | CN133: 400 | CO133: 800 | CP133: 800 | CQ133: 800 | CR133: 800 | CS133: 800 | CT133: 800 | CU133: 1000 | CV133: 500 | CW133: 330 | CX133: 600 | CY133: 1000 | CZ133: 250 | DA133: 330 | DB133: 350 | DC133: 414 | DD133: 627 | DE133: 627 | DF133: 735
B135: WIND POWER (1977-2008) | M135: 1977 | N135: 1978 | O135: 1979 | P135: 1980 | Q135: 1981 | R135: 1982 | S135: 1983 | T135: 1984 | U135: 1985 | V135: 1986 | W135: 1987 | X135: 1988 | Y135: 1989 | Z135: 1990 | AA135: 1991 | AB135: 1992 | AC135: 1993 | AD135: 1994 | AE135: 1995 | AF135: 1996 | AG135: 1997 | AH135: 1998 | AI135: 1999 | AJ135: 2000 | AK135: 2001 | AL135: 2002 | AM135: 2003 | AN135: 2004 | AO135: 2005 | AP135: 2006 | AQ135: 2007 | AR135: 2008
A137: =L137 -> wdp_cumcap_core | B137: Wind Power | C137: wdp | D137: Denmark | E137: core | F137: Cumulative Total Capacity | G137: MW | H137: cumcap | I137: 1977 | J137: 2008 | K137: use | L137: =C137&"_"&H137&"_"&E137 -> wdp_cumcap_core | M137: 0.052 | N137: 0.813 | O137: 1.09 | P137: 2.666 | Q137: 6.268 | R137: 10.637 | S137: 14.302 | T137: 19.77 | U137: 46.975 | V137: 72.4485 | W137: 112.0645 | X137: 190.459 | Y137: 246.914 | Z137: 325.9215 | AA137: 392.7995 | AB137: 435.8895 | AC137: 467.7595 | AD137: 520.8975 | AE137: 599.764 | AF137: 813.9175 | AG137: 1123.12 | AH137: 1439.0685 | AI137: 1760.3675 | AJ137: 2404.704 | AK137: 2516.413 | AL137: 3020.4225 | AM137: 3267.942 | AN137: 3283.05 | AO137: 3305.243 | AP137: 3316.751 | AQ137: 3319.372 | AR137: 3348.944
A138: =L138 -> wdp_cumcap_rimFSU | B138: Wind Power | C138: wdp | D138: not used | E138: rimFSU | F138: Cumulative Total Capacity | G138: MW | H138: cumcap | K138: not used | L138: =C138&"_"&H138&"_"&E138 -> wdp_cumcap_rimFSU
A139: =L139 -> wdp_cumcap_rim | B139: Wind Power | C139: wdp | D139: to add | E139: rim | F139: Cumulative Total Capacity | G139: MW | H139: cumcap | K139: to add | L139: =C139&"_"&H139&"_"&E139 -> wdp_cumcap_rim
A140: =L140 -> wdp_cumcap_peri | B140: Wind Power | C140: wdp | D140: to add | E140: peri | F140: Cumulative Total Capacity | G140: MW | H140: cumcap | K140: to add | L140: =C140&"_"&H140&"_"&E140 -> wdp_cumcap_peri
A141: =L141 -> wdp_cumcap_glob | B141: Wind Power | C141: wdp | D141: Global | E141: glob | F141: Cumulative Total Capacity | G141: MW | H141: cumcap | I141: 1984 | J141: 2008 | K141: use | L141: =C141&"_"&H141&"_"&E141 -> wdp_cumcap_glob | T141: 330.7999687 | U141: 794.1572762 | V141: 1164.583237 | W141: 1297.486816 | X141: 1431.615805 | Y141: 1556.820673 | Z141: 1743 | AA141: 1983 | AB141: 2321 | AC141: 2801 | AD141: 3531 | AE141: 4800 | AF141: 6100 | AG141: 7600 | AH141: 10200 | AI141: 13600 | AJ141: 17651 | AK141: 24425 | AL141: 31100 | AM141: 39431 | AN141: 47346 | AO141: 58765 | AP141: 73520 | AQ141: 93853 | AR141: 120824
A143: =L143 -> wdp_cumuni_core | B143: Wind Power | C143: wdp | D143: Denmark | E143: core | F143: Cumulative Total No. of Units | G143: # | H143: cumuni | I143: 1977 | J143: 2008 | K143: use | L143: =C143&"_"&H143&"_"&E143 -> wdp_cumuni_core | M143: 2 | N143: 13 | O143: 23 | P143: 68 | Q143: 164 | R143: 259 | S143: 334 | T143: 436 | U143: 826 | V143: 1135 | W143: 1474 | X143: 1958 | Y143: 2286 | Z143: 2665 | AA143: 3013 | AB143: 3215 | AC143: 3343 | AD143: 3486 | AE143: 3656 | AF143: 4087 | AG143: 4656 | AH143: 5151 | AI143: 5621 | AJ143: 6374 | AK143: 6504 | AL143: 6877 | AM143: 7001 | AN143: 7015 | AO143: 7033 | AP143: 7042 | AQ143: 7053 | AR143: 7074
A144: wdp_cumuni_rimFSU | B144: Wind Power | C144: wdp | D144: not used | E144: rimFSU | F144: Cumulative Total No. of Units | G144: # | H144: cumuni | K144: not used | L144: =C144&"_"&H144&"_"&E144 -> wdp_cumuni_rimFSU
A145: wdp_cumuni_rim | B145: Wind Power | C145: wdp | D145: to add | E145: rim | F145: Cumulative Total No. of Units | G145: # | H145: cumuni | K145: to add | L145: =C145&"_"&H145&"_"&E145 -> wdp_cumuni_rim
A146: wdp_cumuni_peri | B146: Wind Power | C146: wdp | D146: to add | E146: peri | F146: Cumulative Total No. of Units | G146: # | H146: cumuni | K146: to add | L146: =C146&"_"&H146&"_"&E146 -> wdp_cumuni_peri
A147: wdp_cumuni_glob | B147: Wind Power | C147: wdp | D147: to add | E147: glob | F147: Cumulative Total No. of Units | G147: # | H147: cumuni | K147: to add | L147: =C147&"_"&H147&"_"&E147 -> wdp_cumuni_glob
A149: wdp_avgcap_core | B149: Wind Power | C149: wdp | D149: Denmark | E149: core | F149: Average Capacity of Unit Additions | G149: MW | H149: avgcap | I149: 1977 | J149: 2008 | K149: use | L149: =C149&"_"&H149&"_"&E149 -> wdp_avgcap_core | M149: 0.026 | N149: 0.06918181818 | O149: 0.0277 | P149: 0.03502222222 | Q149: 0.03752083333 | R149: 0.04598947368 | S149: 0.04886666667 | T149: 0.05360784314 | U149: 0.06975641026 | V149: 0.08243851133 | W149: 0.1168613569 | X149: 0.1619721074 | Y149: 0.1721189024 | Z149: 0.2084630607 | AA149: 0.1921781609 | AB149: 0.2133168317 | AC149: 0.248984375 | AD149: 0.3715944056 | AE149: 0.4639205882 | AF149: 0.4968758701 | AG149: 0.543413884 | AH149: 0.638279798 | AI149: 0.6836148936 | AJ149: 0.8556925631 | AK149: 0.8593 | AL149: 1.351231903 | AM149: 1.996125 | AN149: 1.079142857 | AO149: 1.232944444 | AP149: 1.278666667 | AQ149: 0.2382727273 | AR149: 1.408190476
A150: wdp_avgcap_rimFSU | B150: Wind Power | C150: wdp | D150: not used | E150: rimFSU | F150: Average Capacity of Unit Additions | G150: MW | H150: avgcap | K150: not used | L150: =C150&"_"&H150&"_"&E150 -> wdp_avgcap_rimFSU
A151: wdp_avgcap_rim | B151: Wind Power | C151: wdp | D151: to add | E151: rim | F151: Average Capacity of Unit Additions | G151: MW | H151: avgcap | K151: to add | L151: wdp_avgcap_rim
A152: wdp_avgcap_peri | B152: Wind Power | C152: wdp | D152: to add | E152: peri | F152: Average Capacity of Unit Additions | G152: MW | H152: avgcap | K152: to add | L152: wdp_avgcap_peri
A153: wdp_avgcap_glob | B153: Wind Power | C153: wdp | D153: to add | E153: glob | F153: Average Capacity of Unit Additions | G153: MW | H153: avgcap | K153: to add | L153: wdp_avgcap_glob
A155: wdp_maxcap_core | B155: Wind Power | C155: wdp | D155: Denmark | E155: core | F155: Maximum Capacity of Unit Additions | G155: MW | H155: maxcap | I155: 1981 | J155: 2002 | K155: use | L155: =C155&"_"&H155&"_"&E155 -> wdp_maxcap_core | Q155: 0.055 | T155: 0.075 | V155: 0.09 | W155: 0.1 | X155: 0.2 | Y155: 0.225 | AA155: 0.5 | AE155: 0.6 | AG155: 0.66 | AH155: 0.85 | AI155: 1.75 | AJ155: 2 | AL155: 3
A156: wdp_maxcap_rimFSU | B156: Wind Power | C156: wdp | D156: not used | E156: rimFSU | F156: Maximum Capacity of Unit Additions | G156: MW | H156: maxcap | K156: not used | L156: =C156&"_"&H156&"_"&E156 -> wdp_maxcap_rimFSU
A157: wdp_maxcap_rim | B157: Wind Power | C157: wdp | D157: to add | E157: rim | F157: Maximum Capacity of Unit Additions | G157: MW | H157: maxcap | K157: to add | L157: wdp_maxcap_rim
A158: wdp_maxcap_peri | B158: Wind Power | C158: wdp | D158: to add | E158: peri | F158: Maximum Capacity of Unit Additions | G158: MW | H158: maxcap | K158: to add | L158: wdp_maxcap_peri
A159: wdp_maxcap_glob | B159: Wind Power | C159: wdp | D159: to add | E159: glob | F159: Maximum Capacity of Unit Additions | G159: MW | H159: maxcap | K159: to add | L159: wdp_maxcap_glob
B161: JET AIRCRAFT (1958-2007) | D161: * by manufacturer | M161: 1958 | N161: 1959 | O161: 1960 | P161: 1961 | Q161: 1962 | R161: 1963 | S161: 1964 | T161: 1965 | U161: 1966 | V161: 1967 | W161: 1968 | X161: 1969 | Y161: 1970 | Z161: 1971 | AA161: 1972 | AB161: 1973 | AC161: 1974 | AD161: 1975 | AE161: 1976 | AF161: 1977 | AG161: 1978 | AH161: 1979 | AI161: 1980 | AJ161: 1981 | AK161: 1982 | AL161: 1983 | AM161: 1984 | AN161: 1985 | AO161: 1986 | AP161: 1987 | AQ161: 1988 | AR161: 1989 | AS161: 1990 | AT161: 1991 | AU161: 1992 | AV161: 1993 | AW161: 1994 | AX161: 1995 | AY161: 1996 | AZ161: 1997 | BA161: 1998 | BB161: 1999 | BC161: 2000 | BD161: 2001 | BE161: 2002 | BF161: 2003 | BG161: 2004 | BH161: 2005 | BI161: 2006 | BJ161: 2007
A163: =L163 -> jet_cumcap_core | B163: Jet Aircraft | C163: jet | D163: Boeing | E163: core | F163: Cumulative Total Capacity | G163: MW | H163: cumcap | I163: 1958 | J163: 2007 | K163: use | L163: =C163&"_"&H163&"_"&E163 -> jet_cumcap_core | M163: 677.2591543 | N163: 7195.878514 | O163: 14899.70139 | P163: 21672.29294 | Q163: 27428.99575 | R163: 30620.22711 | S163: 38791.14073 | T163: 49743.52098 | U163: 63809.88372 | V163: 82063.63366 | W163: 104567.0066 | X163: 121750.2067 | Y163: 152572.7786 | Z163: 174956.4052 | AA163: 186474.7943 | AB163: 201290.6262 | AC163: 216207.4342 | AD163: 229489.4668 | AE163: 242531.5611 | AF163: 253199.2109 | AG163: 270847.566 | AH163: 299904.7582 | AI163: 330736.4241 | AJ163: 354917.255 | AK163: 370753.6264 | AL163: 390316.04 | AM163: 403757.1765 | AN163: 421832.3778 | AO163: 444265.2451 | AP163: 466432.6018 | AQ163: 490882.0066 | AR163: 518919.5217 | AS163: 559880.6572 | AT163: 602443.7963 | AU163: 645404.5829 | AV163: 679680.9643 | AW163: 706994.3968 | AX163: 728625.3993 | AY163: 754472.1094 | AZ163: 792300.775 | BA163: 844955.5996 | BB163: 900943.5121 | BC163: 942444.5746 | BD163: 987861.3722 | BE163: 1022535.128 | BF163: 1048144.347 | BG163: 1071349.804 | BH163: 1094650.625 | BI163: 1127160.121 | BJ163: 1164968.959
A164: =L164 -> jet_cumcap_rimFSU | B164: Jet Aircraft | C164: jet | D164: to add | E164: rimFSU | F164: Cumulative Total Capacity | G164: MW | H164: cumcap | K164: to add | L164: =C164&"_"&H164&"_"&E164 -> jet_cumcap_rimFSU
A165: =L165 -> jet_cumcap_rim | B165: Jet Aircraft | C165: jet | D165: Airbus | E165: rim | F165: Cumulative Total Capacity | G165: MW | H165: cumcap | I165: 1974 | J165: 2007 | K165: use | L165: =C165&"_"&H165&"_"&E165 -> jet_cumcap_rim | AC165: 492.9427533 | AD165: 1478.82826 | AE165: 3080.892208 | AF165: 4929.427533 | AG165: 6777.962858 | AH165: 9982.090755 | AI165: 14788.2826 | AJ165: 19471.23876 | AK165: 25140.08042 | AL165: 29547.41739 | AM165: 35413.00769 | AN165: 40544.32759 | AO165: 44085.58558 | AP165: 47993.12149 | AQ165: 54370.63666 | AR165: 63312.97915 | AS165: 71031.53764 | AT165: 82965.71629 | AU165: 94697.83475 | AV165: 108089.3515 | AW165: 120704.7952 | AX165: 134270.9265 | AY165: 146829.1168 | AZ165: 162866.9544 | BA165: 181750.8671 | BB165: 205116.8025 | BC165: 229039.7658 | BD165: 253890.2502 | BE165: 277166.972 | BF165: 301553.3428 | BG165: 327880.72 | BH165: 357112.6597 | BI165: 390164.6565 | BJ165: 423604.0653
A166: =L166 -> jet_cumcap_peri | B166: Jet Aircraft | C166: jet | D166: not used | E166: peri | F166: Cumulative Total Capacity | G166: MW | H166: cumcap | K166: not used | L166: =C166&"_"&H166&"_"&E166 -> jet_cumcap_peri
A167: =L167 -> jet_cumcap_glob | B167: Jet Aircraft | C167: jet | D167: Boeing+McD+Airbus | E167: glob | F167: Cumulative Total Capacity | G167: MW | H167: cumcap | I167: 1958 | J167: 2007 | K167: use | L167: =C167&"_"&H167&"_"&E167 -> jet_cumcap_glob | M167: 677.2591543 | N167: 8995.433477 | O167: 24497.32786 | P167: 34869.02933 | Q167: 42510.9802 | R167: 47330.38034 | S167: 57215.15583 | T167: 70987.7935 | U167: 90056.38226 | V167: 116834.9577 | W167: 154695.3957 | X167: 183158.534 | Y167: 218479.4474 | Z167: 245601.7026 | AA167: 266982.683 | AB167: 292034.6555 | AC167: 316673.7093 | AD167: 339322.7369 | AE167: 358700.0322 | AF167: 374217.6493 | AG167: 397367.6394 | AH167: 436608.4705 | AI167: 479745.9843 | AJ167: 516018.6675 | AK167: 541210.8004 | AL167: 569486.49 | AM167: 592450.6446 | AN167: 620722.1235 | AO167: 653384.0631 | AP167: 685421.2224 | AQ167: 723408.9254 | AR167: 765945.0231 | AS167: 821665.5294 | AT167: 889161.1162 | AU167: 956593.1907 | AV167: 1013843.57 | AW167: 1058421.712 | AX167: 1098968.336 | AY167: 1142477.02 | AZ167: 1201053.687 | BA167: 1277376.636 | BB167: 1360337.548 | BC167: 1426882.818 | BD167: 1497572.34 | BE167: 1555522.818 | BF167: 1605518.408 | BG167: 1655051.242 | BH167: 1707584.003 | BI167: 1773145.496 | BJ167: 1844393.742
A169: =L169 -> jet_cumuni_core | B169: Jet Aircraft | C169: jet | D169: Boeing | E169: core | F169: Cumulative Total No. of Units | G169: # | H169: cumuni | I169: 1958 | J169: 2007 | K169: use | L169: =C169&"_"&H169&"_"&E169 -> jet_cumuni_core | M169: 8 | N169: 85 | O169: 176 | P169: 256 | Q169: 324 | R169: 364 | S169: 497 | T169: 669 | U169: 887 | V169: 1164 | W169: 1540 | X169: 1831 | Y169: 2034 | Z169: 2175 | AA169: 2272 | AB169: 2428 | AC169: 2617 | AD169: 2787 | AE169: 2925 | AF169: 3045 | AG169: 3248 | AH169: 3534 | AI169: 3833 | AJ169: 4090 | AK169: 4267 | AL169: 4470 | AM169: 4616 | AN169: 4819 | AO169: 5061 | AP169: 5331 | AQ169: 5621 | AR169: 5905 | AS169: 6290 | AT169: 6725 | AU169: 7171 | AV169: 7501 | AW169: 7773 | AX169: 7980 | AY169: 8199 | AZ169: 8520 | BA169: 9030 | BB169: 9603 | BC169: 10086 | BD169: 10611 | BE169: 10992 | BF169: 11273 | BG169: 11558 | BH169: 11848 | BI169: 12246 | BJ169: 12687
A170: jet_cumuni_rimFSU | B170: Jet Aircraft | C170: jet | D170: to add | E170: rimFSU | F170: Cumulative Total No. of Units | G170: # | H170: cumuni | K170: to add | L170: =C170&"_"&H170&"_"&E170 -> jet_cumuni_rimFSU
A171: jet_cumuni_rim | B171: Jet Aircraft | C171: jet | D171: Airbus | E171: rim | F171: Cumulative Total No. of Units | G171: # | H171: cumuni | I171: 1974 | J171: 2007 | K171: use | L171: =C171&"_"&H171&"_"&E171 -> jet_cumuni_rim | AC171: 4 | AD171: 12 | AE171: 25 | AF171: 40 | AG171: 55 | AH171: 81 | AI171: 120 | AJ171: 158 | AK171: 204 | AL171: 240 | AM171: 288 | AN171: 330 | AO171: 359 | AP171: 391 | AQ171: 452 | AR171: 557 | AS171: 652 | AT171: 815 | AU171: 972 | AV171: 1110 | AW171: 1233 | AX171: 1357 | AY171: 1483 | AZ171: 1665 | BA171: 1894 | BB171: 2188 | BC171: 2499 | BD171: 2824 | BE171: 3127 | BF171: 3432 | BG171: 3752 | BH171: 4130 | BI171: 4564 | BJ171: 5017
A172: jet_cumuni_peri | B172: Jet Aircraft | C172: jet | D172: not used | E172: peri | F172: Cumulative Total No. of Units | G172: # | H172: cumuni | K172: not used | L172: =C172&"_"&H172&"_"&E172 -> jet_cumuni_peri
A173: jet_cumuni_glob | B173: Jet Aircraft | C173: jet | D173: Boeing+McD+Airbus | E173: glob | F173: Cumulative Total No. of Units | G173: # | H173: cumuni | I173: 1958 | J173: 2007 | K173: use | L173: =C173&"_"&H173&"_"&E173 -> jet_cumuni_glob | M173: 8 | N173: 106 | O173: 288 | P173: 410 | Q173: 500 | R173: 559 | S173: 712 | T173: 920 | U173: 1239 | V173: 1710 | W173: 2390 | X173: 2888 | Y173: 3175 | Z173: 3388 | AA173: 3573 | AB173: 3815 | AC173: 4103 | AD173: 4366 | AE173: 4586 | AF173: 4757 | AG173: 5015 | AH173: 5401 | AI173: 5803 | AJ173: 6200 | AK173: 6478 | AL173: 6780 | AM173: 7028 | AN173: 7355 | AO173: 7728 | AP173: 8134 | AQ173: 8615 | AR173: 9122 | AS173: 9744 | AT173: 10513 | AU173: 11242 | AV173: 11789 | AW173: 12224 | AX173: 12604 | AY173: 13001 | AZ173: 13558 | BA173: 14351 | BB173: 15265 | BC173: 16068 | BD173: 16920 | BE173: 17604 | BF173: 18190 | BG173: 18795 | BH173: 19463 | BI173: 20295 | BJ173: 21189
A175: jet_avgcap_core | B175: Jet Aircraft | C175: jet | D175: Boeing | E175: core | F175: Average Capacity of Unit Additions | G175: MW | H175: avgcap | I175: 1958 | J175: 2007 | K175: use | L175: =C175&"_"&H175&"_"&E175 -> jet_avgcap_core | M175: 84.65739429 | N175: 84.65739429 | O175: 84.65739429 | P175: 84.65739429 | Q175: 84.65739429 | R175: 79.78078405 | S175: 61.43544078 | T175: 63.67662932 | U175: 64.52459974 | V175: 65.89801421 | W175: 59.84939601 | X175: 59.04879782 | Y175: 151.8353292 | Z175: 158.7491251 | AA175: 118.7462799 | AB175: 94.97328104 | AC175: 78.92491 | AD175: 78.12960393 | AE175: 94.5079293 | AF175: 88.89708172 | AG175: 86.9377098 | AH175: 101.5985743 | AI175: 103.1159393 | AJ175: 94.08883639 | AK175: 89.47102437 | AL175: 96.36656949 | AM175: 92.06257914 | AN175: 89.04040026 | AO175: 92.69779901 | AP175: 82.10132115 | AQ175: 84.30829239 | AR175: 98.72364473 | AS175: 106.3925597 | AT175: 97.8462968 | AU175: 96.3246335 | AV175: 103.8678223 | AW175: 100.4170314 | AX175: 104.4975965 | AY175: 118.0215074 | AZ175: 117.8463102 | BA175: 103.2447542 | BB175: 97.71014398 | BC175: 85.92352468 | BD175: 86.50818598 | BE175: 91.00723322 | BF175: 91.13601206 | BG175: 81.42265594 | BH175: 80.34765846 | BI175: 81.68215095 | BJ175: 85.73432464
A176: jet_avgcap_rimFSU | B176: Jet Aircraft | C176: jet | D176: to add | E176: rimFSU | F176: Average Capacity of Unit Additions | G176: MW | H176: avgcap | K176: to add | L176: =C176&"_"&H176&"_"&E176 -> jet_avgcap_rimFSU
A177: jet_avgcap_rim | B177: Jet Aircraft | C177: jet | D177: Airbus | E177: rim | F177: Average Capacity of Unit Additions | G177: MW | H177: avgcap | I177: 1974 | J177: 2007 | K177: use | L177: jet_avgcap_rim | AC177: 123.2356883 | AD177: 123.2356883 | AE177: 123.2356883 | AF177: 123.2356883 | AG177: 123.2356883 | AH177: 123.2356883 | AI177: 123.2356883 | AJ177: 123.2356883 | AK177: 123.2356883 | AL177: 122.4260269 | AM177: 122.1997979 | AN177: 122.1742834 | AO177: 122.1123446 | AP177: 122.110497 | AQ177: 104.549429 | AR177: 85.16516656 | AS177: 81.24798412 | AT177: 73.21581994 | AU177: 74.72686919 | AV177: 97.03997667 | AW177: 102.5645829 | AX177: 109.4042844 | AY177: 99.66817693 | AZ177: 88.11998707 | BA177: 82.46250075 | BB177: 79.47597071 | BC177: 76.92271165 | BD177: 76.46302897 | BE177: 76.82086375 | BF177: 79.95531418 | BG177: 82.27305393 | BH177: 77.33317359 | BI177: 76.1566748 | BJ177: 73.81767951
A178: jet_avgcap_peri | B178: Jet Aircraft | C178: jet | D178: not used | E178: peri | F178: Average Capacity of Unit Additions | G178: MW | H178: avgcap | K178: not used | L178: jet_avgcap_peri
A179: jet_avgcap_glob | B179: Jet Aircraft | C179: jet | D179: Boeing+McD+Airbus | E179: glob | F179: Average Capacity of Unit Additions | G179: MW | H179: avgcap | I179: 1958 | J179: 2007 | K179: use | L179: jet_avgcap_glob | M179: 84.65739429 | N179: 84.87932983 | O179: 85.17524388 | P179: 85.01394646 | Q179: 84.9105652 | R179: 81.6847481 | S179: 64.60637578 | T179: 66.21460416 | U179: 59.77614033 | V179: 56.85472484 | W179: 55.67711471 | X179: 57.15489618 | Y179: 123.0693849 | Z179: 127.3345312 | AA179: 115.572867 | AB179: 103.5205476 | AC179: 85.55227004 | AD179: 86.11797564 | AE179: 88.07861536 | AF179: 90.74629861 | AG179: 89.72864389 | AH179: 101.6601842 | AI179: 107.3072483 | AJ179: 91.36696003 | AK179: 90.61918313 | AL179: 93.62811142 | AM179: 92.59739753 | AN179: 86.45712192 | AO179: 87.56552184 | AP179: 78.90925938 | AQ179: 78.97651333 | AR179: 83.8976286 | AS179: 89.58280756 | AT179: 87.77059408 | AU179: 92.49941627 | AV179: 104.6624857 | AW179: 102.4784877 | AX179: 106.7016403 | AY179: 109.5936624 | AZ179: 105.1645724 | BA179: 96.24583831 | BB179: 90.76686182 | BC179: 82.87082215 | BD179: 82.9689226 | BE179: 84.72292043 | BF179: 85.31670685 | BG179: 81.87245322 | BH179: 78.64185714 | BI179: 78.79987132 | BJ179: 79.69602459
A181: jet_maxcap_core | B181: Jet Aircraft | C181: jet | D181: Boeing | E181: core | F181: Maximum Capacity of Unit Additions | G181: MW | H181: maxcap | I181: 1958 | J181: 2007 | K181: use | L181: =C181&"_"&H181&"_"&E181 -> jet_maxcap_core | M181: 84.65739429 | N181: 85.77777778 | O181: 85.77777778 | P181: 85.77777778 | Q181: 85.77777778 | R181: 85.77777778 | S181: 85.77777778 | T181: 85.77777778 | U181: 85.77777778 | V181: 85.77777778 | W181: 85.77777778 | X181: 229.4242963 | Y181: 259.6844444 | Z181: 259.6844444 | AA181: 259.6844444 | AB181: 259.6844444 | AC181: 259.6844444 | AD181: 259.6844444 | AE181: 259.6844444 | AF181: 259.6844444 | AG181: 259.6844444 | AH181: 259.6844444 | AI181: 259.6844444 | AJ181: 259.6844444 | AK181: 259.6844444 | AL181: 263.5033333 | AM181: 263.5033333 | AN181: 263.5033333 | AO181: 263.5033333 | AP181: 263.5033333 | AQ181: 263.5033333 | AR181: 286.9622222 | AS181: 286.9622222 | AT181: 286.9622222 | AU181: 286.9622222 | AV181: 286.9622222 | AW181: 286.9622222 | AX181: 286.9622222 | AY181: 286.9622222 | AZ181: 286.9622222 | BA181: 286.9622222 | BB181: 286.9622222 | BC181: 286.9622222 | BD181: 286.9622222 | BE181: 286.9622222 | BF181: 286.9622222 | BG181: 286.9622222 | BH181: 286.9622222 | BI181: 286.9622222 | BJ181: 286.9622222 | BK181: 286.9622222 | BL181: 286.9622222 | BM181: 286.9622222
A182: jet_maxcap_rimFSU | B182: Jet Aircraft | C182: jet | D182: to add | E182: rimFSU | F182: Maximum Capacity of Unit Additions | G182: MW | H182: maxcap | K182: to add | L182: =C182&"_"&H182&"_"&E182 -> jet_maxcap_rimFSU
A183: jet_maxcap_rim | B183: Jet Aircraft | C183: jet | D183: Airbus | E183: rim | F183: Maximum Capacity of Unit Additions | G183: MW | H183: maxcap | I183: 1974 | J183: 2007 | K183: use | L183: jet_maxcap_rim | AC183: 123.2356883 | AD183: 123.2356883 | AE183: 123.2356883 | AF183: 123.2356883 | AG183: 123.2356883 | AH183: 123.2356883 | AI183: 123.2356883 | AJ183: 123.2356883 | AK183: 123.2356883 | AL183: 123.2356883 | AM183: 124.6064815 | AN183: 127.0402778 | AO183: 127.0402778 | AP183: 127.0402778 | AQ183: 129.9537037 | AR183: 129.9537037 | AS183: 129.9537037 | AT183: 129.9537037 | AU183: 148.1260317 | AV183: 150.7211389 | AW183: 150.7211389 | AX183: 150.7211389 | AY183: 150.7211389 | AZ183: 150.7211389 | BA183: 150.7211389 | BB183: 150.7211389 | BC183: 150.7211389 | BD183: 150.7211389 | BE183: 252.8733333 | BF183: 252.8733333 | BG183: 252.8733333 | BH183: 252.8733333 | BI183: 252.8733333 | BJ183: 326.55 | BK183: 326.55 | BL183: 326.55 | BM183: 326.55
A184: jet_maxcap_peri | B184: Jet Aircraft | C184: jet | D184: not used | E184: peri | F184: Maximum Capacity of Unit Additions | G184: MW | H184: maxcap | K184: not used | L184: jet_maxcap_peri
A185: jet_maxcap_glob | B185: Jet Aircraft | C185: jet | D185: Boeing+McD+Airbus | E185: glob | F185: Maximum Capacity of Unit Additions | G185: MW | H185: maxcap | I185: 1958 | J185: 2007 | K185: use | L185: jet_maxcap_glob | M185: 84.65739429 | N185: 85.77777778 | O185: 85.77777778 | P185: 85.77777778 | Q185: 85.77777778 | R185: 85.77777778 | S185: 85.77777778 | T185: 85.77777778 | U185: 86.42111111 | V185: 86.42111111 | W185: 90.60277778 | X185: 229.4242963 | Y185: 259.6844444 | Z185: 259.6844444 | AA185: 259.6844444 | AB185: 259.6844444 | AC185: 259.6844444 | AD185: 259.6844444 | AE185: 259.6844444 | AF185: 259.6844444 | AG185: 259.6844444 | AH185: 259.6844444 | AI185: 259.6844444 | AJ185: 259.6844444 | AK185: 259.6844444 | AL185: 263.5033333 | AM185: 263.5033333 | AN185: 263.5033333 | AO185: 263.5033333 | AP185: 263.5033333 | AQ185: 263.5033333 | AR185: 286.9622222 | AS185: 286.9622222 | AT185: 286.9622222 | AU185: 286.9622222 | AV185: 286.9622222 | AW185: 286.9622222 | AX185: 286.9622222 | AY185: 286.9622222 | AZ185: 286.9622222 | BA185: 286.9622222 | BB185: 286.9622222 | BC185: 286.9622222 | BD185: 286.9622222 | BE185: 286.9622222 | BF185: 286.9622222 | BG185: 286.9622222 | BH185: 286.9622222 | BI185: 286.9622222 | BJ185: 326.55 | BK185: 326.55 | BL185: 326.55 | BM185: 326.55
B187: PASSENGER CARS (1900-2005) | M187: 1900 | N187: 1901 | O187: 1902 | P187: 1903 | Q187: 1904 | R187: 1905 | S187: 1906 | T187: 1907 | U187: 1908 | V187: 1909 | W187: 1910 | X187: 1911 | Y187: 1912 | Z187: 1913 | AA187: 1914 | AB187: 1915 | AC187: 1916 | AD187: 1917 | AE187: 1918 | AF187: 1919 | AG187: 1920 | AH187: 1921 | AI187: 1922 | AJ187: 1923 | AK187: 1924 | AL187: 1925 | AM187: 1926 | AN187: 1927 | AO187: 1928 | AP187: 1929 | AQ187: 1930 | AR187: 1931 | AS187: 1932 | AT187: 1933 | AU187: 1934 | AV187: 1935 | AW187: 1936 | AX187: 1937 | AY187: 1938 | AZ187: 1939 | BA187: 1940 | BB187: 1941 | BC187: 1942 | BD187: 1943 | BE187: 1944 | BF187: 1945 | BG187: 1946 | BH187: 1947 | BI187: 1948 | BJ187: 1949 | BK187: 1950 | BL187: 1951 | BM187: 1952 | BN187: 1953 | BO187: 1954 | BP187: 1955 | BQ187: 1956 | BR187: 1957 | BS187: 1958 | BT187: 1959 | BU187: 1960 | BV187: 1961 | BW187: 1962 | BX187: 1963 | BY187: 1964 | BZ187: 1965 | CA187: 1966 | CB187: 1967 | CC187: 1968 | CD187: 1969 | CE187: 1970 | CF187: 1971 | CG187: 1972 | CH187: 1973 | CI187: 1974 | CJ187: 1975 | CK187: 1976 | CL187: 1977 | CM187: 1978 | CN187: 1979 | CO187: 1980 | CP187: 1981 | CQ187: 1982 | CR187: 1983 | CS187: 1984 | CT187: 1985 | CU187: 1986 | CV187: 1987 | CW187: 1988 | CX187: 1989 | CY187: 1990 | CZ187: 1991 | DA187: 1992 | DB187: 1993 | DC187: 1994 | DD187: 1995 | DE187: 1996 | DF187: 1997 | DG187: 1998 | DH187: 1999 | DI187: 2000 | DJ187: 2001 | DK187: 2002 | DL187: 2003 | DM187: 2004 | DN187: 2005
A189: =L189 -> car_cumcap_core | B189: Passenger Cars | C189: car | D189: US | E189: core | F189: Cumulative Total Capacity | G189: MW | H189: cumcap | I189: 1900 | J189: 2005 | K189: use | L189: =C189&"_"&H189&"_"&E189 -> car_cumcap_core | M189: 0 | N189: 0.9307037065 | O189: 4.472703032 | P189: 12.81465177 | Q189: 39.40992383 | R189: 80.71095082 | S189: 155.4359499 | T189: 278.5341127 | U189: 502.6664106 | V189: 1030.454429 | W189: 1944.893998 | X189: 3137.06097 | Y189: 5596.133635 | Z189: 9172.523491 | AA189: 13917.9542 | AB189: 22866.28995 | AC189: 39377.6855 | AD189: 60408.78616 | AE189: 74777.1879 | AF189: 99840.89354 | AG189: 132080.8344 | AH189: 157330.3626 | AI189: 200082.4677 | AJ189: 272755.2335 | AK189: 342126.7095 | AL189: 429691.9662 | AM189: 523568.8047 | AN189: 602328.635 | AO189: 709171.8319 | AP189: 847384.5447 | AQ189: 939217.3945 | AR189: 1007646.987 | AS189: 1047884.839 | AT189: 1107797.496 | AU189: 1198722.368 | AV189: 1336771.15 | AW189: 1498854.273 | AX189: 1681646.108 | AY189: 1780825.31 | AZ189: 1928615.013 | BA189: 2120229.392 | BB189: 2335794.374 | BC189: 2383960.507 | BD189: 2417539.133 | BE189: 2454253.676 | BF189: 2491617.36 | BG189: 2656967.14 | BH189: 2921446.378 | BI189: 3219022.444 | BJ189: 3586588.784 | BK189: 4073028.224 | BL189: 4496515.23 | BM189: 4855853.352 | BN189: 5345040.706 | BO189: 5793073.242 | BP189: 6442311.573 | BQ189: 6944312.803 | BR189: 7482922.539 | BS189: 7875489.602 | BT189: 8404860.919 | BU189: 9043852.746 | BV189: 9594447.321 | BW189: 10288729.82 | BX189: 11077938.64 | BY189: 11902599.06 | BZ189: 12911273.24 | CA189: 13864651.68 | CB189: 14702173.51 | CC189: 15718110.82 | CD189: 16687016.94 | CE189: 17481839.48 | CF189: 18414451.82 | CG189: 19372292.53 | CH189: 20441475.83 | CI189: 21223978.98 | CJ189: 21888932.75 | CK189: 22742936.52 | CL189: 23668927.63 | CM189: 24515453.51 | CN189: 25287096.82 | CO189: 25769888.41 | CP189: 26234344.17 | CQ189: 26607368.34 | CR189: 27136448.14 | CS189: 27753880.61 | CT189: 28423276.83 | CU189: 29075258.22 | CV189: 29677874.04 | CW189: 30308586.06 | CX189: 30946109.83 | CY189: 31566299.08 | CZ189: 32116439.5 | DA189: 32749460.23 | DB189: 33476674.17 | DC189: 34335896.23 | DD189: 35181370.55 | DE189: 36024675.63 | DF189: 36902100.99 | DG189: 37788061.28 | DH189: 38779441.79 | DI189: 39775197.9 | DJ189: 40665982.02 | DK189: 41651917.47 | DL189: 42639221.69 | DM189: 43655035.04 | DN189: 44683418.65
A190: =L190 -> car_cumcap_rimFSU | B190: Passenger Cars | C190: car | D190: FSU | E190: rimFSU | F190: Cumulative Total Capacity | G190: MW | H190: cumcap | I190: 1900 | J190: 2005 | K190: use | L190: =C190&"_"&H190&"_"&E190 -> car_cumcap_rimFSU | M190: 0 | N190: 0 | O190: 0 | P190: 0 | Q190: 0 | R190: 0 | S190: 0 | T190: 0 | U190: 0 | V190: 0 | W190: 0 | X190: 0 | Y190: 0 | Z190: 0 | AA190: 0 | AB190: 0 | AC190: 0 | AD190: 0 | AE190: 0 | AF190: 0 | AG190: 0 | AH190: 0 | AI190: 0 | AJ190: 0 | AK190: 18.51822493 | AL190: 45.56336653 | AM190: 80.71616939 | AN190: 133.0560733 | AO190: 205.3437551 | AP190: 294.2905858 | AQ190: 368.3329072 | AR190: 442.3508387 | AS190: 556.3510139 | AT190: 732.9169644 | AU190: 982.3930872 | AV190: 1319.232148 | AW190: 1813.44529 | AX190: 2573.428276 | AY190: 3376.676413 | AZ190: 4093.413417 | BA190: 4093.413417 | BB190: 4093.413417 | BC190: 4093.413417 | BD190: 4093.413417 | BE190: 4093.413417 | BF190: 4435.741426 | BG190: 4967.6613 | BH190: 5754.252039 | BI190: 6965.117955 | BJ190: 8658.006913 | BK190: 10949.00281 | BL190: 12917.57806 | BM190: 14991.55087 | BN190: 17494.80918 | BO190: 20552.1131 | BP190: 24459.68864 | BQ190: 28867.81811 | BR190: 34053.50458 | BS190: 39860.23101 | BT190: 46339.62206 | BU190: 53600.13778 | BV190: 61995.4731 | BW190: 71818.93339 | BX190: 82902.35639 | BY190: 95792.49524 | BZ190: 112909.9236 | CA190: 133852.9075 | CB190: 157648.7234 | CC190: 184001.1365 | CD190: 217048.1568 | CE190: 255856.5389 | CF190: 306025.1847 | CG190: 373139.8618 | CH190: 461122.0299 | CI190: 566167.1616 | CJ190: 685484.1869 | CK190: 816816.7985 | CL190: 963701.5366 | CM190: 1116959.635 | CN190: 1276510.829 | CO190: 1429769.966 | CP190: 1574525.693 | CQ190: 1726121.256 | CR190: 1892474.911 | CS190: 2061335.943 | CT190: 2237064.922 | CU190: 2416093.454 | CV190: 2608704.627 | CW190: 2814971.317 | CX190: 3029187.302 | CY190: 3248393.749 | CZ190: 3461243.774 | DA190: 3666827.524 | DB190: 3862010.673 | DC190: 4058690.932 | DD190: 4269581.358 | DE190: 4494298.76 | DF190: 4750175.764 | DG190: 5036398.145 | DH190: 5329674.847 | DI190: 5664773.368 | DJ190: 5980654.749 | DK190: 6293646.889 | DL190: 6623423.491 | DM190: 6994798.998 | DN190: 7366937.063
A191: =L191 -> car_cumcap_rim | B191: Passenger Cars | C191: car | D191: OECDexUS | E191: rim | F191: Cumulative Total Capacity | G191: MW | H191: cumcap | I191: 1900 | J191: 2005 | K191: use | L191: =C191&"_"&H191&"_"&E191 -> car_cumcap_rim | M191: 0 | N191: 0.1498355282 | O191: 1.0003201 | P191: 3.633017402 | Q191: 10.14208174 | R191: 21.77358301 | S191: 42.23973403 | T191: 60.3307705 | U191: 89.43906331 | V191: 139.8521656 | W191: 211.3320825 | X191: 318.3328767 | Y191: 468.2544752 | Z191: 671.9590549 | AA191: 724.1020961 | AB191: 821.6459719 | AC191: 964.3361907 | AD191: 1286.988318 | AE191: 1600.802515 | AF191: 2009.322557 | AG191: 2570.727158 | AH191: 3109.043249 | AI191: 4246.116921 | AJ191: 5984.975466 | AK191: 8383.632199 | AL191: 11707.54444 | AM191: 15789.4119 | AN191: 20467.58873 | AO191: 26273.03237 | AP191: 33032.53113 | AQ191: 38515.58412 | AR191: 43276.78037 | AS191: 47765.06956 | AT191: 53741.91716 | AU191: 61732.88843 | AV191: 71983.8033 | AW191: 84032.33559 | AX191: 98148.6387 | AY191: 112309.7316 | AZ191: 124026.6314 | BA191: 129344.4771 | BB191: 134729.122 | BC191: 139986.9322 | BD191: 144603.0965 | BE191: 148877.3075 | BF191: 153826.771 | BG191: 164969.3386 | BH191: 179818.1751 | BI191: 198823.7503 | BJ191: 225194.98 | BK191: 261963.3032 | BL191: 303045.2838 | BM191: 347082.2712 | BN191: 398796.9868 | BO191: 461114.2023 | BP191: 541087.3211 | BQ191: 626412.4123 | BR191: 723635.9638 | BS191: 840859.6408 | BT191: 979618.8872 | BU191: 1146700.744 | BV191: 1314998.836 | BW191: 1518287.793 | BX191: 1765163.896 | BY191: 2035682.298 | BZ191: 2322258.95 | CA191: 2642160.386 | CB191: 2973848.105 | CC191: 3360413.17 | CD191: 3818881.263 | CE191: 4329594.118 | CF191: 4905201.731 | CG191: 5539334.577 | CH191: 6247913.56 | CI191: 6903770.566 | CJ191: 7539765.647 | CK191: 8278686.2 | CL191: 9089374.5 | CM191: 9927649.348 | CN191: 10805472.41 | CO191: 11707918.5 | CP191: 12565297.57 | CQ191: 13446188.89 | CR191: 14413412.86 | CS191: 15367144.86 | CT191: 16400838.97 | CU191: 17465871.56 | CV191: 18592119.76 | CW191: 19801807.3 | CX191: 21082167.59 | CY191: 22387886.69 | CZ191: 23679222.97 | DA191: 24978185.45 | DB191: 26133032.05 | DC191: 27354298.44 | DD191: 28610628.05 | DE191: 29916928.4 | DF191: 31260926.58 | DG191: 32643950.27 | DH191: 34128102.29 | DI191: 35626965.72 | DJ191: 37090347.27 | DK191: 38575753.64 | DL191: 40098115.78 | DM191: 41643294.21 | DN191: 43240930.86
A192: =L192 -> car_cumcap_peri | B192: Passenger Cars | C192: car | D192: Developing | E192: peri | F192: Cumulative Total Capacity | G192: MW | H192: cumcap | I192: 1900 | J192: 2005 | K192: use | L192: =C192&"_"&H192&"_"&E192 -> car_cumcap_peri | M192: 0 | N192: 0 | O192: 0 | P192: 0 | Q192: 0 | R192: 0 | S192: 0 | T192: 0 | U192: 0 | V192: 0 | W192: 0 | X192: 0 | Y192: 0 | Z192: 0 | AA192: 0 | AB192: 0 | AC192: 0 | AD192: 0 | AE192: 0 | AF192: 0 | AG192: 0 | AH192: 0 | AI192: 0 | AJ192: 0 | AK192: 0 | AL192: 0 | AM192: 0 | AN192: 0 | AO192: 0 | AP192: 0 | AQ192: 0 | AR192: 0 | AS192: 0 | AT192: 0 | AU192: 0 | AV192: 0 | AW192: 0 | AX192: 0 | AY192: 0 | AZ192: 0 | BA192: 0 | BB192: 0 | BC192: 0 | BD192: 0 | BE192: 0 | BF192: 0 | BG192: 0 | BH192: 0 | BI192: 0 | BJ192: 0 | BK192: 2282.292237 | BL192: 5148.580112 | BM192: 7829.686035 | BN192: 11074.82429 | BO192: 15063.88608 | BP192: 19727.40352 | BQ192: 24449.62668 | BR192: 30246.48764 | BS192: 39189.64184 | BT192: 50451.18923 | BU192: 65656.31273 | BV192: 80179.11244 | BW192: 98696.67052 | BX192: 118961.3267 | BY192: 144354.1606 | BZ192: 171266.799 | CA192: 199723.9018 | CB192: 229840.2248 | CC192: 264302.8103 | CD192: 308350.6897 | CE192: 360286.1199 | CF192: 420146.6084 | CG192: 486944.0534 | CH192: 565952.7953 | CI192: 653131.5446 | CJ192: 744058.933 | CK192: 826613.5131 | CL192: 919915.2713 | CM192: 1029625.41 | CN192: 1154691.736 | CO192: 1293152.197 | CP192: 1413874.745 | CQ192: 1542472.044 | CR192: 1676182.206 | CS192: 1808393.39 | CT192: 1959124.291 | CU192: 2112963.44 | CV192: 2287626.949 | CW192: 2476231.461 | CX192: 2674620.912 | CY192: 2889358.493 | CZ192: 3133622.899 | DA192: 3422438.856 | DB192: 3760113.212 | DC192: 4143001.331 | DD192: 4541291.461 | DE192: 4989747.755 | DF192: 5488253.057 | DG192: 5924355.262 | DH192: 6426198.189 | DI192: 7013215.588 | DJ192: 7595987.679 | DK192: 8253224.684 | DL192: 9002785.505 | DM192: 9865548.073 | DN192: 10830159.51
A193: =L193 -> car_cumcap_glob | B193: Passenger Cars | C193: car | D193: Global | E193: glob | F193: Cumulative Total Capacity | G193: MW | H193: cumcap | I193: 1900 | J193: 2005 | K193: use | L193: =C193&"_"&H193&"_"&E193 -> car_cumcap_glob | M193: 0 | N193: 1.080539235 | O193: 5.473023132 | P193: 16.44766917 | Q193: 49.55200557 | R193: 102.4845338 | S193: 197.6756839 | T193: 338.8648832 | U193: 592.1054739 | V193: 1170.306595 | W193: 2156.22608 | X193: 3455.393847 | Y193: 6064.38811 | Z193: 9844.482546 | AA193: 14642.0563 | AB193: 23687.93592 | AC193: 40342.02169 | AD193: 61695.77448 | AE193: 76377.99041 | AF193: 101850.2161 | AG193: 134651.5615 | AH193: 160439.4058 | AI193: 204328.5846 | AJ193: 278740.209 | AK193: 350528.86 | AL193: 441445.074 | AM193: 539438.9328 | AN193: 622929.2798 | AO193: 735650.208 | AP193: 880711.3664 | AQ193: 978101.3115 | AR193: 1051366.119 | AS193: 1096206.26 | AT193: 1162272.33 | AU193: 1261437.65 | AV193: 1410074.185 | AW193: 1584700.054 | AX193: 1782368.175 | AY193: 1896511.718 | AZ193: 2056735.058 | BA193: 2253667.282 | BB193: 2474616.91 | BC193: 2528040.852 | BD193: 2566235.643 | BE193: 2607224.397 | BF193: 2649879.873 | BG193: 2826904.14 | BH193: 3107018.805 | BI193: 3424811.312 | BJ193: 3820441.771 | BK193: 4348222.822 | BL193: 4817626.672 | BM193: 5225756.86 | BN193: 5772407.326 | BO193: 6289803.444 | BP193: 7027585.986 | BQ193: 7624042.66 | BR193: 8270858.495 | BS193: 8795399.116 | BT193: 9481270.618 | BU193: 10309809.94 | BV193: 11051620.74 | BW193: 11977533.22 | BX193: 13044966.22 | BY193: 14178428.02 | BZ193: 15517708.91 | CA193: 16840388.87 | CB193: 18063510.56 | CC193: 19526827.93 | CD193: 21031297.05 | CE193: 22427576.26 | CF193: 24045825.34 | CG193: 25771711.02 | CH193: 27716464.22 | CI193: 29347048.25 | CJ193: 30858241.52 | CK193: 32665053.03 | CL193: 34641918.93 | CM193: 36589687.9 | CN193: 38523771.79 | CO193: 40200729.07 | CP193: 41788042.18 | CQ193: 43322150.54 | CR193: 45118518.12 | CS193: 46990754.81 | CT193: 49020305.01 | CU193: 51070186.67 | CV193: 53166325.38 | CW193: 55401596.14 | CX193: 57732085.64 | CY193: 60091938.01 | CZ193: 62390529.14 | DA193: 64816912.06 | DB193: 67231830.11 | DC193: 69891886.93 | DD193: 72602871.42 | DE193: 75425650.55 | DF193: 78401456.38 | DG193: 81392764.96 | DH193: 84663417.11 | DI193: 88080152.58 | DJ193: 91332971.72 | DK193: 94774542.68 | DL193: 98363546.46 | DM193: 102158676.3 | DN193: 106121446.1
A195: =L195 -> car_cumuni_core | B195: Passenger Cars | C195: car | D195: US | E195: core | F195: Cumulative Total No. of Units | G195: # | H195: cumuni | I195: 1900 | J195: 2005 | K195: use | L195: =C195&"_"&H195&"_"&E195 -> car_cumuni_core | M195: 3554.582669 | N195: 9490.193042 | O195: 17121.69209 | P195: 26648.34674 | Q195: 46006.916 | R195: 67205.52448 | S195: 96035.63201 | T195: 133345.1829 | U195: 188461.565 | V195: 296393.856 | W195: 454959.4474 | X195: 633027.7586 | Y195: 953550.7188 | Z195: 1364803.723 | AA195: 1850708.899 | AB195: 2673155.552 | AC195: 4044881.893 | AD195: 5633886.339 | AE195: 6626562.906 | AF195: 8217608.354 | AG195: 10106276.33 | AH195: 11476655.29 | AI195: 13633974.92 | AJ195: 17054592.56 | AK195: 20109345.96 | AL195: 23726532.36 | AM195: 27373485 | AN195: 30257620.13 | AO195: 33953605.14 | AP195: 38479157.85 | AQ195: 41330642.04 | AR195: 43349110.79 | AS195: 44478453.93 | AT195: 46080913.56 | AU195: 48401796.57 | AV195: 51769187.9 | AW195: 55552259.34 | AX195: 59639536.76 | AY195: 61766526.27 | AZ195: 64809704.39 | BA195: 68601953.98 | BB195: 72706430.25 | BC195: 73589584.63 | BD195: 74182999.82 | BE195: 74808896.37 | BF195: 75423838.32 | BG195: 78053161.09 | BH195: 82119551.94 | BI195: 86546461.58 | BJ195: 91840885.28 | BK195: 98629408.1 | BL195: 104358979.9 | BM195: 109075073.3 | BN195: 115306720.5 | BO195: 120849502.9 | BP195: 128654024.1 | BQ195: 134520746.7 | BR195: 140643270.3 | BS195: 144985821.3 | BT195: 150687049.7 | BU195: 157390148.9 | BV195: 163018400.2 | BW195: 169937056.1 | BX195: 177607108.1 | BY195: 185426513.4 | BZ195: 194761370.9 | CA195: 203376093.2 | CB195: 210767844.9 | CC195: 219528667.7 | CD195: 227695121.4 | CE195: 234245081.1 | CF195: 242590605.3 | CG195: 251338009.1 | CH195: 261035816.9 | CI195: 268651419.3 | CJ195: 275368124 | CK195: 283865673.9 | CL195: 293079515.8 | CM195: 302255948.1 | CN195: 310689208.4 | CO195: 317062694.7 | CP195: 323317991.2 | CQ195: 328393150 | CR195: 335176224.3 | CS195: 342942670.5 | CT195: 351131003.3 | CU195: 358962611.6 | CV195: 366073122.9 | CW195: 373199812.3 | CX195: 380110639.1 | CY195: 386328075.2 | CZ195: 391927468.8 | DA195: 397999610.1 | DB195: 404925457.1 | DC195: 412718854.5 | DD195: 420335740.3 | DE195: 427834416.5 | DF195: 435536464 | DG195: 443166696 | DH195: 451444538.1 | DI195: 459560954.3 | DJ195: 466821742.9 | DK195: 474625845.8 | DL195: 482307573.9 | DM195: 489908796.3 | DN195: 497520888.3
A196: car_cumuni_rimFSU | B196: Passenger Cars | C196: car | D196: FSU | E196: rimFSU | F196: Cumulative Total No. of Units | G196: # | H196: cumuni | I196: 1900 | J196: 2005 | K196: use | L196: =C196&"_"&H196&"_"&E196 -> car_cumuni_rimFSU | M196: 0 | N196: 0 | O196: 0 | P196: 0 | Q196: 0 | R196: 0 | S196: 0 | T196: 0 | U196: 0 | V196: 0 | W196: 0 | X196: 0 | Y196: 0 | Z196: 0 | AA196: 0 | AB196: 0 | AC196: 0 | AD196: 0 | AE196: 0 | AF196: 0 | AG196: 0 | AH196: 0 | AI196: 0 | AJ196: 0 | AK196: 3276.580153 | AL196: 7726.967557 | AM196: 13121.97137 | AN196: 20633.54198 | AO196: 30358.50191 | AP196: 41601.05534 | AQ196: 50412.43511 | AR196: 58722.19466 | AS196: 70818.37786 | AT196: 88555.99809 | AU196: 112322.876 | AV196: 142801.0134 | AW196: 185334.7481 | AX196: 247632.479 | AY196: 310428.3817 | AZ196: 363932.771 | BA196: 363932.771 | BB196: 363932.771 | BC196: 363932.771 | BD196: 363932.771 | BE196: 363932.771 | BF196: 383748.229 | BG196: 413358.4122 | BH196: 455503 | BI196: 517996.7634 | BJ196: 602223.8664 | BK196: 712188.2519 | BL196: 803408.8588 | BM196: 896252.9008 | BN196: 1004583.771 | BO196: 1132567.756 | BP196: 1290896.448 | BQ196: 1463876.908 | BR196: 1661067.242 | BS196: 1875151.647 | BT196: 2106886.664 | BU196: 2358915.681 | BV196: 2641899.23 | BW196: 2963587.474 | BX196: 3316358.579 | BY196: 3715309.632 | BZ196: 4230694.841 | CA196: 4844380.728 | CB196: 5523270.965 | CC196: 6292562.895 | CD196: 7205139.674 | CE196: 8248611.605 | CF196: 9530089.79 | CG196: 11162792.25 | CH196: 13205850.8 | CI196: 15590926.94 | CJ196: 18241156.03 | CK196: 21096204.94 | CL196: 24159010.48 | CM196: 27290797.78 | CN196: 30487253.65 | CO196: 33492334.77 | CP196: 36330682.36 | CQ196: 39245981.64 | CR196: 42326604.89 | CS196: 45453661.04 | CT196: 48648733.39 | CU196: 51903797.61 | CV196: 55282940.98 | CW196: 58839263.23 | CX196: 62470042.64 | CY196: 66123483.41 | CZ196: 69612828.09 | DA196: 72928695.03 | DB196: 76026840.25 | DC196: 79099969.29 | DD196: 82344437.38 | DE196: 85736888.44 | DF196: 89505169.29 | DG196: 93592318.23 | DH196: 97644233.12 | DI196: 102185901.2 | DJ196: 106530900.5 | DK196: 110761418.5 | DL196: 115142169.8 | DM196: 119991518.6 | DN196: 124768868.3
A197: car_cumuni_rim | B197: Passenger Cars | C197: car | D197: OECDexUS | E197: rim | F197: Cumulative Total No. of Units | G197: # | H197: cumuni | I197: 1900 | J197: 2005 | K197: use | L197: =C197&"_"&H197&"_"&E197 -> car_cumuni_rim | M197: 4700.469831 | N197: 12229.89336 | O197: 24696.04904 | P197: 43466.07277 | Q197: 71295.47341 | R197: 104742.9619 | S197: 147304.6898 | T197: 175910.1281 | U197: 212211.3469 | V197: 263205.9583 | W197: 323161.7252 | X197: 398924.9457 | Y197: 489867.3565 | Z197: 597047.2714 | AA197: 621096.4749 | AB197: 660892.9602 | AC197: 712798.9956 | AD197: 818179.0694 | AE197: 910770.8921 | AF197: 1020261.222 | AG197: 1157615.464 | AH197: 1278380.019 | AI197: 1513223.881 | AJ197: 1845072.449 | AK197: 2269486.295 | AL197: 2816449.494 | AM197: 3442905.672 | AN197: 4114295.05 | AO197: 4895309.26 | AP197: 5749685.133 | AQ197: 6402193.878 | AR197: 6936718.353 | AS197: 7412955.939 | AT197: 8013383.443 | AU197: 8774660.458 | AV197: 9702191.817 | AW197: 10739131.21 | AX197: 11896280.35 | AY197: 13003358.68 | AZ197: 13878024.8 | BA197: 14257532.87 | BB197: 14625306.59 | BC197: 14969360.27 | BD197: 15259053.27 | BE197: 15516546.46 | BF197: 15803043.28 | BG197: 16423312.4 | BH197: 17218895.23 | BI197: 18199788.25 | BJ197: 19511848.48 | BK197: 21276673.15 | BL197: 23180345.97 | BM197: 25151717.96 | BN197: 27389721.17 | BO197: 29998426.68 | BP197: 33238809.16 | BQ197: 36587071.41 | BR197: 40284083.32 | BS197: 44605926.51 | BT197: 49568642.31 | BU197: 55368433.64 | BV197: 61041297.15 | BW197: 67698388.01 | BX197: 75556136.95 | BY197: 83928707.84 | BZ197: 92557186.65 | CA197: 101931161.1 | CB197: 111394150.6 | CC197: 122678938.1 | CD197: 135339303 | CE197: 149071247 | CF197: 163774227.1 | CG197: 179200811.9 | CH197: 195654922.8 | CI197: 210546321.1 | CJ197: 224672827 | CK197: 240736273 | CL197: 257640552.2 | CM197: 274770469.3 | CN197: 292356816.4 | CO197: 310051837.8 | CP197: 326863192.1 | CQ197: 343803409.8 | CR197: 361714964.8 | CS197: 379376668.6 | CT197: 398171107 | CU197: 417535335.8 | CV197: 437294076.2 | CW197: 458150757.9 | CX197: 479851779.8 | CY197: 501613764.8 | CZ197: 522783212 | DA197: 543734219.7 | DB197: 562065118.1 | DC197: 581147405.4 | DD197: 600475553.3 | DE197: 620196144.4 | DF197: 639989101.6 | DG197: 659738164.6 | DH197: 680243229 | DI197: 700557673.2 | DJ197: 720686722.2 | DK197: 740764026.5 | DL197: 760987080 | DM197: 781163717.9 | DN197: 801673495.8
A198: car_cumuni_peri | B198: Passenger Cars | C198: car | D198: Developing | E198: peri | F198: Cumulative Total No. of Units | G198: # | H198: cumuni | I198: 1900 | J198: 2005 | K198: use | L198: =C198&"_"&H198&"_"&E198 -> car_cumuni_peri | M198: 0 | N198: 0 | O198: 0 | P198: 0 | Q198: 0 | R198: 0 | S198: 0 | T198: 0 | U198: 0 | V198: 0 | W198: 0 | X198: 0 | Y198: 0 | Z198: 0 | AA198: 0 | AB198: 0 | AC198: 0 | AD198: 0 | AE198: 0 | AF198: 0 | AG198: 0 | AH198: 0 | AI198: 0 | AJ198: 0 | AK198: 0 | AL198: 0 | AM198: 0 | AN198: 0 | AO198: 0 | AP198: 0 | AQ198: 0 | AR198: 0 | AS198: 0 | AT198: 0 | AU198: 0 | AV198: 0 | AW198: 0 | AX198: 0 | AY198: 0 | AZ198: 0 | BA198: 0 | BB198: 0 | BC198: 0 | BD198: 0 | BE198: 0 | BF198: 0 | BG198: 0 | BH198: 0 | BI198: 0 | BJ198: 0 | BK198: 109546.623 | BL198: 242365.7869 | BM198: 362388.918 | BN198: 502825.3443 | BO198: 669814.3115 | BP198: 858772.5574 | BQ198: 1044078.443 | BR198: 1264509.23 | BS198: 1594228.541 | BT198: 1996997.082 | BU198: 2524801.508 | BV198: 3014324.946 | BW198: 3620718.269 | BX198: 4265716.222 | BY198: 5051626.903 | BZ198: 5861934.124 | CA198: 6695803.955 | CB198: 7555017.089 | CC198: 8561064.954 | CD198: 9777424.902 | CE198: 11173854.25 | CF198: 12702895.13 | CG198: 14327880.26 | CH198: 16162564.37 | CI198: 18141979.8 | CJ198: 20161627.95 | CK198: 21956287.8 | CL198: 23901793.81 | CM198: 26143690.47 | CN198: 28649274.93 | CO198: 31364185.93 | CP198: 33731294.73 | CQ198: 36204319.7 | CR198: 38680433.81 | CS198: 41128789.08 | CT198: 43869350.91 | CU198: 46666426.35 | CV198: 49730698.43 | CW198: 52982500.36 | CX198: 56345033.43 | CY198: 59923993.12 | CZ198: 63928327.63 | DA198: 68586649.53 | DB198: 73946559.94 | DC198: 79929186.8 | DD198: 86056727.26 | DE198: 92826857.29 | DF198: 100168306.3 | DG198: 106395683.3 | DH198: 113329152 | DI198: 121285135.1 | DJ198: 129301259.1 | DK198: 138184718.6 | DL198: 148141882 | DM198: 159407667 | DN198: 171790937.2
A199: car_cumuni_glob | B199: Passenger Cars | C199: car | D199: Global | E199: glob | F199: Cumulative Total No. of Units | G199: # | H199: cumuni | I199: 1900 | J199: 2005 | K199: use | L199: =C199&"_"&H199&"_"&E199 -> car_cumuni_glob | M199: 7344.508969 | N199: 19329.5668 | O199: 37171.53051 | P199: 62245.94996 | Q199: 104192.4932 | R199: 152722.3563 | S199: 216166.8893 | T199: 275150.9314 | U199: 357084.2457 | V199: 499983.7849 | W199: 696854.337 | X199: 925303.8047 | Y199: 1296836.733 | Z199: 1765237.739 | AA199: 2229073.928 | AB199: 3013372.279 | AC199: 4308836.554 | AD199: 5849018.878 | AE199: 6834564.812 | AF199: 8380196.787 | AG199: 10221403.52 | AH199: 11575775.33 | AI199: 13746959.47 | AJ199: 17154176.41 | AK199: 20318344.5 | AL199: 24105534.68 | AM199: 27992027.19 | AN199: 31228726.95 | AO199: 35307498.15 | AP199: 40210791.72 | AQ199: 43405032.57 | AR199: 45735598.9 | AS199: 47215981.12 | AT199: 49252434.02 | AU199: 52101665.34 | AV199: 56069384.84 | AW199: 60546606.47 | AX199: 65463626.95 | AY199: 68551846.91 | AZ199: 72245004.35 | BA199: 76032533 | BB199: 80094364.07 | BC199: 81199702.63 | BD199: 81993510.82 | BE199: 82788800.43 | BF199: 83657162.65 | BG199: 86681370.87 | BH199: 91204882.84 | BI199: 96278073.05 | BJ199: 102494407.8 | BK199: 110668738.9 | BL199: 117599372.7 | BM199: 123520080.5 | BN199: 131636456 | BO199: 139505370.6 | BP199: 150609666.6 | BQ199: 159663527.1 | BR199: 169558372.3 | BS199: 178294338.5 | BT199: 189046993.9 | BU199: 201816682 | BV199: 213195214.5 | BW199: 227370913.4 | BX199: 243593384.5 | BY199: 260571215.4 | BZ199: 279769807.8 | CA199: 299062202.6 | CB199: 317769269.4 | CC199: 339583480 | CD199: 362922970 | CE199: 385727818.6 | CF199: 412475554.9 | CG199: 440605472.4 | CH199: 470885671 | CI199: 497172357.5 | CJ199: 522466880.2 | CK199: 551544619.6 | CL199: 582299917.6 | CM199: 613852029.1 | CN199: 645037239.9 | CO199: 673989056.2 | CP199: 701757898.9 | CQ199: 728752156.6 | CR199: 759072670.8 | CS199: 789801686.4 | CT199: 822301661.6 | CU199: 855321250.6 | CV199: 888526605.3 | CW199: 922893243.6 | CX199: 958612388.2 | CY199: 995005526.1 | CZ199: 1030372108 | DA199: 1065922411 | DB199: 1100113343 | DC199: 1136342855 | DD199: 1172843052 | DE199: 1210372401 | DF199: 1249358004 | DG199: 1287311030 | DH199: 1327234411 | DI199: 1368492995 | DJ199: 1408353978 | DK199: 1449616633 | DL199: 1492112022 | DM199: 1536406437 | DN199: 1582059095
A201: car_avgcap_core | B201: Passenger Cars | C201: car | D201: US | E201: core | F201: Average Capacity of Unit Additions | G201: MW | H201: avgcap | I201: 1900 | J201: 2005 | K201: use | L201: =C201&"_"&H201&"_"&E201 -> car_avgcap_core | M201: 0 | N201: 0.0001568 | O201: 0.0004641289086 | P201: 0.0008756430293 | Q201: 0.001373824259 | R201: 0.001948289532 | S201: 0.00259190844 | T201: 0.003299374016 | U201: 0.004066527766 | V201: 0.004889991803 | W201: 0.005766948304 | X201: 0.006694997917 | Y201: 0.007672064002 | Z201: 0.008696325177 | AA201: 0.009766166204 | AB201: 0.01088014125 | AC201: 0.01203694575 | AD201: 0.01323539447 | AE201: 0.01447440407 | AF201: 0.01575297907 | AG201: 0.0170702004 | AH201: 0.01842521593 | AI201: 0.01981723263 | AJ201: 0.02124550988 | AK201: 0.0227093539 | AL201: 0.02420811289 | AM201: 0.02574117291 | AN201: 0.02730795431 | AO201: 0.02890790855 | AP201: 0.03054051554 | AQ201: 0.03220528114 | AR201: 0.03390173511 | AS201: 0.03562942917 | AT201: 0.03738793531 | AU201: 0.03917684433 | AV201: 0.0409957644 | AW201: 0.04284431992 | AX201: 0.04472215037 | AY201: 0.04662890933 | AZ201: 0.04856426353 | BA201: 0.05052789208 | BB201: 0.05251948568 | BC201: 0.05453874592 | BD201: 0.05658538465 | BE201: 0.05865912341 | BF201: 0.06075969287 | BG201: 0.06288683236 | BH201: 0.06504028936 | BI201: 0.06721981913 | BJ201: 0.06942518429 | BK201: 0.07165615442 | BL201: 0.07391250579 | BM201: 0.07619402098 | BN201: 0.07850048859 | BO201: 0.08083170298 | BP201: 0.08318746403 | BQ201: 0.08556757682 | BR201: 0.08797185149 | BS201: 0.09040010295 | BT201: 0.09285215074 | BU201: 0.09532781878 | BV201: 0.09782693525 | BW201: 0.1003493324 | BX201: 0.1028948463 | BY201: 0.1054633168 | BZ201: 0.1080545874 | CA201: 0.1106685052 | CB201: 0.1133049203 | CC201: 0.1159636862 | CD201: 0.1186446596 | CE201: 0.1213477002 | CF201: 0.11175 | CG201: 0.1095 | CH201: 0.11025 | CI201: 0.10275 | CJ201: 0.099 | CK201: 0.1005 | CL201: 0.1005 | CM201: 0.09225 | CN201: 0.0915 | CO201: 0.07575 | CP201: 0.07425 | CQ201: 0.0735 | CR201: 0.078 | CS201: 0.0795 | CT201: 0.08175 | CU201: 0.08325 | CV201: 0.08475 | CW201: 0.0885 | CX201: 0.09225 | CY201: 0.09975 | CZ201: 0.09825 | DA201: 0.10425 | DB201: 0.105 | DC201: 0.11025 | DD201: 0.111 | DE201: 0.1124605263 | DF201: 0.1139210526 | DG201: 0.1161118421 | DH201: 0.1197631579 | DI201: 0.1226842105 | DJ201: 0.1226842105 | DK201: 0.1263355263 | DL201: 0.1285263158 | DM201: 0.1336381579 | DN201: 0.1350986842
A202: car_avgcap_rimFSU | B202: Passenger Cars | C202: car | D202: FSU | E202: rimFSU | F202: Average Capacity of Unit Additions | G202: MW | H202: avgcap | I202: 1900 | J202: 2005 | K202: use | L202: =C202&"_"&H202&"_"&E202 -> car_avgcap_rimFSU | M202: 0 | N202: 1.99e-05 | O202: 6.822348396e-05 | P202: 0.0001402607338 | Q202: 0.0002338916464 | R202: 0.0003477541001 | S202: 0.0004808580866 | T202: 0.0006324334652 | U202: 0.0008018544215 | V202: 0.0009885966556 | W202: 0.001192210868 | X202: 0.001412305252 | Y202: 0.001648533365 | Z202: 0.001900585384 | AA202: 0.002168181627 | AB202: 0.002451067601 | AC202: 0.002749010164 | AD202: 0.003061794469 | AE202: 0.003389221512 | AF202: 0.003731106126 | AG202: 0.004087275328 | AH202: 0.00445756693 | AI202: 0.004841828379 | AJ202: 0.005239915758 | AK202: 0.005651692943 | AL202: 0.006077030861 | AM202: 0.006515806858 | AN202: 0.006967904139 | AO202: 0.007433211277 | AP202: 0.007911621786 | AQ202: 0.008403033727 | AR202: 0.008907349377 | AS202: 0.009424474916 | AT202: 0.009954320154 | AU202: 0.01049679828 | AV202: 0.01105182566 | AW202: 0.01161932158 | AX202: 0.01219920813 | AY202: 0.01279141 | AZ202: 0.0133958543 | BA202: 0.01401247049 | BB202: 0.01464119017 | BC202: 0.01528194703 | BD202: 0.01593467669 | BE202: 0.01659931662 | BF202: 0.01727580605 | BG202: 0.01796408586 | BH202: 0.01866409855 | BI202: 0.01937578808 | BJ202: 0.02009909989 | BK202: 0.02083398078 | BL202: 0.02158037884 | BM202: 0.02233824345 | BN202: 0.02310752516 | BO202: 0.02388817569 | BP202: 0.02468014785 | BQ202: 0.0254833955 | BR202: 0.02629787352 | BS202: 0.02712353779 | BT202: 0.02796034508 | BU202: 0.0288082531 | BV202: 0.02966722041 | BW202: 0.0305372064 | BX202: 0.03141817129 | BY202: 0.03231007604 | BZ202: 0.03321288241 | CA202: 0.03412655283 | CB202: 0.03505105047 | CC202: 0.03425541345 | CD202: 0.03621286565 | CE202: 0.03719159174 | CF202: 0.03914904394 | CG202: 0.04110649614 | CH202: 0.04306394833 | CI202: 0.04404267443 | CJ202: 0.04502140053 | CK202: 0.04600012663 | CL202: 0.04795757883 | CM202: 0.04893630493 | CN202: 0.04991503102 | CO202: 0.051 | CP202: 0.051 | CQ202: 0.052 | CR202: 0.054 | CS202: 0.054 | CT202: 0.055 | CU202: 0.055 | CV202: 0.057 | CW202: 0.058 | CX202: 0.059 | CY202: 0.06 | CZ202: 0.061 | DA202: 0.062 | DB202: 0.063 | DC202: 0.064 | DD202: 0.065 | DE202: 0.0662404256 | DF202: 0.06790284865 | DG202: 0.07002983863 | DH202: 0.07237977857 | DI202: 0.07378313747 | DJ202: 0.07269998451 | DK202: 0.07398435326 | DL202: 0.07527854967 | DM202: 0.07658255245 | DN202: 0.07789634052
A203: car_avgcap_rim | B203: Passenger Cars | C203: car | D203: OECDexUS | E203: rim | F203: Average Capacity of Unit Additions | G203: MW | H203: avgcap | I203: 1900 | J203: 2005 | K203: use | L203: car_avgcap_rim | M203: 0 | N203: 1.99e-05 | O203: 6.822348396e-05 | P203: 0.0001402607338 | Q203: 0.0002338916464 | R203: 0.0003477541001 | S203: 0.0004808580866 | T203: 0.0006324334652 | U203: 0.0008018544215 | V203: 0.0009885966556 | W203: 0.001192210868 | X203: 0.001412305252 | Y203: 0.001648533365 | Z203: 0.001900585384 | AA203: 0.002168181627 | AB203: 0.002451067601 | AC203: 0.002749010164 | AD203: 0.003061794469 | AE203: 0.003389221512 | AF203: 0.003731106126 | AG203: 0.004087275328 | AH203: 0.00445756693 | AI203: 0.004841828379 | AJ203: 0.005239915758 | AK203: 0.005651692943 | AL203: 0.006077030861 | AM203: 0.006515806858 | AN203: 0.006967904139 | AO203: 0.007433211277 | AP203: 0.007911621786 | AQ203: 0.008403033727 | AR203: 0.008907349377 | AS203: 0.009424474916 | AT203: 0.009954320154 | AU203: 0.01049679828 | AV203: 0.01105182566 | AW203: 0.01161932158 | AX203: 0.01219920813 | AY203: 0.01279141 | AZ203: 0.0133958543 | BA203: 0.01401247049 | BB203: 0.01464119017 | BC203: 0.01528194703 | BD203: 0.01593467669 | BE203: 0.01659931662 | BF203: 0.01727580605 | BG203: 0.01796408586 | BH203: 0.01866409855 | BI203: 0.01937578808 | BJ203: 0.02009909989 | BK203: 0.02083398078 | BL203: 0.02158037884 | BM203: 0.02233824345 | BN203: 0.02310752516 | BO203: 0.02388817569 | BP203: 0.02468014785 | BQ203: 0.0254833955 | BR203: 0.02629787352 | BS203: 0.02712353779 | BT203: 0.02796034508 | BU203: 0.0288082531 | BV203: 0.02966722041 | BW203: 0.0305372064 | BX203: 0.03141817129 | BY203: 0.03231007604 | BZ203: 0.03321288241 | CA203: 0.03412655283 | CB203: 0.03505105047 | CC203: 0.03425541345 | CD203: 0.03621286565 | CE203: 0.03719159174 | CF203: 0.03914904394 | CG203: 0.04110649614 | CH203: 0.04306394833 | CI203: 0.04404267443 | CJ203: 0.04502140053 | CK203: 0.04600012663 | CL203: 0.04795757883 | CM203: 0.04893630493 | CN203: 0.04991503102 | CO203: 0.051 | CP203: 0.051 | CQ203: 0.052 | CR203: 0.054 | CS203: 0.054 | CT203: 0.055 | CU203: 0.055 | CV203: 0.057 | CW203: 0.058 | CX203: 0.059 | CY203: 0.06 | CZ203: 0.061 | DA203: 0.062 | DB203: 0.063 | DC203: 0.064 | DD203: 0.065 | DE203: 0.0662404256 | DF203: 0.06790284865 | DG203: 0.07002983863 | DH203: 0.07237977857 | DI203: 0.07378313747 | DJ203: 0.07269998451 | DK203: 0.07398435326 | DL203: 0.07527854967 | DM203: 0.07658255245 | DN203: 0.07789634052
A204: car_avgcap_peri | B204: Passenger Cars | C204: car | D204: Developing | E204: peri | F204: Average Capacity of Unit Additions | G204: MW | H204: avgcap | I204: 1900 | J204: 2005 | K204: use | L204: car_avgcap_peri | M204: 0 | N204: 1.99e-05 | O204: 6.822348396e-05 | P204: 0.0001402607338 | Q204: 0.0002338916464 | R204: 0.0003477541001 | S204: 0.0004808580866 | T204: 0.0006324334652 | U204: 0.0008018544215 | V204: 0.0009885966556 | W204: 0.001192210868 | X204: 0.001412305252 | Y204: 0.001648533365 | Z204: 0.001900585384 | AA204: 0.002168181627 | AB204: 0.002451067601 | AC204: 0.002749010164 | AD204: 0.003061794469 | AE204: 0.003389221512 | AF204: 0.003731106126 | AG204: 0.004087275328 | AH204: 0.00445756693 | AI204: 0.004841828379 | AJ204: 0.005239915758 | AK204: 0.005651692943 | AL204: 0.006077030861 | AM204: 0.006515806858 | AN204: 0.006967904139 | AO204: 0.007433211277 | AP204: 0.007911621786 | AQ204: 0.008403033727 | AR204: 0.008907349377 | AS204: 0.009424474916 | AT204: 0.009954320154 | AU204: 0.01049679828 | AV204: 0.01105182566 | AW204: 0.01161932158 | AX204: 0.01219920813 | AY204: 0.01279141 | AZ204: 0.0133958543 | BA204: 0.01401247049 | BB204: 0.01464119017 | BC204: 0.01528194703 | BD204: 0.01593467669 | BE204: 0.01659931662 | BF204: 0.01727580605 | BG204: 0.01796408586 | BH204: 0.01866409855 | BI204: 0.01937578808 | BJ204: 0.02009909989 | BK204: 0.02083398078 | BL204: 0.02158037884 | BM204: 0.02233824345 | BN204: 0.02310752516 | BO204: 0.02388817569 | BP204: 0.02468014785 | BQ204: 0.0254833955 | BR204: 0.02629787352 | BS204: 0.02712353779 | BT204: 0.02796034508 | BU204: 0.0288082531 | BV204: 0.02966722041 | BW204: 0.0305372064 | BX204: 0.03141817129 | BY204: 0.03231007604 | BZ204: 0.03321288241 | CA204: 0.03412655283 | CB204: 0.03505105047 | CC204: 0.03425541345 | CD204: 0.03621286565 | CE204: 0.03719159174 | CF204: 0.03914904394 | CG204: 0.04110649614 | CH204: 0.04306394833 | CI204: 0.04404267443 | CJ204: 0.04502140053 | CK204: 0.04600012663 | CL204: 0.04795757883 | CM204: 0.04893630493 | CN204: 0.04991503102 | CO204: 0.051 | CP204: 0.051 | CQ204: 0.052 | CR204: 0.054 | CS204: 0.054 | CT204: 0.055 | CU204: 0.055 | CV204: 0.057 | CW204: 0.058 | CX204: 0.059 | CY204: 0.06 | CZ204: 0.061 | DA204: 0.062 | DB204: 0.063 | DC204: 0.064 | DD204: 0.065 | DE204: 0.0662404256 | DF204: 0.06790284865 | DG204: 0.07002983863 | DH204: 0.07237977857 | DI204: 0.07378313747 | DJ204: 0.07269998451 | DK204: 0.07398435326 | DL204: 0.07527854967 | DM204: 0.07658255245 | DN204: 0.07789634052
A205: car_avgcap_glob | B205: Passenger Cars | C205: car | D205: Global | E205: glob | F205: Average Capacity of Unit Additions | G205: MW | H205: avgcap | I205: 1900 | J205: 2005 | K205: use | L205: car_avgcap_glob | M205: 0 | N205: 9.015719826e-05 | O205: 0.0002461883663 | P205: 0.0004376829564 | Q205: 0.0007892029676 | R205: 0.001090720742 | S205: 0.001500383808 | T205: 0.002393684703 | U205: 0.003090813461 | V205: 0.004046207036 | W205: 0.005007958148 | X205: 0.005686893384 | Y205: 0.007022242339 | Z205: 0.008070209913 | AA205: 0.01034325019 | AB205: 0.01153372261 | AC205: 0.01285568895 | AD205: 0.01386443179 | AE205: 0.01489754605 | AF205: 0.01648013635 | AG205: 0.01781513443 | AH205: 0.0190404467 | AI205: 0.02021439725 | AJ205: 0.02183941492 | AK205: 0.02268800167 | AL205: 0.02400624469 | AM205: 0.02521395793 | AN205: 0.02579490015 | AO205: 0.0276360018 | AP205: 0.02958443267 | AQ205: 0.03048923027 | AR205: 0.03143648234 | AS205: 0.03028956999 | AT205: 0.03244173755 | AU205: 0.03480423628 | AV205: 0.03746145238 | AW205: 0.03900317722 | AX205: 0.0402007928 | AY205: 0.03696094952 | AZ205: 0.04338383714 | BA205: 0.05199491331 | BB205: 0.0543965575 | BC205: 0.04833265097 | BD205: 0.04811589437 | BE205: 0.05153940535 | BF205: 0.04912175436 | BG205: 0.05853574062 | BH205: 0.06192415674 | BI205: 0.0626415518 | BJ205: 0.06364368646 | BK205: 0.06456565638 | BL205: 0.06772884861 | BM205: 0.06893266835 | BN205: 0.06735154954 | BO205: 0.06575190387 | BP205: 0.06644118125 | BQ205: 0.06587871239 | BR205: 0.06536897003 | BS205: 0.06004380121 | BT205: 0.0637862444 | BU205: 0.06488328555 | BV205: 0.06519389082 | BW205: 0.06531688372 | BX205: 0.06579965477 | BY205: 0.06676128417 | BZ205: 0.06975932767 | CA205: 0.06855965642 | CB205: 0.06538286878 | CC205: 0.06708092242 | CD205: 0.06446023962 | CE205: 0.06122729579 | CF205: 0.06050041257 | CG205: 0.06135409665 | CH205: 0.06422524579 | CI205: 0.06203079408 | CJ205: 0.05974389327 | CK205: 0.0621372758 | CL205: 0.06427724744 | CM205: 0.06173181052 | CN205: 0.06201926612 | CO205: 0.05792235169 | CP205: 0.05716165873 | CQ205: 0.05683091451 | CR205: 0.05924594715 | CS205: 0.060927324 | CT205: 0.06244774621 | CU205: 0.06208077456 | CV205: 0.06312652657 | CW205: 0.06504187996 | CX205: 0.06524482968 | CY205: 0.06484333323 | CZ205: 0.06499330675 | DA205: 0.06825210244 | DB205: 0.07063036721 | DC205: 0.07342237511 | DD205: 0.07427314619 | DE205: 0.07521524394 | DF205: 0.07633089204 | DG205: 0.07881607554 | DH205: 0.08192322634 | DI205: 0.08281271753 | DJ205: 0.0816040863 | DK205: 0.08340643485 | DL205: 0.08445631183 | DM205: 0.08567964636 | DN205: 0.08680260768
A207: car_maxcap_core | B207: Passenger Cars | C207: car | D207: US | E207: core | F207: Maximum Capacity of Unit Additions | G207: MW | H207: maxcap | K207: no data | L207: =C207&"_"&H207&"_"&E207 -> car_maxcap_core
A208: car_maxcap_rimFSU | B208: Passenger Cars | C208: car | D208: FSU | E208: rimFSU | F208: Maximum Capacity of Unit Additions | G208: MW | H208: maxcap | K208: no data | L208: =C208&"_"&H208&"_"&E208 -> car_maxcap_rimFSU
A209: car_maxcap_rim | B209: Passenger Cars | C209: car | D209: OECDexUS | E209: rim | F209: Maximum Capacity of Unit Additions | G209: MW | H209: maxcap | K209: no data | L209: car_maxcap_rim
A210: car_maxcap_peri | B210: Passenger Cars | C210: car | D210: Developing | E210: peri | F210: Maximum Capacity of Unit Additions | G210: MW | H210: maxcap | K210: no data | L210: car_maxcap_peri
A211: car_maxcap_glob | B211: Passenger Cars | C211: car | D211: Global | E211: glob | F211: Maximum Capacity of Unit Additions | G211: MW | H211: maxcap | K211: no data | L211: car_maxcap_glob
B213: COMPACT FLUORESCENT LIGHTBULBS, CFLs (1990-2003) | M213: 1990 | N213: 1991 | O213: 1992 | P213: 1993 | Q213: 1994 | R213: 1995 | S213: 1996 | T213: 1997 | U213: 1998 | V213: 1999 | W213: 2000 | X213: 2001 | Y213: 2002 | Z213: 2003
A215: =L215 -> cfl_cumcap_core | B215: CFLs | C215: cfl | D215: OECDexJapan | E215: core | F215: Cumulative Total Capacity | G215: MW | H215: cumcap | I215: 1990 | J215: 2003 | K215: use | L215: =C215&"_"&H215&"_"&E215 -> cfl_cumcap_core | M215: =M221*15/1000000 -> 853.5572449 | N215: =N221*15/1000000 -> 2061.614495 | O215: 3571.794005 | P215: 5400.761515 | Q215: 7478.30701 | R215: 9786.550755 | S215: 12308.36351 | T215: 15168.26601 | U215: 18348.37831 | V215: 21795.20445 | W215: 25544.6319 | X215: 29613.47056 | Y215: 34018.38545 | Z215: =Z221*15/1000000 -> 38918.5078
A216: =L216 -> cfl_cumcap_rimFSU | B216: CFLs | C216: cfl | D216: not used | E216: rimFSU | F216: Cumulative Total Capacity | G216: MW | H216: cumcap | K216: not used | L216: =C216&"_"&H216&"_"&E216 -> cfl_cumcap_rimFSU
A217: =L217 -> cfl_cumcap_rim | B217: CFLs | C217: cfl | D217: Asia | E217: rim | F217: Cumulative Total Capacity | G217: MW | H217: cumcap | I217: 1990 | J217: 2003 | K217: use | L217: =C217&"_"&H217&"_"&E217 -> cfl_cumcap_rim | M217: =M223*15/1000000 -> 384.138855 | N217: 874.769775 | O217: 1511.494275 | P217: 2333.018775 | Q217: 3279.78855 | R217: 4478.15355 | S217: 6048.30855 | T217: 8247.87855 | U217: 10549.80855 | V217: 13665.87855 | W217: 19424.07855 | X217: 26984.07855 | Y217: 36207.57855 | Z217: 48645.72855
A218: =L218 -> cfl_cumcap_peri | B218: CFLs | C218: cfl | D218: RestofWorld | E218: peri | F218: Cumulative Total Capacity | G218: MW | H218: cumcap | I218: 1990 | J218: 2003 | K218: use | L218: =C218&"_"&H218&"_"&E218 -> cfl_cumcap_peri | M218: 124.663155 | N218: 283.218375 | O218: 475.667175 | P218: 778.854075 | Q218: 1098.98625 | R218: 1446.632475 | S218: 1884.321225 | T218: 2451.9996 | U218: 3093.8706 | V218: 3846.5721 | W218: 5248.0536 | X218: 8199.0336 | Y218: 9903.0756 | Z218: 11927.2611
A219: =L219 -> cfl_cumcap_glob | B219: CFLs | C219: cfl | D219: Global | E219: glob | F219: Cumulative Total Capacity | G219: MW | H219: cumcap | I219: 1990 | J219: 2003 | K219: use | L219: =C219&"_"&H219&"_"&E219 -> cfl_cumcap_glob | M219: 1362.359255 | N219: 3219.602645 | O219: 5558.955455 | P219: 8512.634365 | Q219: 11857.08181 | R219: 15711.33678 | S219: 20240.99328 | T219: 25868.14416 | U219: 31992.05746 | V219: 39307.6551 | W219: 50216.76405 | X219: 64796.58271 | Y219: 80129.0396 | Z219: 99491.49745
A221: =L221 -> cfl_cumuni_core | B221: CFLs | C221: cfl | D221: OECDexJapan | E221: core | F221: Cumulative Total No. of Units | G221: # | H221: cumuni | I221: 1990 | J221: 2003 | K221: use | L221: =C221&"_"&H221&"_"&E221 -> cfl_cumuni_core | M221: 56903816.33 | N221: 137440966.3 | O221: 238119600.3 | P221: 360050767.7 | Q221: 498553800.7 | R221: 652436717 | S221: 820557567 | T221: 1011217734 | U221: 1223225220 | V221: 1453013630 | W221: 1702975460 | X221: 1974231370 | Y221: 2267892364 | Z221: 2594567187
A222: cfl_cumuni_rimFSU | B222: CFLs | C222: cfl | D222: not used | E222: rimFSU | F222: Cumulative Total No. of Units | G222: # | H222: cumuni | K222: not used | L222: =C222&"_"&H222&"_"&E222 -> cfl_cumuni_rimFSU
A223: cfl_cumuni_rim | B223: CFLs | C223: cfl | D223: Asia | E223: rim | F223: Cumulative Total No. of Units | G223: # | H223: cumuni | I223: 1990 | J223: 2003 | K223: use | L223: =C223&"_"&H223&"_"&E223 -> cfl_cumuni_rim | M223: 25609257 | N223: 58317985 | O223: 100766285 | P223: 155534585 | Q223: 218652570 | R223: 298543570 | S223: 403220570 | T223: 549858570 | U223: 703320570 | V223: 911058570 | W223: 1294938570 | X223: 1798938570 | Y223: 2413838570 | Z223: 3243048570
A224: cfl_cumuni_peri | B224: CFLs | C224: cfl | D224: RestofWorld | E224: peri | F224: Cumulative Total No. of Units | G224: # | H224: cumuni | I224: 1990 | J224: 2003 | K224: use | L224: =C224&"_"&H224&"_"&E224 -> cfl_cumuni_peri | M224: 8310877 | N224: 18881225 | O224: 31711145 | P224: 51923605 | Q224: 73265750 | R224: 96442165 | S224: 125621415 | T224: 163466640 | U224: 206258040 | V224: 256438140 | W224: 349870240 | X224: 546602240 | Y224: 660205040 | Z224: 795150740
A225: cfl_cumuni_glob | B225: CFLs | C225: cfl | D225: Global | E225: glob | F225: Cumulative Total No. of Units | G225: # | H225: cumuni | I225: 1990 | J225: 2003 | K225: use | L225: =C225&"_"&H225&"_"&E225 -> cfl_cumuni_glob | M225: 90823950.33 | N225: 214640176.3 | O225: 370597030.3 | P225: 567508957.7 | Q225: 790472120.7 | R225: 1047422452 | S225: 1349399552 | T225: 1724542944 | U225: 2132803830 | V225: 2620510340 | W225: 3347784270 | X225: 4319772180 | Y225: 5341935974 | Z225: 6632766497
A227: cfl_avgcap_core | B227: CFLs | C227: cfl | D227: OECDexJapan | E227: core | F227: Average Capacity of Unit Additions | G227: MW | H227: avgcap | K227: constant | L227: =C227&"_"&H227&"_"&E227 -> cfl_avgcap_core
A228: cfl_avgcap_rimFSU | B228: CFLs | C228: cfl | D228: not used | E228: rimFSU | F228: Average Capacity of Unit Additions | G228: MW | H228: avgcap | K228: constant | L228: =C228&"_"&H228&"_"&E228 -> cfl_avgcap_rimFSU
A229: cfl_avgcap_rim | B229: CFLs | C229: cfl | D229: Asia | E229: rim | F229: Average Capacity of Unit Additions | G229: MW | H229: avgcap | K229: constant | L229: cfl_avgcap_rim
A230: cfl_avgcap_peri | B230: CFLs | C230: cfl | D230: RestofWorld | E230: peri | F230: Average Capacity of Unit Additions | G230: MW | H230: avgcap | K230: constant | L230: cfl_avgcap_peri
A231: cfl_avgcap_glob | B231: CFLs | C231: cfl | D231: Global | E231: glob | F231: Average Capacity of Unit Additions | G231: MW | H231: avgcap | K231: constant | L231: cfl_avgcap_glob
A233: cfl_maxcap_core | B233: CFLs | C233: cfl | D233: OECDexJapan | E233: core | F233: Maximum Capacity of Unit Additions | G233: MW | H233: maxcap | K233: constant | L233: =C233&"_"&H233&"_"&E233 -> cfl_maxcap_core
A234: cfl_maxcap_rimFSU | B234: CFLs | C234: cfl | D234: not used | E234: rimFSU | F234: Maximum Capacity of Unit Additions | G234: MW | H234: maxcap | K234: constant | L234: =C234&"_"&H234&"_"&E234 -> cfl_maxcap_rimFSU
A235: cfl_maxcap_rim | B235: CFLs | C235: cfl | D235: Asia | E235: rim | F235: Maximum Capacity of Unit Additions | G235: MW | H235: maxcap | K235: constant | L235: cfl_maxcap_rim
A236: cfl_maxcap_peri | B236: CFLs | C236: cfl | D236: RestofWorld | E236: peri | F236: Maximum Capacity of Unit Additions | G236: MW | H236: maxcap | K236: constant | L236: cfl_maxcap_peri
A237: cfl_maxcap_glob | B237: CFLs | C237: cfl | D237: Global | E237: glob | F237: Maximum Capacity of Unit Additions | G237: MW | H237: maxcap | K237: constant | L237: cfl_maxcap_glob
B239: BICYCLES (1861-2007) | M239: 1861 | N239: 1862 | O239: 1863 | P239: 1864 | Q239: 1865 | R239: 1866 | S239: 1867 | T239: 1868 | U239: 1869 | V239: 1870 | W239: 1871 | X239: 1872 | Y239: 1873 | Z239: 1874 | AA239: 1875 | AB239: 1876 | AC239: 1877 | AD239: 1878 | AE239: 1879 | AF239: 1880 | AG239: 1881 | AH239: 1882 | AI239: 1883 | AJ239: 1884 | AK239: 1885 | AL239: 1886 | AM239: 1887 | AN239: 1888 | AO239: 1889 | AP239: 1890 | AQ239: 1891 | AR239: 1892 | AS239: 1893 | AT239: 1894 | AU239: 1895 | AV239: 1896 | AW239: 1897 | AX239: 1898 | AY239: 1899 | AZ239: 1900 | BA239: 1901 | BB239: 1902 | BC239: 1903 | BD239: 1904 | BE239: 1905 | BF239: 1906 | BG239: 1907 | BH239: 1908 | BI239: 1909 | BJ239: 1910 | BK239: 1911 | BL239: 1912 | BM239: 1913 | BN239: 1914 | BO239: 1915 | BP239: 1916 | BQ239: 1917 | BR239: 1918 | BS239: 1919 | BT239: 1920 | BU239: 1921 | BV239: 1922 | BW239: 1923 | BX239: 1924 | BY239: 1925 | BZ239: 1926 | CA239: 1927 | CB239: 1928 | CC239: 1929 | CD239: 1930 | CE239: 1931 | CF239: 1932 | CG239: 1933 | CH239: 1934 | CI239: 1935 | CJ239: 1936 | CK239: 1937 | CL239: 1938 | CM239: 1939 | CN239: 1940 | CO239: 1941 | CP239: 1942 | CQ239: 1943 | CR239: 1944 | CS239: 1945 | CT239: 1946 | CU239: 1947 | CV239: 1948 | CW239: 1949 | CX239: 1950 | CY239: 1951 | CZ239: 1952 | DA239: 1953 | DB239: 1954 | DC239: 1955 | DD239: 1956 | DE239: 1957 | DF239: 1958 | DG239: 1959 | DH239: 1960 | DI239: 1961 | DJ239: 1962 | DK239: 1963 | DL239: 1964 | DM239: 1965 | DN239: 1966 | DO239: 1967 | DP239: 1968 | DQ239: 1969 | DR239: 1970 | DS239: 1971 | DT239: 1972 | DU239: 1973 | DV239: 1974 | DW239: 1975 | DX239: 1976 | DY239: 1977 | DZ239: 1978 | EA239: 1979 | EB239: 1980 | EC239: 1981 | ED239: 1982 | EE239: 1983 | EF239: 1984 | EG239: 1985 | EH239: 1986 | EI239: 1987 | EJ239: 1988 | EK239: 1989 | EL239: 1990 | EM239: 1991 | EN239: 1992 | EO239: 1993 | EP239: 1994 | EQ239: 1995 | ER239: 1996 | ES239: 1997 | ET239: 1998 | EU239: 1999 | EV239: 2000 | EW239: 2001 | EX239: 2002 | EY239: 2003 | EZ239: 2004 | FA239: 2005 | FB239: 2006 | FC239: 2007
A241: =L241 -> bik_cumcap_core | B241: Bicycles | C241: bik | D241: UK+France+Germany | E241: core | F241: Cumulative Total Capacity | G241: MW | H241: cumcap | I241: 1861 | J241: 2007 | K241: use | L241: =C241&"_"&H241&"_"&E241 -> bik_cumcap_core | M241: 0.0002 | N241: 0.0144 | O241: 0.0372 | P241: 0.0686 | Q241: 0.1086 | R241: 0.4532666667 | S241: 1.1026 | T241: 2.0766 | U241: 3.375266667 | V241: 6.644896296 | W241: 11.88548889 | X241: 19.09704444 | Y241: 28.27956296 | Z241: 39.43304444 | AA241: 52.55748889 | AB241: 67.6528963 | AC241: 84.71926667 | AD241: 105.3866 | AE241: 132.6548963 | AF241: 163.8770967 | AG241: 199.0532013 | AH241: 238.18321 | AI241: 281.2671229 | AJ241: 328.3049399 | AK241: 379.296661 | AL241: 434.2422863 | AM241: 493.1418157 | AN241: 555.9952492 | AO241: 622.8025869 | AP241: 693.5638288 | AQ241: 768.2789747 | AR241: 846.9480248 | AS241: 929.5709791 | AT241: 1016.147837 | AU241: 1106.6786 | AV241: 1200.7286 | AW241: 1300.650353 | AX241: 1405.41886 | AY241: 1544.829119 | AZ241: 1669.141132 | BA241: 1796.529899 | BB241: 1926.975418 | BC241: 2065.187691 | BD241: 2218.731717 | BE241: 2370.012496 | BF241: 2518.005029 | BG241: 2703.549314 | BH241: 2877.365095 | BI241: 3060.757371 | BJ241: 3249.626141 | BK241: 3450.061407 | BL241: 3646.183167 | BM241: 3860.296423 | BN241: 4055.626173 | BO241: 4261.569561 | BP241: 4478.126587 | BQ241: 4705.297251 | BR241: 4943.081553 | BS241: 5191.479492 | BT241: 5450.49107 | BU241: 5720.116285 | BV241: 6003.467995 | BW241: 6289.5462 | BX241: 6588.3359 | BY241: 6882.124488 | BZ241: 7182.701964 | CA241: 7472.080829 | CB241: 7750.261081 | CC241: 8048.325221 | CD241: 8344.19325 | CE241: 8690.92553 | CF241: 9043.234561 | CG241: 9401.120344 | CH241: 9781.330379 | CI241: 10204.36466 | CJ241: 10682.59752 | CK241: 11177.54395 | CL241: 11688.78395 | CM241: 12196.45208 | CN241: 12700.54833 | CO241: 13201.0727 | CP241: 13615.1252 | CQ241: 13942.70583 | CR241: 14311.12458 | CS241: 14720.38145 | CT241: 15170.47645 | CU241: 15699.50645 | CV241: 16264.87145 | CW241: 16887.46145 | CX241: 17398.49645 | CY241: 17937.48445 | CZ241: 18547.82545 | DA241: 19056.31945 | DB241: 19585.66645 | DC241: 20181.16645 | DD241: 20728.76645 | DE241: 21189.86645 | DF241: 21637.85395 | DG241: 22094.92895 | DH241: 22550.09145 | DI241: 23001.14145 | DJ241: 23428.54145 | DK241: 23861.44145 | DL241: 24279.14145 | DM241: 24701.64145 | DN241: 25094.64145 | DO241: 25503.14145 | DP241: 25970.14145 | DQ241: 26475.64145 | DR241: 26999.54145 | DS241: 27617.24145 | DT241: 28344.84145 | DU241: 29088.04145 | DV241: 29830.74145 | DW241: 30511.04145 | DX241: 31241.64145 | DY241: 32008.74145 | DZ241: 32806.54145 | EA241: 33595.24145 | EB241: 34484.94145 | EC241: 35272.67478 | ED241: 35999.24145 | EE241: 36725.44145 | EF241: 37389.27478 | EG241: 38003.74145 | EH241: 38617.74145 | EI241: 39201.14145 | EJ241: 39787.44145 | EK241: 40461.24145 | EL241: 41182.24145 | EM241: 41796.04145 | EN241: 42373.04145 | EO241: 42897.24145 | EP241: 43409.14145 | EQ241: 43871.34145 | ER241: 44330.80812 | ES241: 44828.44701 | ET241: 45284.34608 | EU241: 45771.21187 | EV241: 46321.41377 | EW241: 46818.75447 | EX241: 47293.08017 | EY241: 47749.93427 | EZ241: 48179.66417 | FA241: 48576.80887 | FB241: 48906.10887 | FC241: 49212.00887
A242: =L242 -> bik_cumcap_rimFSU | B242: Bicycles | C242: bik | D242: FSU | E242: rimFSU | F242: Cumulative Total Capacity | G242: MW | H242: cumcap | I242: 1861 | J242: 2007 | K242: use | L242: =C242&"_"&H242&"_"&E242 -> bik_cumcap_rimFSU | M242: 0 | N242: 0 | O242: 0 | P242: 0 | Q242: 0 | R242: 0 | S242: 0 | T242: 0 | U242: 0 | V242: 0 | W242: 0 | X242: 0 | Y242: 0 | Z242: 0 | AA242: 0 | AB242: 0 | AC242: 0 | AD242: 0 | AE242: 0 | AF242: 0 | AG242: 0 | AH242: 0 | AI242: 0 | AJ242: 0 | AK242: 0 | AL242: 0.0019 | AM242: 0.015825 | AN242: 0.041775 | AO242: 0.07975 | AP242: 0.12975 | AQ242: 0.17975 | AR242: 0.22975 | AS242: 0.27975 | AT242: 0.32975 | AU242: 0.37975 | AV242: 0.435612069 | AW242: 0.4973362069 | AX242: 0.5649224138 | AY242: 0.6383706897 | AZ242: 0.7176810345 | BA242: 0.8028534483 | BB242: 0.893887931 | BC242: 0.9907844828 | BD242: 1.093543103 | BE242: 1.202163793 | BF242: 1.316646552 | BG242: 1.436991379 | BH242: 1.563198276 | BI242: 1.695267241 | BJ242: 1.833198276 | BK242: 1.976991379 | BL242: 2.126646552 | BM242: 2.282163793 | BN242: 2.443543103 | BO242: 2.610784483 | BP242: 2.783887931 | BQ242: 2.962853448 | BR242: 3.147681034 | BS242: 3.33837069 | BT242: 3.534922414 | BU242: 3.737336207 | BV242: 3.945612069 | BW242: 4.15975 | BX242: 4.37975 | BY242: 6.050861111 | BZ242: 9.173083333 | CA242: 13.74641667 | CB242: 19.77086111 | CC242: 27.24641667 | CD242: 36.17308333 | CE242: 46.55086111 | CF242: 58.37975 | CG242: 71.65975 | CH242: 85.85975 | CI242: 111.9930833 | CJ242: 150.05975 | CK242: 200.05975 | CL242: 263.21175 | CM242: 339.51575 | CN242: 428.97175 | CO242: 531.57975 | CP242: 647.33975 | CQ242: 776.25175 | CR242: 918.31575 | CS242: 1073.53175 | CT242: 1241.89975 | CU242: 1423.41975 | CV242: 1618.09175 | CW242: 1825.91575 | CX242: 2046.89175 | CY242: 2281.01975 | CZ242: 2528.29975 | DA242: 2788.73175 | DB242: 3062.31575 | DC242: 3349.05175 | DD242: 3648.93975 | DE242: 3961.97975 | DF242: 4288.17175 | DG242: 4627.51575 | DH242: 4980.01175 | DI242: 5345.65975 | DJ242: 5724.45975 | DK242: 6020.65975 | DL242: 6339.55975 | DM242: 6680.95975 | DN242: 7037.35975 | DO242: 7400.65975 | DP242: 7768.45975 | DQ242: 8145.45975 | DR242: 8530.65975 | DS242: 8921.85975 | DT242: 9321.85975 | DU242: 9733.05975 | DV242: 10147.75975 | DW242: 10576.95975 | DX242: 11012.35975 | DY242: 11464.15975 | DZ242: 11932.75975 | EA242: 12397.65975 | EB242: 12871.25975 | EC242: 13354.95975 | ED242: 13852.75975 | EE242: 14358.75975 | EF242: 14886.85975 | EG242: 15423.05975 | EH242: 15972.15975 | EI242: 16527.15975 | EJ242: 17091.85975 | EK242: 17652.35975 | EL242: 18238.85975 | EM242: 18844.55975 | EN242: 19278.85975 | EO242: 19627.25975 | EP242: 19816.65975 | EQ242: 19920.65975 | ER242: 20003.55975 | ES242: 20099.05975 | ET242: 20197.65975 | EU242: 20314.25975 | EV242: 20463.09975 | EW242: 20635.43975 | EX242: 20834.56975 | EY242: 21019.39095 | EZ242: 21193.04075 | FA242: 21334.63405 | FB242: 21597.05295 | FC242: 21883.74785
A243: =L243 -> bik_cumcap_rim | B243: Bicycles | C243: bik | D243: Neth+Italy+US+Japan | E243: rim | F243: Cumulative Total Capacity | G243: MW | H243: cumcap | I243: 1861 | J243: 2007 | K243: use | L243: =C243&"_"&H243&"_"&E243 -> bik_cumcap_rim | M243: 0 | N243: 0 | O243: 0 | P243: 0 | Q243: 0 | R243: 0.0005 | S243: 0.0015 | T243: 0.0515 | U243: 0.3176720015 | V243: 0.590936462 | W243: 0.8720879488 | X243: 1.161968525 | Y243: 1.461470587 | Z243: 1.771539879 | AA243: 2.093178673 | AB243: 2.427449155 | AC243: 2.782277005 | AD243: 3.167255189 | AE243: 3.604647984 | AF243: 4.145795243 | AG243: 4.852116905 | AH243: 5.725117791 | AI243: 6.726392671 | AJ243: 7.857631645 | AK243: 9.467364854 | AL243: 11.2369198 | AM243: 13.53684563 | AN243: 25.49873762 | AO243: 47.13239307 | AP243: 82.89854457 | AQ243: 151.8089559 | AR243: 253.8765284 | AS243: 349.4487517 | AT243: 438.5411681 | AU243: 521.1708498 | AV243: 684.0232265 | AW243: 887.1189296 | AX243: 1045.980656 | AY243: 1160.633386 | AZ243: 1282.889627 | BA243: 1358.852182 | BB243: 1388.554447 | BC243: 1417.675741 | BD243: 1446.256674 | BE243: 1474.142051 | BF243: 1501.381323 | BG243: 1528.029086 | BH243: 1554.145629 | BI243: 1579.797546 | BJ243: 1608.858409 | BK243: 1641.409515 | BL243: 1677.540703 | BM243: 1717.351264 | BN243: 1760.950933 | BO243: 1809.260991 | BP243: 1862.41546 | BQ243: 1920.562424 | BR243: 1983.865467 | BS243: 2052.505238 | BT243: 2110.781157 | BU243: 2158.913257 | BV243: 2223.14417 | BW243: 2303.741263 | BX243: 2377.998911 | BY243: 2446.240916 | BZ243: 2516.32304 | CA243: 2588.635658 | CB243: 2668.106486 | CC243: 2755.203359 | CD243: 2845.43701 | CE243: 2939.363789 | CF243: 3043.088246 | CG243: 3157.265493 | CH243: 3296.603225 | CI243: 3461.863288 | CJ243: 3670.862628 | CK243: 3903.473479 | CL243: 4153.622607 | CM243: 4422.289421 | CN243: 4687.836115 | CO243: 4914.25201 | CP243: 5101.68232 | CQ243: 5309.548195 | CR243: 5538.013914 | CS243: 5787.254082 | CT243: 6090.294193 | CU243: 6461.631196 | CV243: 6870.874084 | CW243: 7306.244485 | CX243: 7771.758368 | CY243: 8207.487585 | CZ243: 8614.019724 | DA243: 8995.447613 | DB243: 9349.369628 | DC243: 9712.640024 | DD243: 10115.36929 | DE243: 10569.67451 | DF243: 11081.67979 | DG243: 11669.37663 | DH243: 12325.9044 | DI243: 13029.4108 | DJ243: 13777.7508 | DK243: 14543.2508 | DL243: 15410.8508 | DM243: 16328.5508 | DN243: 17344.3508 | DO243: 18410.2508 | DP243: 19624.7508 | DQ243: 20789.8508 | DR243: 21962.4508 | DS243: 23365.5508 | DT243: 25246.0508 | DU243: 27498.6508 | DV243: 29575.2508 | DW243: 30997.5508 | DX243: 32570.4508 | DY243: 34265.1508 | DZ243: 35937.9508 | EA243: 37835.8508 | EB243: 39603.2508 | EC243: 41265.3508 | ED243: 42758.8508 | EE243: 44420.6508 | EF243: 46020.5508 | EG243: 47598.3508 | EH243: 49098.6508 | EI243: 50693.5758 | EJ243: 52350.5258 | EK243: 54071.0008 | EL243: 55851.8008 | EM243: 57838.7008 | EN243: 59962.6008 | EO243: 62215.0008 | EP243: 64510.6008 | EQ243: 66686.6008 | ER243: 68597.3008 | ES243: 70232.4008 | ET243: 71440.8008 | EU243: 72554.1008 | EV243: 73543.6008 | EW243: 74423.8008 | EX243: 75096.1008 | EY243: 75844.5197 | EZ243: 76585.3961 | FA243: 77206.3497 | FB243: 77835.1621 | FC243: 78502.0337
A244: =L244 -> bik_cumcap_peri | B244: Bicycles | C244: bik | D244: RestOfWorld | E244: peri | F244: Cumulative Total Capacity | G244: MW | H244: cumcap | I244: 1861 | J244: 2007 | K244: use | L244: =C244&"_"&H244&"_"&E244 -> bik_cumcap_peri | M244: 0 | N244: 0 | O244: 0 | P244: 0 | Q244: 0 | R244: 0 | S244: 0 | T244: 0 | U244: 0 | V244: 0 | W244: 0 | X244: 0 | Y244: 0 | Z244: 0 | AA244: 0 | AB244: 0 | AC244: 0 | AD244: 0 | AE244: 0 | AF244: 0 | AG244: 0 | AH244: 0 | AI244: 0 | AJ244: 0 | AK244: 0 | AL244: 0 | AM244: 0 | AN244: 0 | AO244: 0 | AP244: 0 | AQ244: 0 | AR244: 0 | AS244: 0 | AT244: 0 | AU244: 0 | AV244: 0 | AW244: 0 | AX244: 0 | AY244: 0 | AZ244: 0 | BA244: 0 | BB244: 0 | BC244: 0 | BD244: 0 | BE244: 0 | BF244: 0 | BG244: 0 | BH244: 0 | BI244: 0 | BJ244: 0 | BK244: 0 | BL244: 0 | BM244: 0 | BN244: 0 | BO244: 0 | BP244: 0 | BQ244: 0 | BR244: 0 | BS244: 0 | BT244: 0 | BU244: 0 | BV244: 0 | BW244: 0 | BX244: 0 | BY244: 0 | BZ244: 0 | CA244: 0 | CB244: 0 | CC244: 0 | CD244: 0.125 | CE244: 0.375 | CF244: 0.75 | CG244: 1.25 | CH244: 1.875 | CI244: 2.625 | CJ244: 3.5 | CK244: 4.5 | CL244: 5.5 | CM244: 6.5 | CN244: 7.5 | CO244: 8.5 | CP244: 9.5 | CQ244: 10.5 | CR244: 12.425 | CS244: 15.275 | CT244: 19.15 | CU244: 24.05 | CV244: 31.11666667 | CW244: 40.35 | CX244: 62.60555556 | CY244: 104.3295238 | CZ244: 165.5219048 | DA244: 315.1680153 | DB244: 558.3150005 | DC244: 812.8086046 | DD244: 1162.59134 | DE244: 1634.146115 | DF244: 2147.961337 | DG244: 2663.845499 | DH244: 3199.659231 | DI244: 3679.454832 | DJ244: 4245.614832 | DK244: 4672.414832 | DL244: 5141.214832 | DM244: 5617.614832 | DN244: 6084.414832 | DO244: 6579.114832 | DP244: 7095.714832 | DQ244: 7667.514832 | DR244: 9193.914832 | DS244: 10657.81483 | DT244: 12296.21483 | DU244: 13827.71483 | DV244: 15513.51483 | DW244: 17134.11483 | DX244: 18903.41483 | DY244: 20911.11483 | DZ244: 23035.61483 | EA244: 25406.71483 | EB244: 28192.71483 | EC244: 31528.2815 | ED244: 35603.81483 | EE244: 39883.25523 | EF244: 44439.3688 | EG244: 49430.65183 | EH244: 55030.70353 | EI244: 60991.22423 | EJ244: 67732.57913 | EK244: 72570.92183 | EL244: 76847.07043 | EM244: 82228.08973 | EN244: 88079.13563 | EO244: 94048.73063 | EP244: 100389.2266 | EQ244: 106800.0956 | ER244: 112044.9304 | ES244: 117829.6532 | ET244: 122917.7667 | EU244: 128461.7054 | EV244: 134721.1129 | EW244: 140901.4719 | EX244: 148381.6885 | EY244: 157334.3062 | EZ244: 168001.8599 | FA244: 176921.2906 | FB244: 186947.6796 | FC244: 195948.0605
A245: =L245 -> bik_cumcap_glob | B245: Bicycles | C245: bik | D245: Global | E245: glob | F245: Cumulative Total Capacity | G245: MW | H245: cumcap | I245: 1861 | J245: 2007 | K245: use | L245: =C245&"_"&H245&"_"&E245 -> bik_cumcap_glob | M245: 0.0002 | N245: 0.0144 | O245: 0.0372 | P245: 0.0686 | Q245: 0.1086 | R245: 0.4537666667 | S245: 1.1041 | T245: 2.1281 | U245: 3.692938668 | V245: 7.235832758 | W245: 12.75757684 | X245: 20.25901297 | Y245: 29.74103355 | Z245: 41.20458432 | AA245: 54.65066756 | AB245: 70.08034545 | AC245: 87.50154367 | AD245: 108.5538552 | AE245: 136.2595443 | AF245: 168.022892 | AG245: 203.9053182 | AH245: 243.9083278 | AI245: 287.9935155 | AJ245: 336.1625715 | AK245: 388.7640259 | AL245: 445.4811061 | AM245: 506.6944863 | AN245: 581.5357619 | AO245: 670.01473 | AP245: 776.5921233 | AQ245: 920.2676806 | AR245: 1101.054303 | AS245: 1279.299481 | AT245: 1455.018756 | AU245: 1628.2292 | AV245: 1885.187439 | AW245: 2188.266619 | AX245: 2451.964438 | AY245: 2706.100876 | AZ245: 2952.748441 | BA245: 3156.184934 | BB245: 3316.423753 | BC245: 3483.854216 | BD245: 3666.081934 | BE245: 3845.356711 | BF245: 4020.702998 | BG245: 4233.015392 | BH245: 4433.073922 | BI245: 4642.250184 | BJ245: 4860.317749 | BK245: 5093.447913 | BL245: 5325.850517 | BM245: 5579.92985 | BN245: 5819.020649 | BO245: 6073.441337 | BP245: 6343.325935 | BQ245: 6628.822528 | BR245: 6930.094701 | BS245: 7247.323101 | BT245: 7564.80715 | BU245: 7882.766878 | BV245: 8230.557777 | BW245: 8597.447213 | BX245: 8970.714561 | BY245: 9334.416265 | BZ245: 9708.198088 | CA245: 10074.4629 | CB245: 10438.13843 | CC245: 10830.775 | CD245: 11225.92834 | CE245: 11677.21518 | CF245: 12145.45256 | CG245: 12631.29559 | CH245: 13165.66835 | CI245: 13780.84604 | CJ245: 14507.0199 | CK245: 15285.57718 | CL245: 16111.11831 | CM245: 16964.75725 | CN245: 17824.85619 | CO245: 18655.40446 | CP245: 19373.64727 | CQ245: 20039.00577 | CR245: 20779.87924 | CS245: 21596.44228 | CT245: 22521.82039 | CU245: 23608.6074 | CV245: 24784.95395 | CW245: 26059.97168 | CX245: 27279.75212 | CY245: 28530.32131 | CZ245: 29855.66683 | DA245: 31155.66683 | DB245: 32555.66683 | DC245: 34055.66683 | DD245: 35655.66683 | DE245: 37355.66683 | DF245: 39155.66683 | DG245: 41055.66683 | DH245: 43055.66683 | DI245: 45055.66683 | DJ245: 47176.36683 | DK245: 49097.76683 | DL245: 51170.76683 | DM245: 53328.76683 | DN245: 55560.76683 | DO245: 57893.16683 | DP245: 60459.06683 | DQ245: 63078.46683 | DR245: 66686.56683 | DS245: 70562.46683 | DT245: 75208.96683 | DU245: 80147.46683 | DV245: 85067.26683 | DW245: 89219.66683 | DX245: 93727.86683 | DY245: 98649.16683 | DZ245: 103712.8668 | EA245: 109235.4668 | EB245: 115152.1668 | EC245: 121421.2668 | ED245: 128214.6668 | EE245: 135388.1072 | EF245: 142736.0541 | EG245: 150455.8038 | EH245: 158719.2555 | EI245: 167413.1012 | EJ245: 176962.4061 | EK245: 184755.5238 | EL245: 192119.9724 | EM245: 200707.3917 | EN245: 209693.6376 | EO245: 218788.2326 | EP245: 228125.6286 | EQ245: 237278.6976 | ER245: 244976.599 | ES245: 252989.5607 | ET245: 259840.5733 | EU245: 267101.2778 | EV245: 275049.2272 | EW245: 282779.4669 | EX245: 291605.4392 | EY245: 301948.1511 | EZ245: 313959.9609 | FA245: 324039.0832 | FB245: 335286.0035 | FC245: 345545.8509
A247: =L247 -> bik_cumuni_core | B247: Bicycles | C247: bik | D247: UK+France+Germany | E247: core | F247: Cumulative Total No. of Units | G247: # | H247: cumuni | I247: 1861 | J247: 2007 | K247: use | L247: =C247&"_"&H247&"_"&E247 -> bik_cumuni_core | M247: 2 | N247: 144 | O247: 372 | P247: 686 | Q247: 1086 | R247: 4532.666667 | S247: 11026 | T247: 20766 | U247: 33752.66667 | V247: 66448.96296 | W247: 118854.8889 | X247: 190970.4444 | Y247: 282795.6296 | Z247: 394330.4444 | AA247: 525574.8889 | AB247: 676528.963 | AC247: 847192.6667 | AD247: 1053866 | AE247: 1326548.963 | AF247: 1638770.967 | AG247: 1990532.013 | AH247: 2381832.1 | AI247: 2812671.229 | AJ247: 3283049.399 | AK247: 3792966.61 | AL247: 4342422.863 | AM247: 4931418.157 | AN247: 5559952.492 | AO247: 6228025.869 | AP247: 6935638.288 | AQ247: 7682789.747 | AR247: 8469480.248 | AS247: 9295709.791 | AT247: 10161478.37 | AU247: 11066786 | AV247: 12007286 | AW247: 13006503.53 | AX247: 14054188.6 | AY247: 15448291.19 | AZ247: 16691411.32 | BA247: 17965298.99 | BB247: 19269754.18 | BC247: 20651876.91 | BD247: 22187317.17 | BE247: 23700124.96 | BF247: 25180050.29 | BG247: 27035493.14 | BH247: 28773650.95 | BI247: 30607573.71 | BJ247: 32496261.41 | BK247: 34500614.07 | BL247: 36461831.67 | BM247: 38602964.23 | BN247: 40556261.73 | BO247: 42615695.61 | BP247: 44781265.87 | BQ247: 47052972.51 | BR247: 49430815.53 | BS247: 51914794.92 | BT247: 54504910.7 | BU247: 57201162.85 | BV247: 60034679.95 | BW247: 62895462 | BX247: 65883359 | BY247: 68821244.88 | BZ247: 71827019.64 | CA247: 74720808.29 | CB247: 77502610.81 | CC247: 80483252.21 | CD247: 83441932.5 | CE247: 86909255.3 | CF247: 90432345.61 | CG247: 94011203.44 | CH247: 97813303.79 | CI247: 102043646.6 | CJ247: 106825975.2 | CK247: 111775439.5 | CL247: 116887839.5 | CM247: 121964520.8 | CN247: 127005483.2 | CO247: 132010727 | CP247: 136151252 | CQ247: 139427058.2 | CR247: 143111245.8 | CS247: 147203814.5 | CT247: 151704764.5 | CU247: 156995064.5 | CV247: 162648714.5 | CW247: 168874614.5 | CX247: 173984964.5 | CY247: 179374844.5 | CZ247: 185478254.5 | DA247: 190563194.5 | DB247: 195856664.5 | DC247: 201811664.5 | DD247: 207287664.5 | DE247: 211898664.5 | DF247: 216378539.5 | DG247: 220949289.5 | DH247: 225500914.5 | DI247: 230011414.5 | DJ247: 234285414.5 | DK247: 238614414.5 | DL247: 242791414.5 | DM247: 247016414.5 | DN247: 250946414.5 | DO247: 255031414.5 | DP247: 259701414.5 | DQ247: 264756414.5 | DR247: 269995414.5 | DS247: 276172414.5 | DT247: 283448414.5 | DU247: 290880414.5 | DV247: 298307414.5 | DW247: 305110414.5 | DX247: 312416414.5 | DY247: 320087414.5 | DZ247: 328065414.5 | EA247: 335952414.5 | EB247: 344849414.5 | EC247: 352726747.8 | ED247: 359992414.5 | EE247: 367254414.5 | EF247: 373892747.8 | EG247: 380037414.5 | EH247: 386177414.5 | EI247: 392011414.5 | EJ247: 397874414.5 | EK247: 404612414.5 | EL247: 411822414.5 | EM247: 417960414.5 | EN247: 423730414.5 | EO247: 428972414.5 | EP247: 434091414.5 | EQ247: 438713414.5 | ER247: 443308081.2 | ES247: 448284470.1 | ET247: 452843460.8 | EU247: 457712118.7 | EV247: 463214137.7 | EW247: 468187544.7 | EX247: 472930801.7 | EY247: 477499342.7 | EZ247: 481796641.7 | FA247: 485768088.7 | FB247: 489061088.7 | FC247: 492120088.7
A248: bik_cumuni_rimFSU | B248: Bicycles | C248: bik | D248: FSU | E248: rimFSU | F248: Cumulative Total No. of Units | G248: # | H248: cumuni | I248: 1861 | J248: 2007 | K248: use | L248: =C248&"_"&H248&"_"&E248 -> bik_cumuni_rimFSU | M248: 0 | N248: 0 | O248: 0 | P248: 0 | Q248: 0 | R248: 0 | S248: 0 | T248: 0 | U248: 0 | V248: 0 | W248: 0 | X248: 0 | Y248: 0 | Z248: 0 | AA248: 0 | AB248: 0 | AC248: 0 | AD248: 0 | AE248: 0 | AF248: 0 | AG248: 0 | AH248: 0 | AI248: 0 | AJ248: 0 | AK248: 0 | AL248: 19 | AM248: 158.25 | AN248: 417.75 | AO248: 797.5 | AP248: 1297.5 | AQ248: 1797.5 | AR248: 2297.5 | AS248: 2797.5 | AT248: 3297.5 | AU248: 3797.5 | AV248: 4356.12069 | AW248: 4973.362069 | AX248: 5649.224138 | AY248: 6383.706897 | AZ248: 7176.810345 | BA248: 8028.534483 | BB248: 8938.87931 | BC248: 9907.844828 | BD248: 10935.43103 | BE248: 12021.63793 | BF248: 13166.46552 | BG248: 14369.91379 | BH248: 15631.98276 | BI248: 16952.67241 | BJ248: 18331.98276 | BK248: 19769.91379 | BL248: 21266.46552 | BM248: 22821.63793 | BN248: 24435.43103 | BO248: 26107.84483 | BP248: 27838.87931 | BQ248: 29628.53448 | BR248: 31476.81034 | BS248: 33383.7069 | BT248: 35349.22414 | BU248: 37373.36207 | BV248: 39456.12069 | BW248: 41597.5 | BX248: 43797.5 | BY248: 60508.61111 | BZ248: 91730.83333 | CA248: 137464.1667 | CB248: 197708.6111 | CC248: 272464.1667 | CD248: 361730.8333 | CE248: 465508.6111 | CF248: 583797.5 | CG248: 716597.5 | CH248: 858597.5 | CI248: 1119930.833 | CJ248: 1500597.5 | CK248: 2000597.5 | CL248: 2632117.5 | CM248: 3395157.5 | CN248: 4289717.5 | CO248: 5315797.5 | CP248: 6473397.5 | CQ248: 7762517.5 | CR248: 9183157.5 | CS248: 10735317.5 | CT248: 12418997.5 | CU248: 14234197.5 | CV248: 16180917.5 | CW248: 18259157.5 | CX248: 20468917.5 | CY248: 22810197.5 | CZ248: 25282997.5 | DA248: 27887317.5 | DB248: 30623157.5 | DC248: 33490517.5 | DD248: 36489397.5 | DE248: 39619797.5 | DF248: 42881717.5 | DG248: 46275157.5 | DH248: 49800117.5 | DI248: 53456597.5 | DJ248: 57244597.5 | DK248: 60206597.5 | DL248: 63395597.5 | DM248: 66809597.5 | DN248: 70373597.5 | DO248: 74006597.5 | DP248: 77684597.5 | DQ248: 81454597.5 | DR248: 85306597.5 | DS248: 89218597.5 | DT248: 93218597.5 | DU248: 97330597.5 | DV248: 101477597.5 | DW248: 105769597.5 | DX248: 110123597.5 | DY248: 114641597.5 | DZ248: 119327597.5 | EA248: 123976597.5 | EB248: 128712597.5 | EC248: 133549597.5 | ED248: 138527597.5 | EE248: 143587597.5 | EF248: 148868597.5 | EG248: 154230597.5 | EH248: 159721597.5 | EI248: 165271597.5 | EJ248: 170918597.5 | EK248: 176523597.5 | EL248: 182388597.5 | EM248: 188445597.5 | EN248: 192788597.5 | EO248: 196272597.5 | EP248: 198166597.5 | EQ248: 199206597.5 | ER248: 200035597.5 | ES248: 200990597.5 | ET248: 201976597.5 | EU248: 203142597.5 | EV248: 204630997.5 | EW248: 206354397.5 | EX248: 208345697.5 | EY248: 210193909.5 | EZ248: 211930407.5 | FA248: 213346340.5 | FB248: 215970529.5 | FC248: 218837478.5
A249: bik_cumuni_rim | B249: Bicycles | C249: bik | D249: Neth+Italy+US+Japan | E249: rim | F249: Cumulative Total No. of Units | G249: # | H249: cumuni | I249: 1861 | J249: 2007 | K249: use | L249: =C249&"_"&H249&"_"&E249 -> bik_cumuni_rim | M249: 0 | N249: 0 | O249: 0 | P249: 0 | Q249: 0 | R249: 5 | S249: 15 | T249: 515 | U249: 3176.720015 | V249: 5909.36462 | W249: 8720.879488 | X249: 11619.68525 | Y249: 14614.70587 | Z249: 17715.39879 | AA249: 20931.78673 | AB249: 24274.49155 | AC249: 27822.77005 | AD249: 31672.55189 | AE249: 36046.47984 | AF249: 41457.95243 | AG249: 48521.16905 | AH249: 57251.17791 | AI249: 67263.92671 | AJ249: 78576.31645 | AK249: 94673.64854 | AL249: 112369.198 | AM249: 135368.4563 | AN249: 254987.3762 | AO249: 471323.9307 | AP249: 828985.4457 | AQ249: 1518089.559 | AR249: 2538765.284 | AS249: 3494487.517 | AT249: 4385411.681 | AU249: 5211708.498 | AV249: 6840232.265 | AW249: 8871189.296 | AX249: 10459806.56 | AY249: 11606333.86 | AZ249: 12828896.27 | BA249: 13588521.82 | BB249: 13885544.47 | BC249: 14176757.41 | BD249: 14462566.74 | BE249: 14741420.51 | BF249: 15013813.23 | BG249: 15280290.86 | BH249: 15541456.29 | BI249: 15797975.46 | BJ249: 16088584.09 | BK249: 16414095.15 | BL249: 16775407.03 | BM249: 17173512.64 | BN249: 17609509.33 | BO249: 18092609.91 | BP249: 18624154.6 | BQ249: 19205624.24 | BR249: 19838654.67 | BS249: 20525052.38 | BT249: 21107811.57 | BU249: 21589132.57 | BV249: 22231441.7 | BW249: 23037412.63 | BX249: 23779989.11 | BY249: 24462409.16 | BZ249: 25163230.4 | CA249: 25886356.58 | CB249: 26681064.86 | CC249: 27552033.59 | CD249: 28454370.1 | CE249: 29393637.89 | CF249: 30430882.46 | CG249: 31572654.93 | CH249: 32966032.25 | CI249: 34618632.88 | CJ249: 36708626.28 | CK249: 39034734.79 | CL249: 41536226.07 | CM249: 44222894.21 | CN249: 46878361.15 | CO249: 49142520.1 | CP249: 51016823.2 | CQ249: 53095481.95 | CR249: 55380139.14 | CS249: 57872540.82 | CT249: 60902941.93 | CU249: 64616311.96 | CV249: 68708740.84 | CW249: 73062444.85 | CX249: 77717583.68 | CY249: 82074875.85 | CZ249: 86140197.24 | DA249: 89954476.13 | DB249: 93493696.28 | DC249: 97126400.24 | DD249: 101153692.9 | DE249: 105696745.1 | DF249: 110816797.9 | DG249: 116693766.3 | DH249: 123259044 | DI249: 130294108 | DJ249: 137777508 | DK249: 145432508 | DL249: 154108508 | DM249: 163285508 | DN249: 173443508 | DO249: 184102508 | DP249: 196247508 | DQ249: 207898508 | DR249: 219624508 | DS249: 233655508 | DT249: 252460508 | DU249: 274986508 | DV249: 295752508 | DW249: 309975508 | DX249: 325704508 | DY249: 342651508 | DZ249: 359379508 | EA249: 378358508 | EB249: 396032508 | EC249: 412653508 | ED249: 427588508 | EE249: 444206508 | EF249: 460205508 | EG249: 475983508 | EH249: 490986508 | EI249: 506935758 | EJ249: 523505258 | EK249: 540710008 | EL249: 558518008 | EM249: 578387008 | EN249: 599626008 | EO249: 622150008 | EP249: 645106008 | EQ249: 666866008 | ER249: 685973008 | ES249: 702324008 | ET249: 714408008 | EU249: 725541008 | EV249: 735436008 | EW249: 744238008 | EX249: 750961008 | EY249: 758445197 | EZ249: 765853961 | FA249: 772063497 | FB249: 778351621 | FC249: 785020337
... 201 more rows

Sheet (3) LogFit Parameters
A1: Source data: data - analysis (comparisons) - v32; Analysis-synthesis_v6
A2: needs checking
A3: manually adjusted
D4: Cumulative Total Capacity | M4: Cumulative Total No of Units | W4: Average Capacity of New Additions | AC4: Maximum Capacity of New Additions
A5: TECHNOLOGY | B5: region | C5: Use fit? | D5: Fit Quality | E5: Obs. %K | F5: K (in MW) | G5: t0 | H5: Δt | I5: PE @t0 | J5: PE Adjust | K5: Norm. K | M5: Use fit? | N5: Fit Quality | O5: Obs. %K | P5: K (in # units) | Q5: t0 | R5: Δt | S5: PE @t0 | T5: PE Adjust | U5: Norm. K | W5: Use fit? | X5: Fit Quality | Y5: K (in MW/unit) | Z5: t0 | AA5: Δt | AC5: Use fit? | AD5: Fit Quality | AE5: K (in MW/unit) | AF5: t0 | AG5: Δt
A7: ='(2) Time Series Data'!B5&" *" -> FCC-REFINERIES (1940-2007) * | C7: * fits to first phase only, saturation 1983-1985
A8: ='(2) Time Series Data'!D7 -> OECD+FSU | B8: ='(2) Time Series Data'!E7 -> core | C8: 1 | D8: logistic fit to 1982, over-estimates asymptote | E8: 0.790310742 | F8: 4861606.873 | G8: 1968.593778 | H8: 41.20662427 | I8: =HLOOKUP(ROUNDUP(G8,0),primaryenergy,2) -> 127.9057597 | J8: 1.154 | K8: =F8/(I8*J8) -> 32936.99145 | M8: 0 | N8: no data | W8: 1 | X8: good fit (FCCs) but asymptote misses decline in data post-2000 | Y8: 10303 | AA8: 30.38 | AC8: 0 | AD8: no data
A9: ='(2) Time Series Data'!D8 -> not used | B9: ='(2) Time Series Data'!E8 -> rimFSU | C9: 0 | D9: no data | M9: 0 | N9: no data | W9: 0 | X9: no data | AC9: 0 | AD9: no data
A10: ='(2) Time Series Data'!D9 -> LAm+MidEast+AsiaExChina | B10: ='(2) Time Series Data'!E9 -> rim | C10: 1 | D10: logistic fit to 1984, overshoots asymptote + Japan skews data | E10: 0.8325840425 | F10: 1815519.673 | G10: 1969.022528 | H10: 31.64281924 | I10: =HLOOKUP(ROUNDUP(G10,0),primaryenergy,4) -> 16.99168869 | J10: 1.030909088 | K10: =F10/(I10*J10) -> 103643.972 | M10: 0 | N10: no data | W10: 0 | X10: no data | AC10: 0 | AD10: no data
A11: ='(2) Time Series Data'!D10 -> China+Afr | B11: ='(2) Time Series Data'!E10 -> peri | C11: 1 | D11: logistic fit to 1984, but saturation not as clear as for other regions | E11: 0.77 | F11: 403486.3473 | G11: 1976.428143 | H11: 23.628266 | I11: =HLOOKUP(ROUNDUP(G11,0),primaryenergy,5) -> 21.94212614 | J11: 0.8938469321 | K11: =F11/(I11*J11) -> 20572.49583 | M11: 0 | N11: no data | W11: 0 | X11: no data | AC11: 0 | AD11: no data
A12: ='(2) Time Series Data'!D11 -> Global | B12: ='(2) Time Series Data'!E11 -> glob | C12: 1 | D12: logistic fit to 1982, over-estimates asymptote | E12: 0.8883510854 | F12: 6320313.565 | G12: 1967.063457 | H12: 35.46443048 | I12: =HLOOKUP(ROUNDUP(G12,0),primaryenergy,6) -> 185.523277 | J12: 1 | K12: =F12/(I12*J12) -> 34067.49637 | M12: 0 | N12: no data | W12: 0 | X12: no data | AC12: 0 | AD12: no data
A14: ='(2) Time Series Data'!B31 -> COAL POWER (1908-2000)
A15: ='(2) Time Series Data'!D33 -> OECD | B15: ='(2) Time Series Data'!E33 -> core | C15: 1 | D15: logistic fit is excellent | E15: 0.9792396209 | F15: 644575.2577 | G15: 1972.808863 | H15: 33.40692898 | I15: =HLOOKUP(ROUNDUP(G15,0),primaryenergy,2) -> 152.7647735 | J15: 1 | K15: =F15/(I15*J15) -> 4219.3972 | M15: 1 | N15: logistic fit is excellent | O15: 0.9816925943 | P15: 3862.716315 | Q15: 1962.451055 | R15: 46.87628894 | S15: =HLOOKUP(ROUNDUP(Q15,0),primaryenergy,2) -> 99.44420988 | T15: 1 | U15: =P15/(S15*T15) -> 38.84304898 | W15: 1 | X15: tail of data traces a rotated S around logistic asymptote (1970-1980 above asymptote, 1985-1995 below asymptote) | Y15: 315.5849056 | Z15: 1961.880024 | AA15: 18.05272214 | AC15: 1 | AD15: tail of data is noisy around logistic asymptote | AE15: 997.9537768 | AF15: 1959.910664 | AG15: 20.48116471
A16: ='(2) Time Series Data'!D34 -> FSU | B16: ='(2) Time Series Data'!E34 -> rimFSU | C16: 1 | D16: logistic fit is excellent | E16: 0.9831680067 | F16: 125535.0755 | G16: 1974.104585 | H16: 28.46768914 | I16: =HLOOKUP(ROUNDUP(G16,0),primaryenergy,3) -> 54.25149941 | J16: 1 | K16: =F16/(I16*J16) -> 2313.946654 | M16: 1 | N16: logistic fit is excellent | O16: 0.9961876948 | P16: 1237.718561 | Q16: 1967.421588 | R16: 36.30648717 | S16: =HLOOKUP(ROUNDUP(Q16,0),primaryenergy,3) -> 38.80010864 | T16: 1 | U16: =P16/(S16*T16) -> 31.89987359 | W16: 1 | X16: tail of data traces a rotated S around logistic asymptote (1970-1990 above asymptote, 1990-2000 below asymptote) | Y16: 140.96966 | Z16: 1961.239252 | AA16: 16.30651966 | AC16: 1 | AD16: tail of data somewhat noisy around logistic asymptote but OK fit; 4 low outliers excluded (1989, 1995, 1997, 1998) | AE16: 618.1583656 | AF16: 1968.006368 | AG16: 36.69177334
A17: ='(2) Time Series Data'!D35 -> Asia+SA | B17: ='(2) Time Series Data'!E35 -> rim | C17: 0 | D17: logistic fit is excellent but data series too short (42% of K) | E17: 0.4783436568 | M17: 0 | N17: logistic fit is excellent but data series too short (47% of K) | O17: 0.5752647125 | W17: 1 | X17: logistic fit is good | Y17: 294.5050787 | Z17: 1978.85741 | AA17: 44.89358007 | AC17: 1 | AD17: logistic fit is good | AE17: 735.0733152 | AF17: 1972.45839 | AG17: 29.67646905
A18: ='(2) Time Series Data'!D36 -> LAm+AfExSA | B18: ='(2) Time Series Data'!E36 -> peri | C18: 1 | D18: logistic fit is excellent | E18: 0.8873662292 | F18: 25909.65178 | G18: 1989.045405 | H18: 27.36665267 | I18: =HLOOKUP(ROUNDUP(G18,0),primaryenergy,5) -> 40.15182755 | J18: 1 | K18: =F18/(I18*J18) -> 645.291967 | M18: 1 | N18: logistic fit is good but with slower take-off and (possibly) a premature asymptote | O18: 0.6992010405 | P18: 277.4595413 | Q18: 1988.334797 | R18: 60.77748455 | S18: =HLOOKUP(ROUNDUP(Q18,0),primaryenergy,5) -> 38.87123369 | T18: 1 | U18: =P18/(S18*T18) -> 7.137914468 | W18: 1 | X18: tail of data is very noisy around asymptote | Y18: 400.4 | Z18: 1976 | AA18: 74.7 | AC18: 1 | AD18: logistic fit is good, 2 (low) outliers excluded | AE18: 632.5 | AF18: 1976 | AG18: 74.7
A19: ='(2) Time Series Data'!D37 -> Global | B19: ='(2) Time Series Data'!E37 -> glob | C19: 0.5 | D19: logistic begins to asymptote in late 1990s whereas actual continues exponential | E19: 0.9515698655 | F19: 1146150.252 | G19: 1978.967869 | H19: 40.43969035 | I19: =HLOOKUP(ROUNDUP(G19,0),primaryenergy,6) -> 283.4466358 | J19: 1 | K19: =F19/(I19*J19) -> 4043.619176 | M19: 1 | N19: logistic begins to asymptote in late 1990s whereas actual continues exponential | O19: 0.9709383406 | P19: 7306.334196 | Q19: 1969.755045 | R19: 51.93964706 | S19: =HLOOKUP(ROUNDUP(Q19,0),primaryenergy,6) -> 208.63938 | T19: 1 | U19: =P19/(S19*T19) -> 35.01896044 | W19: 1 | X19: logistic is fairly good fit; 1 high outlier in 2000 (~340MW) | Y19: 241.4039151 | Z19: 1961.771937 | AA19: 24.87613444 | AC19: 1 | AD19: tail of data is noisy around logistic asymptote | AE19: 1004.714842 | AF19: 1959.988683 | AG19: 20.69880467
A21: ='(2) Time Series Data'!B57 -> NUCLEAR POWER (1956-2000)
A22: ='(2) Time Series Data'!D59 -> OECD | B22: ='(2) Time Series Data'!E59 -> core | C22: 1 | D22: logistic fit is good | E22: 0.977466606 | F22: 323400.5111 | G22: 1982.002907 | H22: 19.52844725 | I22: =HLOOKUP(ROUNDUP(G22,0),primaryenergy,2) -> 149.0646832 | J22: 1 | K22: =F22/(I22*J22) -> 2169.531401 | M22: 1 | N22: logistic fit is good | O22: 0.9518565683 | P22: 413.9279101 | Q22: 1979.292047 | R22: 26.09325258 | S22: =HLOOKUP(ROUNDUP(Q22,0),primaryenergy,2) -> 157.7575508 | T22: 1 | U22: =P22/(S22*T22) -> 2.623823126 | W22: 1 | X22: actual tail of data is noisy around logistic asymptote | Y22: 1075.881893 | Z22: 1971.287161 | AA22: 18.2600088 | AC22: 1 | AD22: actual tail of data is noisy around logistic asymptote | AE22: 1271.219197 | AF22: 1968.577294 | AG22: 12.72880461
A23: ='(2) Time Series Data'!D60 -> FSU | B23: ='(2) Time Series Data'!E60 -> rimFSU | C23: 1 | D23: logistic fit is good | E23: 0.9879750608 | F23: 53387.9873 | G23: 1983.565247 | H23: 15.20259817 | I23: =HLOOKUP(ROUNDUP(G23,0),primaryenergy,3) -> 68.23695636 | J23: 1 | K23: =F23/(I23*J23) -> 782.3910993 | M23: 1 | N23: logistic fit is good | O23: 0.9407830981 | P23: 89.28731837 | Q23: 1981.491528 | R23: 24.64921248 | S23: =HLOOKUP(ROUNDUP(Q23,0),primaryenergy,3) -> 64.906034 | T23: 1 | U23: =P23/(S23*T23) -> 1.375639719 | W23: 1 | X23: 1999 & 2000 omitted from fit data as low outliers | Y23: 877.5131439 | Z23: 1972.828841 | AA23: 18.46326752 | AC23: 1 | AD23: 1999 & 2000 omitted from fit data as low outliers; 2 * 1,500 MW reactors (1984, 1986) are high outliers, way above asymptote | AE23: 1109.493514 | AF23: 1973.052951 | AG23: 13.67392919
A24: ='(2) Time Series Data'!D61 -> Asia | B24: ='(2) Time Series Data'!E61 -> rim | C24: 0 | D24: logistic asymptotes as data tail keeps rising; Sharif-Kabir or Floyd are better fits | M24: 0 | N24: logistic asymptotes as data tail keeps rising; Sharif-Kabir or Floyd are better fits | W24: 1 | X24: data is very noisy around asymptote | Y24: 673.8338565 | Z24: 1974.350869 | AA24: 9.321500519 | AC24: 1 | AD24: 6 low outliers excluded; otherwise good fit | AE24: 1004.690042 | AF24: 1976.399909 | AG24: 11.76494858
A25: ='(2) Time Series Data'!D62 -> LAm+Af | B25: ='(2) Time Series Data'!E62 -> peri | C25: 0 | D25: insufficient data | M25: 0 | N25: insufficient data | W25: 0 | X25: insufficient data | AC25: 0 | AD25: insufficient data
A26: ='(2) Time Series Data'!D63 -> Global | B26: ='(2) Time Series Data'!E63 -> glob | C26: 1 | D26: logistic fit is excellent | E26: 0.9880985764 | F26: 404413.9416 | G26: 1982.579495 | H26: 19.17678211 | I26: =HLOOKUP(ROUNDUP(G26,0),primaryenergy,6) -> 279.333753 | J26: 1 | K26: =F26/(I26*J26) -> 1447.780432 | M26: 1 | N26: logistic fit is excellent | O26: 0.9586826213 | P26: 548.6695892 | Q26: 1980.30924 | R26: 26.42125109 | S26: =HLOOKUP(ROUNDUP(Q26,0),primaryenergy,6) -> 276.633789 | T26: 1 | U26: =P26/(S26*T26) -> 1.983378788 | W26: 1 | X26: logistic fit is quite good; 1 low outliers excluded | Y26: 965.6907045 | Z26: 1970.856505 | AA26: 16.84006524 | AC26: 1 | AD26: actual tail of data is noisy around logistic asymptote | AE26: 1363.518086 | AF26: 1969.079425 | AG26: 14.94777249
A28: ='(2) Time Series Data'!B83 -> HYDRO POWER (1882-2005)
A29: ='(2) Time Series Data'!D85 -> OECD | B29: ='(2) Time Series Data'!E85 -> core | C29: 1 | D29: excellent | E29: 0.921173436 | F29: 408282.6467 | G29: 1971.340908 | H29: 47.26376415 | I29: =HLOOKUP(ROUNDUP(G29,0),primaryenergy,2) -> 144.7729133 | J29: 1 | K29: =F29/(I29*J29) -> 2820.159086 | M29: 1 | N29: ok, but overshoots asymptote & too rapid for slower growth period in 1970s | O29: 0.9224896578 | P29: 17474.45065 | Q29: 1963.744281 | R29: 70.01347701 | S29: =HLOOKUP(ROUNDUP(Q29,0),primaryenergy,2) -> 101.1183813 | T29: 1 | U29: =P29/(S29*T29) -> 172.8118116 | W29: 0 | X29: poor! misses strong peak in 1970s then rapid decline | Y29: 47.77821346 | Z29: 1951.853718 | AA29: 52.56415085 | AC29: 0 | AD29: poor! misses strong peak in 1970s then rapid decline | AE29: 419.4499366 | AF29: 1960.47676 | AG29: 28.07124523
A30: ='(2) Time Series Data'!D86 -> FSU | B30: ='(2) Time Series Data'!E86 -> rimFSU | C30: 1 | D30: good | E30: 0.9562044338 | F30: 94959.63592 | G30: 1973.469112 | H30: 35.85242531 | I30: =HLOOKUP(ROUNDUP(G30,0),primaryenergy,3) -> 51.46003681 | J30: 1 | K30: =F30/(I30*J30) -> 1845.308356 | M30: 1 | N30: ok-ish; over-shoots slowish growth in 70s/early 80s, and over-shoots rapid asymptote | O30: 0.930422864 | P30: 2675.127726 | Q30: 1971.945834 | R30: 58.76774694 | S30: =HLOOKUP(ROUNDUP(Q30,0),primaryenergy,3) -> 47.04098743 | T30: 1 | U30: =P30/(S30*T30) -> 56.86801812 | W30: 0 | X30: poor; unit capacities peak in 1970s and falls in 1990s (then rises post-2000) | Y30: 67.59805974 | Z30: 1957.418378 | AA30: 22.69368929 | AC30: 0 | AD30: very poor; misses steady growth to1960s, magnitude of jump in 1960s, and decline in 1990s | AE30: 334.4677958 | AF30: 1965.083821 | AG30: 2.510066549
A31: ='(2) Time Series Data'!D87 -> Asia | B31: ='(2) Time Series Data'!E87 -> rim | C31: 0 | D31: very unreliable fit! still exponential | M31: 0 | N31: unreliable fit! still exponential | W31: 1 | X31: ok-ish until rapid rise post-2000 | Y31: 128.7758621 | Z31: 1977 | AA31: 108 | AC31: 1 | AD31: ok-ish until rapid rise post-2000 (& omitting 2 high 1940s points) | AE31: 649.0393475 | AF31: 1990.208545 | AG31: 70.04081817
A32: ='(2) Time Series Data'!D88 -> LAm+Af | B32: ='(2) Time Series Data'!E88 -> peri | C32: 0 | D32: unreliable fit! still exponential | M32: 1 | N32: overshoots apparent asymptote | O32: 0.7854942691 | P32: 4276.28836 | Q32: 1979.303981 | R32: 69.86817236 | S32: =HLOOKUP(ROUNDUP(Q32,0),primaryenergy,5) -> 26.52124113 | T32: 1 | U32: =P32/(S32*T32) -> 161.2401297 | W32: 1 | X32: ok, until rapid increases in size post-2005 | Y32: 90.49244402 | Z32: 1968.214179 | AA32: 18.01003438 | AC32: 1 | AD32: ok, but misses high sizes in 1980s | AE32: 548.2361799 | AF32: 1971.986092 | AG32: 22.13907074
A33: ='(2) Time Series Data'!D89 -> Global | B33: ='(2) Time Series Data'!E89 -> glob | C33: 1 | D33: premature asymptote (fit to 2010) | E33: 0.7811751048 | F33: 959072.3087 | G33: 1981.744967 | H33: 55.35434957 | I33: =HLOOKUP(ROUNDUP(G33,0),primaryenergy,6) -> 275.6785363 | J33: 1 | K33: =F33/(I33*J33) -> 3478.951686 | M33: 1 | N33: ok, but overshoots asymptote | O33: 0.8608969204 | P33: 28802.51911 | Q33: 1971.298726 | R33: 80.13502859 | S33: =HLOOKUP(ROUNDUP(Q33,0),primaryenergy,6) -> 227.3134802 | T33: 1 | U33: =P33/(S33*T33) -> 126.7083636 | W33: 1 | X33: ok, until rapid rise post-2000 (only fit to -2000 data) | Y33: 47.91232353 | Z33: 1952.591935 | AA33: 39.67790214 | AC33: 0 | AD33: poor! misses strong peak in 1970s then rapid decline | AE33: 653.5449905 | AF33: 1962.836379 | AG33: 40.46263266
A35: ='(2) Time Series Data'!B109&" *" -> NATURAL GAS POWER (1903-2000) * | C35: * fits to first phase only, saturation 1988-1992
A36: ='(2) Time Series Data'!D111 -> OECD | B36: ='(2) Time Series Data'!E111 -> core | C36: 1 | D36: logistic fit is good to 1988 (with asymptote from ~2000) | E36: 1.504066593 | F36: 222670.2617 | G36: 1970.267484 | H36: 28.4897392 | I36: =HLOOKUP(ROUNDUP(G36,0),primaryenergy,2) -> 138.3007902 | J36: 1 | K36: =F36/(I36*J36) -> 1610.043308 | M36: 1 | N36: logistic fit is good to 1981 (with asymptote from ~2000) | O36: 2.409559152 | P36: 4555.605116 | Q36: 1970.656664 | R36: 45.17072469 | S36: 138.3007902 | T36: 1 | U36: =P36/(S36*T36) -> 32.93983433 | W36: 1 | X36: logistic fit is good to 1980 (with asymptote from ~2020) | Y36: 136.5839768 | Z36: 1967.090379 | AA36: 64.32648853 | AC36: 1 | AD36: logistic fit is good to 1980 (with asymptote from ~2000) | AE36: 893.3058819 | AF36: 1962.249612 | AG36: 28.81436013
A37: ='(2) Time Series Data'!D112 -> FSU | B37: ='(2) Time Series Data'!E112 -> rimFSU | C37: 1 | D37: logistic fit is good for 1st phase (-1995); possible 2nd growth phase (1999-) | E37: 1.020761958 | F37: 68890.16138 | G37: 1975.384926 | H37: 28.66227873 | I37: =HLOOKUP(ROUNDUP(G37,0),primaryenergy,3) -> 56.88629126 | J37: 1 | K37: =F37/(I37*J37) -> 1211.015165 | M37: 1 | N37: logistic fit is good for 1st phase (-1995); possible 2nd growth phase (1999-) cf. OECD (1990-) | O37: 1.1310484 | P37: 445.6042731 | Q37: 1973.243327 | R37: 34.29176149 | S37: 51.46003681 | T37: 1 | U37: =P37/(S37*T37) -> 8.659229585 | W37: 0 | X37: very noisy data, no good fit (exacerbated by low no. of additions each year); logistic fit shown is for 1st phase (-1989) w/ 2 high outliers excluded | Y37: 339.8190817 | Z37: 1972.415307 | AA37: 65.12752893 | AC37: 0 | AD37: very noisy data, no good fit (exacerbated by low no. of additions each year); logistic fit shown is for 1st phase (-1988) | AE37: 1320 | AF37: 1960 | AG37: 52.2
A38: ='(2) Time Series Data'!D113 -> Asia | B38: ='(2) Time Series Data'!E113 -> rim | C38: 0.5 | D38: logistic fit is fairly arbitrary (-1988) as no clear phase transition | E38: 2.838525178 | F38: 17871.52053 | G38: 1984.464412 | H38: 21.65796984 | I38: =HLOOKUP(ROUNDUP(G38,0),primaryenergy,4) -> 39.24141418 | J38: 1 | K38: =F38/(I38*J38) -> 455.4249867 | M38: 1 | N38: logistic fit is fairly arbitrary (-1988) as no clear phase transition | O38: 1.510540307 | P38: 571.9807649 | Q38: 1986.349454 | R38: 32.22721877 | S38: 44.61868057 | T38: 1 | W38: 0 | X38: very noisy data, logistic (any) fit is poor (-1988) | Y38: 67.67229312 | Z38: 1975.166267 | AA38: 72.6065003 | AC38: 0 | AD38: very noisy data, logistic (any) fit is poor (-1988) | AE38: 605 | AF38: 1974 | AG38: 28.8
A39: ='(2) Time Series Data'!D114 -> LAm+Af | B39: ='(2) Time Series Data'!E114 -> peri | C39: 1 | D39: logistic fit is good for 1st phase (-1992); possible 2nd growth phase (1993-) | E39: 1.68770541 | F39: 64686.87503 | G39: 1981.674037 | H39: 19.21358839 | I39: =HLOOKUP(ROUNDUP(G39,0),primaryenergy,5) -> 29.34605337 | J39: 1 | K39: =F39/(I39*J39) -> 2204.278518 | M39: 1 | N39: logistic fit is good for 1st phase (-1992); possible 2nd growth phase (1993-) | O39: 1.282931819 | P39: 1438.112277 | Q39: 1979.42238 | R39: 25.511276 | S39: 26.52124113 | T39: 1 | U39: =P39/(S39*T39) -> 54.22492371 | W39: 1 | X39: logistic fit is OK for 1st phase (-1998), though spread is basically linear (less noisy than other regions) | Y39: 110.1355847 | Z39: 1982.368244 | AA39: 60.87279694 | AC39: 1 | AD39: logistic fit is OK, but data becomes very noisy from 1980- | AE39: 455.7220598 | AF39: 1977.006346 | AG39: 35.56187875
A40: ='(2) Time Series Data'!D115 -> Global | B40: ='(2) Time Series Data'!E115 -> glob | C40: 1 | D40: logistic fit is good (-1988) | E40: 1.50025856 | F40: 376690.0738 | G40: 1974.17398 | H40: 31.11639862 | I40: =HLOOKUP(ROUNDUP(G40,0),primaryenergy,6) -> 242.1691754 | J40: 1 | K40: =F40/(I40*J40) -> 1555.483159 | M40: 1 | N40: logistic fit is good (-1988) | O40: 1.530985296 | P40: 9268.541012 | Q40: 1980.378448 | R40: 49.70611742 | S40: 276.633789 | T40: 1 | U40: =P40/(S40*T40) -> 33.50473217 | W40: 1 | X40: logistic fit (-1988); from 1980-, average size falls dramatically | Y40: 58.83512285 | Z40: 1944.312259 | AA40: 41.68019555 | AC40: 1 | AD40: logistic fit is good to 1980 (with asymptote from ~2000) | AE40: 903.644291 | AF40: 1959.493894 | AG40: 31.16216221
A42: ='(2) Time Series Data'!B135 -> WIND POWER (1977-2008)
A43: ='(2) Time Series Data'!D137 -> Denmark | B43: ='(2) Time Series Data'!E137 -> core | C43: 1 | D43: logistic is good fit; asymptote slightly overshoots data | E43: 0.9400673387 | F43: 3562.45118 | G43: 1998.607503 | H43: 11.02191907 | I43: =HLOOKUP(ROUNDUP(G43,0),primaryenergy,2) -> 196.4589159 | J43: 0.004 | K43: =F43/(I43*J43) -> 4533.328463 | M43: 1 | N43: logistic is good fit; asymptote slightly overshoots data | O43: 0.9202710631 | P43: 7686.865624 | Q43: 1994.173046 | R43: 20.22044912 | S43: 185.6200201 | T43: 0.004 | U43: =P43/(S43*T43) -> 10352.95872 | W43: 1 | X43: logistic is good fit if 3 outliers removed (>2000, all low unit n) | Y43: 1.77699493 | Z43: 2001.117065 | AA43: 22.80926245 | AC43: 1 | AD43: approximated from new Vestas models; only 20% of K | AE43: 14.76605634 | AG43: 18.85168912
A44: ='(2) Time Series Data'!D138 -> not used | B44: ='(2) Time Series Data'!E138 -> rimFSU | C44: 0 | D44: growth is exponential | M44: 0 | N44: growth is exponential | W44: 0 | X44: no data | AC44: 0 | AD44: no data
A45: ='(2) Time Series Data'!D139 -> to add | B45: ='(2) Time Series Data'!E139 -> rim | C45: 0 | D45: growth is exponential | M45: 0 | N45: growth is exponential | W45: 0 | X45: no data | AC45: 0 | AD45: no data
A46: ='(2) Time Series Data'!D140 -> to add | B46: ='(2) Time Series Data'!E140 -> peri | C46: 0 | D46: growth is exponential | M46: 0 | N46: growth is exponential | W46: 0 | X46: no data | AC46: 0 | AD46: no data
A47: ='(2) Time Series Data'!D141 -> Global | B47: ='(2) Time Series Data'!E141 -> glob | C47: 0 | D47: growth is exponential | M47: 0 | N47: growth is exponential | W47: 0 | X47: no data | AC47: 0 | AD47: no data
A49: ='(2) Time Series Data'!B161 -> JET AIRCRAFT (1958-2007)
A50: ='(2) Time Series Data'!D163 -> Boeing | B50: ='(2) Time Series Data'!E163 -> core | C50: 1 | D50: front end of data is under logistic fit, otherwise good fit | E50: 0.7194966897 | F50: 1619144.293 | G50: 1996.633776 | H50: 48.96974995 | I50: =HLOOKUP(ROUNDUP(G50,0),primaryenergy,2) -> 192.5189275 | J50: 1 | K50: 11213.74965 | M50: 1 | N50: front end of data is under logistic fit, otherwise good fit; Gompertz also good fit, with higher K | O50: 0.708342106 | P50: 17910.837 | Q50: 1996.989 | R50: 52.64 | S50: 192.5189275 | T50: 1 | U50: 124.0455487 | W50: 0 | X50: logistic is not good fit; data is fairly linear with 3 high outliers for 1970-72 (747s) | Y50: 95.86579192 | Z50: 1946.946152 | AA50: 37.76969739 | AC50: 0 | AD50: no data
A51: ='(2) Time Series Data'!D164 -> to add | B51: ='(2) Time Series Data'!E164 -> rimFSU | C51: 0 | D51: no data | M51: 0 | N51: no data | W51: 0 | X51: no data | AC51: 0 | AD51: no data
A52: ='(2) Time Series Data'!D165 -> Airbus | B52: ='(2) Time Series Data'!E165 -> rim | C52: 0.5 | D52: logistic fit is good, but data only runs to 52% of K | E52: 0.5230122189 | F52: 809931.4893 | G52: 2006.554976 | H52: 30.89692391 | I52: =HLOOKUP(ROUNDUP(G52,0),primaryenergy,4) -> 131.6819015 | J52: 1 | K52: 6150.666722 | M52: 1 | N52: logistic fit is excellent but only 49% of K in data | O52: 0.4895058702 | P52: 10249.111 | Q52: 2007.428401 | R52: 28.63814776 | S52: 127.1940807 | T52: 1 | U52: 80.57852175 | W52: 0 | X52: no fit; data declines after 1995 (smaller A318-A321 series dominate sales) | AC52: 0 | AD52: no data
A53: ='(2) Time Series Data'!D166 -> not used | B53: ='(2) Time Series Data'!E166 -> peri | C53: 0 | D53: no data | M53: 0 | N53: no data | W53: 0 | X53: no data | AC53: 0 | AD53: no data
A54: ='(2) Time Series Data'!D167 -> Boeing+McD+Airbus | B54: ='(2) Time Series Data'!E167 -> glob | C54: 1 | D54: front end of data is under logistic fit, otherwise good fit | E54: 0.6655060587 | F54: 2771415.403 | G54: 1999.444949 | H54: 50.64141996 | I54: =HLOOKUP(ROUNDUP(G54,0),primaryenergy,6) -> 389.0898066 | J54: 1 | K54: 7122.81678 | M54: 1 | N54: logistic fit is good | O54: 0.6318933245 | P54: 33532.55871 | Q54: 2000.929734 | R54: 55.20586824 | S54: 391.1165344 | T54: 1 | U54: 85.73546694 | W54: 0 | X54: logistic is not good fit; data is fairly linear with 3 high outliers for 1970-72 (747s) | Y54: 91.60367371 | Z54: 1943.397963 | AA54: 41.13424451 | AC54: 0 | AD54: no data
A56: ='(2) Time Series Data'!B187 -> PASSENGER CARS (1900-2005)
A57: ='(2) Time Series Data'!D189 -> US | B57: ='(2) Time Series Data'!E189 -> core | C57: 0.5 | D57: fit only w/ omitted 1960-1990 (bulge), i.e., approximation only | E57: 0.7666484857 | F57: 58284102.14 | G57: 1988.161406 | H57: 66.69335113 | I57: =HLOOKUP(ROUNDUP(G57,0),primaryenergy,2) -> 171.8045196 | J57: =CX151 -> 0.4795575439 | K57: =F57/(I57*J57) -> 707415.8707 | M57: 1 | N57: good fit but starts to asymptotes as end of data series continues linearly | O57: 0.8648911779 | P57: 575241025.7 | Q57: 1976.774221 | R57: 75.46121695 | S57: 156.0838782 | T57: 0.4795575439 | U57: =P57/(S57*T57) -> 7685127.505 | W57: 0 | X57: logistic to 1970 then actual follows U-shape while logistic rises & asymptotes (above current level) | AC57: 0 | AD57: no data
A58: ='(2) Time Series Data'!D190 -> FSU | B58: ='(2) Time Series Data'!E190 -> rimFSU | C58: 1 | D58: logistic fit is OK; possibly premature slow down | E58: 0.7228199134 | F58: 10191939.83 | G58: 1997.49217 | H58: 40.23236584 | I58: =HLOOKUP(ROUNDUP(G58,0),primaryenergy,3) -> 50.40136535 | J58: 1 | K58: =F58/(I58*J58) -> 202215.5502 | M58: 1 | N58: good fit but starts to asymptotes as end of data series continues linearly | O58: 0.8586328607 | P58: 145311080 | Q58: 1991.797757 | R58: 38.83088136 | S58: 65.79752539 | T58: 1 | U58: =P58/(S58*T58) -> 2208458.132 | W58: 1 | X58: logistic fit is plausible but seems to asymptote prematurely | Y58: 0.1050167978 | Z58: 1982.591921 | AA58: 102.1383222 | AC58: 0 | AD58: no data
A59: ='(2) Time Series Data'!D191 -> OECDexUS | B59: ='(2) Time Series Data'!E191 -> rim | C59: 1 | D59: logistic fit is good; possibly premature slow down | E59: 0.7675248409 | F59: 56338151.62 | G59: 1994.237292 | H59: 44.05716658 | I59: =HLOOKUP(ROUNDUP(G59,0),primaryenergy,4) -> 71.09070568 | J59: =CT144*(1-CT151)/CT146 -> 1.435870745 | K59: =F59/(I59*J59) -> 551917.8269 | M59: 1 | N59: good fit but starts to asymptotes as end of data series continues linearly | O59: 0.8328729921 | P59: 962539911.2 | Q59: 1988.875165 | R59: 48.59672335 | S59: 50.93658116 | T59: 1.435870745 | U59: =P59/(S59*T59) -> 13160536.91 | W59: 1 | X59: logistic fit is plausible but seems to asymptote prematurely | Y59: 0.1050167978 | Z59: 1982.591921 | AA59: 102.1383222 | AC59: 0 | AD59: no data
A60: ='(2) Time Series Data'!D192 -> Developing | B60: ='(2) Time Series Data'!E192 -> peri | C60: 0 | D60: No fit: actual growth too steep | M60: 0 | N60: logistic fit good but insufficient data (only up to 31% K) | S60: 0 | W60: 1 | X60: logistic fit is plausible but seems to asymptote prematurely | Y60: 0.1050167978 | Z60: 1982.591921 | AA60: 102.1383222 | AC60: 0 | AD60: no data
A61: ='(2) Time Series Data'!D193 -> Global | B61: ='(2) Time Series Data'!E193 -> glob | C61: 1 | D61: logistic fit is OK; possibly premature slow down | E61: 0.6507362113 | F61: 163079054.5 | G61: 1997.418364 | H61: 63.90336692 | I61: =HLOOKUP(ROUNDUP(G61,0),primaryenergy,6) -> 373.4557393 | J61: 1 | K61: =F61/(I61*J61) -> 436675.7218 | M61: 1 | N61: excellent fit but starts to asymptotes at end of data series; Gompertz a better fit with continued growth | O61: 0.6963926867 | P61: 2271791657 | Q61: 1993.586438 | R61: 65.6431285 | S61: 349.7085391 | T61: 1 | U61: =P61/(S61*T61) -> 6496243.022 | W61: 0 | X61: logistic to 1970 then actual 'weakly' follows US's U-shape while logistic rises & asymptotes (below current level) | AC61: 0 | AD61: no data
A63: ='(2) Time Series Data'!B213 -> COMPACT FLUORESCENT LIGHTBULBS, CFLs (1990-2003)
A64: ='(2) Time Series Data'!D215 -> OECDexJapan | B64: ='(2) Time Series Data'!E215 -> core | C64: 1 | D64: logistic fit is good | E64: 0.6964035909 | F64: 55884.99012 | G64: 2000.44567 | H64: 14.63544329 | I64: =HLOOKUP(ROUNDUP(G64,0),primaryenergy,2) -> 198.8941254 | J64: 0.83 | K64: =F64/(I64*J64) -> 338.528417 | M64: 1 | N64: logistic fit is good | O64: 0.6964035909 | P64: 3725666008 | Q64: 2000.44567 | R64: 14.63544329 | S64: 198.8941254 | T64: 0.83 | U64: =P64/(S64*T64) -> 22568561.13 | W64: 0 | X64: assumed constant | AC64: 0 | AD64: no data
A65: ='(2) Time Series Data'!D216 -> not used | B65: ='(2) Time Series Data'!E216 -> rimFSU | C65: 0 | D65: no data | M65: 0 | N65: no data | W65: 0 | X65: assumed constant | AC65: 0 | AD65: no data
A66: ='(2) Time Series Data'!D217 -> Asia | B66: ='(2) Time Series Data'!E217 -> rim | C66: 0 | D66: logistic asymptotes as data tail keeps rising; Sharif-Kabir or Floyd are better fits | M66: 0 | N66: logistic not a good fit; data looks exponential | W66: 0 | X66: assumed constant | AC66: 0 | AD66: no data
A67: ='(2) Time Series Data'!D218 -> RestofWorld | B67: ='(2) Time Series Data'!E218 -> peri | C67: 0 | D67: logistic fit is good but data only to 36% of K | E67: 0.3621872194 | M67: 0 | N67: logistic fit is good but data only to 36% of K | O67: 0.3621872194 | W67: 0 | X67: assumed constant | AC67: 0 | AD67: no data
A68: ='(2) Time Series Data'!D219 -> Global | B68: ='(2) Time Series Data'!E219 -> glob | C68: 0 | D68: logistic fit is good but data only to 26% of K | E68: 0.25670367 | M68: 0 | N68: logistic fit is good but data only to 26% of K | O68: 0.25670367 | W68: 0 | X68: assumed constant | AC68: 0 | AD68: no data
A70: ='(2) Time Series Data'!B239 -> BICYCLES (1861-2007)
A71: ='(2) Time Series Data'!D241 -> UK+France+Germany | B71: ='(2) Time Series Data'!E241 -> core | C71: 1 | D71: good fit | E71: 0.8216346583 | F71: 59895.24465 | G71: 1972.354444 | H71: 100.8321434 | I71: =HLOOKUP(ROUNDUP(G71,0),primaryenergy,2) -> 152.7647735 | J71: 0.19 | K71: =F71/(I71*J71) -> 2063.552496 | M71: 1 | N71: fit ok (not good at the end) | O71: 0.8216339094 | P71: 598952992.4 | Q71: 1972.35453 | R71: 100.8323005 | S71: =HLOOKUP(ROUNDUP(Q71,0),primaryenergy,2) -> 152.7647735 | T71: 0.19 | U71: =P71/(S71*T71) -> 20635543.77 | W71: 0 | X71: assumed constant @ 100W | AC71: 0 | AD71: no data
A72: ='(2) Time Series Data'!D242 -> FSU | B72: ='(2) Time Series Data'!E242 -> rimFSU | C72: 1 | D72: good fit | E72: 0.9353486837 | F72: 23396.35286 | G72: 1976.637959 | H72: 50.60417636 | I72: =HLOOKUP(ROUNDUP(G72,0),primaryenergy,3) -> 59.46236822 | J72: 1 | K72: =F72/(I72*J72) -> 393.4648679 | M72: 1 | N72: good fit | O72: 0.9353486737 | P72: 233963531.1 | Q72: 1976.637959 | R72: 50.60417763 | S72: =HLOOKUP(ROUNDUP(Q72,0),primaryenergy,3) -> 59.46236822 | T72: 1 | U72: =P72/(S72*T72) -> 3934648.722 | W72: 0 | X72: assumed constant @ 100W | AC72: 0 | AD72: no data
A73: ='(2) Time Series Data'!D243 -> Neth+Italy+US+Japan | B73: ='(2) Time Series Data'!E243 -> rim | C73: 1 | D73: good fit | E73: 0.7910610813 | F73: 99236.37448 | G73: 1986.139574 | H73: 61.22658101 | I73: =HLOOKUP(ROUNDUP(G73,0),primaryenergy,2) -> 163.3376712 | J73: =1-J71 -> 0.81 | K73: 750.0660543 | M73: 1 | N73: good fit | O73: 0.7910610813 | P73: 992363744.8 | Q73: 1986.139239 | R73: 61.22633616 | S73: =HLOOKUP(ROUNDUP(Q73,0),primaryenergy,2) -> 163.3376712 | T73: =1-T71 -> 0.81 | U73: 7500660.543 | W73: 0 | X73: assumed constant @ 100W | AC73: 0 | AD73: no data
A74: ='(2) Time Series Data'!D244 -> RestOfWorld | B74: ='(2) Time Series Data'!E244 -> peri | C74: 1 | D74: good fit | E74: 0.7322729258 | F74: 267588.8368 | G74: 1999.068866 | H74: 40.71240208 | I74: =HLOOKUP(ROUNDUP(G74,0),primaryenergy,4)+HLOOKUP(ROUNDUP(G74,0),primaryenergy,5) -> 137.9013573 | J74: 1 | K74: 1940.436571 | M74: 1 | N74: good fit | O74: 0.7322730266 | P74: 2675888000 | Q74: 1999.069038 | R74: 40.7127078 | S74: =HLOOKUP(ROUNDUP(Q74,0),primaryenergy,4)+HLOOKUP(ROUNDUP(Q74,0),primaryenergy,5) -> 137.9013573 | T74: 1 | U74: 19404363.04 | W74: 0 | X74: assumed constant @ 100W | AC74: 0 | AD74: no data
A75: ='(2) Time Series Data'!D245 -> Global | B75: ='(2) Time Series Data'!E245 -> glob | C75: 0.5 | D75: ok fit (not good at the end) | E75: 0.7676800718 | F75: 450117 | G75: 1993.675636 | H75: 61.80905356 | I75: =HLOOKUP(ROUNDUP(G75,0),primaryenergy,6) -> 349.7085391 | J75: 1 | K75: =F75/(I75*J75) -> 1287.120415 | M75: 1 | N75: fit ok (not good at the end) | O75: 0.7676804129 | P75: 4501168000 | Q75: 1993.675628 | R75: 61.80902169 | S75: =HLOOKUP(ROUNDUP(Q75,0),primaryenergy,6) -> 349.7085391 | T75: 1 | U75: =P75/(S75*T75) -> 12871198.43 | W75: 0 | X75: assumed constant @ 100W | AC75: 0 | AD75: no data
A77: ='(2) Time Series Data'!B265 -> E-BIKES (1997-2010)
A78: ='(2) Time Series Data'!D267 -> China | B78: ='(2) Time Series Data'!E267 -> core | C78: 1 | D78: fit ok | E78: 0.7277080151 | F78: 66498.72991 | G78: 2008.331785 | H78: 7.79235565 | I78: =HLOOKUP(ROUNDUP(G78,0),primaryenergy,4) -> 131.3397937 | J78: 0.59 | K78: =F78/(I78*J78) -> 858.1535617 | M78: 1 | N78: fit ok | O78: 0.7277079853 | P78: 171609632.6 | Q78: 2008.331785 | R78: 7.792355925 | S78: =HLOOKUP(ROUNDUP(Q78,0),primaryenergy,4) -> 131.3397937 | T78: 0.59 | U78: =P78/(S78*T78) -> 2214589.927 | W78: 0 | X78: assumed constant (@75%*350W + 25%*500W) | AC78: 0 | AD78: no data
A79: ='(2) Time Series Data'!D268 -> not used | B79: ='(2) Time Series Data'!E268 -> rimFSU | C79: 0 | D79: no data | M79: 0 | N79: no data | W79: 0 | X79: assumed constant (@75%*350W + 25%*500W) | AC79: 0 | AD79: no data
A80: ='(2) Time Series Data'!D269 -> RestOfWorld | B80: ='(2) Time Series Data'!E269 -> rim | C80: 1 | D80: fit ok | E80: 0.7277080828 | F80: 2770.780155 | G80: 2008.331784 | H80: 7.792354743 | I80: =HLOOKUP(ROUNDUP(G80,0),primaryenergy,6) -> 472.9275064 | J80: 0.16 | K80: =F80/(I80*J80) -> 36.61740063 | M80: 1 | N80: fit ok | O80: 0.7277080229 | P80: 7150400.989 | Q80: 2008.331785 | R80: 7.792355594 | S80: =HLOOKUP(ROUNDUP(Q80,0),primaryenergy,6) -> 472.9275064 | T80: 0.16 | U80: =P80/(S80*T80) -> 94496.52552 | W80: 0 | X80: assumed constant (@75%*350W + 25%*500W) | AC80: 0 | AD80: no data
A81: ='(2) Time Series Data'!D270 -> not used | B81: ='(2) Time Series Data'!E270 -> peri | C81: 0 | D81: no data | M81: 0 | N81: no data | W81: 0 | X81: assumed constant (@75%*350W + 25%*500W) | AC81: 0 | AD81: no data
A82: ='(2) Time Series Data'!D271 -> Global | B82: ='(2) Time Series Data'!E271 -> glob | C82: 1 | D82: fit ok | E82: 0.7277080646 | F82: 69269.50561 | G82: 2008.331785 | H82: 7.792354977 | I82: =HLOOKUP(ROUNDUP(G82,0),primaryenergy,6) -> 472.9275064 | J82: 1 | K82: =F82/(I82*J82) -> 146.4696062 | M82: 1 | N82: fit ok | O82: 0.7277080659 | P82: 178760014.2 | Q82: 2008.331785 | R82: 7.792355216 | S82: =HLOOKUP(ROUNDUP(Q82,0),primaryenergy,6) -> 472.9275064 | T82: 1 | U82: =P82/(S82*T82) -> 377986.0797 | W82: 0 | X82: assumed constant (@75%*350W + 25%*500W) | AC82: 0 | AD82: no data
A84: ='(2) Time Series Data'!B291 -> STEAMSHIPS (1810-1940), decadal
A85: ='(2) Time Series Data'!D293 -> UK+US | B85: ='(2) Time Series Data'!E293 -> core | C85: 1 | D85: good fit | E85: 0.7118800285 | F85: 74135.26789 | G85: 1925.068752 | H85: 72.42051606 | I85: =HLOOKUP(ROUNDUP(G85,0),primaryenergy,2) -> 44.10121434 | J85: 0.69 | K85: =F85/(I85*J85) -> 2436.268907 | M85: 1 | N85: ok fit; missing data at end of lifecycle | O85: 0.5563981998 | P85: 240221.7208 | Q85: 1934.509372 | R85: 110.2727383 | S85: =HLOOKUP(ROUNDUP(Q85,0),primaryenergy,2) -> 55.75832199 | T85: 0.58 | U85: =P85/(S85*T85) -> 7428.045999 | W85: 1 | X85: good fit (except beginning ) | Y85: 0.5629292969 | Z85: 1879 | AA85: 82.06626395 | AC85: 0 | AD85: no data
A86: ='(2) Time Series Data'!D294 -> not used | B86: ='(2) Time Series Data'!E294 -> rimFSU | C86: 0 | D86: no data | M86: 0 | N86: no data | W86: 0 | X86: no data | AC86: 0 | AD86: no data
A87: ='(2) Time Series Data'!D295 -> EuropeExUK | B87: ='(2) Time Series Data'!E295 -> rim | C87: 1 | D87: good fit | E87: 0.6927468 | F87: 26878.26824 | G87: 1918.764577 | H87: 61.20526373 | I87: =HLOOKUP(ROUNDUP(G87,0),primaryenergy,2) -> 36.74741269 | J87: =(1-0.74) -> 0.26 | K87: =F87/(I87*J87) -> 2813.20363 | M87: 1 | N87: good fit | O87: 0.6515888813 | P87: 61354.39655 | Q87: 1918.418788 | R87: 82.44669889 | S87: =HLOOKUP(ROUNDUP(Q87,0),primaryenergy,2) -> 36.74741269 | T87: =(1-0.83) -> 0.17 | U87: =P87/(S87*T87) -> 9821.323151 | W87: 1 | X87: good fit | Y87: 0.633 | Z87: 1881 | AA87: 69.187 | AC87: 0 | AD87: no data
A88: ='(2) Time Series Data'!D296 -> RestOfWorld | B88: ='(2) Time Series Data'!E296 -> peri | C88: 1 | D88: fit ok | E88: 0.6003234505 | F88: 10880.37116 | G88: 1915.672054 | H88: 34.74341875 | I88: =HLOOKUP(ROUNDUP(G88,0),primaryenergy,3)+HLOOKUP(ROUNDUP(G88,0),primaryenergy,4)+HLOOKUP(ROUNDUP(G88,0),primaryenergy,5) -> 4.704039188 | J88: 1 | K88: 2312.984805 | M88: 1 | N88: good fit | O88: 0.8138794657 | P88: 21517.91771 | Q88: 1916.080722 | R88: 42.61731819 | S88: =HLOOKUP(ROUNDUP(Q88,0),primaryenergy,3)+HLOOKUP(ROUNDUP(Q88,0),primaryenergy,4)+HLOOKUP(ROUNDUP(Q88,0),primaryenergy,5) -> 4.945157764 | T88: 1 | U88: 4351.310663 | W88: 1 | X88: good fit | Y88: 0.633 | Z88: 1881 | AA88: 69.187 | AC88: 0 | AD88: no data
A89: ='(2) Time Series Data'!D297 -> Global | B89: ='(2) Time Series Data'!E297 -> glob | C89: 1 | D89: good fit | E89: 0.6315347729 | F89: 111763.814 | G89: 1922.026502 | H89: 64.41405628 | I89: =HLOOKUP(ROUNDUP(G89,0),primaryenergy,6) -> 47.39557712 | J89: 1 | K89: =F89/(I89*J89) -> 2358.106405 | M89: 1 | N89: ok fit; missing data at end of lifecycle | O89: 0.4957725063 | P89: 333254.395 | Q89: 1930.052828 | R89: 98.97425117 | S89: =HLOOKUP(ROUNDUP(Q89,0),primaryenergy,6) -> 59.77149737 | T89: 1 | U89: =P89/(S89*T89) -> 5575.473423 | W89: 1 | X89: fitted to [1840:1930], with K set to equalise max. average capacity in the regions (K=0.63) | Y89: 0.63 | Z89: 1883.4 | AA89: 88.2 | AC89: 0 | AD89: no data
A91: ='(2) Time Series Data'!B317 -> STEAM LOCOMOTIVES (1830-1940), decadal
A92: ='(2) Time Series Data'!D319 -> UK+US | B92: ='(2) Time Series Data'!E319 -> core | C92: 1 | D92: good fit | E92: 0.6931704457 | F92: 383101.0861 | G92: 1928.130074 | H92: 63.27410425 | I92: =HLOOKUP(ROUNDUP(G92,0),primaryenergy,2) -> 47.6873948 | J92: 0.7 | K92: =F92/(I92*J92) -> 11476.56038 | M92: 1 | N92: good fit | O92: 0.7987883275 | P92: 592341.5456 | Q92: 1915.922037 | R92: 77.23198025 | S92: =HLOOKUP(ROUNDUP(Q92,0),primaryenergy,2) -> 33.98393916 | T92: 0.7 | U92: =P92/(S92*T92) -> 24900.06247 | W92: 0 | X92: forced fit with K limited to 1.02 (otherwise exponential) | Y92: 1.02 | Z92: 1904 | AA92: 88.64 | AC92: 0 | AD92: no data
A93: ='(2) Time Series Data'!D320 -> not used | B93: ='(2) Time Series Data'!E320 -> rimFSU | C93: 0 | D93: no data | M93: 0 | N93: no data | W93: 0 | X93: no data | AC93: 0 | AD93: no data
A94: ='(2) Time Series Data'!D321 -> EuropeExUK | B94: ='(2) Time Series Data'!E321 -> rim | C94: 1 | D94: good fit | E94: 0.6485793476 | F94: 95471.84446 | G94: 1911.138658 | H94: 65.85387082 | I94: =HLOOKUP(ROUNDUP(G94,0),primaryenergy,2) -> 30.61984482 | J94: =(1-0.79) -> 0.21 | K94: =F94/(I94*J94) -> 14847.48971 | M94: 1 | N94: good fit | O94: 0.7052872383 | P94: 283977.8429 | Q94: 1907.75019 | R94: 61.0151659 | S94: =HLOOKUP(ROUNDUP(Q94,0),primaryenergy,2) -> 27.58876457 | T94: =(1-0.75) -> 0.25 | U94: =P94/(S94*T94) -> 41172.96984 | W94: 0 | X94: poor fit, fitted to range [1860:1860] [1920:1930] | Y94: 0.3506411215 | Z94: 1848 | AA94: 62.2326502 | AC94: 0 | AD94: no data
A95: ='(2) Time Series Data'!D322 -> RestOfWorld | B95: ='(2) Time Series Data'!E322 -> peri | C95: 1 | D95: good fit | E95: 0.7747502413 | F95: 25614.2303 | G95: 1905.311351 | H95: 55.71646571 | I95: =HLOOKUP(ROUNDUP(G95,0),primaryenergy,3)+HLOOKUP(ROUNDUP(G95,0),primaryenergy,4)+HLOOKUP(ROUNDUP(G95,0),primaryenergy,5) -> 2.761133045 | J95: 1 | K95: 9276.709916 | M95: 1 | N95: good fit | O95: 0.7261168368 | P95: 78766.39646 | Q95: 1907.219136 | R95: 57.12141628 | S95: =HLOOKUP(ROUNDUP(Q95,0),primaryenergy,3)+HLOOKUP(ROUNDUP(Q95,0),primaryenergy,4)+HLOOKUP(ROUNDUP(Q95,0),primaryenergy,5) -> 3.088717878 | T95: 1 | U95: 25501.32436 | W95: 0 | X95: fit to 1st phase [:1890], with K limited to 0.053 | Y95: 0.53 | Z95: 1869 | AA95: 54.2 | AC95: 0 | AD95: no data
A96: ='(2) Time Series Data'!D323 -> Global | B96: ='(2) Time Series Data'!E323 -> glob | C96: 0.5 | D96: ok, matches sum of regions | E96: 0.4095482766 | F96: 538251.2084 | G96: 1925.849707 | H96: 69.3475518 | I96: =HLOOKUP(ROUNDUP(G96,0),primaryenergy,6) -> 51.70367772 | J96: 1 | K96: =F96/(I96*J96) -> 10410.30797 | M96: 1 | N96: good fit | O96: 0.6410206427 | P96: 916532.1654 | Q96: 1910.963741 | R96: 68.52443772 | S96: =HLOOKUP(ROUNDUP(Q96,0),primaryenergy,6) -> 33.46596375 | T96: 1 | U96: =P96/(S96*T96) -> 27386.99451 | W96: 0 | X96: fit to range [:1880] [1940:1940] with K limited to 1.02 | Y96: 1020 | Z96: 1892.2 | AA96: 93.67 | AC96: 0 | AD96: no data
A98: ='(2) Time Series Data'!B343 -> STATIONARY STEAM ENGINES (1710-1930), decadal
A99: ='(2) Time Series Data'!D345 -> UK+US | B99: ='(2) Time Series Data'!E345 -> core | C99: 1 | D99: good fit | E99: 0.804690259 | F99: 76486.69996 | G99: 1909.950854 | H99: 61.39696798 | I99: =HLOOKUP(ROUNDUP(G99,0),primaryenergy,2) -> 29.06481877 | J99: 0.82 | K99: =F99/(I99*J99) -> 3209.256666 | M99: 1 | N99: good fit | O99: 0.7261776419 | P99: 1579385.506 | Q99: 1903.359109 | R99: 75.12411508 | S99: =HLOOKUP(ROUNDUP(Q99,0),primaryenergy,2) -> 24.85773312 | T99: 0.73 | U99: =P99/(S99*T99) -> 87036.97069 | W99: 0 | X99: fit to range [:1820] [1910:] | Y99: 0.08334 | Z99: 1844.9 | AA99: 217.3 | AC99: 0 | AD99: no data
A100: ='(2) Time Series Data'!D346 -> not used | B100: ='(2) Time Series Data'!E346 -> rimFSU | C100: 0 | D100: no data | M100: 0 | N100: no data | W100: 0 | X100: no data | AC100: 0 | AD100: no data
A101: ='(2) Time Series Data'!D347 -> EuropeExUK | B101: ='(2) Time Series Data'!E347 -> rim | C101: 0.5 | D101: good fit, but missing data towards end of lifecycle | E101: 0.4831536487 | F101: 51539.76949 | G101: 1920.908362 | H101: 65.62137513 | I101: =HLOOKUP(ROUNDUP(G101,0),primaryenergy,2) -> 38.71347291 | J101: =(1-0.69) -> 0.31 | K101: =F101/(I101*J101) -> 4294.559709 | M101: 1 | N101: good fit | O101: 0.6578925679 | P101: 753144.0316 | Q101: 1909.011305 | R101: 74.42980499 | S101: =HLOOKUP(ROUNDUP(Q101,0),primaryenergy,2) -> 29.06481877 | T101: =(1-0.79) -> 0.21 | U101: =P101/(S101*T101) -> 123393.1709 | W101: 0 | X101: fit to range [:1820] [1910:1920] with K limited to 0.080 | Y101: 0.08 | Z101: 1855 | AA101: 134.6 | AC101: 0 | AD101: no data
A102: ='(2) Time Series Data'!D348 -> RestOfWorld | B102: ='(2) Time Series Data'!E348 -> peri | C102: 1 | D102: good fit | E102: 0.6172810859 | F102: 7879.859695 | G102: 1914.806104 | H102: 45.81123655 | I102: =HLOOKUP(ROUNDUP(G102,0),primaryenergy,3)+HLOOKUP(ROUNDUP(G102,0),primaryenergy,4)+HLOOKUP(ROUNDUP(G102,0),primaryenergy,5) -> 4.472379008 | J102: 1 | K102: 1761.894437 | M102: 1 | N102: ok fit | O102: 0.5560598767 | P102: 145433.1856 | Q102: 1916.268503 | R102: 64.71292714 | S102: =HLOOKUP(ROUNDUP(Q102,0),primaryenergy,3)+HLOOKUP(ROUNDUP(Q102,0),primaryenergy,4)+HLOOKUP(ROUNDUP(Q102,0),primaryenergy,5) -> 4.945157764 | T102: 1 | U102: 29409.21049 | W102: 0 | X102: fitted to range [:1880] [1920:1920] with K limited to 0.082 | Y102: 0.082 | Z102: 1878.8 | AA102: 81.159 | AC102: 0 | AD102: no data
A103: ='(2) Time Series Data'!D349 -> Global | B103: ='(2) Time Series Data'!E349 -> glob | C103: 1 | D103: good fit | E103: 0.5981943231 | F103: 135906 | G103: 1914.176356 | H103: 62.97009073 | I103: =HLOOKUP(ROUNDUP(G103,0),primaryenergy,6) -> 37.58213914 | J103: 1 | K103: =F103/(I103*J103) -> 3616.239073 | M103: 1 | N103: good fit | O103: 0.6948791668 | P103: 2479959.027 | Q103: 1905.930505 | R103: 75.25793299 | S103: =HLOOKUP(ROUNDUP(Q103,0),primaryenergy,6) -> 28.9488047 | T103: 1 | U103: =P103/(S103*T103) -> 85667.06131 | W103: 0 | X103: fitted to range [:1820] [1910:] with K set equal to the max average capacity (per region) | Y103: 0.085 | Z103: 1843.5 | AA103: 208.788 | AC103: 0 | AD103: no data
A105: ='(2) Time Series Data'!B369 -> MOTORCYCLES (1900-2008)
A106: ='(2) Time Series Data'!D371 -> UK+Fr+Gm+It | B106: ='(2) Time Series Data'!E371 -> core | C106: 1 | D106: fit ok | E106: 0.8701568562 | F106: 2075852.08 | G106: 1985.929374 | H106: 63.82569342 | I106: =HLOOKUP(ROUNDUP(G106,0),primaryenergy,2) -> 159.1884053 | J106: 0.22 | K106: =F106/(I106*J106) -> 59273.73452 | M106: 1 | N106: good fit | O106: 0.9817526247 | P106: 128800625 | Q106: 1971.965465 | R106: 53.18747065 | S106: =HLOOKUP(ROUNDUP(Q106,0),primaryenergy,2) -> 144.7729133 | T106: 0.23 | U106: =P106/(S106*T106) -> 3868145.67 | W106: 0 | X106: fitted to range: [:1959] [2000:] | Y106: 0.06494036795 | Z106: 2000.049 | AA106: 115.5756096 | AC106: 0 | AD106: no data
A107: ='(2) Time Series Data'!D372 -> FSU | B107: ='(2) Time Series Data'!E372 -> rimFSU | C107: 1 | D107: good fit | E107: 0.9367930882 | F107: 524168.2749 | G107: 1980.231689 | H107: 35.52679241 | I107: =HLOOKUP(ROUNDUP(G107,0),primaryenergy,3) -> 63.43497819 | J107: 1 | K107: =F107/(I107*J107) -> 8263.07961 | M107: 1 | N107: good fit | O107: 0.9420445564 | P107: 40642860.65 | Q107: 1978.071066 | R107: 35.1136509 | S107: =HLOOKUP(ROUNDUP(Q107,0),primaryenergy,3) -> 63.60869015 | T107: 1 | U107: =P107/(S107*T107) -> 638951.3847 | W107: 0 | X107: fit only possible if ∆T set equal to core, range [:1959] [2000:] | Y107: 0.06494036795 | Z107: 2000.049 | AA107: 115.5756096 | AC107: 0 | AD107: no data
A108: ='(2) Time Series Data'!D373 -> US+Japan | B108: ='(2) Time Series Data'!E373 -> rim | C108: 1 | D108: fit ok | E108: 0.8899973571 | F108: 2700000 | G108: 1987.790719 | H108: 44.66832561 | I108: =HLOOKUP(ROUNDUP(G108,0),primaryenergy,2) -> 168.7496498 | J108: =(1-J106) -> 0.78 | K108: =F108/(I108*J108) -> 20512.86308 | M108: 1 | N108: fit ok - low asymptote | O108: 1.010996561 | P108: 163966406 | Q108: 1981.530599 | R108: 33.63475506 | S108: =HLOOKUP(ROUNDUP(Q108,0),primaryenergy,2) -> 149.1825153 | T108: =(1-T106) -> 0.77 | U108: =P108/(S108*T108) -> 1427401.757 | W108: 0 | X108: fitted to range [:1949] [2006:] | Y108: 0.0492 | Z108: 1982.2 | AA108: 98.55 | AC108: 0 | AD108: no data
A109: ='(2) Time Series Data'!D374 -> RestOfWorld | B109: ='(2) Time Series Data'!E374 -> peri | C109: 0 | D109: exponential growth | E109: 0.118316735 | F109: 27058843.59 | G109: 2026.731127 | H109: 40.97655018 | I109: =HLOOKUP(ROUNDUP(G109,0),primaryenergy,4)+HLOOKUP(ROUNDUP(G109,0),primaryenergy,5) -> 377.1691659 | J109: 1 | K109: =F109/(I109*J109) -> 71741.92918 | M109: 0 | N109: exponential phase | O109: 0.1181295349 | P109: 4211332384 | Q109: 2026.750941 | R109: 40.98360307 | S109: =HLOOKUP(ROUNDUP(Q109,0),primaryenergy,4)+HLOOKUP(ROUNDUP(Q109,0),primaryenergy,5) -> 377.1691659 | T109: 1 | U109: =P109/(S109*T109) -> 11165632.73 | W109: 0 | X109: assumed constant (@64kW) after a period of increase reflecting general efficiency improvements | Y109: 0.0065 | Z109: 1954.1 | AA109: 9.76 | AC109: 0 | AD109: no data
A110: ='(2) Time Series Data'!D375 -> Global | B110: ='(2) Time Series Data'!E375 -> glob | C110: 1 | D110: good fit | E110: 0.5861425484 | F110: 13481125.11 | G110: 2004.790347 | H110: 63.02355935 | I110: =HLOOKUP(ROUNDUP(G110,0),primaryenergy,6) -> 442.023525 | J110: 1 | K110: =F110/(I110*J110) -> 30498.6598 | M110: 0 | N110: exponential phase | O110: 0.3151453091 | P110: 2627327527 | Q110: 2021.835905 | R110: 72.4118318 | S110: =HLOOKUP(ROUNDUP(Q110,0),primaryenergy,6) -> 639.2090299 | T110: 1 | U110: =P110/(S110*T110) -> 4110279.117 | W110: 0 | X110: fit to first phase (K limited to 0.012), fit range [:1949] [1956:1956] [1960:1961] [1964:1964] | Y110: 0.012 | Z110: 1936 | AA110: 56 | AC110: 0 | AD110: no data
A112: ='(2) Time Series Data'!B395 -> CELLPHONES (1978-2010)
A113: ='(2) Time Series Data'!D397 -> Scand+Japan (Nokia, Sony Ericsson, Siemens) | B113: ='(2) Time Series Data'!E397 -> core | C113: 0.5 | D113: good fit (but short time series) | E113: 0.5163949326 | F113: 39635.25889 | G113: 2009.673161 | H113: 17.29087065 | I113: =HLOOKUP(ROUNDUP(G113,0),primaryenergy,2) -> 210.6366464 | J113: 0.12 | K113: =F113/(I113*J113) -> 1568.073884 | M113: 0.5 | N113: good fit (but short time series) | O113: 0.5164151697 | P113: 8807490150 | Q113: 2009.672892 | R113: 17.29066346 | S113: =HLOOKUP(ROUNDUP(Q113,0),primaryenergy,2) -> 210.6366464 | T113: 0.12 | U113: =P113/(S113*T113) -> 348447207.6 | W113: 0 | X113: assumed constant @ 4.5W | AC113: 0 | AD113: no data
A114: ='(2) Time Series Data'!D398 -> not used | B114: ='(2) Time Series Data'!E398 -> rimFSU | C114: 0 | D114: no data | M114: 0 | N114: no data | W114: 0 | X114: assumed constant @ 4.5W | AC114: 0 | AD114: no data
A115: ='(2) Time Series Data'!D399 -> RestOfOECD (Motorola, Samsung, LG Electronics, RIM, Apple) | B115: ='(2) Time Series Data'!E399 -> rim | C115: 0.5 | D115: Good fit (almost 60%K) | E115: 0.576572474 | F115: 27054.93504 | G115: 2009.083224 | H115: 13.67386112 | I115: =HLOOKUP(ROUNDUP(G115,0),primaryenergy,2) -> 210.6366464 | J115: =(1-J113) -> 0.88 | K115: =F115/(I115*J115) -> 145.9586681 | M115: 0.5 | N115: Good fit (almost 60%K) | O115: 0.5765630881 | P115: 6012305661 | Q115: 2009.083315 | R115: 13.67391217 | S115: =HLOOKUP(ROUNDUP(Q115,0),primaryenergy,2) -> 210.6366464 | T115: =(1-T113) -> 0.88 | U115: =P115/(S115*T115) -> 32435787.6 | W115: 0 | X115: assumed constant @ 4.5W | AC115: 0 | AD115: no data
A116: ='(2) Time Series Data'!D400 -> RestOfWorld (ZTE, HTC, Huawei, Others) | B116: ='(2) Time Series Data'!E400 -> peri | C116: 0 | D116: not enough data | E116: 0.2310780772 | F116: 39407.69483 | G116: 2014.226372 | H116: 15.02692668 | I116: =HLOOKUP(ROUNDUP(G116,0),primaryenergy,6)-HLOOKUP(ROUNDUP(G116,0),primaryenergy,2) -> 324.7528912 | J116: 1 | K116: =F116/(I116*J116) -> 121.3467098 | M116: 0 | N116: not enough data | O116: 0.231076862 | P116: 8757311570 | Q116: 2014.226589 | R116: 15.02737014 | S116: =HLOOKUP(ROUNDUP(Q116,0),primaryenergy,6)-HLOOKUP(ROUNDUP(Q116,0),primaryenergy,2) -> 324.7528912 | T116: 1 | U116: =P116/(S116*T116) -> 26966077.31 | W116: 0 | X116: assumed constant @ 4.5W | AC116: 0 | AD116: no data
A117: ='(2) Time Series Data'!D401 -> Global (All Manufacturers) | B117: ='(2) Time Series Data'!E401 -> glob | C117: 0 | D117: not enough data | E117: 0.4838371787 | F117: 93363.70583 | G117: 2010.270061 | H117: 15.79616281 | I117: =HLOOKUP(ROUNDUP(G117,0),primaryenergy,6) -> 497.2133877 | J117: 1 | K117: =F117/(I117*J117) -> 187.7739179 | M117: 0 | N117: not enough data | O117: 0.4838482671 | P117: 2.074701471e+10 | Q117: 2010.269907 | R117: 15.7960883 | S117: =HLOOKUP(ROUNDUP(Q117,0),primaryenergy,6) -> 497.2133877 | T117: 1 | U117: =P117/(S117*T117) -> 41726581.03 | W117: 0 | X117: assumed constant @ 4.5W | AC117: 0 | AD117: no data
A119: ='(2) Time Series Data'!B421 -> WASHING MACHINES (1920-2008)
A120: ='(2) Time Series Data'!D423 -> US | B120: ='(2) Time Series Data'!E423 -> core | C120: 1 | D120: fit ok | E120: 0.9406685177 | F120: 859630.0222 | G120: 1988.406197 | H120: 53.62782344 | I120: =HLOOKUP(ROUNDUP(G120,0),primaryenergy,2) -> 171.8045196 | J120: 0.47 | K120: =F120/(I120*J120) -> 10645.82033 | M120: 1 | N120: fit ok | O120: 0.7422513855 | P120: 524245569.1 | Q120: 1992.449433 | R120: 83.82644479 | S120: =HLOOKUP(ROUNDUP(Q120,0),primaryenergy,2) -> 178.8428443 | T120: 0.47 | U120: =P120/(S120*T120) -> 6236850.62 | W120: 0 | X120: no fit (rising to 1977 then volatile & falling) | AC120: 0 | AD120: no data
A121: ='(2) Time Series Data'!D424 -> not used | B121: ='(2) Time Series Data'!E424 -> rimFSU | C121: 0 | D121: not used | M121: 0 | N121: no data | W121: 0 | X121: no data | AC121: 0 | AD121: no data
A122: ='(2) Time Series Data'!D425 -> to add | B122: ='(2) Time Series Data'!E425 -> rim | C122: 0 | D122: not used | M122: 0 | N122: no data | W122: 0 | X122: no data | AC122: 0 | AD122: no data
A123: ='(2) Time Series Data'!D426 -> to add | B123: ='(2) Time Series Data'!E426 -> peri | C123: 0 | D123: not used | M123: 0 | N123: no data | W123: 0 | X123: no data | AC123: 0 | AD123: no data
A124: ='(2) Time Series Data'!D427 -> Global | B124: ='(2) Time Series Data'!E427 -> glob | C124: 1 | D124: fit ok | E124: 0.8077850985 | F124: 6272064.304 | G124: 1993.705178 | H124: 50.75085166 | I124: =HLOOKUP(ROUNDUP(G124,0),primaryenergy,6) -> 349.7085391 | J124: 1 | K124: =F124/(I124*J124) -> 17935.11912 | M124: 1 | N124: good fit | O124: ='(2) Time Series Data'!CW433/P124 -> 0.6281710025 | P124: 3518623179 | Q124: 2000.9 | R124: 71.9 | S124: =HLOOKUP(ROUNDUP(Q124,0),primaryenergy,2) -> 198.8941254 | T124: 1 | U124: =P124/(S124*T124) -> 17690935.68 | W124: 0 | X124: no data | AC124: 0 | AD124: no data
A126: ='(2) Time Series Data'!B447 -> REFRIGERATORS (1918-2009)
A127: ='(2) Time Series Data'!D449 -> US | B127: ='(2) Time Series Data'!E449 -> core | C127: 1 | D127: check fit + assumed 20% compressor rate | E127: check | F127: =35627.597*5 -> 178137.985 | G127: 1982.128 | H127: 37.113 | I127: =HLOOKUP(ROUNDUP(G127,0),primaryenergy,2) -> 149.0646832 | J127: 0.48 | K127: =F127/(I127*J127) -> 2489.662837 | M127: 1 | N127: check fit | O127: check | P127: 504878383 | Q127: 1997.221 | R127: 54.489 | S127: =HLOOKUP(ROUNDUP(Q127,0),primaryenergy,2) -> 193.7440181 | T127: 0.48 | U127: =P127/(S127*T127) -> 5428967.434 | W127: 0 | X127: inverted U shaped | AC127: 0 | AD127: no data
A128: ='(2) Time Series Data'!D450 -> not used | B128: ='(2) Time Series Data'!E450 -> rimFSU | C128: 0 | D128: not used | W128: 0 | X128: inverted U shaped | AC128: 0 | AD128: no data
A129: ='(2) Time Series Data'!D451 -> to add | B129: ='(2) Time Series Data'!E451 -> rim | C129: 0 | D129: not used | W129: 0 | X129: inverted U shaped | AC129: 0 | AD129: no data
A130: ='(2) Time Series Data'!D452 -> to add | B130: ='(2) Time Series Data'!E452 -> peri | C130: 0 | D130: not used | W130: 0 | X130: inverted U shaped | AC130: 0 | AD130: no data
A131: ='(2) Time Series Data'!D453 -> Global | B131: ='(2) Time Series Data'!E453 -> glob | C131: 1 | D131: check fit + assumed 20% compressor rate | E131: check | F131: 268279.98 | G131: 1984.296 | H131: 38.89 | I131: =HLOOKUP(ROUNDUP(G131,0),primaryenergy,6) -> 300.3610394 | J131: 1 | K131: =F131/(I131*J131) -> 893.1916753 | M131: 1 | N131: check fit | O131: check | P131: 4466691470 | Q131: 2003.032 | R131: 57.929 | S131: =HLOOKUP(ROUNDUP(Q131,0),primaryenergy,6) -> 430.7973474 | T131: 1 | U131: =P131/(S131*T131) -> 10368428.44 | W131: 0 | X131: inverted U shaped | AC131: 0 | AD131: no data
A133: ='(2) Time Series Data'!B473 -> LAUNDRY DRYERS (1920-2006)
A134: ='(2) Time Series Data'!D475 -> US | B134: ='(2) Time Series Data'!E475 -> core | C134: 1 | D134: check fit | E134: check | F134: 833571.8674 | G134: 1988.683 | H134: 65.534 | I134: =HLOOKUP(ROUNDUP(G134,0),primaryenergy,2) -> 171.8045196 | J134: 0.4771706575 | K134: =F134/(I134*J134) -> 10167.9812 | M134: 1 | N134: check fit | O134: check | P134: 272409107 | Q134: 1988.683 | R134: 65.534 | S134: =HLOOKUP(ROUNDUP(Q134,0),primaryenergy,2) -> 171.8045196 | T134: 0.4771706575 | U134: =P134/(S134*T134)*25 -> 83071741.85 | W134: 0 | X134: assumed constant | AC134: 0 | AD134: no data
A135: ='(2) Time Series Data'!D476 -> not used | B135: ='(2) Time Series Data'!E476 -> rimFSU | W135: 0 | X135: assumed constant | AC135: 0 | AD135: no data
A136: ='(2) Time Series Data'!D477 -> to add | B136: ='(2) Time Series Data'!E477 -> rim | W136: 0 | X136: assumed constant | AC136: 0 | AD136: no data
A137: ='(2) Time Series Data'!D478 -> to add | B137: ='(2) Time Series Data'!E478 -> peri | W137: 0 | X137: assumed constant | AC137: 0 | AD137: no data
A138: ='(2) Time Series Data'!D479 -> Global | B138: ='(2) Time Series Data'!E479 -> glob | C138: 1 | D138: check fit | E138: check | F138: 2004464.282 | G138: 1984.134 | H138: 62.181 | I138: =HLOOKUP(ROUNDUP(G138,0),primaryenergy,6) -> 300.3610394 | J138: 1 | K138: =F138/(I138*J138) -> 6673.516266 | M138: 1 | N138: check fit | O138: check | P138: 655053687 | Q138: 1984.445 | R138: 62.275 | S138: =HLOOKUP(ROUNDUP(Q138,0),primaryenergy,6) -> 300.3610394 | T138: 1 | U138: =P138/(S138*T138) -> 2180887.669 | W138: 0 | X138: assumed constant | AC138: 0 | AD138: no data
A141: NORMALISATION METRICS | C141: PRIMARY ENERGY (EJ), 1901-2007 (extended to 2030 as average of all GGI scenarios in Riahi et al. 2007)
B142: Sources: | C142: BP (2008) World Energy Statistics; Grubler (2008) Encyclopedia of Earth; Grubler (1998) Technology and Global Change; Putnam (1953) Energy in the Future
C143: 1901 | D143: 1902 | E143: 1903 | F143: 1904 | G143: 1905 | H143: 1906 | I143: 1907 | J143: 1908 | K143: 1909 | L143: 1910 | M143: 1911 | N143: 1912 | O143: 1913 | P143: 1914 | Q143: 1915 | R143: 1916 | S143: 1917 | T143: 1918 | U143: 1919 | V143: 1920 | W143: 1921 | X143: 1922 | Y143: 1923 | AA143: 1924 | AB143: 1925 | AC143: 1926 | AD143: 1927 | AE143: 1928 | AG143: 1929 | AH143: 1930 | AI143: 1931 | AJ143: 1932 | AK143: 1933 | AL143: 1934 | AM143: 1935 | AN143: 1936 | AO143: 1937 | AP143: 1938 | AQ143: 1939 | AR143: 1940 | AS143: 1941 | AT143: 1942 | AU143: 1943 | AV143: 1944 | AW143: 1945 | AX143: 1946 | AY143: 1947 | AZ143: 1948 | BA143: 1949 | BB143: 1950 | BC143: 1951 | BD143: 1952 | BE143: 1953 | BF143: 1954 | BG143: 1955 | BH143: 1956 | BI143: 1957 | BJ143: 1958 | BK143: 1959 | BL143: 1960 | BM143: 1961 | BN143: 1962 | BO143: 1963 | BP143: 1964 | BQ143: 1965 | BR143: 1966 | BS143: 1967 | BT143: 1968 | BU143: 1969 | BV143: 1970 | BW143: 1971 | BX143: 1972 | BY143: 1973 | BZ143: 1974 | CA143: 1975 | CB143: 1976 | CC143: 1977 | CD143: 1978 | CE143: 1979 | CF143: 1980 | CG143: 1981 | CH143: 1982 | CI143: 1983 | CJ143: 1984 | CK143: 1985 | CL143: 1986 | CM143: 1987 | CN143: 1988 | CO143: 1989 | CP143: 1990 | CQ143: 1991 | CR143: 1992 | CS143: 1993 | CT143: 1994 | CU143: 1995 | CV143: 1996 | CW143: 1997 | CX143: 1998 | CY143: 1999 | CZ143: 2000 | DA143: 2001 | DB143: 2002 | DC143: 2003 | DD143: 2004 | DE143: 2005 | DF143: 2006 | DG143: 2007 | DH143: 2008 | DI143: 2009 | DJ143: 2010 | DK143: 2011 | DL143: 2012 | DM143: 2013 | DN143: 2014 | DO143: 2015 | DP143: 2016 | DQ143: 2017 | DR143: 2018 | DS143: 2019 | DT143: 2020 | DU143: 2021 | DV143: 2022 | DW143: 2023 | DX143: 2024 | DY143: 2025 | DZ143: 2026 | EA143: 2027 | EB143: 2028 | EC143: 2029 | ED143: 2030 | EE143: 2031
A144: OECD | B144: core | C144: 22.98838552 | D144: 23.59533539 | E144: 24.21831022 | F144: 24.85773312 | G144: 25.51403835 | H144: 26.18767166 | I144: 26.87909053 | J144: 27.58876457 | K144: 28.31717575 | L144: 29.06481877 | M144: 29.8322014 | N144: 30.61984482 | O144: 31.42828396 | P144: 32.25806788 | Q144: 33.10976013 | R144: 33.98393916 | S144: 34.88119866 | T144: 35.80214801 | U144: 36.74741269 | V144: 37.71763468 | W144: 38.71347291 | X144: 39.73560372 | Y144: 40.7847213 | AA144: 41.86153815 | AB144: 42.96678562 | AC144: 44.10121434 | AD144: 45.26559476 | AE144: 46.46071769 | AG144: 47.6873948 | AH144: 48.9464592 | AI144: 50.23876599 | AJ144: 51.56519285 | AK144: 52.92664065 | AL144: 54.32403401 | AM144: 55.75832199 | AN144: 57.2304787 | AO144: 58.70764623 | AP144: 60.19004118 | AQ144: 61.6778706 | AR144: 63.17133278 | AS144: 64.67061797 | AT144: 66.17590912 | AU144: 67.68738238 | AV144: 69.20520773 | AW144: 70.7295494 | AX144: 72.26056636 | AY144: 73.79841268 | AZ144: 75.34323793 | BA144: 76.8951875 | BB144: 78.4544029 | BC144: 80.02102205 | BD144: 81.59517952 | BE144: 83.17700678 | BF144: 84.76663242 | BG144: 86.36418234 | BH144: 87.96977992 | BI144: 89.58354623 | BJ144: 91.20560014 | BK144: 92.8360585 | BL144: 94.47503628 | BM144: 96.12264667 | BN144: 97.7790012 | BO144: 99.44420988 | BP144: 101.1183813 | BQ144: 102.8016226 | BR144: 107.9105505 | BS144: 112.3524658 | BT144: 119.7947397 | BU144: 127.9057597 | BV144: 134.999758 | BW144: 138.3007902 | BX144: 144.7729133 | BY144: 152.7647735 | BZ144: 149.6129116 | CA144: 145.3873164 | CB144: 153.1507769 | CC144: 156.0838782 | CD144: 159.4029267 | CE144: 163.166942 | CF144: 157.7575508 | CG144: 154.1524063 | CH144: 149.1825153 | CI144: 149.0646832 | CJ144: 155.7825185 | CK144: 157.3718172 | CL144: 159.1884053 | CM144: 163.3376712 | CN144: 168.7496498 | CO144: 171.8045196 | CP144: 173.2795173 | CQ144: 174.7270945 | CR144: 176.5214051 | CS144: 178.8428443 | CT144: 181.6431231 | CU144: 185.6200201 | CV144: 191.2327212 | CW144: 192.5189275 | CX144: 193.7440181 | CY144: 196.4589159 | CZ144: 200.4975271 | DA144: 198.8941254 | DB144: 200.0156487 | DC144: 201.6401151 | DD144: 205.0354082 | DE144: 205.8157328 | DF144: 204.9297759 | DG144: 204.9616071 | DH144: 205.273496 | DI144: 207.99623 | DJ144: 210.6366464 | DK144: 213.19612 | DL144: 215.6760256 | DM144: 218.0777382 | DN144: 220.4026324 | DO144: 222.6520832 | DP144: 224.8274654 | DQ144: 226.9301539 | DR144: 228.9615234 | DS144: 230.9229488 | DT144: 232.8158049 | DU144: 234.6414666 | DV144: 236.4013087 | DW144: 238.096706 | DX144: 239.7290335 | DY144: 241.2996658 | DZ144: 242.8099779 | EA144: 244.2613446 | EB144: 245.6551408 | EC144: 246.9927411 | ED144: 248.2755206 | EE144: 249.504854
A145: FSU | B145: rimFSU | C145: 1.030738832 | D145: 1.110001314 | E145: 1.192388102 | F145: 1.27798614 | G145: 1.366883445 | H145: 1.459169025 | I145: 1.554932795 | J145: 1.654265477 | K145: 1.757258492 | L145: 1.86400384 | M145: 1.974593971 | N145: 2.08912164 | O145: 2.207679749 | P145: 2.330361173 | Q145: 2.457258579 | R145: 2.588464216 | S145: 2.724069694 | T145: 2.864165748 | U145: 3.008841973 | V145: 3.158186545 | W145: 3.312285914 | X145: 3.471224478 | Y145: 3.635084228 | AA145: 3.803944364 | AB145: 3.977880887 | AC145: 4.156966156 | AD145: 4.341268411 | AE145: 4.530851265 | AG145: 4.725773158 | AH145: 4.926086766 | AI145: 5.131838373 | AJ145: 5.343067203 | AK145: 5.559804689 | AL145: 5.78207371 | AM145: 6.00988776 | AN145: 6.243250072 | AO145: 6.516010409 | AP145: 6.828958194 | AQ145: 7.18290624 | AR145: 7.57868949 | AS145: 8.017163791 | AT145: 8.499204685 | AU145: 9.025706188 | AV145: 9.597579576 | AW145: 10.21575213 | AX145: 10.88116586 | AY145: 11.59477617 | AZ145: 12.35755048 | BA145: 13.17046678 | BB145: 14.0345121 | BC145: 14.95068089 | BD145: 15.91997335 | BE145: 16.94339358 | BF145: 18.02194767 | BG145: 19.15664165 | BH145: 20.34847929 | BI145: 21.59845977 | BJ145: 22.90757519 | BK145: 24.27680786 | BL145: 25.7071275 | BM145: 27.19948814 | BN145: 28.7548249 | BO145: 30.37405044 | BP145: 32.05805128 | BQ145: 33.80768379 | BR145: 35.73020003 | BS145: 37.30268834 | BT145: 38.80010864 | BU145: 40.33830335 | BV145: 42.47496524 | BW145: 44.61329015 | BX145: 47.04098743 | BY145: 49.09659984 | BZ145: 51.46003681 | CA145: 54.25149941 | CB145: 56.88629126 | CC145: 59.46236822 | CD145: 62.07620958 | CE145: 63.60869015 | CF145: 63.31658662 | CG145: 63.43497819 | CH145: 64.906034 | CI145: 65.97800204 | CJ145: 68.23695636 | CK145: 70.58222908 | CL145: 71.95570661 | CM145: 74.04160783 | CN145: 75.11491825 | CO145: 74.53797721 | CP145: 73.92888155 | CQ145: 70.51124078 | CR145: 65.79752539 | CS145: 60.89512194 | CT145: 55.80605111 | CU145: 53.81005371 | CV145: 53.0185624 | CW145: 50.97150566 | CX145: 50.40136535 | CY145: 49.85860588 | CZ145: 50.69092222 | DA145: 50.95770826 | DB145: 51.73178635 | DC145: 52.38565259 | DD145: 53.48198293 | DE145: 53.67371489 | DF145: 55.45229903 | DG145: 55.6841802 | DH145: 50.18265148 | DI145: 50.86859324 | DJ145: 51.67021431 | DK145: 52.581452 | DL145: 53.59635669 | DM145: 54.70909189 | DN145: 55.9139342 | DO145: 57.20527329 | DP145: 58.57761197 | DQ145: 60.02556612 | DR145: 61.54386472 | DS145: 63.12734984 | DT145: 64.77097668 | DU145: 66.46981349 | DV145: 68.21904167 | DW145: 70.01395566 | DX145: 71.84996304 | DY145: 73.72258448 | DZ145: 75.62745373 | EA145: 77.56031765 | EB145: 79.51703619 | EC145: 81.49358241 | ED145: 83.48604246 | EE145: 85.49061558
A146: ASIA | B146: rim | C146: 0.3920621792 | D146: 0.4139397566 | E146: 0.437038131 | F146: 0.4614254247 | G146: 0.487173561 | H146: 0.5143584766 | I146: 0.5430603457 | J146: 0.5733638163 | K146: 0.6053582598 | L146: 0.6391380346 | M146: 0.6748027647 | N146: 0.7124576328 | O146: 0.7522136914 | P146: 0.7941881895 | Q146: 0.838504919 | R146: 0.8852945794 | S146: 0.9346951634 | T146: 0.986852364 | U146: 1.041920004 | V146: 1.100060489 | W146: 1.161445289 | X146: 1.226255441 | Y146: 1.294682082 | AA146: 1.366927019 | AB146: 1.443203317 | AC146: 1.523735931 | AD146: 1.608762369 | AE146: 1.698533393 | AG146: 1.793313756 | AH146: 1.893382986 | AI146: 1.999036209 | AJ146: 2.110585018 | AK146: 2.228358395 | AL146: 2.352703679 | AM146: 2.483987592 | AN146: 2.622597316 | AO146: 2.768941643 | AP146: 2.923452172 | AQ146: 3.086584589 | AR146: 3.258820007 | AS146: 3.440666383 | AT146: 3.632660023 | AU146: 3.835367157 | AV146: 4.049385611 | AW146: 4.275346573 | AX146: 4.513916448 | AY146: 4.765798832 | AZ146: 5.031736578 | BA146: 5.312513996 | BB146: 5.608959156 | BC146: 5.921946341 | BD146: 6.252398616 | BE146: 6.601290556 | BF146: 6.969651118 | BG146: 7.358566676 | BH146: 7.769184226 | BI146: 8.202714768 | BJ146: 8.660436875 | BK146: 9.143700468 | BL146: 9.653930795 | BM146: 10.19263264 | BN146: 10.76139474 | BO146: 11.3618945 | BP146: 11.99590293 | BQ146: 12.66528985 | BR146: 13.79047174 | BS146: 11.90567667 | BT146: 14.2284475 | BU146: 15.51734598 | BV146: 16.99168869 | BW146: 18.49872194 | BX146: 19.44553497 | BY146: 20.94598667 | BZ146: 22.13542789 | CA146: 23.5648342 | CB146: 25.12215265 | CC146: 26.85406697 | CD146: 28.84921594 | CE146: 31.14721587 | CF146: 30.67890292 | CG146: 31.20425319 | CH146: 32.24393365 | CI146: 34.02645075 | CJ146: 36.67355062 | CK146: 39.24141418 | CL146: 41.86144461 | CM146: 44.61868057 | CN146: 48.05055948 | CO146: 50.93658116 | CP146: 52.63990273 | CQ146: 55.56374678 | CR146: 58.50304688 | CS146: 62.42629185 | CT146: 66.1154679 | CU146: 71.09070568 | CV146: 75.28342614 | CW146: 76.89807447 | CX146: 75.07486348 | CY146: 77.7742784 | CZ146: 81.39998125 | DA146: 84.06672378 | DB146: 88.18129289 | DC146: 96.69594508 | DD146: 107.9909227 | DE146: 115.3878644 | DF146: 123.7980719 | DG146: 131.6819015 | DH146: 127.1940807 | DI146: 131.3397937 | DJ146: 135.5784407 | DK146: 139.9093521 | DL146: 144.3316648 | DM146: 148.8443174 | DN146: 153.446045 | DO146: 158.1353756 | DP146: 162.9106267 | DQ146: 167.7699031 | DR146: 172.7110954 | DS146: 177.73188 | DT146: 182.8297196 | DU146: 188.0018648 | DV146: 193.2453576 | DW146: 198.5570346 | DX146: 203.9335329 | DY146: 209.3712959 | DZ146: 214.8665811 | EA146: 220.4154686 | EB146: 226.0138707 | EC146: 231.6575425 | ED146: 237.3420939 | EE146: 243.063002
